Workbook

Sheet Preamble
A1: Engineering Manual Preamble
A2: Revised | B2: 2023-02-27
A4: This manual provides guidance to administrative, engineering, and technical staff. Engineering practice requires that professionals use a combination of technical skills and judgment in decision making. Engineering judgment is necessary to allow decisions to account for unique site-specific conditions and considerations to provide high quality products, within budget, and to protect the public health, safety, and welfare. This manual provides the general operational guidelines; however, it is understood that adaptation, adjustments, and deviations are sometimes necessary. Innovation is a key foundational element to advance the state of engineering practice and develop more effective and efficient engineering solutions and materials. As such, it is essential that our engineering manuals provide a vehicle to promote, pilot, or implement technologies or practices that provide efficiencies and quality products, while maintaining the safety, health, and welfare of the public. It is expected when making significant or impactful deviations from the technical information from these guidance materials, that reasonable consultations with experts, technical committees, and/or policy setting bodies occur prior to actions within the timeframes allowed. It is also expected that these consultations will eliminate any potential conflicts of interest, perceived or otherwise. MDOT Leadership is committed to a culture of innovation to optimize engineering solutions. The National Society of Professional Engineers Code of Ethics for Engineering is founded on six fundamental canons. Those canons are provided below. Engineers, in the fulfillment of their professional duties, shall:
A14: 1. | B14: Hold paramount the safety, health, and welfare of the public.
A15: 2. | B15: Perform services only in areas of their competence.
A16: 3. | B16: Issue public statement only in an objective and truthful manner.
A17: 4. | B17: Act for each employer or client as faithful agents or trustees.
A18: 5. | B18: Avoid deceptive acts.
A19: 6. | B19: Conduct themselves honorably, reasonably, ethically and lawfully so as to enhance the honor, reputation, and usefulness of the profession.

Sheet Change Log
A1: MDOT Signal Span Calculation Program - Change Log
A3: v1.0 | B3: 2015-03-11
A6: v2.0 | B6: 2023-02-27
B8: Preamble
A9: • | B9: Tab created
B11: Instructions
A12: • | B12: Tab created
A13: • | B13: Revised old instructions for updates made to the program
A14: • | B14: Added cell style legend which applies throughout the program tabs
B16: Span Configuration
A17: • | B17: Tab created
A18: • | B18: Added coordinate and span inputs to allow designers to utilize the program for any span configuration
A19: • | B19: Added macro functionality to populate pre-loaded sample configuration inputs for a variety of scenarios
A20: • | B20: Added macro functionality to generate tabs for span design as-needed
B22: Equipment Wt & Ht
A23: • | B23: Updated layout of signal head and signal part tables
A24: • | B24: Converted tables to excel table objects for more robust formulas
A25: • | B25: Added variants of each piece of equipment with backplates to tables
B27: Cables
A28: • | B28: Table of cable types updated for revised MDOT standard CAD cell
B30: Design Constants
A31: • | B31: Tab created
A32: • | B32: Hardcoded constants used throughout the design referenced from this tab instead to facilitate easier and more reliable updates in the future
B34: Sample Configurations
A35: • | B35: Tab created
A36: • | B36: Tab populated with sample configurations based on sample plans and figures provided by MDOT
B38: Main Span Design Tabs
A39: • | B39: Tab based on existing span design worksheets, modified to serve as the main span design worksheet for all scenarios
A40: • | B40: Span elevation plot consolidated from other tab
A41: • | B41: Added a check for generalized dead load and wind area load (per proposed standards)
A42: • | B42: Added a check for the minimum cable sag (sag must be at least 5% for simple spans, for tie-off spans it must be 6.5% at minimum).
A43: • | B43: Adjusted the check for minimum vertical clearance – if the span is bottom tethered, the minimum is 18’-0” not 17’-0”
A44: • | B44: Added cells reporting bending moments at the bottom of shafts, shown in lbs-ft and kip-ft
A45: • | B45: Reported stem heights and POCHs updated to be shown in XX'-YY" format
A46: • | B46: Updated minimum stem length to 10"
A47: • | B47: Updated stem length calculations to align top of signal heads and allow the designer to choose the minimum stem used in the design
A48: • | B48: Reorganized calculation cells at top of page to be organized by general span and span endpoint values
B50: Tie-off Span Design Tabs
A51: • | B51: Tab based on existing span design worksheets, modified to serve as the tie-off span design worksheet for all scenarios
A52: • | B52: Span elevation plot consolidated from other tab
A53: • | B53: 3-way and 4-way tie-off functionality consolidated to this single worksheet
A54: • | B54: Updated calculation of equilibrium at tie-off junction to apply for scenarios with 1-2 spans and 1-2 tie-offs at the junction
A55: • | B55: Added functionality for box span tie-offs
A56: • | B56: Added a check for generalized dead load and wind area load (per proposed standards)
A57: • | B57: Adjusted the check for minimum vertical clearance – if the span is bottom tethered, the minimum is 18’-0” not 17’-0”
A58: • | B58: Added cells reporting bending moments at the bottom of shafts, shown in lbs-ft and kip-ft
A59: • | B59: Reported stem heights and POCHs updated to be shown in XX'-YY" format
A60: • | B60: Updated minimum stem length to 10"
A61: • | B61: Updated stem length calculations to align top of signal heads and allow the designer to choose the minimum stem used in the design
A62: • | B62: Reorganized calculation cells at top of page to be organized by general span and span endpoint values
B64: Macro Controls
A65: • | B65: Tab created
A66: • | B66: Added setting to control color of generated span calculation tabs, which is used by the macros to identify the tabs when the tab deletion macro is used
A69: v2.01 | B69: 2023-06-02
B71: Instructions
A72: • | B72: Added step 0, which details how to unlock macro functionality if it is blocked by Excel
B74: Equipment Wt & Ht
A75: • | B75: Updated errors in various equipment heights
A76: • | B76: PED signals removed as they are not placed on wire spans in practice, they are still available in an inactive table on the side
B78: Main Span Design Tabs
A79: • | B79: The lowest signal on the span is now adjusted downward to the minimum clearance, the other signals are aligned with the top of the lowest signal
A80: • | B80: Stem height calculations adjusted to give stem lengths that align the signals as described above and account for the wire hanger height and entrance head
A81: • | B81: Stem heights are now rounded down to the nearest inch
A82: • | B82: Minimum stem height is no longer an input, but instead reports the minimum stem currently on the span. The check cell to the right ensures that the stem meets the required minimum length
B85: Tie-off Span Design Tabs
A86: • | B86: The lowest signal on the span is now adjusted downward to the minimum clearance, the other signals are aligned with the top of the lowest signal
A87: • | B87: Stem height calculations adjusted to give stem lengths that align the signals as described above and account for the wire hanger height and entrance head
A88: • | B88: Stem heights are now rounded down to the nearest inch
A89: • | B89: Minimum stem height is no longer an input, but instead reports the minimum stem currently on the span. The check cell to the right ensures that the stem meets the required minimum length
A93: v2.02 | B93: 2024-09-13
B95: Instructions
A96: • | B96: Added General Assumption 7
A97: • | B97: Included selection of SIG-020/021 or SIG-022 and field drilled hole size for span weight and wind area checks in step 5a.
B99: Equipment Wt & Ht
A100: • | B100: Updated equipment weights to most recent available data
A101: • | B101: Added revision column to track when equipment weights were last updated
B103: Main Span Design Tabs
A104: • | B104: Addressed Excel version compatibility issue with VALUETOTEXT function only being available to Office 365 versions of Excel. This function has been replaced with the TEXT function.
A106: • | B106: Added note: Span weight and wind area checks are applicable only for steel strain poles included in standards SIG-020, SIG-021, and SIG-022
A107: • | B107: Stem heights adjusted to report full distance from top of signal to wire, previously reported the length of pipe (subtracted hanger height)
A108: • | B108: Added span weight and wind area check per SIG-022. Inputs added to specify which standard is used for the design, along with field hole size (applicable for SIG-022 only)
A110: • | B110: Set default horizontal force input to 1000 lbs, and default tether condition to "NOT TETHERED"
B112: Tie-off Span Design Tabs
A113: • | B113: Added note: Span weight and wind area checks are applicable only for steel strain poles included in standards SIG-020, SIG-021, and SIG-022
A114: • | B114: Stem heights adjusted to report full distance from top of signal to wire, previously reported the length of pipe (subtracted hanger height)
A115: • | B115: Added span weight and wind area check per SIG-022. Inputs added to specify which standard is used for the design, along with field hole size (applicable for SIG-022 only)
A117: • | B117: Set default tether condition to "NOT TETHERED"
A118: • | B118: Set equilibrium tolerances to 10 lbs
A121: v2.03 | B121: 2025-01-30
B123: Main Span Design Tabs
A124: • | B124: Fixed formula in total attachment weight and perpendicular wind area check cells which incorrectly reported weight/wind area as too large for some configurations
B126: Tie-off Span Design Tabs
A127: • | B127: Fixed formula in total attachment weight and perpendicular wind area check cells which incorrectly reported weight/wind area as too large for some configurations
A130: v2.04 | B130: 2025-05-07
B132: Main Span Design Tabs
A133: • | B133: Previously the program was set to a minimum clearance of 18 ft for the no tether condition. This has been updated to 17 ft.
B135: Tie-off Span Design Tabs
A136: • | B136: Previously the program was set to a minimum clearance of 18 ft for the no tether condition. This has been updated to 17 ft.
A139: v2.05 | B139: 2025-10-10
B141: Equipment Wt & Ht
A142: • | B142: Added traffic signal heads utilizing Aeroflex Backplates as options for 1W-3C, 1W-4C, 1W-5C (Doghouse), and Hawk signal types

Sheet Instructions
A1: MDOT Signal Span Calculation Program - Instructions
A2: MDOT Traffic and Safety Support Area
A3: Revised | B3: 2023-06-02
A5: Introduction: The MDOT span calculation program was created to facilitate faster and more reliable signal span design, and has been maintained and updated to add functionality and remain current on all MDOT signal design standards. The use of this program is an iterative process in which the designer will enter a best guess and then adjust the inputs depending on the results. Several checks are included to ensure that the proper POCHs and stem lengths are calculated to be transferred to the plan sheets.
A10: Program Features and Benefits
A12: 1) It is a Microsoft Excel spreadsheet, so all the formulas are readily visible. This allows new users the ability to better understand the calculations.
A13: 2) It has a graphic component to provide a visual image of what the proposed span(s) will look like in plan and elevation views to help ensure inputs are properly added to the worksheets and the program produces the expected results.
A15: 3) It can model most, if not all, span configurations that are encountered in design.
A16: 4) It can model tie-off junctions with 1 or 2 main spans and 1 or 2 tie-off spans at the junction.
A17: 5) Weights may be hung on any of the spans. Individual signals may be modeled according to standard signal head properties or as a combination of signal parts.
A19: 6) The POCH is defined as the height from the top of the pole foundation rather than from the grade centerline.
A22: General Assumptions:
A23: 1) Tension on spans is generally limited to 1500 pounds. | I23: Legend
A24: 2) In the program Yellow cells are those that require data to be entered by the user. | I24: Inputs
A25: 3) In the program Green cells are key calculated values that must be verified. | I25: Referenced Value
A26: 4) In the program Blue cells are calculated values. | I26: Calculated Values
A27: 5) In the program Gray cells are values which are linked to the value of an input or calculation cell. | I27: Key Values
A28: 6) Blue tabs are span calculation tabs generated by the program. IMPORTANT: No other tabs may use this color in order to avoid accidental deletion of tabs. | I28: Design Issue
A30: 7) The design checks included in this tool are intended to streamline the designer's process for developing a suitable signal span configuration, but are not a substitute for the designer's responsibility to ensure all requirements of the applicable design standard are met. Not all requirements included in the MDOT signal span standards are checked in this tool. The "Total Attachment Weight" and " Perpendicular Wind Area" design checks are applicable only for steel strain poles included in standards SIG-020, SIG-021, and SIG-022.
A31: 8) Naming conventions within the program (as shown in Figure 1):
A32: • | B32: Pole and tie-off junction locations are designated by a point number
A33: • | B33: Main spans will be designated by a span number
A34: • | B34: Tie-off span names must be "TOX-Y", where X is the ID of the tie-off at that point (may be either 1 or 2) and Y is the tie-off junction point.
A35: • | B35: Examples showing use of the naming conventions are shown below for suspended diagonal and box spans, but the same principles apply to all configurations.
A53: Figure 1: Naming Convention for Span Configurations
A56: Instructions:
A57: 0) If you have an issue with Excel not allowing you to run the macros in this file: close the file, right-click on the file and select "Properties". At the bottom of the "General" tab, there should be a checkbox for "Unblock", which will allow you to enable macros in the file when it is reopened. For additional information, see the Microsoft help page: https://learn.microsoft.com/en-us/deployoffice/security/internet-macros-blocked.
A59: 1) Go to the “Span Configuration” tab in the spreadsheet. OPTIONAL: Sample configurations are available to be automatically populated by an Excel Macro to show program functionality or serve as a starting point for a new design. These samples can be populated by selecting the desired configuration in the drop-down menu on the right side of the page and pressing the "Populate Sample Configuration" button. The tables may also be cleared using the "Clear Input Tables" button.
A61: 2) In the "Coordinate Input" section, enter/modify the properties of each pole and tie-off junction location to be used in the design. The "Item" and "Quadrant" inputs are optional and do not affect the calculations but may serve to aid the designer in more easily identifying the points. Point coordinates are entered as Northing and Easting values by the user, then are automatically converted to design X and Y coordinates for the purposes of the program. The "Top of Foundation" input is used later on in the design of the individual spans. For tie-off junctions, "Top of Foundation" should be entered as "-" since it does not apply. If for any reason the designer would like to adjust the design coordinates, there are optional offset inputs available to the right of the Coordinate Input table. By default, the design coordinates are generated relative to the average of the Northing/Easting inputs.
A63: 3) In the "Span Configuration" section, enter the span names. Span names must follow the conventions given in the General Assumptions section above. For each span enter the points A and B, where Point A is the span start and Point B is the span end. For Tie-off spans, Point A must be the tie-off junction point and Point B must be the pole location. For Tie-off spans only, the user must also enter the main spans at that tie-off junction. Based on the design, there may be either 1 or 2 main spans at the junction. For main spans and tie-offs with only one main span at the junction, "-" should be entered for the inputs that do not apply. The grade centerline for each span must also be entered. The grade centerline elevation is taken as the highest point passing under the span. Based on the user's input, the design coordinates and the pole elevations at the span endpoints are referenced from the Coordinate Input table. In addition, the span lengths and span angles with respect to the design coordinates at each endpoint are calculated. Ensure that these cells display the expected values. The span configuration may be visually checked by the user on the graph showing a plan view below the table.
A65: 4) When the designer has finished verifying that the inputs have been entered and represented by the program correctly, press the "Generate Span Calculation Tabs" button. This macro will generate a span design worksheet for each span entered in the Span Configuration table. If the span configuration changes, the designer can remove the current set of span calculation tabs by pressing "Delete Span Calculation Tabs" and generate new tabs. WARNING: this will clear all changes to the inputs made to the current set of tabs. OPTIONAL: If it is desirable to keep an old span calculation tab, a) Change the color of the tab so it will not be deleted when "Delete Span Calculation Tabs" is pressed. b) To ensure there are no conflicts when generating a new set of tabs, rename the old calculation tab(s) so that they do not have the same name as a span that will be generated in the next set. c) Additionally, some previously referenced values (e.g. span length) will need to be manually re-entered after the tab is renamed.
A67: 5) For each span being designed, navigate to the corresponding tab and:
A68: a) Select the signal heads or parts to be mounted on the span at the desired distance along the span, which is measured from Point A for all spans. If there is not a head at a particular distance, leave that cell blank. Select the MDOT signal standard that is being followed for design in the "Design Standard" cell and the field drilled hole size if SIG-022 is used. Check that the span is not overloaded by inspecting the "Total Attachment Weight" and "Perpendicular Wind Area" outputs at the top of the tab. OPTIONAL: Additional signal heads and parts may be added to the Equipment tables. Subsequently, they will be selectable in the drop-down menus in each span design tab.
A69: b) Set the span tether condition and adjust the horizontal force and POCH inputs until span clearance, minimum stem length, and sag requirements are met. If an endpoint of the span is a tie-off junction enter "-" for the POCH input, as it does not apply. The POCH on the corresponding tie-off span(s) need to be entered for the current span outputs to properly populate. The horizontal force differs from the tension in that it does not include the vertical component of the force on the span wire, but typically they are very similar in magnitude. Actual tension on the span will vary as you travel across the span. The horizontal tension should be a constant assuming no wind or other dynamic loads. Horizontal forces for tie off spans are calculated by the spreadsheet to satisfy equilibrium. By default, the minimum stem length is set to the minimum stem required by MDOT, but this input may be adjusted to a larger value if it is beneficial to the design. Note that the connection height at a tie-off junction must be the same for both main spans at the junction, if there are two at that point. This is handled automatically for the tie-off spans. For tie-off junctions with one tie-off span (for example, a suspended box span), it may be necessary to change the angle of the tie-off span by moving the pole location and adjust the junction connection height in order to achieve equilibrium. For tie-off junctions with two tie-off spans, the two will be able to adjust tensions and POCH of the second tie-off in order to achieve equilibrium in most cases. The designer should also check the design to ensure that it is reasonable.
A70: c) Review the span elevation graph provided at the top of the tab and all of the green key output cells. The span elevation graph shows the applicable minimum vertical clearance and the span height along the span, with downward spikes shown at each head. Ensure the values are as expected and that none of the check cells are highlighted in red, signifying an issue with the design. Additionally, keep the following guidelines in mind for a good design: • The tension at points A & B is the actual tension at the POCHs and includes the vertical and horizontal components of force on the span wire. If it exceeds 1500 pounds, adjust the connection heights or horizontal force until the tension is at a reasonable level. • The minimum vertical clearance should equal or exceed 17 feet, unless if the span is bottom tethered the minimum vertical clearance should equal or exceed 18 feet. • The stem lengths should be kept as short and even as reasonably possible. Tilting the span one way or the other will often reduce the variation in stem lengths. Increasing the tension may also help. • The minimum required pole length should be a pole length utilized by MDOT and shown in the Statewide Signal Details (i.e. 30 ft, 36 ft, or 40 ft). • The POCH must be a minimum of 1.5 ft below the top of the pole.
A72: 6) Record the POCHs, and stem lengths for each head. This information can then be transferred to the signal plan.
A75: Appendix of calculations
A77: Primary Span Forces: These calculations define the horizontal and vertical forces at the ends of the span, as shown in Figure 2.
A97: Figure 2: Forces at Ends of Span
A99: FHA = User defined
A100: FHB = FHA (assumes static loading, no wind or other dynamic loads)
A101: WX = User defined (loads placed across the span including the weight of the span wire.)
A102: XWX = User defined (based on the distance from point A to each load)
A103: YA-B = User defined (difference in height between the ends of the span.)
A104: FVB = (FHB x YA-B + W1 x XW1 + … + WX x XWX) / Xspan
A105: FVA = W1 + … + WX – FVB
A106: TensionA = (FHA^2 + FVA^2)^0.5
A107: TensionB = (FHB^2 + FVB^2)^0.5
A110: Link Calculations: Once the forces at the ends of the spans are determined, the span is divided into 1 foot links to determine how it sags, as shown in Figure 3. Starting at point A, FVX is equal to FVA. The horizontal forces are, by definition, always constant and defined by the horizontal tension selected. After the first link, use the vertical forces calculated from the previous link. The same methodology is used for the tie-off spans.
A126: Figure 3: Forces at 1 ft Links
A129: FHX = FHA = FHX+1
A130: FVX = FVX+1 (from previous link) or FVA (if first link)
A131: Fwire = span wire unit weight given in the design constants tab (lb/ft)
A132: Fhead = user defined (only applies if there is a head on the link in question)
A133: FVX+1 = FVX – Fwire – Fhead
A134: YX = (0.5 x Fwire + 1.0 x Fhead + 1.0 x FVX+1) / FHX+1
A137: Division of Forces at a Tie-off: At a tie-off point the horizontal forces in the primary and tie-off spans must sum to 0 in both the X and Y directions in order for the tie-off point to remain stationary. Figure 4 is based on a generic tie-off junction. Any spans which are not in use for a particular tie-off junction will have forces equal to 0.
A158: Figure 4: Forces at Tie-off Junction
A160: FHA = Horizontal force in Span A = known from span calculation
A161: FHB = Horizontal force in Span B = known from span calculation (reduces to 0 if second span not in use)
A162: FHTO1 = Horizontal force in Tie-off Span 1
A163: FHTO2 = Horizontal force in Tie-off Span 2 (reduces to 0 if second tie-off span not in use)
A165: θx = Angle of each span with respect to local X axis parallel to Span 1
A166: θA = Span A angle with respect to global X axis = known from span calculation
A167: θB = Span B angle with respect to global X axis = known from span calculation
A168: θTO1 = Tie-off Span 1 angle with respect to global X axis = known from span configuration
A169: θTO2 = Tie-off Span 2 angle with respect to global X axis = known from span configuration
A171: FHTO1X = (FHAX + FHBX) x tan( θTO1 - 90) / [tan(θTO1 - 90) + tan(θTO2 - 90)]
A172: FHTO1Y = FHTO1X x tan(θTO1)
A173: FHTO1 = (FHTO1X^2 + FHTO1Y^2)^0.5
A174: FHTO2X = FHAX - FHBX – FHTO1X
A175: FHTO2Y = FHTO2X x tan(θTO2)
A176: FHTO2 = (FHTO2X^2 + FHTO2Y^2)^0.5

Sheet Span Configuration
A1: MDOT Signal Span Calculation Program - Span Configuration
A2: MDOT Traffic and Safety Support Area
A4: Coordinate Input
A6: Point Name | B6: Item | C6: Quadrant | D6: Northing | E6: Easting | F6: Top of Foundation | G6: Design X Coordinate (ft) | H6: Design Y Coordinate (Y) | J6: Average Northing | K6: Average Easting | L6: Design X Coordinate Offset (ft) | M6: Design Y Coordinate Offset (ft)
G7: =IF(CoordinateInput[[#This Row],[Easting]]="",1000000,CoordinateInput[[#This Row],[Easting]]-$K$7+$L$7) -> 1000000 | H7: =IF(CoordinateInput[[#This Row],[Northing]]="",1000000,CoordinateInput[[#This Row],[Northing]]-$J$7+$M$7) -> 1000000 | J7: =IFERROR(AVERAGE(CoordinateInput[Northing]),"") ->  | K7: =IFERROR(AVERAGE(CoordinateInput[Easting]),"") ->  | L7: 0 | M7: 0
G8: =IF(CoordinateInput[[#This Row],[Easting]]="",1000000,CoordinateInput[[#This Row],[Easting]]-$K$7+$L$7) -> 1000000 | H8: =IF(CoordinateInput[[#This Row],[Northing]]="",1000000,CoordinateInput[[#This Row],[Northing]]-$J$7+$M$7) -> 1000000
G9: =IF(CoordinateInput[[#This Row],[Easting]]="",1000000,CoordinateInput[[#This Row],[Easting]]-$K$7+$L$7) -> 1000000 | H9: =IF(CoordinateInput[[#This Row],[Northing]]="",1000000,CoordinateInput[[#This Row],[Northing]]-$J$7+$M$7) -> 1000000
G10: =IF(CoordinateInput[[#This Row],[Easting]]="",1000000,CoordinateInput[[#This Row],[Easting]]-$K$7+$L$7) -> 1000000 | H10: =IF(CoordinateInput[[#This Row],[Northing]]="",1000000,CoordinateInput[[#This Row],[Northing]]-$J$7+$M$7) -> 1000000 | J10: Sample Configuration | L10: Box Span
G11: =IF(CoordinateInput[[#This Row],[Easting]]="",1000000,CoordinateInput[[#This Row],[Easting]]-$K$7+$L$7) -> 1000000 | H11: =IF(CoordinateInput[[#This Row],[Northing]]="",1000000,CoordinateInput[[#This Row],[Northing]]-$J$7+$M$7) -> 1000000
G12: =IF(CoordinateInput[[#This Row],[Easting]]="",1000000,CoordinateInput[[#This Row],[Easting]]-$K$7+$L$7) -> 1000000 | H12: =IF(CoordinateInput[[#This Row],[Northing]]="",1000000,CoordinateInput[[#This Row],[Northing]]-$J$7+$M$7) -> 1000000
G13: =IF(CoordinateInput[[#This Row],[Easting]]="",1000000,CoordinateInput[[#This Row],[Easting]]-$K$7+$L$7) -> 1000000 | H13: =IF(CoordinateInput[[#This Row],[Northing]]="",1000000,CoordinateInput[[#This Row],[Northing]]-$J$7+$M$7) -> 1000000
G14: =IF(CoordinateInput[[#This Row],[Easting]]="",1000000,CoordinateInput[[#This Row],[Easting]]-$K$7+$L$7) -> 1000000 | H14: =IF(CoordinateInput[[#This Row],[Northing]]="",1000000,CoordinateInput[[#This Row],[Northing]]-$J$7+$M$7) -> 1000000
G15: =IF(CoordinateInput[[#This Row],[Easting]]="",1000000,CoordinateInput[[#This Row],[Easting]]-$K$7+$L$7) -> 1000000 | H15: =IF(CoordinateInput[[#This Row],[Northing]]="",1000000,CoordinateInput[[#This Row],[Northing]]-$J$7+$M$7) -> 1000000
G16: =IF(CoordinateInput[[#This Row],[Easting]]="",1000000,CoordinateInput[[#This Row],[Easting]]-$K$7+$L$7) -> 1000000 | H16: =IF(CoordinateInput[[#This Row],[Northing]]="",1000000,CoordinateInput[[#This Row],[Northing]]-$J$7+$M$7) -> 1000000
G17: =IF(CoordinateInput[[#This Row],[Easting]]="",1000000,CoordinateInput[[#This Row],[Easting]]-$K$7+$L$7) -> 1000000 | H17: =IF(CoordinateInput[[#This Row],[Northing]]="",1000000,CoordinateInput[[#This Row],[Northing]]-$J$7+$M$7) -> 1000000 | J17: Steps:
G18: =IF(CoordinateInput[[#This Row],[Easting]]="",1000000,CoordinateInput[[#This Row],[Easting]]-$K$7+$L$7) -> 1000000 | H18: =IF(CoordinateInput[[#This Row],[Northing]]="",1000000,CoordinateInput[[#This Row],[Northing]]-$J$7+$M$7) -> 1000000 | J18: 1. Enter all pole and tie-off junction locations as points in the Coordinate Input table. "Item" and "Quadrant" inputs are optional. 2. In the Span Configuration table, for each span to be designed input the span name, the endpoints of the span, and the grade centerline elevation. 3. Confirm that the Northing/Easting and span endpoint inputs have been entered correctly by examining the plotted plan view of the span configuration. 4. Generate the span design tabs and continue to those sheets to complete the design.
G19: =IF(CoordinateInput[[#This Row],[Easting]]="",1000000,CoordinateInput[[#This Row],[Easting]]-$K$7+$L$7) -> 1000000 | H19: =IF(CoordinateInput[[#This Row],[Northing]]="",1000000,CoordinateInput[[#This Row],[Northing]]-$J$7+$M$7) -> 1000000
G20: =IF(CoordinateInput[[#This Row],[Easting]]="",1000000,CoordinateInput[[#This Row],[Easting]]-$K$7+$L$7) -> 1000000 | H20: =IF(CoordinateInput[[#This Row],[Northing]]="",1000000,CoordinateInput[[#This Row],[Northing]]-$J$7+$M$7) -> 1000000
G21: =IF(CoordinateInput[[#This Row],[Easting]]="",1000000,CoordinateInput[[#This Row],[Easting]]-$K$7+$L$7) -> 1000000 | H21: =IF(CoordinateInput[[#This Row],[Northing]]="",1000000,CoordinateInput[[#This Row],[Northing]]-$J$7+$M$7) -> 1000000
G22: =IF(CoordinateInput[[#This Row],[Easting]]="",1000000,CoordinateInput[[#This Row],[Easting]]-$K$7+$L$7) -> 1000000 | H22: =IF(CoordinateInput[[#This Row],[Northing]]="",1000000,CoordinateInput[[#This Row],[Northing]]-$J$7+$M$7) -> 1000000
G23: =IF(CoordinateInput[[#This Row],[Easting]]="",1000000,CoordinateInput[[#This Row],[Easting]]-$K$7+$L$7) -> 1000000 | H23: =IF(CoordinateInput[[#This Row],[Northing]]="",1000000,CoordinateInput[[#This Row],[Northing]]-$J$7+$M$7) -> 1000000
G24: =IF(CoordinateInput[[#This Row],[Easting]]="",1000000,CoordinateInput[[#This Row],[Easting]]-$K$7+$L$7) -> 1000000 | H24: =IF(CoordinateInput[[#This Row],[Northing]]="",1000000,CoordinateInput[[#This Row],[Northing]]-$J$7+$M$7) -> 1000000
G25: =IF(CoordinateInput[[#This Row],[Easting]]="",1000000,CoordinateInput[[#This Row],[Easting]]-$K$7+$L$7) -> 1000000 | H25: =IF(CoordinateInput[[#This Row],[Northing]]="",1000000,CoordinateInput[[#This Row],[Northing]]-$J$7+$M$7) -> 1000000
G26: =IF(CoordinateInput[[#This Row],[Easting]]="",1000000,CoordinateInput[[#This Row],[Easting]]-$K$7+$L$7) -> 1000000 | H26: =IF(CoordinateInput[[#This Row],[Northing]]="",1000000,CoordinateInput[[#This Row],[Northing]]-$J$7+$M$7) -> 1000000
G27: =IF(CoordinateInput[[#This Row],[Easting]]="",1000000,CoordinateInput[[#This Row],[Easting]]-$K$7+$L$7) -> 1000000 | H27: =IF(CoordinateInput[[#This Row],[Northing]]="",1000000,CoordinateInput[[#This Row],[Northing]]-$J$7+$M$7) -> 1000000
G28: =IF(CoordinateInput[[#This Row],[Easting]]="",1000000,CoordinateInput[[#This Row],[Easting]]-$K$7+$L$7) -> 1000000 | H28: =IF(CoordinateInput[[#This Row],[Northing]]="",1000000,CoordinateInput[[#This Row],[Northing]]-$J$7+$M$7) -> 1000000 | J28: Notes:
G29: =IF(CoordinateInput[[#This Row],[Easting]]="",1000000,CoordinateInput[[#This Row],[Easting]]-$K$7+$L$7) -> 1000000 | H29: =IF(CoordinateInput[[#This Row],[Northing]]="",1000000,CoordinateInput[[#This Row],[Northing]]-$J$7+$M$7) -> 1000000 | J29: 1. Main span names should be a number. Tie-off span names must be "TOX-Y", where X is the ID of the tie-off at that point (may be either 1 or 2) and Y is the tie-off junction point. 2. For tie-off spans, Point A must always be the tie-off junction point, and Point B is the pole location.
G30: =IF(CoordinateInput[[#This Row],[Easting]]="",1000000,CoordinateInput[[#This Row],[Easting]]-$K$7+$L$7) -> 1000000 | H30: =IF(CoordinateInput[[#This Row],[Northing]]="",1000000,CoordinateInput[[#This Row],[Northing]]-$J$7+$M$7) -> 1000000
G31: =IF(CoordinateInput[[#This Row],[Easting]]="",1000000,CoordinateInput[[#This Row],[Easting]]-$K$7+$L$7) -> 1000000 | H31: =IF(CoordinateInput[[#This Row],[Northing]]="",1000000,CoordinateInput[[#This Row],[Northing]]-$J$7+$M$7) -> 1000000
G32: =IF(CoordinateInput[[#This Row],[Easting]]="",1000000,CoordinateInput[[#This Row],[Easting]]-$K$7+$L$7) -> 1000000 | H32: =IF(CoordinateInput[[#This Row],[Northing]]="",1000000,CoordinateInput[[#This Row],[Northing]]-$J$7+$M$7) -> 1000000
G33: =IF(CoordinateInput[[#This Row],[Easting]]="",1000000,CoordinateInput[[#This Row],[Easting]]-$K$7+$L$7) -> 1000000 | H33: =IF(CoordinateInput[[#This Row],[Northing]]="",1000000,CoordinateInput[[#This Row],[Northing]]-$J$7+$M$7) -> 1000000
G34: =IF(CoordinateInput[[#This Row],[Easting]]="",1000000,CoordinateInput[[#This Row],[Easting]]-$K$7+$L$7) -> 1000000 | H34: =IF(CoordinateInput[[#This Row],[Northing]]="",1000000,CoordinateInput[[#This Row],[Northing]]-$J$7+$M$7) -> 1000000
G35: =IF(CoordinateInput[[#This Row],[Easting]]="",1000000,CoordinateInput[[#This Row],[Easting]]-$K$7+$L$7) -> 1000000 | H35: =IF(CoordinateInput[[#This Row],[Northing]]="",1000000,CoordinateInput[[#This Row],[Northing]]-$J$7+$M$7) -> 1000000
G36: =IF(CoordinateInput[[#This Row],[Easting]]="",1000000,CoordinateInput[[#This Row],[Easting]]-$K$7+$L$7) -> 1000000 | H36: =IF(CoordinateInput[[#This Row],[Northing]]="",1000000,CoordinateInput[[#This Row],[Northing]]-$J$7+$M$7) -> 1000000
A39: Span Configuration
A40: Ensure the cells in the Span column below use the "General" cell format
A41: Span | B41: Point A | C41: Point B | D41: Main Span A (TO Span only) | E41: Main Span B (TO Span only) | F41: Grade Centerline Elevation (ft) | G41: X Point A (ft) | H41: X Point B (ft) | I41: Y Point A (ft) | J41: Y Point B (ft) | K41: Span Length (ft) | L41: Span Angle w.r.t Point A (deg) | M41: Span Angle w.r.t Point B (deg) | N41: Pole A Base Elevation (ft) | O41: Pole B Base Elevation (ft)
G42: =IF(SpanConfig[[#This Row],[Point A]]="",1000000,VLOOKUP(SpanConfig[[#This Row],[Point A]],CoordinateInput[],7,FALSE)) -> 1000000 | H42: =IF(SpanConfig[[#This Row],[Point B]]="",1000000,VLOOKUP(SpanConfig[[#This Row],[Point B]],CoordinateInput[],7,FALSE)) -> 1000000 | I42: =IF(SpanConfig[[#This Row],[Point A]]="",1000000,VLOOKUP(SpanConfig[[#This Row],[Point A]],CoordinateInput[],8,FALSE)) -> 1000000 | J42: =IF(SpanConfig[[#This Row],[Point B]]="",1000000,VLOOKUP(SpanConfig[[#This Row],[Point B]],CoordinateInput[],8,FALSE)) -> 1000000 | K42: =SQRT((SpanConfig[[#This Row],[X Point A (ft)]]-SpanConfig[[#This Row],[X Point B (ft)]])^2+(SpanConfig[[#This Row],[Y Point A (ft)]]-SpanConfig[[#This Row],[Y Point B (ft)]])^2) -> 0 | L42: =IFERROR(DEGREES(ATAN2((SpanConfig[[#This Row],[X Point B (ft)]]-SpanConfig[[#This Row],[X Point A (ft)]]),(SpanConfig[[#This Row],[Y Point B (ft)]]-SpanConfig[[#This Row],[Y Point A (ft)]]))),"") ->  | M42: =IFERROR(DEGREES(ATAN2((SpanConfig[[#This Row],[X Point A (ft)]]-SpanConfig[[#This Row],[X Point B (ft)]]),(SpanConfig[[#This Row],[Y Point A (ft)]]-SpanConfig[[#This Row],[Y Point B (ft)]]))),"") ->  | N42: =IF(SpanConfig[[#This Row],[Point A]]="","",VLOOKUP(SpanConfig[[#This Row],[Point A]],CoordinateInput[],6)) ->  | O42: =IF(SpanConfig[[#This Row],[Point B]]="","",VLOOKUP(SpanConfig[[#This Row],[Point B]],CoordinateInput[],6)) -> 
G43: =IF(SpanConfig[[#This Row],[Point A]]="",1000000,VLOOKUP(SpanConfig[[#This Row],[Point A]],CoordinateInput[],7,FALSE)) -> 1000000 | H43: =IF(SpanConfig[[#This Row],[Point B]]="",1000000,VLOOKUP(SpanConfig[[#This Row],[Point B]],CoordinateInput[],7,FALSE)) -> 1000000 | I43: =IF(SpanConfig[[#This Row],[Point A]]="",1000000,VLOOKUP(SpanConfig[[#This Row],[Point A]],CoordinateInput[],8,FALSE)) -> 1000000 | J43: =IF(SpanConfig[[#This Row],[Point B]]="",1000000,VLOOKUP(SpanConfig[[#This Row],[Point B]],CoordinateInput[],8,FALSE)) -> 1000000 | K43: =SQRT((SpanConfig[[#This Row],[X Point A (ft)]]-SpanConfig[[#This Row],[X Point B (ft)]])^2+(SpanConfig[[#This Row],[Y Point A (ft)]]-SpanConfig[[#This Row],[Y Point B (ft)]])^2) -> 0 | L43: =IFERROR(DEGREES(ATAN2((SpanConfig[[#This Row],[X Point B (ft)]]-SpanConfig[[#This Row],[X Point A (ft)]]),(SpanConfig[[#This Row],[Y Point B (ft)]]-SpanConfig[[#This Row],[Y Point A (ft)]]))),"") ->  | M43: =IFERROR(DEGREES(ATAN2((SpanConfig[[#This Row],[X Point A (ft)]]-SpanConfig[[#This Row],[X Point B (ft)]]),(SpanConfig[[#This Row],[Y Point A (ft)]]-SpanConfig[[#This Row],[Y Point B (ft)]]))),"") ->  | N43: =IF(SpanConfig[[#This Row],[Point A]]="","",VLOOKUP(SpanConfig[[#This Row],[Point A]],CoordinateInput[],6)) ->  | O43: =IF(SpanConfig[[#This Row],[Point B]]="","",VLOOKUP(SpanConfig[[#This Row],[Point B]],CoordinateInput[],6)) -> 
G44: =IF(SpanConfig[[#This Row],[Point A]]="",1000000,VLOOKUP(SpanConfig[[#This Row],[Point A]],CoordinateInput[],7,FALSE)) -> 1000000 | H44: =IF(SpanConfig[[#This Row],[Point B]]="",1000000,VLOOKUP(SpanConfig[[#This Row],[Point B]],CoordinateInput[],7,FALSE)) -> 1000000 | I44: =IF(SpanConfig[[#This Row],[Point A]]="",1000000,VLOOKUP(SpanConfig[[#This Row],[Point A]],CoordinateInput[],8,FALSE)) -> 1000000 | J44: =IF(SpanConfig[[#This Row],[Point B]]="",1000000,VLOOKUP(SpanConfig[[#This Row],[Point B]],CoordinateInput[],8,FALSE)) -> 1000000 | K44: =SQRT((SpanConfig[[#This Row],[X Point A (ft)]]-SpanConfig[[#This Row],[X Point B (ft)]])^2+(SpanConfig[[#This Row],[Y Point A (ft)]]-SpanConfig[[#This Row],[Y Point B (ft)]])^2) -> 0 | L44: =IFERROR(DEGREES(ATAN2((SpanConfig[[#This Row],[X Point B (ft)]]-SpanConfig[[#This Row],[X Point A (ft)]]),(SpanConfig[[#This Row],[Y Point B (ft)]]-SpanConfig[[#This Row],[Y Point A (ft)]]))),"") ->  | M44: =IFERROR(DEGREES(ATAN2((SpanConfig[[#This Row],[X Point A (ft)]]-SpanConfig[[#This Row],[X Point B (ft)]]),(SpanConfig[[#This Row],[Y Point A (ft)]]-SpanConfig[[#This Row],[Y Point B (ft)]]))),"") ->  | N44: =IF(SpanConfig[[#This Row],[Point A]]="","",VLOOKUP(SpanConfig[[#This Row],[Point A]],CoordinateInput[],6)) ->  | O44: =IF(SpanConfig[[#This Row],[Point B]]="","",VLOOKUP(SpanConfig[[#This Row],[Point B]],CoordinateInput[],6)) -> 
G45: =IF(SpanConfig[[#This Row],[Point A]]="",1000000,VLOOKUP(SpanConfig[[#This Row],[Point A]],CoordinateInput[],7,FALSE)) -> 1000000 | H45: =IF(SpanConfig[[#This Row],[Point B]]="",1000000,VLOOKUP(SpanConfig[[#This Row],[Point B]],CoordinateInput[],7,FALSE)) -> 1000000 | I45: =IF(SpanConfig[[#This Row],[Point A]]="",1000000,VLOOKUP(SpanConfig[[#This Row],[Point A]],CoordinateInput[],8,FALSE)) -> 1000000 | J45: =IF(SpanConfig[[#This Row],[Point B]]="",1000000,VLOOKUP(SpanConfig[[#This Row],[Point B]],CoordinateInput[],8,FALSE)) -> 1000000 | K45: =SQRT((SpanConfig[[#This Row],[X Point A (ft)]]-SpanConfig[[#This Row],[X Point B (ft)]])^2+(SpanConfig[[#This Row],[Y Point A (ft)]]-SpanConfig[[#This Row],[Y Point B (ft)]])^2) -> 0 | L45: =IFERROR(DEGREES(ATAN2((SpanConfig[[#This Row],[X Point B (ft)]]-SpanConfig[[#This Row],[X Point A (ft)]]),(SpanConfig[[#This Row],[Y Point B (ft)]]-SpanConfig[[#This Row],[Y Point A (ft)]]))),"") ->  | M45: =IFERROR(DEGREES(ATAN2((SpanConfig[[#This Row],[X Point A (ft)]]-SpanConfig[[#This Row],[X Point B (ft)]]),(SpanConfig[[#This Row],[Y Point A (ft)]]-SpanConfig[[#This Row],[Y Point B (ft)]]))),"") ->  | N45: =IF(SpanConfig[[#This Row],[Point A]]="","",VLOOKUP(SpanConfig[[#This Row],[Point A]],CoordinateInput[],6)) ->  | O45: =IF(SpanConfig[[#This Row],[Point B]]="","",VLOOKUP(SpanConfig[[#This Row],[Point B]],CoordinateInput[],6)) -> 
G46: =IF(SpanConfig[[#This Row],[Point A]]="",1000000,VLOOKUP(SpanConfig[[#This Row],[Point A]],CoordinateInput[],7,FALSE)) -> 1000000 | H46: =IF(SpanConfig[[#This Row],[Point B]]="",1000000,VLOOKUP(SpanConfig[[#This Row],[Point B]],CoordinateInput[],7,FALSE)) -> 1000000 | I46: =IF(SpanConfig[[#This Row],[Point A]]="",1000000,VLOOKUP(SpanConfig[[#This Row],[Point A]],CoordinateInput[],8,FALSE)) -> 1000000 | J46: =IF(SpanConfig[[#This Row],[Point B]]="",1000000,VLOOKUP(SpanConfig[[#This Row],[Point B]],CoordinateInput[],8,FALSE)) -> 1000000 | K46: =SQRT((SpanConfig[[#This Row],[X Point A (ft)]]-SpanConfig[[#This Row],[X Point B (ft)]])^2+(SpanConfig[[#This Row],[Y Point A (ft)]]-SpanConfig[[#This Row],[Y Point B (ft)]])^2) -> 0 | L46: =IFERROR(DEGREES(ATAN2((SpanConfig[[#This Row],[X Point B (ft)]]-SpanConfig[[#This Row],[X Point A (ft)]]),(SpanConfig[[#This Row],[Y Point B (ft)]]-SpanConfig[[#This Row],[Y Point A (ft)]]))),"") ->  | M46: =IFERROR(DEGREES(ATAN2((SpanConfig[[#This Row],[X Point A (ft)]]-SpanConfig[[#This Row],[X Point B (ft)]]),(SpanConfig[[#This Row],[Y Point A (ft)]]-SpanConfig[[#This Row],[Y Point B (ft)]]))),"") ->  | N46: =IF(SpanConfig[[#This Row],[Point A]]="","",VLOOKUP(SpanConfig[[#This Row],[Point A]],CoordinateInput[],6)) ->  | O46: =IF(SpanConfig[[#This Row],[Point B]]="","",VLOOKUP(SpanConfig[[#This Row],[Point B]],CoordinateInput[],6)) -> 
G47: =IF(SpanConfig[[#This Row],[Point A]]="",1000000,VLOOKUP(SpanConfig[[#This Row],[Point A]],CoordinateInput[],7,FALSE)) -> 1000000 | H47: =IF(SpanConfig[[#This Row],[Point B]]="",1000000,VLOOKUP(SpanConfig[[#This Row],[Point B]],CoordinateInput[],7,FALSE)) -> 1000000 | I47: =IF(SpanConfig[[#This Row],[Point A]]="",1000000,VLOOKUP(SpanConfig[[#This Row],[Point A]],CoordinateInput[],8,FALSE)) -> 1000000 | J47: =IF(SpanConfig[[#This Row],[Point B]]="",1000000,VLOOKUP(SpanConfig[[#This Row],[Point B]],CoordinateInput[],8,FALSE)) -> 1000000 | K47: =SQRT((SpanConfig[[#This Row],[X Point A (ft)]]-SpanConfig[[#This Row],[X Point B (ft)]])^2+(SpanConfig[[#This Row],[Y Point A (ft)]]-SpanConfig[[#This Row],[Y Point B (ft)]])^2) -> 0 | L47: =IFERROR(DEGREES(ATAN2((SpanConfig[[#This Row],[X Point B (ft)]]-SpanConfig[[#This Row],[X Point A (ft)]]),(SpanConfig[[#This Row],[Y Point B (ft)]]-SpanConfig[[#This Row],[Y Point A (ft)]]))),"") ->  | M47: =IFERROR(DEGREES(ATAN2((SpanConfig[[#This Row],[X Point A (ft)]]-SpanConfig[[#This Row],[X Point B (ft)]]),(SpanConfig[[#This Row],[Y Point A (ft)]]-SpanConfig[[#This Row],[Y Point B (ft)]]))),"") ->  | N47: =IF(SpanConfig[[#This Row],[Point A]]="","",VLOOKUP(SpanConfig[[#This Row],[Point A]],CoordinateInput[],6)) ->  | O47: =IF(SpanConfig[[#This Row],[Point B]]="","",VLOOKUP(SpanConfig[[#This Row],[Point B]],CoordinateInput[],6)) -> 
G48: =IF(SpanConfig[[#This Row],[Point A]]="",1000000,VLOOKUP(SpanConfig[[#This Row],[Point A]],CoordinateInput[],7,FALSE)) -> 1000000 | H48: =IF(SpanConfig[[#This Row],[Point B]]="",1000000,VLOOKUP(SpanConfig[[#This Row],[Point B]],CoordinateInput[],7,FALSE)) -> 1000000 | I48: =IF(SpanConfig[[#This Row],[Point A]]="",1000000,VLOOKUP(SpanConfig[[#This Row],[Point A]],CoordinateInput[],8,FALSE)) -> 1000000 | J48: =IF(SpanConfig[[#This Row],[Point B]]="",1000000,VLOOKUP(SpanConfig[[#This Row],[Point B]],CoordinateInput[],8,FALSE)) -> 1000000 | K48: =SQRT((SpanConfig[[#This Row],[X Point A (ft)]]-SpanConfig[[#This Row],[X Point B (ft)]])^2+(SpanConfig[[#This Row],[Y Point A (ft)]]-SpanConfig[[#This Row],[Y Point B (ft)]])^2) -> 0 | L48: =IFERROR(DEGREES(ATAN2((SpanConfig[[#This Row],[X Point B (ft)]]-SpanConfig[[#This Row],[X Point A (ft)]]),(SpanConfig[[#This Row],[Y Point B (ft)]]-SpanConfig[[#This Row],[Y Point A (ft)]]))),"") ->  | M48: =IFERROR(DEGREES(ATAN2((SpanConfig[[#This Row],[X Point A (ft)]]-SpanConfig[[#This Row],[X Point B (ft)]]),(SpanConfig[[#This Row],[Y Point A (ft)]]-SpanConfig[[#This Row],[Y Point B (ft)]]))),"") ->  | N48: =IF(SpanConfig[[#This Row],[Point A]]="","",VLOOKUP(SpanConfig[[#This Row],[Point A]],CoordinateInput[],6)) ->  | O48: =IF(SpanConfig[[#This Row],[Point B]]="","",VLOOKUP(SpanConfig[[#This Row],[Point B]],CoordinateInput[],6)) -> 
G49: =IF(SpanConfig[[#This Row],[Point A]]="",1000000,VLOOKUP(SpanConfig[[#This Row],[Point A]],CoordinateInput[],7,FALSE)) -> 1000000 | H49: =IF(SpanConfig[[#This Row],[Point B]]="",1000000,VLOOKUP(SpanConfig[[#This Row],[Point B]],CoordinateInput[],7,FALSE)) -> 1000000 | I49: =IF(SpanConfig[[#This Row],[Point A]]="",1000000,VLOOKUP(SpanConfig[[#This Row],[Point A]],CoordinateInput[],8,FALSE)) -> 1000000 | J49: =IF(SpanConfig[[#This Row],[Point B]]="",1000000,VLOOKUP(SpanConfig[[#This Row],[Point B]],CoordinateInput[],8,FALSE)) -> 1000000 | K49: =SQRT((SpanConfig[[#This Row],[X Point A (ft)]]-SpanConfig[[#This Row],[X Point B (ft)]])^2+(SpanConfig[[#This Row],[Y Point A (ft)]]-SpanConfig[[#This Row],[Y Point B (ft)]])^2) -> 0 | L49: =IFERROR(DEGREES(ATAN2((SpanConfig[[#This Row],[X Point B (ft)]]-SpanConfig[[#This Row],[X Point A (ft)]]),(SpanConfig[[#This Row],[Y Point B (ft)]]-SpanConfig[[#This Row],[Y Point A (ft)]]))),"") ->  | M49: =IFERROR(DEGREES(ATAN2((SpanConfig[[#This Row],[X Point A (ft)]]-SpanConfig[[#This Row],[X Point B (ft)]]),(SpanConfig[[#This Row],[Y Point A (ft)]]-SpanConfig[[#This Row],[Y Point B (ft)]]))),"") ->  | N49: =IF(SpanConfig[[#This Row],[Point A]]="","",VLOOKUP(SpanConfig[[#This Row],[Point A]],CoordinateInput[],6)) ->  | O49: =IF(SpanConfig[[#This Row],[Point B]]="","",VLOOKUP(SpanConfig[[#This Row],[Point B]],CoordinateInput[],6)) -> 
G50: =IF(SpanConfig[[#This Row],[Point A]]="",1000000,VLOOKUP(SpanConfig[[#This Row],[Point A]],CoordinateInput[],7,FALSE)) -> 1000000 | H50: =IF(SpanConfig[[#This Row],[Point B]]="",1000000,VLOOKUP(SpanConfig[[#This Row],[Point B]],CoordinateInput[],7,FALSE)) -> 1000000 | I50: =IF(SpanConfig[[#This Row],[Point A]]="",1000000,VLOOKUP(SpanConfig[[#This Row],[Point A]],CoordinateInput[],8,FALSE)) -> 1000000 | J50: =IF(SpanConfig[[#This Row],[Point B]]="",1000000,VLOOKUP(SpanConfig[[#This Row],[Point B]],CoordinateInput[],8,FALSE)) -> 1000000 | K50: =SQRT((SpanConfig[[#This Row],[X Point A (ft)]]-SpanConfig[[#This Row],[X Point B (ft)]])^2+(SpanConfig[[#This Row],[Y Point A (ft)]]-SpanConfig[[#This Row],[Y Point B (ft)]])^2) -> 0 | L50: =IFERROR(DEGREES(ATAN2((SpanConfig[[#This Row],[X Point B (ft)]]-SpanConfig[[#This Row],[X Point A (ft)]]),(SpanConfig[[#This Row],[Y Point B (ft)]]-SpanConfig[[#This Row],[Y Point A (ft)]]))),"") ->  | M50: =IFERROR(DEGREES(ATAN2((SpanConfig[[#This Row],[X Point A (ft)]]-SpanConfig[[#This Row],[X Point B (ft)]]),(SpanConfig[[#This Row],[Y Point A (ft)]]-SpanConfig[[#This Row],[Y Point B (ft)]]))),"") ->  | N50: =IF(SpanConfig[[#This Row],[Point A]]="","",VLOOKUP(SpanConfig[[#This Row],[Point A]],CoordinateInput[],6)) ->  | O50: =IF(SpanConfig[[#This Row],[Point B]]="","",VLOOKUP(SpanConfig[[#This Row],[Point B]],CoordinateInput[],6)) -> 
G51: =IF(SpanConfig[[#This Row],[Point A]]="",1000000,VLOOKUP(SpanConfig[[#This Row],[Point A]],CoordinateInput[],7,FALSE)) -> 1000000 | H51: =IF(SpanConfig[[#This Row],[Point B]]="",1000000,VLOOKUP(SpanConfig[[#This Row],[Point B]],CoordinateInput[],7,FALSE)) -> 1000000 | I51: =IF(SpanConfig[[#This Row],[Point A]]="",1000000,VLOOKUP(SpanConfig[[#This Row],[Point A]],CoordinateInput[],8,FALSE)) -> 1000000 | J51: =IF(SpanConfig[[#This Row],[Point B]]="",1000000,VLOOKUP(SpanConfig[[#This Row],[Point B]],CoordinateInput[],8,FALSE)) -> 1000000 | K51: =SQRT((SpanConfig[[#This Row],[X Point A (ft)]]-SpanConfig[[#This Row],[X Point B (ft)]])^2+(SpanConfig[[#This Row],[Y Point A (ft)]]-SpanConfig[[#This Row],[Y Point B (ft)]])^2) -> 0 | L51: =IFERROR(DEGREES(ATAN2((SpanConfig[[#This Row],[X Point B (ft)]]-SpanConfig[[#This Row],[X Point A (ft)]]),(SpanConfig[[#This Row],[Y Point B (ft)]]-SpanConfig[[#This Row],[Y Point A (ft)]]))),"") ->  | M51: =IFERROR(DEGREES(ATAN2((SpanConfig[[#This Row],[X Point A (ft)]]-SpanConfig[[#This Row],[X Point B (ft)]]),(SpanConfig[[#This Row],[Y Point A (ft)]]-SpanConfig[[#This Row],[Y Point B (ft)]]))),"") ->  | N51: =IF(SpanConfig[[#This Row],[Point A]]="","",VLOOKUP(SpanConfig[[#This Row],[Point A]],CoordinateInput[],6)) ->  | O51: =IF(SpanConfig[[#This Row],[Point B]]="","",VLOOKUP(SpanConfig[[#This Row],[Point B]],CoordinateInput[],6)) -> 
G52: =IF(SpanConfig[[#This Row],[Point A]]="",1000000,VLOOKUP(SpanConfig[[#This Row],[Point A]],CoordinateInput[],7,FALSE)) -> 1000000 | H52: =IF(SpanConfig[[#This Row],[Point B]]="",1000000,VLOOKUP(SpanConfig[[#This Row],[Point B]],CoordinateInput[],7,FALSE)) -> 1000000 | I52: =IF(SpanConfig[[#This Row],[Point A]]="",1000000,VLOOKUP(SpanConfig[[#This Row],[Point A]],CoordinateInput[],8,FALSE)) -> 1000000 | J52: =IF(SpanConfig[[#This Row],[Point B]]="",1000000,VLOOKUP(SpanConfig[[#This Row],[Point B]],CoordinateInput[],8,FALSE)) -> 1000000 | K52: =SQRT((SpanConfig[[#This Row],[X Point A (ft)]]-SpanConfig[[#This Row],[X Point B (ft)]])^2+(SpanConfig[[#This Row],[Y Point A (ft)]]-SpanConfig[[#This Row],[Y Point B (ft)]])^2) -> 0 | L52: =IFERROR(DEGREES(ATAN2((SpanConfig[[#This Row],[X Point B (ft)]]-SpanConfig[[#This Row],[X Point A (ft)]]),(SpanConfig[[#This Row],[Y Point B (ft)]]-SpanConfig[[#This Row],[Y Point A (ft)]]))),"") ->  | M52: =IFERROR(DEGREES(ATAN2((SpanConfig[[#This Row],[X Point A (ft)]]-SpanConfig[[#This Row],[X Point B (ft)]]),(SpanConfig[[#This Row],[Y Point A (ft)]]-SpanConfig[[#This Row],[Y Point B (ft)]]))),"") ->  | N52: =IF(SpanConfig[[#This Row],[Point A]]="","",VLOOKUP(SpanConfig[[#This Row],[Point A]],CoordinateInput[],6)) ->  | O52: =IF(SpanConfig[[#This Row],[Point B]]="","",VLOOKUP(SpanConfig[[#This Row],[Point B]],CoordinateInput[],6)) -> 
G53: =IF(SpanConfig[[#This Row],[Point A]]="",1000000,VLOOKUP(SpanConfig[[#This Row],[Point A]],CoordinateInput[],7,FALSE)) -> 1000000 | H53: =IF(SpanConfig[[#This Row],[Point B]]="",1000000,VLOOKUP(SpanConfig[[#This Row],[Point B]],CoordinateInput[],7,FALSE)) -> 1000000 | I53: =IF(SpanConfig[[#This Row],[Point A]]="",1000000,VLOOKUP(SpanConfig[[#This Row],[Point A]],CoordinateInput[],8,FALSE)) -> 1000000 | J53: =IF(SpanConfig[[#This Row],[Point B]]="",1000000,VLOOKUP(SpanConfig[[#This Row],[Point B]],CoordinateInput[],8,FALSE)) -> 1000000 | K53: =SQRT((SpanConfig[[#This Row],[X Point A (ft)]]-SpanConfig[[#This Row],[X Point B (ft)]])^2+(SpanConfig[[#This Row],[Y Point A (ft)]]-SpanConfig[[#This Row],[Y Point B (ft)]])^2) -> 0 | L53: =IFERROR(DEGREES(ATAN2((SpanConfig[[#This Row],[X Point B (ft)]]-SpanConfig[[#This Row],[X Point A (ft)]]),(SpanConfig[[#This Row],[Y Point B (ft)]]-SpanConfig[[#This Row],[Y Point A (ft)]]))),"") ->  | M53: =IFERROR(DEGREES(ATAN2((SpanConfig[[#This Row],[X Point A (ft)]]-SpanConfig[[#This Row],[X Point B (ft)]]),(SpanConfig[[#This Row],[Y Point A (ft)]]-SpanConfig[[#This Row],[Y Point B (ft)]]))),"") ->  | N53: =IF(SpanConfig[[#This Row],[Point A]]="","",VLOOKUP(SpanConfig[[#This Row],[Point A]],CoordinateInput[],6)) ->  | O53: =IF(SpanConfig[[#This Row],[Point B]]="","",VLOOKUP(SpanConfig[[#This Row],[Point B]],CoordinateInput[],6)) -> 
G54: =IF(SpanConfig[[#This Row],[Point A]]="",1000000,VLOOKUP(SpanConfig[[#This Row],[Point A]],CoordinateInput[],7,FALSE)) -> 1000000 | H54: =IF(SpanConfig[[#This Row],[Point B]]="",1000000,VLOOKUP(SpanConfig[[#This Row],[Point B]],CoordinateInput[],7,FALSE)) -> 1000000 | I54: =IF(SpanConfig[[#This Row],[Point A]]="",1000000,VLOOKUP(SpanConfig[[#This Row],[Point A]],CoordinateInput[],8,FALSE)) -> 1000000 | J54: =IF(SpanConfig[[#This Row],[Point B]]="",1000000,VLOOKUP(SpanConfig[[#This Row],[Point B]],CoordinateInput[],8,FALSE)) -> 1000000 | K54: =SQRT((SpanConfig[[#This Row],[X Point A (ft)]]-SpanConfig[[#This Row],[X Point B (ft)]])^2+(SpanConfig[[#This Row],[Y Point A (ft)]]-SpanConfig[[#This Row],[Y Point B (ft)]])^2) -> 0 | L54: =IFERROR(DEGREES(ATAN2((SpanConfig[[#This Row],[X Point B (ft)]]-SpanConfig[[#This Row],[X Point A (ft)]]),(SpanConfig[[#This Row],[Y Point B (ft)]]-SpanConfig[[#This Row],[Y Point A (ft)]]))),"") ->  | M54: =IFERROR(DEGREES(ATAN2((SpanConfig[[#This Row],[X Point A (ft)]]-SpanConfig[[#This Row],[X Point B (ft)]]),(SpanConfig[[#This Row],[Y Point A (ft)]]-SpanConfig[[#This Row],[Y Point B (ft)]]))),"") ->  | N54: =IF(SpanConfig[[#This Row],[Point A]]="","",VLOOKUP(SpanConfig[[#This Row],[Point A]],CoordinateInput[],6)) ->  | O54: =IF(SpanConfig[[#This Row],[Point B]]="","",VLOOKUP(SpanConfig[[#This Row],[Point B]],CoordinateInput[],6)) -> 
G55: =IF(SpanConfig[[#This Row],[Point A]]="",1000000,VLOOKUP(SpanConfig[[#This Row],[Point A]],CoordinateInput[],7,FALSE)) -> 1000000 | H55: =IF(SpanConfig[[#This Row],[Point B]]="",1000000,VLOOKUP(SpanConfig[[#This Row],[Point B]],CoordinateInput[],7,FALSE)) -> 1000000 | I55: =IF(SpanConfig[[#This Row],[Point A]]="",1000000,VLOOKUP(SpanConfig[[#This Row],[Point A]],CoordinateInput[],8,FALSE)) -> 1000000 | J55: =IF(SpanConfig[[#This Row],[Point B]]="",1000000,VLOOKUP(SpanConfig[[#This Row],[Point B]],CoordinateInput[],8,FALSE)) -> 1000000 | K55: =SQRT((SpanConfig[[#This Row],[X Point A (ft)]]-SpanConfig[[#This Row],[X Point B (ft)]])^2+(SpanConfig[[#This Row],[Y Point A (ft)]]-SpanConfig[[#This Row],[Y Point B (ft)]])^2) -> 0 | L55: =IFERROR(DEGREES(ATAN2((SpanConfig[[#This Row],[X Point B (ft)]]-SpanConfig[[#This Row],[X Point A (ft)]]),(SpanConfig[[#This Row],[Y Point B (ft)]]-SpanConfig[[#This Row],[Y Point A (ft)]]))),"") ->  | M55: =IFERROR(DEGREES(ATAN2((SpanConfig[[#This Row],[X Point A (ft)]]-SpanConfig[[#This Row],[X Point B (ft)]]),(SpanConfig[[#This Row],[Y Point A (ft)]]-SpanConfig[[#This Row],[Y Point B (ft)]]))),"") ->  | N55: =IF(SpanConfig[[#This Row],[Point A]]="","",VLOOKUP(SpanConfig[[#This Row],[Point A]],CoordinateInput[],6)) ->  | O55: =IF(SpanConfig[[#This Row],[Point B]]="","",VLOOKUP(SpanConfig[[#This Row],[Point B]],CoordinateInput[],6)) -> 
G56: =IF(SpanConfig[[#This Row],[Point A]]="",1000000,VLOOKUP(SpanConfig[[#This Row],[Point A]],CoordinateInput[],7,FALSE)) -> 1000000 | H56: =IF(SpanConfig[[#This Row],[Point B]]="",1000000,VLOOKUP(SpanConfig[[#This Row],[Point B]],CoordinateInput[],7,FALSE)) -> 1000000 | I56: =IF(SpanConfig[[#This Row],[Point A]]="",1000000,VLOOKUP(SpanConfig[[#This Row],[Point A]],CoordinateInput[],8,FALSE)) -> 1000000 | J56: =IF(SpanConfig[[#This Row],[Point B]]="",1000000,VLOOKUP(SpanConfig[[#This Row],[Point B]],CoordinateInput[],8,FALSE)) -> 1000000 | K56: =SQRT((SpanConfig[[#This Row],[X Point A (ft)]]-SpanConfig[[#This Row],[X Point B (ft)]])^2+(SpanConfig[[#This Row],[Y Point A (ft)]]-SpanConfig[[#This Row],[Y Point B (ft)]])^2) -> 0 | L56: =IFERROR(DEGREES(ATAN2((SpanConfig[[#This Row],[X Point B (ft)]]-SpanConfig[[#This Row],[X Point A (ft)]]),(SpanConfig[[#This Row],[Y Point B (ft)]]-SpanConfig[[#This Row],[Y Point A (ft)]]))),"") ->  | M56: =IFERROR(DEGREES(ATAN2((SpanConfig[[#This Row],[X Point A (ft)]]-SpanConfig[[#This Row],[X Point B (ft)]]),(SpanConfig[[#This Row],[Y Point A (ft)]]-SpanConfig[[#This Row],[Y Point B (ft)]]))),"") ->  | N56: =IF(SpanConfig[[#This Row],[Point A]]="","",VLOOKUP(SpanConfig[[#This Row],[Point A]],CoordinateInput[],6)) ->  | O56: =IF(SpanConfig[[#This Row],[Point B]]="","",VLOOKUP(SpanConfig[[#This Row],[Point B]],CoordinateInput[],6)) -> 
G57: =IF(SpanConfig[[#This Row],[Point A]]="",1000000,VLOOKUP(SpanConfig[[#This Row],[Point A]],CoordinateInput[],7,FALSE)) -> 1000000 | H57: =IF(SpanConfig[[#This Row],[Point B]]="",1000000,VLOOKUP(SpanConfig[[#This Row],[Point B]],CoordinateInput[],7,FALSE)) -> 1000000 | I57: =IF(SpanConfig[[#This Row],[Point A]]="",1000000,VLOOKUP(SpanConfig[[#This Row],[Point A]],CoordinateInput[],8,FALSE)) -> 1000000 | J57: =IF(SpanConfig[[#This Row],[Point B]]="",1000000,VLOOKUP(SpanConfig[[#This Row],[Point B]],CoordinateInput[],8,FALSE)) -> 1000000 | K57: =SQRT((SpanConfig[[#This Row],[X Point A (ft)]]-SpanConfig[[#This Row],[X Point B (ft)]])^2+(SpanConfig[[#This Row],[Y Point A (ft)]]-SpanConfig[[#This Row],[Y Point B (ft)]])^2) -> 0 | L57: =IFERROR(DEGREES(ATAN2((SpanConfig[[#This Row],[X Point B (ft)]]-SpanConfig[[#This Row],[X Point A (ft)]]),(SpanConfig[[#This Row],[Y Point B (ft)]]-SpanConfig[[#This Row],[Y Point A (ft)]]))),"") ->  | M57: =IFERROR(DEGREES(ATAN2((SpanConfig[[#This Row],[X Point A (ft)]]-SpanConfig[[#This Row],[X Point B (ft)]]),(SpanConfig[[#This Row],[Y Point A (ft)]]-SpanConfig[[#This Row],[Y Point B (ft)]]))),"") ->  | N57: =IF(SpanConfig[[#This Row],[Point A]]="","",VLOOKUP(SpanConfig[[#This Row],[Point A]],CoordinateInput[],6)) ->  | O57: =IF(SpanConfig[[#This Row],[Point B]]="","",VLOOKUP(SpanConfig[[#This Row],[Point B]],CoordinateInput[],6)) -> 
G58: =IF(SpanConfig[[#This Row],[Point A]]="",1000000,VLOOKUP(SpanConfig[[#This Row],[Point A]],CoordinateInput[],7,FALSE)) -> 1000000 | H58: =IF(SpanConfig[[#This Row],[Point B]]="",1000000,VLOOKUP(SpanConfig[[#This Row],[Point B]],CoordinateInput[],7,FALSE)) -> 1000000 | I58: =IF(SpanConfig[[#This Row],[Point A]]="",1000000,VLOOKUP(SpanConfig[[#This Row],[Point A]],CoordinateInput[],8,FALSE)) -> 1000000 | J58: =IF(SpanConfig[[#This Row],[Point B]]="",1000000,VLOOKUP(SpanConfig[[#This Row],[Point B]],CoordinateInput[],8,FALSE)) -> 1000000 | K58: =SQRT((SpanConfig[[#This Row],[X Point A (ft)]]-SpanConfig[[#This Row],[X Point B (ft)]])^2+(SpanConfig[[#This Row],[Y Point A (ft)]]-SpanConfig[[#This Row],[Y Point B (ft)]])^2) -> 0 | L58: =IFERROR(DEGREES(ATAN2((SpanConfig[[#This Row],[X Point B (ft)]]-SpanConfig[[#This Row],[X Point A (ft)]]),(SpanConfig[[#This Row],[Y Point B (ft)]]-SpanConfig[[#This Row],[Y Point A (ft)]]))),"") ->  | M58: =IFERROR(DEGREES(ATAN2((SpanConfig[[#This Row],[X Point A (ft)]]-SpanConfig[[#This Row],[X Point B (ft)]]),(SpanConfig[[#This Row],[Y Point A (ft)]]-SpanConfig[[#This Row],[Y Point B (ft)]]))),"") ->  | N58: =IF(SpanConfig[[#This Row],[Point A]]="","",VLOOKUP(SpanConfig[[#This Row],[Point A]],CoordinateInput[],6)) ->  | O58: =IF(SpanConfig[[#This Row],[Point B]]="","",VLOOKUP(SpanConfig[[#This Row],[Point B]],CoordinateInput[],6)) -> 
G59: =IF(SpanConfig[[#This Row],[Point A]]="",1000000,VLOOKUP(SpanConfig[[#This Row],[Point A]],CoordinateInput[],7,FALSE)) -> 1000000 | H59: =IF(SpanConfig[[#This Row],[Point B]]="",1000000,VLOOKUP(SpanConfig[[#This Row],[Point B]],CoordinateInput[],7,FALSE)) -> 1000000 | I59: =IF(SpanConfig[[#This Row],[Point A]]="",1000000,VLOOKUP(SpanConfig[[#This Row],[Point A]],CoordinateInput[],8,FALSE)) -> 1000000 | J59: =IF(SpanConfig[[#This Row],[Point B]]="",1000000,VLOOKUP(SpanConfig[[#This Row],[Point B]],CoordinateInput[],8,FALSE)) -> 1000000 | K59: =SQRT((SpanConfig[[#This Row],[X Point A (ft)]]-SpanConfig[[#This Row],[X Point B (ft)]])^2+(SpanConfig[[#This Row],[Y Point A (ft)]]-SpanConfig[[#This Row],[Y Point B (ft)]])^2) -> 0 | L59: =IFERROR(DEGREES(ATAN2((SpanConfig[[#This Row],[X Point B (ft)]]-SpanConfig[[#This Row],[X Point A (ft)]]),(SpanConfig[[#This Row],[Y Point B (ft)]]-SpanConfig[[#This Row],[Y Point A (ft)]]))),"") ->  | M59: =IFERROR(DEGREES(ATAN2((SpanConfig[[#This Row],[X Point A (ft)]]-SpanConfig[[#This Row],[X Point B (ft)]]),(SpanConfig[[#This Row],[Y Point A (ft)]]-SpanConfig[[#This Row],[Y Point B (ft)]]))),"") ->  | N59: =IF(SpanConfig[[#This Row],[Point A]]="","",VLOOKUP(SpanConfig[[#This Row],[Point A]],CoordinateInput[],6)) ->  | O59: =IF(SpanConfig[[#This Row],[Point B]]="","",VLOOKUP(SpanConfig[[#This Row],[Point B]],CoordinateInput[],6)) -> 
G60: =IF(SpanConfig[[#This Row],[Point A]]="",1000000,VLOOKUP(SpanConfig[[#This Row],[Point A]],CoordinateInput[],7,FALSE)) -> 1000000 | H60: =IF(SpanConfig[[#This Row],[Point B]]="",1000000,VLOOKUP(SpanConfig[[#This Row],[Point B]],CoordinateInput[],7,FALSE)) -> 1000000 | I60: =IF(SpanConfig[[#This Row],[Point A]]="",1000000,VLOOKUP(SpanConfig[[#This Row],[Point A]],CoordinateInput[],8,FALSE)) -> 1000000 | J60: =IF(SpanConfig[[#This Row],[Point B]]="",1000000,VLOOKUP(SpanConfig[[#This Row],[Point B]],CoordinateInput[],8,FALSE)) -> 1000000 | K60: =SQRT((SpanConfig[[#This Row],[X Point A (ft)]]-SpanConfig[[#This Row],[X Point B (ft)]])^2+(SpanConfig[[#This Row],[Y Point A (ft)]]-SpanConfig[[#This Row],[Y Point B (ft)]])^2) -> 0 | L60: =IFERROR(DEGREES(ATAN2((SpanConfig[[#This Row],[X Point B (ft)]]-SpanConfig[[#This Row],[X Point A (ft)]]),(SpanConfig[[#This Row],[Y Point B (ft)]]-SpanConfig[[#This Row],[Y Point A (ft)]]))),"") ->  | M60: =IFERROR(DEGREES(ATAN2((SpanConfig[[#This Row],[X Point A (ft)]]-SpanConfig[[#This Row],[X Point B (ft)]]),(SpanConfig[[#This Row],[Y Point A (ft)]]-SpanConfig[[#This Row],[Y Point B (ft)]]))),"") ->  | N60: =IF(SpanConfig[[#This Row],[Point A]]="","",VLOOKUP(SpanConfig[[#This Row],[Point A]],CoordinateInput[],6)) ->  | O60: =IF(SpanConfig[[#This Row],[Point B]]="","",VLOOKUP(SpanConfig[[#This Row],[Point B]],CoordinateInput[],6)) -> 
G61: =IF(SpanConfig[[#This Row],[Point A]]="",1000000,VLOOKUP(SpanConfig[[#This Row],[Point A]],CoordinateInput[],7,FALSE)) -> 1000000 | H61: =IF(SpanConfig[[#This Row],[Point B]]="",1000000,VLOOKUP(SpanConfig[[#This Row],[Point B]],CoordinateInput[],7,FALSE)) -> 1000000 | I61: =IF(SpanConfig[[#This Row],[Point A]]="",1000000,VLOOKUP(SpanConfig[[#This Row],[Point A]],CoordinateInput[],8,FALSE)) -> 1000000 | J61: =IF(SpanConfig[[#This Row],[Point B]]="",1000000,VLOOKUP(SpanConfig[[#This Row],[Point B]],CoordinateInput[],8,FALSE)) -> 1000000 | K61: =SQRT((SpanConfig[[#This Row],[X Point A (ft)]]-SpanConfig[[#This Row],[X Point B (ft)]])^2+(SpanConfig[[#This Row],[Y Point A (ft)]]-SpanConfig[[#This Row],[Y Point B (ft)]])^2) -> 0 | L61: =IFERROR(DEGREES(ATAN2((SpanConfig[[#This Row],[X Point B (ft)]]-SpanConfig[[#This Row],[X Point A (ft)]]),(SpanConfig[[#This Row],[Y Point B (ft)]]-SpanConfig[[#This Row],[Y Point A (ft)]]))),"") ->  | M61: =IFERROR(DEGREES(ATAN2((SpanConfig[[#This Row],[X Point A (ft)]]-SpanConfig[[#This Row],[X Point B (ft)]]),(SpanConfig[[#This Row],[Y Point A (ft)]]-SpanConfig[[#This Row],[Y Point B (ft)]]))),"") ->  | N61: =IF(SpanConfig[[#This Row],[Point A]]="","",VLOOKUP(SpanConfig[[#This Row],[Point A]],CoordinateInput[],6)) ->  | O61: =IF(SpanConfig[[#This Row],[Point B]]="","",VLOOKUP(SpanConfig[[#This Row],[Point B]],CoordinateInput[],6)) -> 
A68: Span Configuration Plan View

Sheet Equipment Wt & Ht
C3: * includes brackets, hangers, regular lens, fitting, entrance heads, and span wire hanger
C4: ** includes height of sign or signal including fittings, measured from top of signal head
A5: Signal Heads | C5: *** If building a fixture with "PARTS", add "ent head" and "span wire hanger" weights to combination. | J5: Legacy Signal Heads (Inactive)
A7: Code | B7: Description | C7: Comment/Detail | D7: Weight*** (lbs) | E7: Height ** (inches) | F7: Height ** (feet) | G7: Perp. Wind Area (sft) | H7: Last Revised | J7: Code | K7: Description | L7: Comment/Detail | M7: Weight*** (lbs) | N7: Height ** (inches) | O7: Height ** (feet) | P7: Perp. Wind Area (sft)
A9: 1w-1c | B9: led | D9: 17 | E9: 14 | F9: =SignalHeads[[#This Row],[Height ** (inches)]]/12 -> 1.166666667 | G9: 1.36 | J9: 1w-2c PED | M9: 27 | N9: 28 | O9: =SignalHeads[[#This Row],[Height ** (inches)]]/12 -> 1.166666667 | P9: 2.72
A10: 1w-1c w/BP | D10: 21 | E10: =E9+5 -> 19 | F10: =SignalHeads[[#This Row],[Height ** (inches)]]/12 -> 1.583333333 | G10: 4 | J10: 1w-2c PED w/BP | M10: 32 | N10: =N9+5 -> 33 | O10: =SignalHeads[[#This Row],[Height ** (inches)]]/12 -> 1.583333333 | P10: 6.33
A11: 1w-1c w/CS | C11: 1w 12x27CS | D11: 49 | E11: =E9+12 -> 26 | F11: =SignalHeads[[#This Row],[Height ** (inches)]]/12 -> 2.166666667 | G11: 3.61 | J11: 1w-2c PED w/CS | L11: 1w 12x27CS | M11: 59 | N11: =N9+12 -> 40 | O11: =SignalHeads[[#This Row],[Height ** (inches)]]/12 -> 2.166666667 | P11: 4.97
A12: 1w-1c w/CS w/BP | C12: 1w 12x27CS | D12: 53 | E12: =E10+12 -> 31 | F12: =SignalHeads[[#This Row],[Height ** (inches)]]/12 -> 2.583333333 | G12: 6.25 | J12: 1w-2c PED w/CS w/BP | L12: 1w 12x27CS | M12: 64 | N12: =N10+12 -> 45 | O12: =SignalHeads[[#This Row],[Height ** (inches)]]/12 -> 2.583333333 | P12: 8.58
A13: 1w-3c | D13: 37 | E13: 42 | F13: =SignalHeads[[#This Row],[Height ** (inches)]]/12 -> 3.5 | G13: 4.08 | J13: 2w-2c PED | M13: 54 | N13: 28 | O13: =SignalHeads[[#This Row],[Height ** (inches)]]/12 -> 3.5 | P13: 6.69
A14: 1w-3c w/BP | D14: 43 | E14: =E13+5 -> 47 | F14: =SignalHeads[[#This Row],[Height ** (inches)]]/12 -> 3.916666667 | G14: 8.67 | J14: 2w-2c PED w/BP | M14: 64 | N14: =N13+5 -> 33 | O14: =SignalHeads[[#This Row],[Height ** (inches)]]/12 -> 3.916666667 | P14: 10.47
A15: 1w-3c w/Aeroflex BP | D15: 42.35 | E15: 52.125 | F15: =SignalHeads[[#This Row],[Height ** (inches)]]/12 -> 4.34375 | G15: 7.71 | H15: v2.05 | J15: 2w-2c PED w/CS | L15: 1w 12x27CS | M15: 118 | N15: =N13+12 -> 40 | O15: =SignalHeads[[#This Row],[Height ** (inches)]]/12 -> 4.34375 | P15: 9.61
A16: 1w-3c w/CS | C16: 1w 12x27CS | D16: 69 | E16: =E13+12 -> 54 | F16: =SignalHeads[[#This Row],[Height ** (inches)]]/12 -> 4.5 | G16: 6.33 | J16: 2w-2c PED w/CS w/BP | L16: 1w 12x27CS | M16: 128 | N16: =N14+12 -> 45 | O16: =SignalHeads[[#This Row],[Height ** (inches)]]/12 -> 4.5 | P16: 13.39
A17: 1w-3c w/CS w/BP | C17: 1w 12x27CS | D17: 75 | E17: =E14+12 -> 59 | F17: =SignalHeads[[#This Row],[Height ** (inches)]]/12 -> 4.916666667 | G17: 10.92 | J17: 3w-2c PED | M17: 81 | N17: 28 | O17: =SignalHeads[[#This Row],[Height ** (inches)]]/12 -> 4.916666667 | P17: 10.67
A18: 1w-4c | D18: 43 | E18: 56 | F18: =SignalHeads[[#This Row],[Height ** (inches)]]/12 -> 4.666666667 | G18: =4/3*G13 -> 5.44 | J18: 3w-2c PED w/BP | M18: 96 | N18: =N17+5 -> 33 | O18: =SignalHeads[[#This Row],[Height ** (inches)]]/12 -> 4.666666667 | P18: 14.61
A19: 1w-4c w/BP | D19: 50 | E19: =E18+5 -> 61 | F19: =SignalHeads[[#This Row],[Height ** (inches)]]/12 -> 5.083333333 | G19: 11 | J19: 3w-2c PED w/CS | L19: 1w 12x27CS | M19: 177 | N19: =N17+12 -> 40 | O19: =SignalHeads[[#This Row],[Height ** (inches)]]/12 -> 5.083333333 | P19: 14.25
A20: 1w-4c w/Aeroflex BP | D20: 50.54 | E20: =E15+14 -> 66.125 | F20: =SignalHeads[[#This Row],[Height ** (inches)]]/12 -> 5.510416667 | G20: 9.8 | H20: v2.05 | J20: 3w-2c PED w/CS w/BP | L20: 1w 12x27CS | M20: 192 | N20: =N18+12 -> 45 | O20: =SignalHeads[[#This Row],[Height ** (inches)]]/12 -> 5.510416667 | P20: 18.19
A21: 1w-4c w/CS | C21: 1w 12x27CS | D21: 75 | E21: =E18+12 -> 68 | F21: =SignalHeads[[#This Row],[Height ** (inches)]]/12 -> 5.666666667 | G21: 7.69 | J21: 4w-2c PED | M21: 108 | N21: 28 | O21: =SignalHeads[[#This Row],[Height ** (inches)]]/12 -> 5.666666667 | P21: 10.67
A22: 1w-4c w/CS w/BP | C22: 1w 12x27CS | D22: 82 | E22: =E19+12 -> 73 | F22: =SignalHeads[[#This Row],[Height ** (inches)]]/12 -> 6.083333333 | G22: 13.25 | J22: 4w-2c PED w/BP | M22: 128 | N22: =N21+5 -> 33 | O22: =SignalHeads[[#This Row],[Height ** (inches)]]/12 -> 6.083333333 | P22: 14.61
A23: 1w-5c (doghouse) | D23: 61 | E23: 42 | F23: =SignalHeads[[#This Row],[Height ** (inches)]]/12 -> 3.5 | G23: 6.81 | J23: 4w-2c PED w/CS | L23: 1w 12x27CS | M23: 236 | N23: =N21+12 -> 40 | O23: =SignalHeads[[#This Row],[Height ** (inches)]]/12 -> 3.5 | P23: 14.25
A24: 1w-5c (doghouse) w/BP | D24: 69 | E24: =E23+5 -> 47 | F24: =SignalHeads[[#This Row],[Height ** (inches)]]/12 -> 3.916666667 | G24: 13.72 | J24: 4w-2c PED w/CS w/BP | L24: 1w 12x27CS | M24: 256 | N24: =N22+12 -> 45 | O24: =SignalHeads[[#This Row],[Height ** (inches)]]/12 -> 3.916666667 | P24: 18.19
A25: 1w-5c (doghouse) w/Aeroflex BP | D25: 67.54 | E25: =E15 -> 52.125 | F25: =SignalHeads[[#This Row],[Height ** (inches)]]/12 -> 4.34375 | G25: 11.61 | H25: v2.05
A26: 1w-5c (doghouse) w/CS | C26: 1w 12x27CS | D26: 93 | E26: =E23+12 -> 54 | F26: =SignalHeads[[#This Row],[Height ** (inches)]]/12 -> 4.5 | G26: 9.06
A27: 1w-5c (doghouse) w/CS w/BP | C27: 1w 12x27CS | D27: 101 | E27: =E24+12 -> 59 | F27: =SignalHeads[[#This Row],[Height ** (inches)]]/12 -> 4.916666667 | G27: 15.97
A28: 1w-Hawk | D28: 37.2 | E28: 34.5 | F28: =SignalHeads[[#This Row],[Height ** (inches)]]/12 -> 2.875 | G28: 4.67
A29: 1w-Hawk w/BP | D29: 47 | E29: 40.4 | F29: =SignalHeads[[#This Row],[Height ** (inches)]]/12 -> 3.366666667 | G29: 11.53
A30: 1w-Hawk w/Aeroflex BP | D30: 42.47 | E30: =E15-14 -> 38.125 | F30: =SignalHeads[[#This Row],[Height ** (inches)]]/12 -> 3.177083333 | G30: 8.51 | H30: v2.05
A31: 1w 12x27 Non-iLL CS | D31: 22.7 | E31: 27 | F31: =SignalHeads[[#This Row],[Height ** (inches)]]/12 -> 2.25 | G31: 2.25 | H31: v2.02
A32: 1w 12x27 LED CS | D32: 23.55 | E32: 27 | F32: =SignalHeads[[#This Row],[Height ** (inches)]]/12 -> 2.25 | G32: 2.25 | H32: v2.02
A33: 1w 24x30 Non-iLL CS | D33: 24 | E33: =E34 -> 32.875 | F33: =SignalHeads[[#This Row],[Height ** (inches)]]/12 -> 2.739583333 | G33: =G34 -> 6.135525174 | H33: v2.02
A34: 1w 24x30 LED CS | D34: 26.7 | E34: 32.875 | F34: =SignalHeads[[#This Row],[Height ** (inches)]]/12 -> 2.739583333 | G34: =SignalHeads[[#This Row],[Height ** (feet)]]*26.875/12 -> 6.135525174 | H34: v2.02
A35: 1w 24X36 2MFO CS | C35: 2 message fiber optic | D35: 100 | E35: 38.875 | F35: =SignalHeads[[#This Row],[Height ** (inches)]]/12 -> 3.239583333 | G35: =SignalHeads[[#This Row],[Height ** (feet)]]*26.875/12 -> 7.25531684 | H35: v2.02
A36: 1w 36x36 Non-iLL CS | D36: 35.8 | E36: 36 | F36: =SignalHeads[[#This Row],[Height ** (inches)]]/12 -> 3 | G36: 9 | H36: v2.02
A37: 1w 36x36 LED CS | C37: 1 way LED | D37: 34 | E37: 36 | F37: =SignalHeads[[#This Row],[Height ** (inches)]]/12 -> 3 | G37: =36*36/144 -> 9 | H37: v2.02
A38: 1w 24x72 street name sign | D38: 75 | E38: =22+5/16 -> 22.3125 | F38: =SignalHeads[[#This Row],[Height ** (inches)]]/12 -> 1.859375 | G38: =SignalHeads[[#This Row],[Height ** (feet)]]*(6+0.375/12) -> 11.21435547 | H38: v2.02
A39: 1w 24x96 street name sign | D39: 90 | E39: =22+5/16 -> 22.3125 | F39: =SignalHeads[[#This Row],[Height ** (inches)]]/12 -> 1.859375 | G39: =SignalHeads[[#This Row],[Height ** (feet)]]*(8+13/16/12) -> 15.00089518 | H39: v2.02
A40: 2w-1c | D40: 34 | E40: 14 | F40: =SignalHeads[[#This Row],[Height ** (inches)]]/12 -> 1.166666667 | G40: 2.85
A41: 2w-1c w/BP | D41: 42 | E41: =E40+5 -> 19 | F41: =SignalHeads[[#This Row],[Height ** (inches)]]/12 -> 1.583333333 | G41: 5.59
A42: 2w-1c w/CS | C42: 2w 12x27 CS | D42: 98 | E42: =E40+12 -> 26 | F42: =SignalHeads[[#This Row],[Height ** (inches)]]/12 -> 2.166666667 | G42: 5.76
A43: 2w-1c w/CS w/BP | C43: 2w 12x27 CS | D43: 106 | E43: =E41+12 -> 31 | F43: =SignalHeads[[#This Row],[Height ** (inches)]]/12 -> 2.583333333 | G43: 8.51
A44: 2w-3c | D44: 76 | E44: 42 | F44: =SignalHeads[[#This Row],[Height ** (inches)]]/12 -> 3.5 | G44: 8.54
A45: 2w-3c w/BP | D45: 86 | E45: =E44+5 -> 47 | F45: =SignalHeads[[#This Row],[Height ** (inches)]]/12 -> 3.916666667 | G45: 13.35
A46: 2w-3c w/CS | C46: 2w 12x27 CS | D46: 138 | E46: =E44+12 -> 54 | F46: =SignalHeads[[#This Row],[Height ** (inches)]]/12 -> 4.5 | G46: 11.46
A47: 2w-3c w/CS w/BP | C47: 2w 12x27 CS | D47: 150 | E47: =E45+12 -> 59 | F47: =SignalHeads[[#This Row],[Height ** (inches)]]/12 -> 4.916666667 | G47: 16.27
A48: 2w-4c | D48: 86 | E48: 56 | F48: =SignalHeads[[#This Row],[Height ** (inches)]]/12 -> 4.666666667 | G48: 11.39
A49: 2w-4c w/BP | D49: 100 | E49: =E48+5 -> 61 | F49: =SignalHeads[[#This Row],[Height ** (inches)]]/12 -> 5.083333333 | G49: 17.23
A50: 2w-4c w/CS | C50: 2w 12x27 CS | D50: 150 | E50: =E48+12 -> 68 | F50: =SignalHeads[[#This Row],[Height ** (inches)]]/12 -> 5.666666667 | G50: 14.31
A51: 2w-4c w/CS w/BP | C51: 2w 12x27 CS | D51: 164 | E51: =E49+12 -> 73 | F51: =SignalHeads[[#This Row],[Height ** (inches)]]/12 -> 6.083333333 | G51: 20.15
A52: 2w-5c (doghouse) | D52: 122 | E52: 42 | F52: =SignalHeads[[#This Row],[Height ** (inches)]]/12 -> 3.5 | G52: 11.26
A53: 2w-5c (doghouse) w/BP | D53: 138 | E53: =E52+5 -> 47 | F53: =SignalHeads[[#This Row],[Height ** (inches)]]/12 -> 3.916666667 | G53: 18.41
A54: 2w-5c (doghouse) w/CS | C54: 2w 12x27 CS | D54: 186 | E54: =E52+12 -> 54 | F54: =SignalHeads[[#This Row],[Height ** (inches)]]/12 -> 4.5 | G54: 14.18
A55: 2w-5c (doghouse) w/CS w/BP | C55: 2w 12x27 CS | D55: 202 | E55: =E53+12 -> 59 | F55: =SignalHeads[[#This Row],[Height ** (inches)]]/12 -> 4.916666667 | G55: 21.32
A56: 2w 12x27 Non-iLL CS | D56: 25.4 | E56: 27 | F56: =SignalHeads[[#This Row],[Height ** (inches)]]/12 -> 2.25 | G56: 2.25 | H56: v2.02
A57: 2w 12x27 LED CS | D57: 25.15 | E57: 27 | F57: =SignalHeads[[#This Row],[Height ** (inches)]]/12 -> 2.25 | G57: 2.25 | H57: v2.02
A58: 2w 24x30 Non-iLL CS | D58: 30 | E58: 30 | F58: =SignalHeads[[#This Row],[Height ** (inches)]]/12 -> 2.5 | G58: 5 | H58: v2.02
A59: 2w 24x30 LED CS | D59: 27.7 | E59: 30 | F59: =SignalHeads[[#This Row],[Height ** (inches)]]/12 -> 2.5 | G59: 5 | H59: v2.02
A60: 2w 36x36 Non-iLL CS | D60: 46.6 | E60: 36 | F60: =SignalHeads[[#This Row],[Height ** (inches)]]/12 -> 3 | G60: 9 | H60: v2.02
A61: 2w 36x36 LED CS | D61: 40.3 | E61: 36 | F61: =SignalHeads[[#This Row],[Height ** (inches)]]/12 -> 3 | G61: 9 | H61: v2.02
A62: 2w 24x72 street name sign Non-iLL | D62: 88 | E62: =22+5/16 -> 22.3125 | F62: =SignalHeads[[#This Row],[Height ** (inches)]]/12 -> 1.859375 | G62: =SignalHeads[[#This Row],[Height ** (feet)]]*(6+0.375/12) -> 11.21435547 | H62: v2.02
A63: 2w 24x72 street name sign LEXAN | D63: 83.1 | E63: =E62 -> 22.3125 | F63: =SignalHeads[[#This Row],[Height ** (inches)]]/12 -> 1.859375 | G63: =G62 -> 11.21435547 | H63: v2.02
A64: 2w 24x96 street name sign Non-iLL | D64: 112.8 | E64: =22+5/16 -> 22.3125 | F64: =SignalHeads[[#This Row],[Height ** (inches)]]/12 -> 1.859375 | G64: =SignalHeads[[#This Row],[Height ** (feet)]]*(8+13/16/12) -> 15.00089518 | H64: v2.02
A65: 2w 24x96 street name sign LEXAN | D65: 105.5 | E65: =E64 -> 22.3125 | F65: =SignalHeads[[#This Row],[Height ** (inches)]]/12 -> 1.859375 | G65: =G64 -> 15.00089518 | H65: v2.02
A66: 2w 24x120 street name sign Non-iLL | D66: 138.6 | E66: =22+5/16 -> 22.3125 | F66: =SignalHeads[[#This Row],[Height ** (inches)]]/12 -> 1.859375 | G66: =SignalHeads[[#This Row],[Height ** (feet)]]*10 -> 18.59375 | H66: v2.02
A67: 2w 24x120 street name sign LEXAN | D67: 128.7 | E67: =E66 -> 22.3125 | F67: =SignalHeads[[#This Row],[Height ** (inches)]]/12 -> 1.859375 | G67: =SignalHeads[[#This Row],[Height ** (feet)]]*10 -> 18.59375 | H67: v2.02
A68: 3w-1c | D68: 51 | E68: 14 | F68: =SignalHeads[[#This Row],[Height ** (inches)]]/12 -> 1.166666667 | G68: 4.33
A69: 3w-1c w/BP | D69: 63 | E69: =E68+5 -> 19 | F69: =SignalHeads[[#This Row],[Height ** (inches)]]/12 -> 1.583333333 | G69: 7.18
A70: 3w-1c w/CS | C70: 3w 12x27 CS | D70: 147 | E70: =E68+12 -> 26 | F70: =SignalHeads[[#This Row],[Height ** (inches)]]/12 -> 2.166666667 | G70: 7.92
A71: 3w-1c w/CS w/BP | C71: 3w 12x27 CS | D71: 159 | E71: =E69+12 -> 31 | F71: =SignalHeads[[#This Row],[Height ** (inches)]]/12 -> 2.583333333 | G71: 10.76
A72: 3w-3c | D72: 111 | E72: 42 | F72: =SignalHeads[[#This Row],[Height ** (inches)]]/12 -> 3.5 | G72: 13
A73: 3w-3c w/BP | D73: 129 | E73: =E72+5 -> 47 | F73: =SignalHeads[[#This Row],[Height ** (inches)]]/12 -> 3.916666667 | G73: 18.03
A74: 3w-3c w/CS | C74: 3w 12x27 CS | D74: 207 | E74: =E72+12 -> 54 | F74: =SignalHeads[[#This Row],[Height ** (inches)]]/12 -> 4.5 | G74: 16.58
A75: 3w-3c w/CS w/BP | C75: 3w 12x27 CS | D75: 225 | E75: =E73+12 -> 59 | F75: =SignalHeads[[#This Row],[Height ** (inches)]]/12 -> 4.916666667 | G75: 21.62
A76: 3w-4c | D76: 129 | E76: 56 | F76: =SignalHeads[[#This Row],[Height ** (inches)]]/12 -> 4.666666667 | G76: 17.33
A77: 3w-4c w/BP | D77: 150 | E77: =E76+5 -> 61 | F77: =SignalHeads[[#This Row],[Height ** (inches)]]/12 -> 5.083333333 | G77: 23.46
A78: 3w-4c w/CS | C78: 3w 12x27 CS | D78: 225 | E78: =E76+12 -> 68 | F78: =SignalHeads[[#This Row],[Height ** (inches)]]/12 -> 5.666666667 | G78: 20.92
A79: 3w-4c w/CS w/BP | C79: 3w 12x27 CS | D79: 246 | E79: =E77+12 -> 73 | F79: =SignalHeads[[#This Row],[Height ** (inches)]]/12 -> 6.083333333 | G79: 27.05
A80: 3w-5c (doghouse) | D80: 183 | E80: 42 | F80: =SignalHeads[[#This Row],[Height ** (inches)]]/12 -> 3.5 | G80: 15.72
A81: 3w-5c (doghouse) w/BP | D81: 207 | E81: =E80+5 -> 47 | F81: =SignalHeads[[#This Row],[Height ** (inches)]]/12 -> 3.916666667 | G81: 23.09
A82: 3w-5c (doghouse) w/CS | C82: 3w 12x27 CS | D82: 279 | E82: =E80+12 -> 54 | F82: =SignalHeads[[#This Row],[Height ** (inches)]]/12 -> 4.5 | G82: 19.31
A83: 3w-5c (doghouse) w/CS w/BP | C83: 3w 12x27 CS | D83: 303 | E83: =E81+12 -> 59 | F83: =SignalHeads[[#This Row],[Height ** (inches)]]/12 -> 4.916666667 | G83: 26.67
A84: 4w-1c | D84: 68 | E84: 14 | F84: =SignalHeads[[#This Row],[Height ** (inches)]]/12 -> 1.166666667 | G84: 4.33
A85: 4w-1c w/BP | D85: 84 | E85: =E84+5 -> 19 | F85: =SignalHeads[[#This Row],[Height ** (inches)]]/12 -> 1.583333333 | G85: 7.18
A86: 4w-1c w/CS | C86: 4w 12x27 CS | D86: 196 | E86: =E84+12 -> 26 | F86: =SignalHeads[[#This Row],[Height ** (inches)]]/12 -> 2.166666667 | G86: 7.92
A87: 4w-1c w/CS w/BP | C87: 4w 12x27 CS | D87: 212 | E87: =E85+12 -> 31 | F87: =SignalHeads[[#This Row],[Height ** (inches)]]/12 -> 2.583333333 | G87: 10.76
A88: 4w-3c | D88: 148 | E88: 42 | F88: =SignalHeads[[#This Row],[Height ** (inches)]]/12 -> 3.5 | G88: 13
A89: 4w-3c w/BP | D89: 172 | E89: =E88+5 -> 47 | F89: =SignalHeads[[#This Row],[Height ** (inches)]]/12 -> 3.916666667 | G89: 18.03
A90: 4w-3c w/CS | C90: 4w 12x27 CS | D90: 276 | E90: =E88+12 -> 54 | F90: =SignalHeads[[#This Row],[Height ** (inches)]]/12 -> 4.5 | G90: 16.58
A91: 4w-3c w/CS w/BP | C91: 4w 12x27 CS | D91: 300 | E91: =E89+12 -> 59 | F91: =SignalHeads[[#This Row],[Height ** (inches)]]/12 -> 4.916666667 | G91: 21.62
A92: 4w-4c | D92: 172 | E92: 56 | F92: =SignalHeads[[#This Row],[Height ** (inches)]]/12 -> 4.666666667 | G92: 17.33
A93: 4w-4c w/BP | D93: 200 | E93: =E92+5 -> 61 | F93: =SignalHeads[[#This Row],[Height ** (inches)]]/12 -> 5.083333333 | G93: 23.46
A94: 4w-4c w/CS | C94: 4w 12x27 CS | D94: 300 | E94: =E92+12 -> 68 | F94: =SignalHeads[[#This Row],[Height ** (inches)]]/12 -> 5.666666667 | G94: 20.92
A95: 4w-4c w/CS w/BP | C95: 4w 12x27 CS | D95: 328 | E95: =E93+12 -> 73 | F95: =SignalHeads[[#This Row],[Height ** (inches)]]/12 -> 6.083333333 | G95: 27.05
A96: 4w-5c (doghouse) | D96: 244 | E96: 42 | F96: =SignalHeads[[#This Row],[Height ** (inches)]]/12 -> 3.5 | G96: 15.72
A97: 4w-5c (doghouse) w/BP | D97: 276 | E97: =E96+5 -> 47 | F97: =SignalHeads[[#This Row],[Height ** (inches)]]/12 -> 3.916666667 | G97: 23.09
A98: 4w-5c (doghouse) w/CS | C98: 4w 12x27 CS | D98: 372 | E98: =E96+12 -> 54 | F98: =SignalHeads[[#This Row],[Height ** (inches)]]/12 -> 4.5 | G98: 19.31
A99: 4w-5c (doghouse) w/CS w/BP | C99: 4w 12x27 CS | D99: 404 | E99: =E97+12 -> 59 | F99: =SignalHeads[[#This Row],[Height ** (inches)]]/12 -> 4.916666667 | G99: 26.67
A100: 4w 12x27 Non-iLL CS | D100: 51 | E100: 27 | F100: =SignalHeads[[#This Row],[Height ** (inches)]]/12 -> 2.25 | G100: 2.25
A101: 4w 12x27 LED CS | D101: 67 | E101: 27 | F101: =SignalHeads[[#This Row],[Height ** (inches)]]/12 -> 2.25 | G101: 9
A102: 4w 24x30 Non-iLL CS | D102: 59 | E102: =E103 -> 31.5 | F102: =F103 -> 2.625 | G102: =G103 -> 5.7421875 | H102: v2.02
A103: 4w 24x30 LED CS | D103: 53.55 | E103: 31.5 | F103: =SignalHeads[[#This Row],[Height ** (inches)]]/12 -> 2.625 | G103: =SignalHeads[[#This Row],[Height ** (feet)]]*26.25/12 -> 5.7421875 | H103: v2.02
A104: 4w 36x36 Non-iLL CS | D104: 102 | E104: 36 | F104: =SignalHeads[[#This Row],[Height ** (inches)]]/12 -> 3 | G104: 14.93
A105: 4w 36x36 LED CS | D105: 134 | E105: 36 | F105: =SignalHeads[[#This Row],[Height ** (inches)]]/12 -> 3 | G105: 5
A108: Signal Parts
A110: Code | B110: Description | C110: Comment/Detail | D110: Weight*** (lbs) | E110: Height ** (inches) | F110: Height ** (feet) | G110: Perp. Wind Area (sft) | H110: Last Revised
A112: 1w-1c alum | C112: Static Sign | D112: 12 | E112: 14 | F112: =SignalParts[[#This Row],[Height ** (inches)]]/12 -> 1.166666667 | G112: 1.36
A113: 1w-1c alum w/BP | D113: =D112+4 -> 16 | E113: =E112 -> 14 | F113: =SignalParts[[#This Row],[Height ** (inches)]]/12 -> 1.166666667 | G113: 4
A114: 1w-1c led | D114: 7 | E114: 14 | F114: =SignalParts[[#This Row],[Height ** (inches)]]/12 -> 1.166666667 | G114: 1.36
A115: 1w-1c led w/BP | D115: =D114+4 -> 11 | E115: =E114 -> 14 | F115: =SignalParts[[#This Row],[Height ** (inches)]]/12 -> 1.166666667 | G115: 4
A116: 1w-3c led | D116: 22 | E116: 42 | F116: =SignalParts[[#This Row],[Height ** (inches)]]/12 -> 3.5 | G116: 4.08
A117: 1w-3c led w/BP | D117: =D116+6 -> 28 | E117: =E116 -> 42 | F117: =SignalParts[[#This Row],[Height ** (inches)]]/12 -> 3.5 | G117: 8.67
A118: 1w 12x27 CS | D118: 32 | E118: 27 | F118: =SignalParts[[#This Row],[Height ** (inches)]]/12 -> 2.25 | G118: =12*27/144 -> 2.25
A119: 1w 12x27 CS compact florescent | D119: 22 | E119: 27 | F119: =SignalParts[[#This Row],[Height ** (inches)]]/12 -> 2.25 | G119: =12*27/144 -> 2.25
A120: 1w 24x30 SS | D120: 17 | E120: 30 | F120: =SignalParts[[#This Row],[Height ** (inches)]]/12 -> 2.5 | G120: =24*30/144 -> 5
A121: 2w 24x30 CS | D121: 70 | E121: 30 | F121: =SignalParts[[#This Row],[Height ** (inches)]]/12 -> 2.5 | G121: =24*30/144 -> 5
A122: 2w 24x30 CS compact fluorescent | D122: 42 | E122: 30 | F122: =SignalParts[[#This Row],[Height ** (inches)]]/12 -> 2.5 | G122: 5
A123: 2w bottom | D123: 2 | E123: 1 | F123: =SignalParts[[#This Row],[Height ** (inches)]]/12 -> 0.08333333333 | G123: =14*SignalParts[[#This Row],[Height ** (inches)]]/144 -> 0.09722222222
A124: 2w bottom w/BP | D124: =D123*D117/D116 -> 2.545454545 | E124: =E123+5 -> 6 | F124: =SignalParts[[#This Row],[Height ** (inches)]]/12 -> 0.5 | G124: =14*SignalParts[[#This Row],[Height ** (inches)]]/144 -> 0.5833333333
A125: 2w doghouse bottom | D125: 3 | E125: 1.5 | F125: =SignalParts[[#This Row],[Height ** (inches)]]/12 -> 0.125 | G125: =28*SignalParts[[#This Row],[Height ** (inches)]]/144 -> 0.2916666667
A126: 2w doghouse bottom w/BP | D126: =D125*D117/D116 -> 3.818181818 | E126: =E125+5 -> 6.5 | F126: =SignalParts[[#This Row],[Height ** (inches)]]/12 -> 0.5416666667 | G126: =(28+10)*SignalParts[[#This Row],[Height ** (inches)]]/144 -> 1.715277778
A127: 2w doghouse top | D127: 4 | E127: 2.25 | F127: =SignalParts[[#This Row],[Height ** (inches)]]/12 -> 0.1875 | G127: =28*SignalParts[[#This Row],[Height ** (inches)]]/144 -> 0.4375
A128: 2w doghouse top w/BP | D128: =D127*D117/D116 -> 5.090909091 | E128: =E127+5 -> 7.25 | F128: =SignalParts[[#This Row],[Height ** (inches)]]/12 -> 0.6041666667 | G128: =(28+10)*SignalParts[[#This Row],[Height ** (inches)]]/144 -> 1.913194444
A129: 2w top bracket | D129: 15 | E129: 4.25 | F129: =SignalParts[[#This Row],[Height ** (inches)]]/12 -> 0.3541666667 | G129: =14*SignalParts[[#This Row],[Height ** (inches)]]/144 -> 0.4131944444
A130: 2w top bracket w/BP | D130: =D129*D117/D116 -> 19.09090909 | E130: =E129+5 -> 9.25 | F130: =SignalParts[[#This Row],[Height ** (inches)]]/12 -> 0.7708333333 | G130: =14*SignalParts[[#This Row],[Height ** (inches)]]/144 -> 0.8993055556
A131: 3w bottom | D131: 3 | E131: 1 | F131: =SignalParts[[#This Row],[Height ** (inches)]]/12 -> 0.08333333333 | G131: =14*SignalParts[[#This Row],[Height ** (inches)]]/144 -> 0.09722222222
A132: 3w bottom w/BP | D132: =D131*D117/D116 -> 3.818181818 | E132: =E131+5 -> 6 | F132: =SignalParts[[#This Row],[Height ** (inches)]]/12 -> 0.5 | G132: =14*SignalParts[[#This Row],[Height ** (inches)]]/144 -> 0.5833333333
A133: 3w top bracket | D133: 20 | E133: 4.25 | F133: =SignalParts[[#This Row],[Height ** (inches)]]/12 -> 0.3541666667 | G133: =14*SignalParts[[#This Row],[Height ** (inches)]]/144 -> 0.4131944444
A134: 3w top bracket w/BP | D134: =D133*D117/D116 -> 25.45454545 | E134: =E133+5 -> 9.25 | F134: =SignalParts[[#This Row],[Height ** (inches)]]/12 -> 0.7708333333 | G134: =14*SignalParts[[#This Row],[Height ** (inches)]]/144 -> 0.8993055556
A135: 4w 12x27 CS | D135: 45 | E135: 12 | F135: =SignalParts[[#This Row],[Height ** (inches)]]/12 -> 1 | G135: =12*27/144 -> 2.25
A136: 4w 24x30 CS | D136: 62 | E136: 24 | F136: =SignalParts[[#This Row],[Height ** (inches)]]/12 -> 2 | G136: =24*30/144 -> 5
A137: 4w 24x30 CS compact florescent | D137: 52 | E137: 24 | F137: =SignalParts[[#This Row],[Height ** (inches)]]/12 -> 2 | G137: =24*30/144 -> 5
A138: 4w bottom | D138: 4 | E138: 1 | F138: =SignalParts[[#This Row],[Height ** (inches)]]/12 -> 0.08333333333 | G138: =14*SignalParts[[#This Row],[Height ** (inches)]]/144 -> 0.09722222222
A139: 4w bottom w/BP | D139: =D138*D117/D116 -> 5.090909091 | E139: =E138+5 -> 6 | F139: =SignalParts[[#This Row],[Height ** (inches)]]/12 -> 0.5 | G139: =14*SignalParts[[#This Row],[Height ** (inches)]]/144 -> 0.5833333333
A140: 4w top bracket | D140: 25 | E140: 4.25 | F140: =SignalParts[[#This Row],[Height ** (inches)]]/12 -> 0.3541666667 | G140: =14*SignalParts[[#This Row],[Height ** (inches)]]/144 -> 0.4131944444
A141: 4w top bracket w/BP | D141: =D140*D117/D116 -> 31.81818182 | E141: =E140+5 -> 9.25 | F141: =SignalParts[[#This Row],[Height ** (inches)]]/12 -> 0.7708333333 | G141: =14*SignalParts[[#This Row],[Height ** (inches)]]/144 -> 0.8993055556
A142: BP bottom | C142: Add as last part when using parts w/ BP | D142: 0 | E142: 5 | F142: =SignalParts[[#This Row],[Height ** (inches)]]/12 -> 0.4166666667 | G142: 0
A143: ent head | D143: 5 | E143: 6.5 | F143: =SignalParts[[#This Row],[Height ** (inches)]]/12 -> 0.5416666667 | G143: -
A144: span wire hanger | D144: 5 | E144: 3 | F144: =SignalParts[[#This Row],[Height ** (inches)]]/12 -> 0.25 | G144: -
A145: stem pipe | C145: Stem pipe weight is per foot | D145: 2.5 | E145: - | F145: - | G145: -

Sheet Work Authorization Costs
A1: ESTIMATING COSTS FOR WORK AUTHORIZATIONS
B3: 25 | C3: $/hr basic wage
C4: Then use 1.88 labor multiplier
A6: 5 | B6: Crew size for signal modernizations
B7: 15 | C7: Estimated days to modernize complicated box span (directional boring, medians): Assume 3 weeks x 5 days per week
C8: Rate/Hr = | D8: =B3*A6 -> 125 | E8: This is now the hourly rate for a 5 person crew
C9: Est Hrs= | D9: =8*B7 -> 120 | E9: This is now the crew hour estimate
B10: 10 | C10: Estimated days to modernize less complicated box span (no directional boring but ped pushbuttons and loops): Assume 2 weeks x 5 days per week
C11: Rate/Hr = | D11: =B3*A6 -> 125 | E11: This is now the hourly rate for a 5 person crew
C12: Est Hrs= | D12: =8*B10 -> 80 | E12: This is now the crew hour estimate
A14: 5 | B14: Crew size to modernize flashing signal
B15: 3 | C15: Estimated days to modernize flashing signal with steel poles
C16: Rate/Hr = | D16: =B3*A14 -> 125 | E16: This is now the hourly rate for a 5 person crew
C17: Est Hrs= | D17: =8*B15 -> 24 | E17: This is now the crew hour estimate
B18: 2 | C18: Estimated days to modernize flashing signal with wood poles
C19: Rate/Hr = | D19: =B3*A14 -> 125 | E19: This is now the hourly rate for a 5 person crew
C20: Est Hrs= | D20: 16 | E20: This is now the crew hour estimate
A22: 2 | B22: Crew size to modernize sign beacon
B23: 2 | C23: Estimated days to modernize sign mounted beacon
C24: Rate/Hr = | D24: =B3*A22 -> 50 | E24: This is now the hourly rate for a 2 person crew
C25: Est Hrs= | D25: =8*B23 -> 16 | E25: This is now the crew hour estimate
A27: 2 | B27: Crew size to remove sign beacon
B28: 1 | C28: Estimated days to modernize sign mounted beacon
C29: Rate/Hr = | D29: =B3*A27 -> 50 | E29: This is now the hourly rate for a 2 person crew
C30: Est Hrs= | D30: =8*B28 -> 8 | E30: This is now the crew hour estimate
A32: 60 $/hr equipment for 5 man crew
B33: Assumes equipment includes 3 vehicles (2 bucket trucks, one rack stack truck) at 18$/hr and one pickup truck at 5$/hr: (3*18+1*5)
B34: Applies to travel time as well as work time
A36: 42 $/hr equipment for 3 man crew
B37: Assumes equipment includes 3 vehicles (1 bucket truck, one rack stack truck) at 18$/hr and one pickup truck at 5$/hr: (2*18+1*5)
B38: Applies to travel time as well as work time
A40: 36 $/hr equipment for 2 man crew
B41: Assumes equipment includes 2 vehicles (1 bucket truck, one rack stack truck) at 18$/hr: (2*18)
B42: Applies to travel time as well as work time
A44: 110$/day/man travel expense (80+14+7+7): Assumes overnight stay (more than 25 miles from Lansing)
A45: 28$/day/man travel expense (14+7+7): Assumes no overnight stay (within 25 mile of Lansing)
A47: Additional equipment:
B48: Excavator at $650 per week ($2500 per month)
B49: Hydro-Vac for foundations: ($700 per strain pole fdtn); ($200 per hour miscellaneous fdtns)
A51: Sign Crew for signs and sign post installations
B52: Add time for 3 man sign crew separately (labor and travel)
A54: >>> Judy Arens 12/13/2006 7:52AM >>>
A55: Doug,
A57: The vehicles are charged out the same hours as the crews time to work authorizations. If they work a full week on the job the vehicles are charged 40 hours.
A58: If a full day, 10 hours etc. The pickup trucks are $4.53 per hour, the buckets, cages and stake racks are all in the same category at 17.93 per hour.
A59: There are additonal charges for some of the smaller pieces such as the concrete saw, compressor etc.
A60: The current (changes annually) prices for vehicles is listed on the interchange under A&E's section I believe.
A62: Yes, they charge for travel time. $25 an hour is a little higher than most of the guys make but is probably a good round number to use.
A64: All materials are charged to the work authorization. The signals, controllers etc are charged out directly on a purchase order from Carrier & Gable.
A65: All of the small items such as wire, conduit, lashing etc. are charged out after the job is done on a Sign & Signal Transfer.
A66: (Materials are bought under our overhead fund and then charged out as they are used - credit our overhead and charged to the TWA).
A68: Also, don't forget travel expenses. (Meals and hotels)
A70: Judy Arens
A71: Administrative Support
A72: Statewide Signal Shop
A73: 517-322-3360

Sheet Conduit Sizing
A1: Pole Mounted Controller Conduit Sizing Check
A2: 3" conduit area | B2: 6.442 | C2: in^2 | E2: 4" conduit area | F2: 11.26 | G2: in^2
A3: 31% full | B3: 1.997 | C3: in^2 | E3: 31% full | F3: 3.49 | G3: in^2
A4: 40% full | B4: 2.577 | C4: in^2 | E4: 40% full | F4: 4.5 | G4: in^2
A5: 53021-01-003
A6: 12 Gauge wire Conductors | B6: AREA (SQ IN) | D6: DIAMETER | E6: Number of Cables Entering Duct | F6: AREA (SQ IN)
A7: 2 | B7: =(D7/2)^2*3.14 -> 0.128759625 | C7: in^2 | D7: 0.405 | F7: =B7*E7 -> 0 | G7: in^2
A8: 3 | B8: =(D8/2)^2*3.14 -> 0.141790625 | C8: in^2 | D8: 0.425 | F8: =B8*E8 -> 0 | G8: in^2
A9: 4 | B9: 0.180864 | C9: in^2 | D9: 0.48 | F9: 0 | G9: in^2
A10: 5 | B10: 0.200194625 | C10: in^2 | D10: 0.505 | F10: 0 | G10: in^2
A11: 7 | B11: 0.259540625 | C11: in^2 | D11: 0.575 | F11: 0 | G11: in^2
A12: 9 | B12: 0.412615625 | C12: in^2 | D12: 0.725 | F12: 0 | G12: in^2
A13: 12 | B13: 0.435694625 | C13: in^2 | D13: 0.745 | F13: 0 | G13: in^2
A15: 14 Gauge Wire Conductors
A17: 2 | B17: 0.093434625 | C17: in^2 | D17: 0.345 | F17: =B17*E17 -> 0 | G17: in^2
A18: 3 | B18: 0.104581625 | C18: in^2 | D18: 0.365 | F18: =B18*E18 -> 0 | G18: in^2
A19: 4 | B19: 0.122479625 | C19: in^2 | D19: 0.395 | F19: 0 | G19: in^2
A20: 5 | B20: 0.141790625 | C20: in^2 | D20: 0.425 | F20: 0 | G20: in^2
A21: 7 | B21: 0.169736625 | C21: in^2 | D21: 0.465 | F21: 0 | G21: in^2
A22: 9 | B22: 0.296906625 | C22: in^2 | D22: 0.615 | F22: 0 | G22: in^2
A23: 10 | B23: 0.296906625 | C23: in^2 | D23: 0.615 | F23: 0 | G23: in^2
A24: 12 | B24: 0.316531625 | C24: in^2 | D24: 0.635 | F24: 0 | G24: in^2
A25: 16 | B25: 0.401311625 | C25: in^2 | D25: 0.715 | F25: 0 | G25: in^2
A26: 19 | B26: 0.424076625 | C26: in^2 | D26: 0.735 | F26: 0 | G26: in^2
A27: 20 | B27: 0.4415625 | C27: in^2 | D27: 0.75 | F27: 0 | G27: in^2
A29: 16 Gauge Wire Conductors
A31: 2 | B31: 0.070179785 | C31: in^2 | D31: 0.299 | F31: =B31*E31 -> 0 | G31: in^2
A32: 3 | B32: 0 | C32: in^2 | F32: =B32*E32 -> 0 | G32: in^2
A33: 4 | B33: 0.093434625 | C33: in^2 | D33: 0.345 | F33: 0 | G33: in^2
A34: 5 | B34: 0.1074665 | C34: in^2 | D34: 0.37 | F34: 0 | G34: in^2
A35: 7 | B35: 0.137815385 | C35: in^2 | D35: 0.419 | F35: 0 | G35: in^2
A36: 9 | B36: 0 | C36: in^2 | F36: 0 | G36: in^2
A37: 10 | B37: 0 | C37: in^2 | F37: 0 | G37: in^2
A38: 12 | B38: 0 | C38: in^2 | F38: 0 | G38: in^2
A39: 16 | B39: 0 | C39: in^2 | F39: 0 | G39: in^2
A40: 19 | B40: 0 | C40: in^2 | F40: 0 | G40: in^2
A41: 20 | B41: 0.38026656 | C41: in^2 | D41: 0.696 | F41: 0 | G41: in^2
A43: 6 Gauge Wire Conductors
A45: 2 | B45: 0.180864 | C45: in^2 | D45: 0.48 | F45: =B45*E45 -> 0 | G45: in^2
A46: 2 insul+1ground | B46: 0.362984 | C46: in^2 | D46: 0.68 | F46: 0 | G46: in^2
A48: 4 Gauge Wire Conductors
A50: 2 | B50: =(D50/2)^2*3.14 -> 0.1884785 | C50: in^2 | D50: 0.49 | F50: =B50*E50 -> 0 | G50: in^2
A51: 2 insul+1ground | B51: =(D51/2)^2*3.14 -> 0.40018986 | C51: in^2 | D51: 0.714 | F51: =B51*E51 -> 0 | G51: in^2
A53: Ground wire | B53: 0.07666015625 | C53: in^2 | D53: =5/16 -> 0.3125 | F53: 0 | G53: in^2
A54: Antenna cable | B54: =(D54/2)^2*3.14 -> 0.07666015625 | C54: in^2 | D54: =5/16 -> 0.3125 | F54: 0 | G54: in^2
A55: Loop Lead-in | B55: 0.11455034 | C55: in^2 | D55: 0.382 | F55: 0 | G55: in^2
A56: Pushbutton | B56: 0.11455034 | C56: in^2 | D56: 0.382 | F56: 0 | G56: in^2
A57: Video cable | B57: 0.07254656 | C57: in^2 | D57: 0.304 | F57: 0 | G57: in^2
E60: Total Area | F60: =SUM(F7:F59) -> 0 | G60: in^2
E61: =IF(F60<B3,"OK","Verify Duct Size") -> OK

Sheet Cables
A1: TRAFFIC SIGNAL HEAD INFORMATION
A2: Head/Case Sign Combination | B2: CONDUCTORS
A3: 1W-5C (doghouse) | B3: 7/C#16 PJ
A4: 2W-5C (doghouse) | B4: 12/C#16
A6: 1W-4C | B6: 7/C#16 PJ
A7: 4W-4C | B7: 20/C#16
A9: 4W-3C | B9: 7/C#16
A10: 4W-3C & 12"X 27" C.S. (4 Phase) | B10: 12C/#14
A11: 4W-3C & 12"X27" C.S. (8 Phase) | B11: 20/C#14
A13: 3W-3C | B13: 7/C#16
A14: 3W-3C & 12"X27"C.S (Phasing 1 Dir.) | B14: 16/C#14
A15: 3W-3C & 12"X27"C.S. (Phasing 2 Dir.) | B15: 16/C#14
A17: 2W-3C | B17: 7/C#16
A18: 2W-3C & 2-12"X27" C.S. | B18: 12/C#14
A19: 2W-3C, 2-12"X27" C.S. & 1- 24"X30" C.S. | B19: 14/C#14
A21: 1W-3C | B21: 5/C#16
A22: 1W-3C & 12"X27" C.S. (LED) | B22: 7/C#16
A24: 1W-1C | B24: 5/C#16
A25: 2W-1C | B25: 5/C#16
A26: 3W-1C | B26: 5/C#16
A27: 4W-1C | B27: 5/C#16
A28: 1W-1C & 12" X27" C.S. (LED) | B28: 7/C#16
A30: 1-Way, 24" X 30" Case Sign (LED) | B30: 4/C#16 PJ
A31: 2-Way, 24" X 30" Case Sign | B31: 4/C#16 PJ
A32: 4-Way, 24" X 30" Case Sign | B32: 4/C#16 PJ
A34: PEDS & Low Level Signals
A36: 2 Way Ped Signal | B36: 7/C#16 PJ
A37: 2 Way w/Low Level (Pole) | B37: 12/C#16
A38: 2 Way w/Low Level (Pedestal) | B38: 12/C#16
A39: 2 Way w/L.L. & 12"X27" C.S. (Pole) | B39: 12/C#14
A40: 2 Way w/L.L. & 12"X27" C.S. (Pedestal) | B40: 12/C#14
A41: 2 Way w/2 Low Levels(Pole) | B41: 12/C#16
A42: 2 Way w/2 Low Levels (Pedestal) | B42: 12/C#16
A43: 2 Way w/2 L.L. & (2) 12"X27" C.S. (Pole) | B43: 16/C#14
A44: 2 Way w/2 L.L. & (2) 12"X27"C.S. (Pedestal) | B44: 16/C#14
A46: 1 Way Ped Signal | B46: 7/C#16 PJ
A47: 1 Way w/Low Level (Pole) | B47: 7/C#16
A48: 1 Way w/Low Level (Pedestal) | B48: 7/C#16
A49: 1 Way w/L.L. & 12"X27" C.S. (Pole) | B49: 12/C#14
A50: 1 Way w/L.L. & 12"X27" C.S. (Pedestal) | B50: 12/C#14
A51: 1 Way w/2 Low Level (Pole) | B51: 12/C#16
A52: 1 Way w/2 Low Level (Pedestal) | B52: 14/C#16
A53: 1 Way w/2 L.L. & (2) 12"X27" C.S. (Pole) | B53: 16/C#14
A54: 1 Way w/2 L.L. & (2) 12"X27" C.S. (Pedestal) | B54: 20/C#14

Sheet L.E.D. Wattages
A1: 12" SIGNALS (cyclic)
A2: ITEM | B2: QTY | C2: R | E2: Y | G2: G | I2: R <-- | K2: Y <-- | M2: G <-- | O2: TOTAL | P2: TOTAL
C3: Qty | D3: Watts | E3: Qty | F3: Watts | G3: Qty | H3: Watts | I3: Qty | J3: Watts | K3: Qty | L3: Watts | M3: Qty | N3: Watts | O3: WATTS | P3: OPENINGS
A4: 4W-3C (all solids) | C4: 4 | D4: 8 | E4: 4 | F4: 22 | G4: 4 | H4: 13 | I4: 0 | J4: 6 | K4: 0 | L4: 10 | M4: 0 | N4: 6 | O4: =B4*((C4*D4)+(E4*F4)+(G4*H4)+(I4*J4)+(K4*L4)+(M4*N4)) -> 0 | P4: =B4*(C4+E4+G4+I4+K4+M4) -> 0
A5: 4W-3C (R solid, Y arrow, G arrow) | C5: 4 | D5: 8 | E5: 0 | F5: 22 | G5: 0 | H5: 13 | I5: 0 | J5: 6 | K5: 4 | L5: 10 | M5: 4 | N5: 6 | O5: 0 | P5: 0
A6: 4W-3C (R arrow, Y arrow, G arrow) | C6: 0 | D6: 8 | E6: 0 | F6: 22 | G6: 0 | H6: 13 | I6: 4 | J6: 6 | K6: 4 | L6: 10 | M6: 4 | N6: 6 | O6: 0 | P6: 0
A7: 3W-3C (all Solids) | C7: 3 | D7: 8 | E7: 3 | F7: 22 | G7: 3 | H7: 13 | I7: 0 | J7: 6 | K7: 0 | L7: 10 | M7: 0 | N7: 6 | O7: 0 | P7: 0
A8: 3W-3C (R solid, Y arrow, G arrow) | C8: 3 | D8: 8 | E8: 0 | F8: 22 | G8: 0 | H8: 13 | I8: 0 | J8: 6 | K8: 3 | L8: 10 | M8: 3 | N8: 6 | O8: 0 | P8: 0
A9: 3W-3C (R arrow, Y arrow, G arrow) | C9: 0 | D9: 8 | E9: 0 | F9: 22 | G9: 0 | H9: 13 | I9: 3 | J9: 6 | K9: 3 | L9: 10 | M9: 3 | N9: 6 | O9: 0 | P9: 0
A10: 2W-3C (all solids) | C10: 2 | D10: 8 | E10: 2 | F10: 22 | G10: 2 | H10: 13 | I10: 0 | J10: 6 | K10: 0 | L10: 10 | M10: 0 | N10: 6 | O10: 0 | P10: 0
A11: 2W-3C (R solid, Y arrow, G arrow) | C11: 2 | D11: 8 | E11: 0 | F11: 22 | G11: 0 | H11: 13 | I11: 0 | J11: 6 | K11: 2 | L11: 10 | M11: 2 | N11: 6 | O11: 0 | P11: 0
A12: 2W-3C (R arrow, Y arrow, G arrow) | C12: 0 | D12: 8 | E12: 0 | F12: 22 | G12: 0 | H12: 13 | I12: 2 | J12: 6 | K12: 2 | L12: 10 | M12: 2 | N12: 6 | O12: 0 | P12: 0
A13: 1W-1C (solid) | C13: 1 | D13: 8 | E13: 0 | F13: 22 | G13: 0 | H13: 13 | I13: 0 | J13: 6 | K13: 0 | L13: 10 | M13: 0 | N13: 6 | O13: 0 | P13: 0
A14: 1W-1C (arrow) | C14: 0 | D14: 8 | E14: 0 | F14: 22 | G14: 0 | H14: 13 | I14: 0 | J14: 6 | K14: 0 | L14: 10 | M14: 1 | N14: 6 | O14: 0 | P14: 0
A15: 4W-1C | C15: 4 | D15: 8 | E15: 0 | F15: 22 | G15: 0 | H15: 13 | I15: 0 | J15: 6 | K15: 0 | L15: 10 | M15: 0 | N15: 6 | O15: 0 | P15: 0
A16: 3W-1C | C16: 1 | D16: 8 | E16: 2 | F16: 22 | G16: 0 | H16: 13 | I16: 0 | J16: 6 | K16: 0 | L16: 10 | M16: 0 | N16: 6 | O16: 0 | P16: 0
A17: 1W-3C (all solids) | C17: 1 | D17: 8 | E17: 1 | F17: 22 | G17: 1 | H17: 13 | I17: 0 | J17: 6 | K17: 0 | L17: 10 | M17: 0 | N17: 6 | O17: 0 | P17: 0
A18: 1W-3C (all arrows ) | C18: 0 | D18: 8 | E18: 0 | F18: 22 | G18: 0 | H18: 13 | I18: 1 | J18: 6 | K18: 1 | L18: 10 | M18: 1 | N18: 6 | O18: 0 | P18: 0
A19: 1W-3C (R solid, Y arrow, G arrow) | C19: 1 | D19: 8 | E19: 0 | F19: 22 | G19: 0 | H19: 13 | I19: 0 | J19: 6 | K19: 1 | L19: 10 | M19: 1 | N19: 6 | O19: 0 | P19: 0
A20: 1W-3C(all solids) w/ 4th Level LTGA | C20: 1 | D20: 8 | E20: 1 | F20: 22 | G20: 1 | H20: 13 | I20: 0 | J20: 6 | K20: 0 | L20: 10 | M20: 1 | N20: 6 | O20: 0 | P20: 0
A21: 1W-HAWK | C21: 2 | D21: 8 | E21: 1 | F21: 22 | G21: 0 | H21: 13 | I21: 0 | J21: 6 | K21: 0 | L21: 10 | M21: 0 | N21: 6 | O21: 0 | P21: 0
A22: 1W-4C (R, FY,Y,G Arrows) (**New) | C22: 0 | D22: 8 | E22: 0 | F22: 22 | G22: 0 | H22: 13 | I22: 1 | J22: 6 | K22: 2 | L22: 10 | M22: 1 | N22: 6 | O22: 0 | P22: 0
A23: 1W-1C Sign Optical 12" | C23: 0 | D23: 8 | E23: 1 | F23: 22 | G23: 0 | H23: 13 | I23: 0 | J23: 6 | K23: 0 | L23: 10 | M23: 0 | N23: 6 | O23: 0 | P23: 0
A24: 1W-1C Sign Optical 12" (SOLAR) | C24: 0 | D24: 0 | E24: 1 | F24: 0 | G24: 0 | H24: 0 | I24: 0 | J24: 0 | K24: 0 | L24: 0 | M24: 0 | N24: 6 | O24: 0 | P24: 0
A25: 4W-3C w/4th Level LTGA 2 SIDES | C25: 4 | D25: 8 | E25: 4 | F25: 22 | G25: 4 | H25: 13 | I25: 0 | J25: 6 | K25: 0 | L25: 10 | M25: 2 | N25: 6 | O25: 0 | P25: 0
A26: 4W-3C LTYA & LTGA 4 SIDES | C26: 4 | D26: 8 | E26: 4 | F26: 22 | G26: 4 | H26: 13 | I26: 0 | J26: 6 | K26: 4 | L26: 10 | M26: 4 | N26: 6 | O26: 0 | P26: 0
A27: 1W-DOG HOUSE | C27: 1 | D27: 8 | E27: 1 | F27: 22 | G27: 1 | H27: 13 | I27: 0 | J27: 6 | K27: 1 | L27: 10 | M27: 1 | N27: 6 | O27: 0 | P27: 0
A28: 1W-2C (COUNTDOWN PED) | C28: 1 | D28: 11 | O28: 0 | P28: 0
A29: 2W-2C (COUNTDOWN PED) | C29: 2 | D29: 11 | O29: 0 | P29: 0
A30: 1W-2C (PED) | C30: 1 | D30: 6 | O30: 0 | P30: 0
A31: 2W-2C (PED) | C31: 2 | D31: 6 | O31: 0 | P31: 0
A32: insert lines here | O32: 0 | P32: 0
A33: Carry over from Incandescent signals sections (State Wide, Detroit, & Others) | O33: ='Incandescent State Wide'!G53+'Detroit '!G53+Others!G53 -> 0 | P33: ='Incandescent State Wide'!G52+'Detroit '!G52+Others!G52 -> 0
A34: ILLUMINATED SIGNS & CONTROLLER (steady)
A35: ITEM | B35: QTY | C35: Openings | M35: WATTS | O35: TOTAL | P35: TOTAL
C36: Each | M36: EACH | O36: WATTS | P36: OPENINGS
A37: 12 X 27 LED CASE SIGN (1 WAY) | C37: 1 | M37: 15 | O37: =B37*M37 -> 0 | P37: =B37*C37 -> 0
A38: 12 X 27 LED CASE SIGN (2 WAY) | C38: 2 | M38: 30 | O38: 0 | P38: 0
A39: 12 X 27 LED CASE SIGN (3 WAY) | C39: 3 | M39: 45 | O39: 0 | P39: 0
A40: 12 X 27 LED CASE SIGN (4 WAY) | C40: 4 | M40: 60 | O40: 0 | P40: 0
A41: 24 X 30 LED CASE SIGN (1 WAY) | C41: 1 | M41: 45 | O41: 0 | P41: 0
A42: 24 X 30 LED CASE SIGN (2 WAY) | C42: 2 | M42: 90 | O42: 0 | P42: 0
A43: 24 X 30 LED CASE SIGN (3 WAY) | C43: 3 | M43: 135 | O43: 0 | P43: 0
A44: 24 X 30 LED CASE SIGN (4 WAY) | C44: 4 | M44: 180 | O44: 0 | P44: 0
A45: 36 x 36 Keep Right LED (1 WAY) | C45: 1 | M45: 38 | O45: 0 | P45: 0
A46: FIBER OPTIC SCHOOL SPEED SIGN | C46: 1 | M46: 180 | O46: =B46*M46 -> 0 | P46: =B46*C46 -> 0
A47: Open/Closed Weigh station (LED/Fiber Optic) | C47: 1 | M47: 42 | O47: =B47*M47 -> 0 | P47: =B47*C47 -> 0
A48: 24 X 30 Disap'r Leg'd "No Turn on Red" | C48: 1 | M48: =4*40 -> 160 | O48: =M48*B48 -> 0 | P48: =C48*B48 -> 0
A49: 24 X 30 Disap'r Leg'd: NRT/NLT Symbol | C49: 1 | M49: =6*40 -> 240 | O49: =M49*B49 -> 0 | P49: =C49*B49 -> 0
A50: 24 X 30 Disap'r Leg'd "No Exit" | C50: 1 | M50: =2*40 -> 80 | O50: =M50*B50 -> 0 | P50: =C50*B50 -> 0
A51: 24 X 30 Disap'r Leg'd "open"/ "closed" | C51: 1 | M51: 240 | O51: =M51*B51 -> 0 | P51: =C51*B51 -> 0
A52: 8' Illuminated Street Name Sign | C52: 2 | M52: 220
A53: Controller, Monitor, No loops | C53: 0 | M53: 90
A54: Controller, Monitor, 3 loops | C54: 0 | M54: 105
A55: Flasher Controller | C55: 0 | M55: 5
A56: Video Camera | C56: 1 | P56: =C56*B56 -> 0
A57: Camera Processor (1 or 2 cameras) | C57: 0 | M57: 8
A58: Camera Processors (3 to 4 cameras) | C58: 0 | M58: 16
A59: Camera Processor (5 to 8 cameras) | C59: 0 | M59: 137
A60: Radio Transceiver | C60: 0 | M60: 3
A61: insert lines here
A62: DO NOT include controllers & cabinet equipment!
A63: Carry over from Mercury Vapor Case Signs section | O63: ='Merc Vap Case Signs'!P28 -> 0 | P63: ='Merc Vap Case Signs'!P27 -> 0
I64: Total Openings | P64: =SUM(P4:P63) -> 0
G65: Total Cyclic Watts | P65: =SUM(O4:O33) -> 0
G66: Total Steady Watts | P66: =SUM(O37:O63) -> 0
A68: 8' STREET NAME SIGNS LED (1 WAY) | C68: 1 | M68: 64 | O68: =B68*M68 -> 0 | P68: =C68*B68 -> 0 | R68: NOT FIGURED IN WITH THE SIGNAL, PAID FOR BY OTHERS
A69: 8' STREET NAME SIGNS LED (2 WAY) | C69: 2 | M69: 128 | O69: =B69*M69 -> 0 | P69: =B69*C69 -> 0
A71: 6' STREET NAME SIGNS LED (1 WAY) | C71: 1 | M71: 48 | O71: =B71*M71 -> 0 | P71: =B71*C71 -> 0
A72: 6' STREET NAME SIGNS LED (2 WAY) | C72: 2 | M72: 96 | O72: =B72*M72 -> 0 | P72: =B72*C72 -> 0

Sheet Merc Vap Case Signs
A1: ILLUMINATED SIGNS & CONTROLLER (steady)
A2: ITEM | B2: QTY | C2: Openings | M2: WATTS | O2: TOTAL | P2: TOTAL
C3: Each | M3: EACH | O3: WATTS | P3: OPENINGS
A4: 12 x 27 (Single Direction) | C4: 1 | M4: 100 | O4: =M4*B4 -> 0 | P4: =C4*B4 -> 0
A5: 12 x 27 (Two Directions) | C5: 2 | M5: 200 | O5: 0 | P5: 0
A6: 12 x 27 (Three Directions) | C6: 3 | M6: 200 | O6: 0 | P6: 0
A7: 12 x 27 (Four Directions) | C7: 4 | M7: 200 | O7: 0 | P7: 0
A8: 24" X 30" Two Way CS (Single Legend) | C8: 1 | M8: 200 | O8: =M8*B8 -> 0 | P8: 0
A9: 24" X 30" Two Way CS (Two Legends) | C9: 2 | M9: 200 | O9: =M9*B9 -> 0 | P9: 0
A10: 24" X 30" Four Way CS (Two Legends) | C10: 2 | M10: 250 | O10: 0 | P10: 0
A11: 24" X 30" Four Way CS (Three Legends) | C11: 3 | M11: 250 | O11: 0 | P11: 0
A12: 24" X 30" Four Way CS (Four Legends) | C12: 4 | M12: 250 | O12: 0 | P12: 0
A13: 36" X 36" Two Way CS (Single Legend) | C13: 1 | M13: 200 | O13: 0 | P13: 0
A14: 36" X 36" Two Way CS (Two Legends) | C14: 2 | M14: 200 | O14: 0 | P14: 0
A15: 36" X 36" Four Way CS (Two Legends) | C15: 2 | M15: 250 | O15: 0 | P15: 0
A16: 36" X 36" Four Way CS (Three Legends) | C16: 3 | M16: 250 | O16: 0 | P16: 0
A17: 36" X 36" Four Way CS (Four Legends) | C17: 4 | M17: 250 | O17: 0 | P17: 0
A18: Open/Closed Weigh Station (Incandescent/Fiber Optic) | C18: 1 | M18: 300 | O18: =B18*M18 -> 0 | P18: =B18*C18 -> 0
A19: 24 X 30 Disap'r Leg'd "No Turn on Red" | C19: 1 | M19: =4*40 -> 160 | O19: 0 | P19: 0
A20: 24 X 30 Disap'r Leg'd: NRT/NLT Symbol | C20: 1 | M20: =6*40 -> 240 | O20: 0 | P20: 0
A21: 24 X 30 Disap'r Leg'd "No Exit" | C21: 1 | M21: =2*40 -> 80 | O21: 0 | P21: 0
A22: 24 X 30 Disap'r Leg'd "open"/ "closed" | C22: 1 | M22: 240 | O22: 0 | P22: 0
A23: 36" x 72" "KEEP RIGHT" | C23: 1 | M23: =85*4 -> 340 | O23: =M23*B23 -> 0 | P23: =C23*B23 -> 0
A24: 8' Illuminated Street Name Sign | C24: 2 | M24: 220
O25: =B25*M25 -> 0 | P25: 0
A26: insert lines here | M26: 0 | O26: =M26*B26 -> 0 | P26: =C26*B26 -> 0
I27: Total Openings | P27: =SUM(P1:P26) -> 0
G28: Total Steady Watts | P28: =SUM(O4:O26) -> 0

Sheet Incandescent State Wide
A1: 8" SIGNALS (cyclic)
A2: ITEM | B2: QTY | C2: FACES | D2: COLORS | E2: WATTS EACH | F2: TOTAL OPENINGS | G2: TOTAL WATTS
A3: 4W-3C | C3: 4 | D3: 3 | E3: 69 | F3: =B3*D3*C3 -> 0 | G3: =B3*D3*C3*E3 -> 0
A4: 3W-3C | C4: 3 | D4: 3 | E4: 69 | F4: 0 | G4: 0
A5: 2W-3C | C5: 2 | D5: 3 | E5: 69 | F5: 0 | G5: 0
A6: 1W-3C | C6: 1 | D6: 3 | E6: 69 | F6: 0 | G6: 0
A7: 4W-1C | C7: 4 | D7: 1 | E7: 69 | F7: 0 | G7: 0
A8: 3W-1C | C8: 3 | D8: 1 | E8: 69 | F8: 0 | G8: 0
A9: 1W-1C | C9: 1 | D9: 1 | E9: 69 | F9: 0 | G9: 0
A10: 1W-1C Sign Optical 8" | C10: 1 | D10: 1 | E10: 69 | F10: 0 | G10: 0
A11: 4th Level L/RTGA | C11: 1 | D11: 4 | E11: 69 | F11: 0 | G11: 0
A12: DOG HOUSE | C12: 1 | D12: 5 | E12: 69 | F12: 0 | G12: 0
A13: insert lines here
A14: 12" SIGNALS (cyclic)
A15: ITEM | B15: QTY | C15: FACES | D15: COLORS | E15: WATTS EACH | F15: TOTAL OPENINGS | G15: TOTAL WATTS
A16: 4W-3C | C16: 4 | D16: 3 | E16: 150 | F16: =B16*D16*C16 -> 0 | G16: =B16*D16*C16*E16 -> 0
A17: 3W-3C | C17: 3 | D17: 3 | E17: 150 | F17: 0 | G17: 0
A18: 2W-3C | C18: 2 | D18: 3 | E18: 150 | F18: 0 | G18: 0
A19: 1W-3C | C19: 1 | D19: 3 | E19: 150 | F19: 0 | G19: 0
A20: 4W-1C | C20: 4 | D20: 1 | E20: 150 | F20: 0 | G20: 0
A21: 3W-1C | C21: 3 | D21: 1 | E21: 150 | F21: 0 | G21: 0
A22: 1W-1C | C22: 1 | D22: 1 | E22: 150 | F22: 0 | G22: 0
A23: 1W-1C Sign Optical 12" | C23: 1 | D23: 1 | E23: 150 | F23: 0 | G23: 0
A24: 4th Level L/RTGA | C24: 1 | D24: 4 | E24: 150 | F24: 0 | G24: 0
A25: DOG HOUSE | C25: 1 | D25: 5 | E25: 150 | F25: 0 | G25: 0
A26: 1W-2C (PED) | C26: 1 | D26: 2 | E26: 100 | F26: 0 | G26: 0
A27: 2W-2C (PED) | C27: 2 | D27: 2 | E27: 100 | F27: 0 | G27: 0
A28: insert lines here
A29: ILLUMINATED SIGNS (steady)
A30: ITEM | B30: QTY | C30: FACES | E30: WATTS EACH | F30: TOTAL OPENINGS | G30: TOTAL WATTS
A31: 12 x 27 (Single Direction) | C31: 1 | E31: 100 | F31: =B31*C31 -> 0 | G31: =B31*E31 -> 0
A32: 12 x 27 (Two Directions) | C32: 2 | E32: 200 | F32: 0 | G32: 0
A33: 12 x 27 (Three Directions) | C33: 3 | E33: 200 | F33: 0 | G33: 0
A34: 12 x 27 (Four Directions) | C34: 4 | E34: 200 | F34: 0 | G34: 0
A35: 24" X 30" Two Way CS (Single Legend) | C35: 1 | E35: 200 | F35: =B35*C35 -> 0 | G35: =B35*E35 -> 0
A36: 24" X 30" Two Way CS (Two Legends) | C36: 2 | E36: 200 | F36: =B36*C36 -> 0 | G36: =B36*E36 -> 0
A37: 24" X 30" Four Way CS (Two Legends) | C37: 2 | E37: 250 | F37: 0 | G37: 0
A38: 24" X 30" Four Way CS (Three Legends) | C38: 3 | E38: 250 | F38: 0 | G38: 0
A39: 24" X 30" Four Way CS (Four Legends) | C39: 4 | E39: 250 | F39: 0 | G39: 0
A40: 36" X 36" Two Way CS (Single Legend) | C40: 1 | E40: 200 | F40: 0 | G40: 0
A41: 36" X 36" Two Way CS (Two Legends) | C41: 2 | E41: 200 | F41: 0 | G41: 0
A42: 36" X 36" Four Way CS (Two Legends) | C42: 2 | E42: 250 | F42: 0 | G42: 0
A43: 36" X 36" Four Way CS (Three Legends) | C43: 3 | E43: 250 | F43: 0 | G43: 0
A44: 36" X 36" Four Way CS (Four Legends) | C44: 4 | E44: 250 | F44: =B44*C44 -> 0 | G44: =B44*E44 -> 0
A45: 24 X 30 Disap'r Leg'd "No Turn on Red" | C45: 1 | E45: =4*40 -> 160 | F45: 0 | G45: 0
A46: 24 X 30 Disap'r Leg'd: NRT/NLT Symbol | C46: 1 | E46: =6*40 -> 240 | F46: 0 | G46: 0
A47: 24 X 30 Disap'r Leg'd "No Exit" | C47: 1 | E47: =2*40 -> 80 | F47: 0 | G47: 0
A48: 24 X 30 Disap'r Leg'd "open"/ "closed" | C48: 1 | E48: =6*40 -> 240 | F48: 0 | G48: 0
A49: 36" x 72" "KEEP RIGHT" | C49: 1 | E49: =85*4 -> 340 | F49: 0 | G49: 0
A50: 8' Illuminated Street Name Sign | C50: 2 | E50: 220 | F50: =B50*C50 -> 0 | G50: =B50*E50 -> 0
A51: insert lines here | E51: 0 | F51: =B51*C51 -> 0 | G51: =B51*E51 -> 0
D52: TOTAL OPENINGS | G52: =SUM(F3:F13,F16:F28,F31:F51) -> 0
D53: TOTAL CYCLIC WATTS | G53: =SUM(G3:G13,G16:G28) -> 0
D54: TOTAL STEADY WATTS | G54: =SUM(G31:G51) -> 0

Sheet Detroit
A1: 8" SIGNALS (cyclic)
A2: ITEM | B2: QTY | C2: FACES | D2: COLORS | E2: WATTS | F2: OPENINGS | G2: TOTAL
A3: 4W-3C | C3: 4 | D3: 3 | E3: 60 | F3: =B3*D3*C3 -> 0 | G3: =B3*D3*C3*E3 -> 0
A4: 3W-3C | C4: 3 | D4: 3 | E4: 60 | F4: 0 | G4: 0
A5: 2W-3C | C5: 2 | D5: 3 | E5: 60 | F5: 0 | G5: 0
A6: 1W-3C | C6: 1 | D6: 3 | E6: 60 | F6: 0 | G6: 0
A7: 4W-1C | C7: 4 | D7: 1 | E7: 60 | F7: 0 | G7: 0
A8: 3W-1C | C8: 3 | D8: 1 | E8: 60 | F8: 0 | G8: 0
A9: 1W-1C | C9: 1 | D9: 1 | E9: 60 | F9: 0 | G9: 0
A10: 1W-1C Sign Optical 8" | C10: 1 | D10: 1 | E10: 60 | F10: 0 | G10: 0
A11: 4th Level L/RTGA | C11: 1 | D11: 4 | E11: 60 | F11: 0 | G11: 0
A12: DOG HOUSE | C12: 1 | D12: 5 | E12: 60 | F12: 0 | G12: 0
A13: insert lines here
A14: 12" SIGNALS (cyclic)
A15: ITEM | B15: QTY | C15: FACES | D15: COLORS | E15: WATTS | F15: OPENINGS | G15: TOTAL
A16: 4W-3C | C16: 4 | D16: 3 | E16: 150 | F16: =B16*D16*C16 -> 0 | G16: =B16*D16*C16*E16 -> 0
A17: 3W-3C | C17: 3 | D17: 3 | E17: 150 | F17: 0 | G17: 0
A18: 2W-3C | C18: 2 | D18: 3 | E18: 150 | F18: 0 | G18: 0
A19: 1W-3C | C19: 1 | D19: 3 | E19: 150 | F19: =B19*D19*C19 -> 0 | G19: =B19*D19*C19*E19 -> 0
A20: 4W-1C | C20: 4 | D20: 1 | E20: 150 | F20: 0 | G20: 0
A21: 3W-1C | C21: 3 | D21: 1 | E21: 150 | F21: 0 | G21: 0
A22: 1W-1C | C22: 1 | D22: 1 | E22: 150 | F22: 0 | G22: 0
A23: 1W-1C Sign Optical 12" | C23: 1 | D23: 1 | E23: 150 | F23: 0 | G23: 0
A24: 4th Level L/RTGA | C24: 1 | D24: 4 | E24: 150 | F24: 0 | G24: 0
A25: DOG HOUSE | C25: 1 | D25: 5 | E25: 150 | F25: 0 | G25: 0
A26: 1W-2C (PED) | C26: 1 | D26: 2 | E26: 100 | F26: 0 | G26: 0
A27: 2W-2C (PED) | C27: 2 | D27: 2 | E27: 100 | F27: 0 | G27: 0
A28: insert lines here
A29: ILLUMINATED SIGNS (steady)
A30: ITEM | B30: QTY | C30: FACES | E30: WATTS | F30: OPENINGS | G30: TOTAL
A31: 12 x 27 (Single Direction) | C31: 1 | E31: 100 | F31: =C31*B31 -> 0 | G31: =B31*E31 -> 0
A32: 12 x 27 (Two Directions) | C32: 2 | E32: 200 | F32: 0 | G32: 0
A33: 12 x 27 (Three Directions) | C33: 3 | E33: 200 | F33: 0 | G33: 0
A34: 12 x 27 (Four Directions) | C34: 4 | E34: 200 | F34: 0 | G34: 0
A35: 24" X 30" Two Way CS (Single Legends) | C35: 1 | E35: 200 | F35: =B35*C35 -> 0 | G35: 0
A36: 24" X 30" Two Way CS (Two Legends) | C36: 2 | E36: 200 | F36: =B36*C36 -> 0 | G36: 0
A37: 24" X 30" Four Way CS (Single Legend) | C37: 1 | E37: 200 | F37: 0 | G37: 0
A38: 24" X 30" Four Way CS (Two Legends) | C38: 2 | E38: 200 | F38: 0 | G38: 0
A39: 24" X 30" Four Way CS (Three Legends) | C39: 3 | E39: 250 | F39: 0 | G39: 0
A40: 24" X 30" Four Way CS (Four Legends) | C40: 4 | E40: 250 | F40: 0 | G40: 0
A41: 36" X 36" Four Way CS (Single Legend) | C41: 1 | E41: 200 | F41: 0 | G41: 0
A42: 36" X 36" Four Way CS (Two Legends) | C42: 2 | E42: 200 | F42: 0 | G42: 0
A43: 36" X 36" Four Way CS (Three Legends) | C43: 3 | E43: 250 | F43: 0 | G43: 0
A44: 36" X 36" Four Way CS (Four Legends) | C44: 4 | E44: 250 | F44: 0 | G44: 0
A45: 24 X 30 Disap'r Leg'd "No Turn on Red" | C45: 1 | E45: =4*40 -> 160 | F45: 0 | G45: 0
A46: 24 X 30 Disap'r Leg'd: NRT/NLT Symbol | C46: 1 | E46: =6*40 -> 240 | F46: 0 | G46: 0
A47: 24 X 30 Disap'r Leg'd "No Exit" | C47: 1 | E47: =2*40 -> 80 | F47: 0 | G47: 0
A48: 24 X 30 Disap'r Leg'd "open"/ "closed" | C48: 1 | E48: 240 | F48: 0 | G48: 0
A49: 36" x 72" "KEEP RIGHT" | C49: 1 | E49: =85*4 -> 340 | F49: 0 | G49: 0
F50: 0 | G50: 0
A51: insert lines here | E51: 0 | F51: 0 | G51: 0
D52: TOTAL OPENINGS | G52: =SUM(F3:F13,F16:F28,F31:F51) -> 0
D53: TOTAL CYCLIC WATTS | G53: =SUM(G3:G13,G16:G28) -> 0
D54: TOTAL STEADY WATTS | G54: =SUM(G31:G51) -> 0

Sheet Others
A1: 8" SIGNALS (cyclic)
A2: ITEM | B2: QTY | C2: FACES | D2: COLORS | E2: WATTS | F2: OPENINGS | G2: TOTAL
A3: 4W-3C | C3: 4 | D3: 3 | E3: 67 | F3: =B3*D3*C3 -> 0 | G3: =B3*D3*C3*E3 -> 0
A4: 3W-3C | C4: 3 | D4: 3 | E4: 67 | F4: 0 | G4: 0
A5: 2W-3C | C5: 2 | D5: 3 | E5: 67 | F5: 0 | G5: 0
A6: 1W-3C | C6: 1 | D6: 3 | E6: 67 | F6: 0 | G6: 0
A7: 4W-1C | C7: 4 | D7: 1 | E7: 67 | F7: 0 | G7: 0
A8: 3W-1C | C8: 3 | D8: 1 | E8: 67 | F8: 0 | G8: 0
A9: 1W-1C | C9: 1 | D9: 1 | E9: 67 | F9: 0 | G9: 0
A10: 1W-1C Sign Optical 8" | C10: 1 | D10: 1 | E10: 67 | F10: 0 | G10: 0
A11: 4th Level L/RTGA | C11: 1 | D11: 4 | E11: 67 | F11: 0 | G11: 0
A12: DOG HOUSE | C12: 1 | D12: 5 | E12: 67 | F12: 0 | G12: 0
A13: insert lines here
A14: 12" SIGNALS (cyclic)
A15: ITEM | B15: QTY | C15: FACES | D15: COLORS | E15: WATTS | F15: OPENINGS | G15: TOTAL
A16: 4W-3C | C16: 4 | D16: 3 | E16: 150 | F16: =B16*D16*C16 -> 0 | G16: =B16*D16*C16*E16 -> 0
A17: 3W-3C | C17: 3 | D17: 3 | E17: 150 | F17: 0 | G17: 0
A18: 2W-3C | C18: 2 | D18: 3 | E18: 150 | F18: 0 | G18: 0
A19: 1W-3C | C19: 1 | D19: 3 | E19: 150 | F19: =B19*D19*C19 -> 0 | G19: =B19*D19*C19*E19 -> 0
A20: 4W-1C | C20: 4 | D20: 1 | E20: 150 | F20: 0 | G20: 0
A21: 3W-1C | C21: 3 | D21: 1 | E21: 150 | F21: 0 | G21: 0
A22: 1W-1C | C22: 1 | D22: 1 | E22: 150 | F22: 0 | G22: 0
A23: 1W-1C Sign Optical 12" | C23: 1 | D23: 1 | E23: 150 | F23: 0 | G23: 0
A24: 4th Level L/RTGA | C24: 1 | D24: 4 | E24: 150 | F24: 0 | G24: 0
A25: DOG HOUSE | C25: 1 | D25: 5 | E25: 150 | F25: 0 | G25: 0
A26: 1W-2C (PED) | C26: 1 | D26: 2 | E26: 100 | F26: 0 | G26: 0
A27: 2W-2C (PED) | C27: 2 | D27: 2 | E27: 100 | F27: 0 | G27: 0
A28: insert lines here
A29: ILLUMINATED SIGNS (steady)
A30: ITEM | B30: QTY | C30: FACES | E30: WATTS | F30: OPENINGS | G30: TOTAL
A31: 12 x 27 (Single Direction) | C31: 1 | E31: 100 | F31: =C31*B31 -> 0 | G31: =B31*E31 -> 0
A32: 12 x 27 (Two Directions) | C32: 2 | E32: 200 | F32: 0 | G32: 0
A33: 12 x 27 (Three Directions) | C33: 3 | E33: 200 | F33: 0 | G33: 0
A34: 12 x 27 (Four Directions) | C34: 4 | E34: 200 | F34: 0 | G34: 0
A35: 24" X 30" Two Way CS (Single Legends) | C35: 1 | E35: 200 | F35: =B35*C35 -> 0 | G35: 0
A36: 24" X 30" Two Way CS (Two Legends) | C36: 2 | E36: 200 | F36: =B36*C36 -> 0 | G36: 0
A37: 24" X 30" Four Way CS (Single Legend) | C37: 1 | E37: 200 | F37: 0 | G37: 0
A38: 24" X 30" Four Way CS (Two Legends) | C38: 2 | E38: 200 | F38: 0 | G38: 0
A39: 24" X 30" Four Way CS (Three Legends) | C39: 3 | E39: 250 | F39: 0 | G39: 0
A40: 24" X 30" Four Way CS (Four Legends) | C40: 4 | E40: 250 | F40: 0 | G40: 0
A41: 36" X 36" Four Way CS (Single Legend) | C41: 1 | E41: 200 | F41: 0 | G41: 0
A42: 36" X 36" Four Way CS (Two Legends) | C42: 2 | E42: 200 | F42: 0 | G42: 0
A43: 36" X 36" Four Way CS (Three Legends) | C43: 3 | E43: 250 | F43: 0 | G43: 0
A44: 36" X 36" Four Way CS (Four Legends) | C44: 4 | E44: 250 | F44: 0 | G44: 0
A45: 24 X 30 Disap'r Leg'd "No Turn on Red" | C45: 1 | E45: =4*40 -> 160 | F45: 0 | G45: 0
A46: 24 X 30 Disap'r Leg'd: NRT/NLT Symbol | C46: 1 | E46: =6*40 -> 240 | F46: 0 | G46: 0
A47: 24 X 30 Disap'r Leg'd "No Exit" | C47: 1 | E47: =2*40 -> 80 | F47: 0 | G47: 0
A48: 24 X 30 Disap'r Leg'd "open"/ "closed" | C48: 1 | E48: 240 | F48: 0 | G48: 0
A49: 36" x 72" "KEEP RIGHT" | C49: 1 | E49: =85*4 -> 340 | F49: 0 | G49: 0
F50: 0 | G50: 0
A51: insert lines here | E51: 0 | F51: 0 | G51: 0
D52: TOTAL OPENINGS | G52: =SUM(F3:F13,F16:F28,F31:F51) -> 0
D53: TOTAL CYCLIC WATTS | G53: =SUM(G3:G13,G16:G28) -> 0
D54: TOTAL STEADY WATTS | G54: =SUM(G31:G51) -> 0

Sheet Design Constants (hidden)
A2: Design Constants | D2: Span Wire Limits | I2: Minimum Vertical Clearance
D3: SIG-020/021 | E3: -
A4: Design Constant | B4: Value | D4: Span Length Lower Bound (ft) | E4: Span Length Upper Bound (ft) | F4: Generalized Load Limit (lbs) | G4: Perp. Wind Area Limit (sft) | I4: Tether Condition | J4: Minimum Vertical Clearance (ft)
A5: Min. Stem Length (ft) | B5: =10/12 -> 0.8333333333 | D5: 0 | E5: 100 | F5: 328 | G5: 58 | I5: BOT. TETHERED | J5: 18
A6: Min. Stem Top Tethered (ft) | B6: =2 -> 2 | D6: 101 | E6: 120 | F6: 328 | G6: 58 | I6: TOP TETHERED | J6: 17
A7: Min. Sag (Simple Spans) | B7: 0.05 | D7: 121 | E7: 150 | F7: 328 | G7: 58 | I7: NOT TETHERED | J7: 17
A8: Min. Sag (Tied-off Spans) | B8: 0.065 | D8: 151 | E8: 175 | F8: 370 | G8: 58
A9: Span Wire Weight (plf) | B9: 1.155 | D9: 176 | E9: 200 | F9: 370 | G9: 58
D12: SIG-022
D13: Field Drilled Hole Size | E13: Span Length Lower Bound (ft) | F13: Span Length Upper Bound (ft) | G13: Generalized Load Limit (lbs) | H13: Perp. Wind Area Limit (sft)
D14: No Hole | E14: 0 | F14: 100 | G14: 171 | H14: 27.4
D15: No Hole | E15: 101 | F15: 120 | G15: 171 | H15: 27.4
D16: No Hole | E16: 121 | F16: 150 | G16: 171 | H16: 27.4
D17: 3.5" Dia. | E17: =E14 -> 0 | F17: =F14 -> 100 | G17: 136.8 | H17: 21.9
D18: 3.5" Dia. | E18: =E15 -> 101 | F18: 120 | G18: 136.8 | H18: 21.9
D19: 3.5" Dia. | E19: 121 | F19: 150 | G19: 136.8 | H19: 21.9
D20: 4.5" Dia. | E20: 0 | F20: 100 | G20: 124 | H20: 19.9
D21: 4.5" Dia. | E21: 101 | F21: 120 | G21: 124 | H21: 19.9
D22: 4.5" Dia. | E22: 121 | F22: 150 | G22: 124 | H22: 19.9

Sheet Sample Configurations (hidden)
C1: Diagonal Simple Span | J1: Diagonal 4-way Span | Q1: Dual C-Span | X1: Box Span | AE1: Suspended Box Span | AL1: Five Span Box | AS1: S-Span | AZ1: V-Span | BG1: Z-Span
A2: Span Presets | C2: Point Name | D2: Item | E2: Quadrant | F2: Northing | G2: Easting | H2: Top of Foundation | J2: Point Name | K2: Item | L2: Quadrant | M2: Northing | N2: Easting | O2: Top of Foundation | Q2: Point Name | R2: Item | S2: Quadrant | T2: Northing | U2: Easting | V2: Top of Foundation | X2: Point Name | Y2: Item | Z2: Quadrant | AA2: Northing | AB2: Easting | AC2: Top of Foundation | AE2: Point Name | AF2: Item | AG2: Quadrant | AH2: Northing | AI2: Easting | AJ2: Top of Foundation | AL2: Point Name | AM2: Item | AN2: Quadrant | AO2: Northing | AP2: Easting | AQ2: Top of Foundation | AS2: Point Name | AT2: Item | AU2: Quadrant | AV2: Northing | AW2: Easting | AX2: Top of Foundation | AZ2: Point Name | BA2: Item | BB2: Quadrant | BC2: Northing | BD2: Easting | BE2: Top of Foundation | BG2: Point Name | BH2: Item | BI2: Quadrant | BJ2: Northing | BK2: Easting | BL2: Top of Foundation
A3: =TRANSPOSE(_xlfn._xlws.FILTER(1:1,1:1<>"")) -> Diagonal Simple Span | C3: 1 | D3: STEEL POLE | E3: SW | F3: 225210.62 | G3: 13436129.93 | H3: 600 | J3: 1 | K3: TIE-OFF JUNC. | L3: SW | M3: 224950 | N3: 13435950 | O3: - | Q3: 1 | R3: STEEL POLE | S3: NE | T3: 225210.62 | U3: 13436129.93 | V3: 582.21 | X3: 1 | Y3: STEEL POLE | Z3: NW | AA3: 224925 | AB3: 13435900 | AC3: 875 | AE3: 1 | AF3: TIE-OFF JUNCT. | AG3: NW | AH3: 224925 | AI3: 13435900 | AJ3: - | AL3: 1 | AM3: STEEL POLE | AN3: S | AO3: 224900 | AP3: 13436000 | AQ3: 600 | AS3: 1 | AT3: STEEL POLE | AU3: NE | AV3: 225225 | AW3: 13436040 | AX3: 600 | AZ3: 1 | BA3: STEEL POLE | BB3: NE | BC3: 225050 | BD3: 13436000 | BE3: 600 | BG3: 1 | BH3: STEEL POLE | BI3: N | BJ3: 225100 | BK3: 13436000 | BL3: 600
A4: Diagonal 4-way Span | C4: 2 | D4: STEEL POLE | E4: NE | F4: 225097.34 | G4: 13436048.61 | H4: 600 | J4: 2 | K4: TIE-OFF JUNC. | L4: NE | M4: 225050 | N4: 13436050 | O4: - | Q4: 2 | R4: STEEL POLE | S4: SE | T4: 225097.34 | U4: 13436048.61 | V4: 582.37 | X4: 2 | Y4: STEEL POLE | Z4: SW | AA4: 224835.3906 | AB4: 13435818.69 | AC4: 875 | AE4: 2 | AF4: STEEL POLE | AG4: SW | AH4: 224835.3906 | AI4: 13435818.69 | AJ4: 876 | AL4: 2 | AM4: STEEL POLE | AN4: SW | AO4: 224969 | AP4: 13435905 | AQ4: 600 | AS4: 2 | AT4: STEEL POLE | AU4: NW | AV4: 225075 | AW4: 13435960 | AX4: 600 | AZ4: 2 | BA4: STEEL POLE | BB4: NW | BC4: 225050 | BD4: 13435900 | BE4: 600 | BG4: 2 | BH4: STEEL POLE | BI4: NE | BJ4: 225100 | BK4: 13436100 | BL4: 600
A5: Dual C-Span | J5: 3 | K5: STEEL POLE | L5: SW | M5: 224925 | N5: 13435965 | O5: 600 | Q5: 3 | R5: STEEL POLE | S5: S MEDIAN | T5: 225109.66 | U5: 13435915.26 | V5: 582.3 | X5: 3 | Y5: STEEL POLE | Z5: SE | AA5: 224801.5639 | AB5: 13435957.63 | AC5: 875 | AE5: 3 | AF5: TIE-OFF JUNCT. | AG5: SE | AH5: 224801.5639 | AI5: 13435957.63 | AJ5: - | AL5: 3 | AM5: STEEL POLE | AN5: NW | AO5: 225081 | AP5: 13435941 | AQ5: 600 | AS5: 3 | AT5: STEEL POLE | AU5: SW | AV5: 224950 | AW5: 13435960 | AX5: 600 | AZ5: 3 | BA5: STEEL POLE | BB5: SE | BC5: 224975 | BD5: 13435975 | BE5: 600 | BG5: 3 | BH5: STEEL POLE | BI5: SE | BJ5: 225000 | BK5: 13436100 | BL5: 600
A6: Box Span | J6: 4 | K6: STEEL POLE | L6: SW | M6: 224950 | N6: 13435910 | O6: 600 | Q6: 4 | R6: STEEL POLE | S6: S MEDIAN | T6: 225106.21 | U6: 13435810.9 | V6: 581.25 | X6: 4 | Y6: STEEL POLE | Z6: NE | AA6: 224915.6958 | AB6: 13436078.17 | AC6: 875 | AE6: 4 | AF6: STEEL POLE | AG6: NE | AH6: 224915.6958 | AI6: 13436078.17 | AJ6: 876 | AL6: 4 | AM6: STEEL POLE | AN6: NE | AO6: 225081 | AP6: 13436059 | AQ6: 600 | AS6: 4 | AT6: STEEL POLE | AU6: NE | AV6: 225075 | AW6: 13436040 | AX6: 600 | BG6: 4 | BH6: STEEL POLE | BI6: S | BJ6: 225000 | BK6: 13436000 | BL6: 600
A7: Suspended Box Span | J7: 5 | K7: STEEL POLE | L7: NE | M7: 225050 | N7: 13436075 | O7: 600 | Q7: 5 | R7: STEEL POLE | S7: SW | T7: 225100.63 | U7: 13435682.43 | V7: 582.35 | AE7: 5 | AF7: STEEL POLE | AG7: NW | AH7: 224965 | AI7: 13435883.52 | AJ7: 876 | AL7: 5 | AM7: STEEL POLE | AN7: SE | AO7: 224969 | AP7: 13436095 | AQ7: 600 | AS7: 5 | AT7: STEEL POLE | AU7: SE | AV7: 224900 | AW7: 13436040 | AX7: 600 | BG7: 5 | BH7: STEEL POLE | BI7: W | BJ7: 225050 | BK7: 13435900 | BL7: 600
A8: Five Span Box | J8: 6 | K8: STEEL POLE | L8: NE | M8: 225075 | N8: 13436050 | O8: 600 | Q8: 6 | R8: STEEL POLE | S8: NW | T8: 225175.73 | U8: 13435715.24 | V8: 583.1 | AE8: 6 | AF8: STEEL POLE | AG8: SE | AH8: 224783.5785 | AI8: 13435962.41 | AJ8: 876 | AS8: 6 | AT8: STEEL POLE | AU8: SW | AV8: 224750 | AW8: 13435960 | AX8: 600 | BG8: 6 | BH8: STEEL POLE | BI8: SW | BJ8: 224900 | BK8: 13435900 | BL8: 600
A9: S-Span | Q9: 7 | R9: STEEL POLE | S9: N MEDIAN | T9: 225179.25 | U9: 13435847.01 | V9: 581.55
A10: V-Span | Q10: 8 | R10: STEEL POLE | S10: N MEDIAN | T10: 225176.79 | U10: 13435961.98 | V10: 582.53
A11: Z-Span | Q11: 9 | R11: TIE-OFF JUNCT. | S11: SW | T11: 225106.7292 | U11: 13435690.37 | V11: -
Q12: 10 | R12: TIE-OFF JUNCT. | S12: S MEDIAN | T12: 225116.21 | U12: 13435805 | V12: -
Q13: 11 | R13: TIE-OFF JUNCT. | S13: NE | T13: 225200.62 | U13: 13436114.62 | V13: -
C35: Span | D35: Point A | E35: Point B | F35: Main Span A (TO Span only) | G35: Main Span B (TO Span only) | H35: Grade Centerline Elevation (ft) | J35: Span | K35: Point A | L35: Point B | M35: Main Span A (TO Span only) | N35: Main Span B (TO Span only) | O35: Grade Centerline Elevation (ft) | Q35: Span | R35: Point A | S35: Point B | T35: Main Span A (TO Span only) | U35: Main Span B (TO Span only) | V35: Grade Centerline Elevation (ft) | X35: Span | Y35: Point A | Z35: Point B | AA35: Main Span A (TO Span only) | AB35: Main Span B (TO Span only) | AC35: Grade Centerline Elevation (ft) | AE35: Span | AF35: Point A | AG35: Point B | AH35: Main Span A (TO Span only) | AI35: Main Span B (TO Span only) | AJ35: Grade Centerline Elevation (ft) | AL35: Span | AM35: Point A | AN35: Point B | AO35: Main Span A (TO Span only) | AP35: Main Span B (TO Span only) | AQ35: Grade Centerline Elevation (ft) | AS35: Span | AT35: Point A | AU35: Point B | AV35: Main Span A (TO Span only) | AW35: Main Span B (TO Span only) | AX35: Grade Centerline Elevation (ft) | AZ35: Span | BA35: Point A | BB35: Point B | BC35: Main Span A (TO Span only) | BD35: Main Span B (TO Span only) | BE35: Grade Centerline Elevation (ft) | BG35: Span | BH35: Point A | BI35: Point B | BJ35: Main Span A (TO Span only) | BK35: Main Span B (TO Span only) | BL35: Grade Centerline Elevation (ft)
C36: 1 | D36: 1 | E36: 2 | F36: - | G36: - | H36: 600 | J36: 1 | K36: 1 | L36: 2 | M36: - | N36: - | O36: 600 | Q36: 1 | R36: 9 | S36: 10 | T36: - | U36: - | V36: 583 | X36: 1 | Y36: 1 | Z36: 2 | AA36: - | AB36: - | AC36: 873 | AE36: 1 | AF36: 1 | AG36: 2 | AH36: - | AI36: - | AJ36: 874 | AL36: 1 | AM36: 1 | AN36: 2 | AO36: - | AP36: - | AQ36: 600 | AS36: 1 | AT36: 1 | AU36: 2 | AV36: - | AW36: - | AX36: 600 | AZ36: 1 | BA36: 1 | BB36: 2 | BC36: - | BD36: - | BE36: 600 | BG36: 1 | BH36: 1 | BI36: 2 | BJ36: - | BK36: - | BL36: 600
J37: TO1-1 | K37: 1 | L37: 3 | M37: 1 | N37: - | O37: 600 | Q37: 2 | R37: 9 | S37: 6 | T37: - | U37: - | V37: 583 | X37: 2 | Y37: 2 | Z37: 3 | AA37: - | AB37: - | AC37: 873 | AE37: 2 | AF37: 2 | AG37: 3 | AH37: - | AI37: - | AJ37: 874 | AL37: 2 | AM37: 2 | AN37: 3 | AO37: - | AP37: - | AQ37: 600 | AS37: 2 | AT37: 2 | AU37: 3 | AV37: - | AW37: - | AX37: 600 | AZ37: 2 | BA37: 2 | BB37: 3 | BC37: - | BD37: - | BE37: 600 | BG37: 2 | BH37: 1 | BI37: 3 | BJ37: - | BK37: - | BL37: 600
J38: TO2-1 | K38: 1 | L38: 4 | M38: 1 | N38: - | O38: 600 | Q38: 3 | R38: 10 | S38: 7 | T38: - | U38: - | V38: 583 | X38: 3 | Y38: 3 | Z38: 4 | AA38: - | AB38: - | AC38: 873 | AE38: 3 | AF38: 3 | AG38: 4 | AH38: - | AI38: - | AJ38: 874 | AL38: 3 | AM38: 3 | AN38: 4 | AO38: - | AP38: - | AQ38: 600 | AS38: 3 | AT38: 3 | AU38: 4 | AV38: - | AW38: - | AX38: 600 | BG38: 3 | BH38: 3 | BI38: 4 | BJ38: - | BK38: - | BL38: 600
J39: TO1-2 | K39: 2 | L39: 5 | M39: 1 | N39: - | O39: 600 | Q39: TO1-9 | R39: 9 | S39: 5 | T39: 1 | U39: 2 | V39: 583 | X39: 4 | Y39: 4 | Z39: 1 | AA39: - | AB39: - | AC39: 873 | AE39: 4 | AF39: 4 | AG39: 1 | AH39: - | AI39: - | AJ39: 874 | AL39: 4 | AM39: 4 | AN39: 5 | AO39: - | AP39: - | AQ39: 600 | AS39: 4 | AT39: 4 | AU39: 5 | AV39: - | AW39: - | AX39: 600 | BG39: 4 | BH39: 1 | BI39: 5 | BJ39: - | BK39: - | BL39: 600
J40: TO2-2 | K40: 2 | L40: 6 | M40: 1 | N40: - | O40: 600 | Q40: TO1-10 | R40: 10 | S40: 4 | T40: 1 | U40: 3 | V40: 583 | AE40: TO1-1 | AF40: 1 | AG40: 5 | AH40: 1 | AI40: 4 | AJ40: 874 | AL40: 5 | AM40: 1 | AN40: 5 | AO40: - | AP40: - | AQ40: 600 | AS40: 5 | AT40: 5 | AU40: 6 | AV40: - | AW40: - | AX40: 600 | BG40: 5 | BH40: 5 | BI40: 6 | BJ40: - | BK40: - | BL40: 600
Q41: 4 | R41: 3 | S41: 8 | T41: - | U41: - | V41: 583 | AE41: TO1-3 | AF41: 3 | AG41: 6 | AH41: 2 | AI41: 3 | AJ41: 874
Q42: 5 | R42: 8 | S42: 11 | T42: - | U42: - | V42: 583
Q43: 6 | R43: 11 | S43: 2 | T43: - | U43: - | V43: 583
Q44: TO1-11 | R44: 11 | S44: 1 | T44: 5 | U44: 6 | V44: 583

Sheet Main Span Template (hidden)
A1: Span Design: | C1: =MID(CELL("filename",A1),FIND("]",CELL("filename",A1))+1,255) -> Main Span Template
A2: MDOT Traffic and Safety Support Area
I3: Span | N3: At Point A | S3: At Point B
H4: Horizontal Force, FH | I4: 1000 | J4: lbs | M4: Point | N4: =VLOOKUP($C$1,TEXT(SpanConfig[],0),2,FALSE) ->  | R4: Point | S4: =VLOOKUP($C$1,TEXT(SpanConfig[],0),3,FALSE) -> 
H5: Tether Condition | I5: NOT TETHERED | M5: POCH ** | N5: 30 | O5: ft | P5: =IF(N9="ERROR","Lower POCH","OK") -> OK | R5: POCH ** | S5: 30 | T5: ft | U5: =IF(S9="ERROR","Lower POCH","OK") -> OK
H6: Minimum stem | I6: =MIN(T26:T425) -> 0 | J6: ft | K6: =IF(I6<INDEX(DesignConstants[Value],MATCH(IF(I5="TOP TETHERED","Min. Stem Top Tethered (ft)","Min. Stem Length (ft)"),DesignConstants[Design Constant],0)),"Lengthen stem","OK") -> Lengthen stem | M6: POCH ** | N6: =IFERROR(INT(N5)&"'-"&ROUND((N5-INT(N5))*12,0)&"""","-") -> 30'-0" | R6: POCH ** | S6: =IFERROR(INT(S5)&"'-"&ROUND((S5-INT(S5))*12,0)&"""","-") -> 30'-0"
H7: Minimum stem | I7: =INT(I6)&"'-"&ROUND((I6-INT(I6))*12,0)&"""" -> 0'-0" | M7: Base of Pole Elevation | N7: =IFERROR(INDEX(SpanConfig[Pole A Base Elevation (ft)],MATCH($C$1,TEXT(SpanConfig[Span],0),0)),"-") -> - | O7: ft | R7: Base of Pole Elevation | S7: =IFERROR(INDEX(SpanConfig[Pole B Base Elevation (ft)],MATCH($C$1,TEXT(SpanConfig[Span],0),0)),"-") -> - | T7: ft
H8: Span Length | I8: =IFERROR(INDEX(SpanConfig[Span Length (ft)],MATCH($C$1,TEXT(SpanConfig[Span],0),0)),"-") -> - | J8: ft | M8: Connection Height * | N8: =IFERROR(N5-($I$9-N7),INDIRECT("'TO1-"&N$4&"'!N15")) ->  | O8: ft | R8: Connection Height * | S8: =IFERROR(S5-($I$9-S7),INDIRECT("'TO1-"&S$4&"'!N15")) ->  | T8: ft
H9: Grade Centerline Elevation | I9: =IFERROR(INDEX(SpanConfig[Grade Centerline Elevation (ft)],MATCH($C$1,TEXT(SpanConfig[Span],0),0)),"-") -> - | J9: ft | M9: Pole Required Length | N9: =_xlfn.IFS(N5="-","-",N5>40-1.5,"ERROR",N5>36-1.6,40,N5>30-1.5,36,TRUE,30) -> 36 | O9: ft | R9: Pole Required Length | S9: =_xlfn.IFS(S5="-","-",S5>40-1.5,"ERROR",S5>36-1.6,40,S5>30-1.5,36,TRUE,30) -> 36 | T9: ft
H10: Req'd Vertical Clearance | I10: =INDEX(MinVertClearance[Minimum Vertical Clearance (ft)],MATCH($I$5,MinVertClearance[Tether Condition],0)) -> 17 | J10: ft | M10: Tension | N10: =IFERROR((I4^2+N15^2)^0.5,"-") -> - | O10: lbs | P10: =IF(OR(N10>1500,N10/I4>1.2),"Check tension","OK") ->  | R10: Tension | S10: =IFERROR((I4^2+S15^2)^0.5,"-") -> - | T10: lbs | U10: =IF(OR(S10>1500,S10/I4>1.2),"Check tension","OK") -> 
H11: Conn. Height Difference | I11: =IFERROR(S8-N8,"-") -> - | J11: ft | M11: TO1 Span Length | N11: =IFERROR(VLOOKUP("TO1-"&N$4,SpanConfig[],11,FALSE),"-") -> - | O11: ft | R11: TO1 Span Length | S11: =IFERROR(VLOOKUP("TO1-"&S$4,SpanConfig[],11,FALSE),"-") -> - | T11: ft
H12: Total Weight | I12: =SUM(K26:L425) -> 462 | J12: lbs | M12: TO2 Span Length | N12: =IFERROR(VLOOKUP("TO2-"&N$4,SpanConfig[],11,FALSE),"-") -> - | O12: ft | R12: TO2 Span Length | S12: =IFERROR(VLOOKUP("TO2-"&S$4,SpanConfig[],11,FALSE),"-") -> - | T12: ft
H13: Span Moment about Point A | I13: =IFERROR(SUM(M26:N425)+I4*I11,"-") -> - | J13: lbs-ft | M13: TO1 Conn. Height | N13: =IFERROR(INDIRECT("'TO1-"&N$4&"'!$N$24"),"-") -> - | O13: ft | R13: TO1 Conn. Height | S13: =IFERROR(INDIRECT("'TO1-"&S$4&"'!$N$24"),"-") -> - | T13: ft
H14: Min Vertical Clearance | I14: =IFERROR(MIN(V26:V425),"-") -> - | J14: ft | K14: =IF(I14<I10,"Check tension","OK") -> OK | M14: TO2 Conn. Height | N14: =IFERROR(INDIRECT("'TO2-"&N$4&"'!$N$24"),"-") -> - | O14: ft | R14: TO2 Conn. Height | S14: =IFERROR(INDIRECT("'TO2-"&S$4&"'!$N$24"),"-") -> - | T14: ft
H15: Maximum stem | I15: =MAX(T26:T425) -> 0 | J15: ft | M15: Vertical Force | N15: =IFERROR(I12-S15,"-") -> - | O15: lbs | R15: Vertical Force | S15: =IFERROR(I13/I8,"-") -> - | T15: lbs
H16: Maximum stem | I16: =INT(I15)&"'-"&ROUND((I15-INT(I15))*12,0)&"""" -> 0'-0" | M16: Shaft Moment | N16: =IF(ISNUMBER(N7),I4*N5,"-") -> - | O16: lbs-ft | R16: Shaft Moment | S16: =IF(ISNUMBER(S7),I4*S5,"-") -> - | T16: lbs-ft
H17: Sag | I17: =IFERROR(MAX(R26:R425-Q26:Q425)/I8,"-") -> - | K17: =IF(ROUND(I17,4)<INDEX(DesignConstants[Value],MATCH(IF(I18>I8,"Min. Sag (Tied-off Spans)","Min. Sag (Simple Spans)"),DesignConstants[Design Constant],0)),"Check tension","OK") ->  | M17: Shaft Moment | N17: =IF(ISNUMBER(N7),N16/1000,"-") -> - | O17: kips-ft | R17: Shaft Moment | S17: =IF(ISNUMBER(S7),S16/1000,"-") -> - | T17: kips-ft
H18: Sag Span Length | I18: =MAX(N11:N12)+I8+MAX(S11:S12) ->  | J18: ft
H19: Design Standard | I19: SIG-020/021 | M19: * Connection height measured from grade centerline to POCH on pole or to tie off connection height
H20: Field Drilled Hole Size **** | I20: - | M20: ** POCH measured from top of foundation
H21: Total Attachment Weight ***** | I21: =SUM(K26:K425) -> 0 | J21: lbs | K21: =IF(I21>_xlfn.IFS(I19="SIG-020/021",INDEX(SIG020021Limits[],MATCH(I8,SIG020021Limits[Span Length Lower Bound (ft)],1),MATCH("Generalized Load Limit (lbs)",SIG020021Limits[#Headers],0)),I19="SIG-022",INDEX(SIG022Limits[],MATCH(I20,SIG022Limits[Field Drilled Hole Size],0),MATCH("Generalized Load Limit (lbs)",SIG022Limits[#Headers],0)),TRUE,10000),"Reduce weight on span","OK") ->  | M21: *** Reference line is the linear interpolation between poles
H22: Perpendicular Wind Area ***** | I22: =SUM(J26:J425) -> 0 | J22: sft | K22: =IF(I22>_xlfn.IFS(I19="SIG-020/021",INDEX(SIG020021Limits[],MATCH(I8,SIG020021Limits[Span Length Lower Bound (ft)],1),MATCH("Perp. Wind Area Limit (sft)",SIG020021Limits[#Headers],0)),I19="SIG-022",INDEX(SIG022Limits[],MATCH(I20,SIG022Limits[Field Drilled Hole Size],0),MATCH("Perp. Wind Area Limit (sft)",SIG022Limits[#Headers],0)),TRUE,10000),"Reduce wind area","OK") ->  | M22: **** Applies if designing for criteria in SIG-022 only
M23: ***** Span weight and wind area checks are applicable only for steel strain poles included in standards SIG-020, SIG-021, and SIG-022
A25: Distance Along Span (ft) | B25: Head Type | C25: or Parts: | D25: pt. 1 | E25: pt. 2 | F25: pt. 3 | G25: pt. 4 | H25: pt. 5 | I25: pt. 6 | J25: Wind Area (sft) | K25: Head Weight (lbs) | L25: Span&Cable Weight (lbs) | M25: Head Moment (lbs-ft) | N25: Span Moment (lbs-ft) | O25: Vertical Force (lbs) | P25: Sag (ft) | Q25: Height (ft) | R25: Reference Line Height (ft)*** | S25: Equipment Height (ft) | T25: Stem Length (ft) | U25: Stem Length (ft-in) | V25: Bottom Height (ft) | W25: Required Vertical Clearance
A26: 1 | J26: =SUM(IF(B26="",0,INDEX(SignalHeads[Perp. Wind Area (sft)],MATCH(B26,SignalHeads[Code],0))),IF(D26="",0,INDEX(SignalHeads[Perp. Wind Area (sft)],MATCH(D26,SignalHeads[Code],0))),IF(E26="",0,INDEX(SignalHeads[Perp. Wind Area (sft)],MATCH(E26,SignalHeads[Code],0))),IF(F26="",0,INDEX(SignalHeads[Perp. Wind Area (sft)],MATCH(F26,SignalHeads[Code],0))),IF(G26="",0,INDEX(SignalHeads[Perp. Wind Area (sft)],MATCH(G26,SignalHeads[Code],0))),IF(H26="",0,INDEX(SignalHeads[Perp. Wind Area (sft)],MATCH(H26,SignalHeads[Code],0))),IF(I26="",0,INDEX(SignalHeads[Perp. Wind Area (sft)],MATCH(I26,SignalHeads[Code],0)))) -> 0 | K26: =SUM(IF(B26="",0,INDEX(SignalHeads[Weight*** (lbs)],MATCH(B26,SignalHeads[Code],0))),IF(D26="",0,INDEX(SignalHeads[Weight*** (lbs)],MATCH(D26,SignalHeads[Code],0))),IF(E26="",0,INDEX(SignalHeads[Weight*** (lbs)],MATCH(E26,SignalHeads[Code],0))),IF(F26="",0,INDEX(SignalHeads[Weight*** (lbs)],MATCH(F26,SignalHeads[Code],0))),IF(G26="",0,INDEX(SignalHeads[Weight*** (lbs)],MATCH(G26,SignalHeads[Code],0))),IF(H26="",0,INDEX(SignalHeads[Weight*** (lbs)],MATCH(H26,SignalHeads[Code],0))),IF(I26="",0,INDEX(SignalHeads[Weight*** (lbs)],MATCH(I26,SignalHeads[Code],0)))) -> 0 | L26: =IF(A26<=$I$8,INDEX(DesignConstants[Value],MATCH("Span Wire Weight (plf)",DesignConstants[Design Constant],0)),0) -> 1.155 | M26: =IF(K26="",0,K26*A26) -> 0 | N26: =L26*(A26-0.5) -> 0.5775 | O26: =N15-K26-L26 ->  | P26: =(0.5*L26+O26+K26)/$I$4 ->  | Q26: =N8-P26 ->  | R26: =IF(A26>$I$8,0,(IFERROR(INDEX($S$13:$S$14,MATCH(MAX($S$11:$S$12),$S$11:$S$12,FALSE)),$S$8)-(IFERROR(INDEX($N$13:$N$14,MATCH(MAX($N$11:$N$12),$N$11:$N$12,FALSE)),$N$8)))/$I$18*A26+IFERROR(INDEX($N$13:$N$14,MATCH(MAX($N$11:$N$12),$N$11:$N$12,FALSE)),$N$8)) ->  | S26: =SUM(IF(B26="",0,INDEX(SignalHeads[Height ** (feet)],MATCH(B26,SignalHeads[Code],0))),IF(D26="",0,INDEX(SignalHeads[Height ** (feet)],MATCH(D26,SignalHeads[Code],0))),IF(E26="",0,INDEX(SignalHeads[Height ** (feet)],MATCH(E26,SignalHeads[Code],0))),IF(F26="",0,INDEX(SignalHeads[Height ** (feet)],MATCH(F26,SignalHeads[Code],0))),IF(G26="",0,INDEX(SignalHeads[Height ** (feet)],MATCH(G26,SignalHeads[Code],0))),IF(H26="",0,INDEX(SignalHeads[Height ** (feet)],MATCH(H26,SignalHeads[Code],0))),IF(I26="",0,INDEX(SignalHeads[Height ** (feet)],MATCH(I26,SignalHeads[Code],0)))) -> 0 | T26: =IF(S26=0,"",ROUNDDOWN(12*(((Q26-S26)-MIN($Q$26:$Q$425-$S$26:$S$425)-(MAX($S$26:$S$425*(($Q$26:$Q$425-$S$26:$S$425)=MIN($Q$26:$Q$425-$S$26:$S$425)))-S26))+(MIN($Q$26:$Q$425-$S$26:$S$425)-$I$10)),0)/12) ->  | U26: =IF(T26="","",INT(T26)&"'-"&ROUND((T26-INT(T26))*12,0)&"""") ->  | V26: =IF(A26<=$I$8,Q26-S26-IF(ISNUMBER(T26),T26,0),"") ->  | W26: =$I$10 -> 17
A27: 2 | J27: =SUM(IF(B27="",0,INDEX(SignalHeads[Perp. Wind Area (sft)],MATCH(B27,SignalHeads[Code],0))),IF(D27="",0,INDEX(SignalHeads[Perp. Wind Area (sft)],MATCH(D27,SignalHeads[Code],0))),IF(E27="",0,INDEX(SignalHeads[Perp. Wind Area (sft)],MATCH(E27,SignalHeads[Code],0))),IF(F27="",0,INDEX(SignalHeads[Perp. Wind Area (sft)],MATCH(F27,SignalHeads[Code],0))),IF(G27="",0,INDEX(SignalHeads[Perp. Wind Area (sft)],MATCH(G27,SignalHeads[Code],0))),IF(H27="",0,INDEX(SignalHeads[Perp. Wind Area (sft)],MATCH(H27,SignalHeads[Code],0))),IF(I27="",0,INDEX(SignalHeads[Perp. Wind Area (sft)],MATCH(I27,SignalHeads[Code],0)))) -> 0 | K27: =SUM(IF(B27="",0,INDEX(SignalHeads[Weight*** (lbs)],MATCH(B27,SignalHeads[Code],0))),IF(D27="",0,INDEX(SignalHeads[Weight*** (lbs)],MATCH(D27,SignalHeads[Code],0))),IF(E27="",0,INDEX(SignalHeads[Weight*** (lbs)],MATCH(E27,SignalHeads[Code],0))),IF(F27="",0,INDEX(SignalHeads[Weight*** (lbs)],MATCH(F27,SignalHeads[Code],0))),IF(G27="",0,INDEX(SignalHeads[Weight*** (lbs)],MATCH(G27,SignalHeads[Code],0))),IF(H27="",0,INDEX(SignalHeads[Weight*** (lbs)],MATCH(H27,SignalHeads[Code],0))),IF(I27="",0,INDEX(SignalHeads[Weight*** (lbs)],MATCH(I27,SignalHeads[Code],0)))) -> 0 | L27: =IF(A27<=$I$8,INDEX(DesignConstants[Value],MATCH("Span Wire Weight (plf)",DesignConstants[Design Constant],0)),0) -> 1.155 | M27: =IF(K27="",0,K27*A27) -> 0 | N27: 1.7325 | O27: =O26-K27-L27 ->  | P27: =(0.5*L27+O27+K27)/$I$4 ->  | Q27: =Q26-P27 ->  | S27: =SUM(IF(B27="",0,INDEX(SignalHeads[Height ** (feet)],MATCH(B27,SignalHeads[Code],0))),IF(D27="",0,INDEX(SignalHeads[Height ** (feet)],MATCH(D27,SignalHeads[Code],0))),IF(E27="",0,INDEX(SignalHeads[Height ** (feet)],MATCH(E27,SignalHeads[Code],0))),IF(F27="",0,INDEX(SignalHeads[Height ** (feet)],MATCH(F27,SignalHeads[Code],0))),IF(G27="",0,INDEX(SignalHeads[Height ** (feet)],MATCH(G27,SignalHeads[Code],0))),IF(H27="",0,INDEX(SignalHeads[Height ** (feet)],MATCH(H27,SignalHeads[Code],0))),IF(I27="",0,INDEX(SignalHeads[Height ** (feet)],MATCH(I27,SignalHeads[Code],0)))) -> 0 | T27: =IF(S27=0,"",ROUNDDOWN(12*(((Q27-S27)-MIN($Q$26:$Q$425-$S$26:$S$425)-(MAX($S$26:$S$425*(($Q$26:$Q$425-$S$26:$S$425)=MIN($Q$26:$Q$425-$S$26:$S$425)))-S27))+(MIN($Q$26:$Q$425-$S$26:$S$425)-$I$10)),0)/12) ->  | U27: =IF(T27="","",INT(T27)&"'-"&ROUND((T27-INT(T27))*12,0)&"""") ->  | V27: =IF(A27<=$I$8,Q27-S27-IF(ISNUMBER(T27),T27,0),"") ->  | W27: 17
A28: 3 | J28: =SUM(IF(B28="",0,INDEX(SignalHeads[Perp. Wind Area (sft)],MATCH(B28,SignalHeads[Code],0))),IF(D28="",0,INDEX(SignalHeads[Perp. Wind Area (sft)],MATCH(D28,SignalHeads[Code],0))),IF(E28="",0,INDEX(SignalHeads[Perp. Wind Area (sft)],MATCH(E28,SignalHeads[Code],0))),IF(F28="",0,INDEX(SignalHeads[Perp. Wind Area (sft)],MATCH(F28,SignalHeads[Code],0))),IF(G28="",0,INDEX(SignalHeads[Perp. Wind Area (sft)],MATCH(G28,SignalHeads[Code],0))),IF(H28="",0,INDEX(SignalHeads[Perp. Wind Area (sft)],MATCH(H28,SignalHeads[Code],0))),IF(I28="",0,INDEX(SignalHeads[Perp. Wind Area (sft)],MATCH(I28,SignalHeads[Code],0)))) -> 0 | K28: =SUM(IF(B28="",0,INDEX(SignalHeads[Weight*** (lbs)],MATCH(B28,SignalHeads[Code],0))),IF(D28="",0,INDEX(SignalHeads[Weight*** (lbs)],MATCH(D28,SignalHeads[Code],0))),IF(E28="",0,INDEX(SignalHeads[Weight*** (lbs)],MATCH(E28,SignalHeads[Code],0))),IF(F28="",0,INDEX(SignalHeads[Weight*** (lbs)],MATCH(F28,SignalHeads[Code],0))),IF(G28="",0,INDEX(SignalHeads[Weight*** (lbs)],MATCH(G28,SignalHeads[Code],0))),IF(H28="",0,INDEX(SignalHeads[Weight*** (lbs)],MATCH(H28,SignalHeads[Code],0))),IF(I28="",0,INDEX(SignalHeads[Weight*** (lbs)],MATCH(I28,SignalHeads[Code],0)))) -> 0 | L28: =IF(A28<=$I$8,INDEX(DesignConstants[Value],MATCH("Span Wire Weight (plf)",DesignConstants[Design Constant],0)),0) -> 1.155 | M28: 0 | N28: 2.8875 | S28: =SUM(IF(B28="",0,INDEX(SignalHeads[Height ** (feet)],MATCH(B28,SignalHeads[Code],0))),IF(D28="",0,INDEX(SignalHeads[Height ** (feet)],MATCH(D28,SignalHeads[Code],0))),IF(E28="",0,INDEX(SignalHeads[Height ** (feet)],MATCH(E28,SignalHeads[Code],0))),IF(F28="",0,INDEX(SignalHeads[Height ** (feet)],MATCH(F28,SignalHeads[Code],0))),IF(G28="",0,INDEX(SignalHeads[Height ** (feet)],MATCH(G28,SignalHeads[Code],0))),IF(H28="",0,INDEX(SignalHeads[Height ** (feet)],MATCH(H28,SignalHeads[Code],0))),IF(I28="",0,INDEX(SignalHeads[Height ** (feet)],MATCH(I28,SignalHeads[Code],0)))) -> 0 | T28: =IF(S28=0,"",ROUNDDOWN(12*(((Q28-S28)-MIN($Q$26:$Q$425-$S$26:$S$425)-(MAX($S$26:$S$425*(($Q$26:$Q$425-$S$26:$S$425)=MIN($Q$26:$Q$425-$S$26:$S$425)))-S28))+(MIN($Q$26:$Q$425-$S$26:$S$425)-$I$10)),0)/12) ->  | W28: 17
A29: 4 | J29: =SUM(IF(B29="",0,INDEX(SignalHeads[Perp. Wind Area (sft)],MATCH(B29,SignalHeads[Code],0))),IF(D29="",0,INDEX(SignalHeads[Perp. Wind Area (sft)],MATCH(D29,SignalHeads[Code],0))),IF(E29="",0,INDEX(SignalHeads[Perp. Wind Area (sft)],MATCH(E29,SignalHeads[Code],0))),IF(F29="",0,INDEX(SignalHeads[Perp. Wind Area (sft)],MATCH(F29,SignalHeads[Code],0))),IF(G29="",0,INDEX(SignalHeads[Perp. Wind Area (sft)],MATCH(G29,SignalHeads[Code],0))),IF(H29="",0,INDEX(SignalHeads[Perp. Wind Area (sft)],MATCH(H29,SignalHeads[Code],0))),IF(I29="",0,INDEX(SignalHeads[Perp. Wind Area (sft)],MATCH(I29,SignalHeads[Code],0)))) -> 0 | K29: =SUM(IF(B29="",0,INDEX(SignalHeads[Weight*** (lbs)],MATCH(B29,SignalHeads[Code],0))),IF(D29="",0,INDEX(SignalHeads[Weight*** (lbs)],MATCH(D29,SignalHeads[Code],0))),IF(E29="",0,INDEX(SignalHeads[Weight*** (lbs)],MATCH(E29,SignalHeads[Code],0))),IF(F29="",0,INDEX(SignalHeads[Weight*** (lbs)],MATCH(F29,SignalHeads[Code],0))),IF(G29="",0,INDEX(SignalHeads[Weight*** (lbs)],MATCH(G29,SignalHeads[Code],0))),IF(H29="",0,INDEX(SignalHeads[Weight*** (lbs)],MATCH(H29,SignalHeads[Code],0))),IF(I29="",0,INDEX(SignalHeads[Weight*** (lbs)],MATCH(I29,SignalHeads[Code],0)))) -> 0 | L29: =IF(A29<=$I$8,INDEX(DesignConstants[Value],MATCH("Span Wire Weight (plf)",DesignConstants[Design Constant],0)),0) -> 1.155 | M29: 0 | N29: 4.0425 | S29: =SUM(IF(B29="",0,INDEX(SignalHeads[Height ** (feet)],MATCH(B29,SignalHeads[Code],0))),IF(D29="",0,INDEX(SignalHeads[Height ** (feet)],MATCH(D29,SignalHeads[Code],0))),IF(E29="",0,INDEX(SignalHeads[Height ** (feet)],MATCH(E29,SignalHeads[Code],0))),IF(F29="",0,INDEX(SignalHeads[Height ** (feet)],MATCH(F29,SignalHeads[Code],0))),IF(G29="",0,INDEX(SignalHeads[Height ** (feet)],MATCH(G29,SignalHeads[Code],0))),IF(H29="",0,INDEX(SignalHeads[Height ** (feet)],MATCH(H29,SignalHeads[Code],0))),IF(I29="",0,INDEX(SignalHeads[Height ** (feet)],MATCH(I29,SignalHeads[Code],0)))) -> 0 | T29: =IF(S29=0,"",ROUNDDOWN(12*(((Q29-S29)-MIN($Q$26:$Q$425-$S$26:$S$425)-(MAX($S$26:$S$425*(($Q$26:$Q$425-$S$26:$S$425)=MIN($Q$26:$Q$425-$S$26:$S$425)))-S29))+(MIN($Q$26:$Q$425-$S$26:$S$425)-$I$10)),0)/12) ->  | W29: 17
A30: 5 | J30: =SUM(IF(B30="",0,INDEX(SignalHeads[Perp. Wind Area (sft)],MATCH(B30,SignalHeads[Code],0))),IF(D30="",0,INDEX(SignalHeads[Perp. Wind Area (sft)],MATCH(D30,SignalHeads[Code],0))),IF(E30="",0,INDEX(SignalHeads[Perp. Wind Area (sft)],MATCH(E30,SignalHeads[Code],0))),IF(F30="",0,INDEX(SignalHeads[Perp. Wind Area (sft)],MATCH(F30,SignalHeads[Code],0))),IF(G30="",0,INDEX(SignalHeads[Perp. Wind Area (sft)],MATCH(G30,SignalHeads[Code],0))),IF(H30="",0,INDEX(SignalHeads[Perp. Wind Area (sft)],MATCH(H30,SignalHeads[Code],0))),IF(I30="",0,INDEX(SignalHeads[Perp. Wind Area (sft)],MATCH(I30,SignalHeads[Code],0)))) -> 0 | K30: =SUM(IF(B30="",0,INDEX(SignalHeads[Weight*** (lbs)],MATCH(B30,SignalHeads[Code],0))),IF(D30="",0,INDEX(SignalHeads[Weight*** (lbs)],MATCH(D30,SignalHeads[Code],0))),IF(E30="",0,INDEX(SignalHeads[Weight*** (lbs)],MATCH(E30,SignalHeads[Code],0))),IF(F30="",0,INDEX(SignalHeads[Weight*** (lbs)],MATCH(F30,SignalHeads[Code],0))),IF(G30="",0,INDEX(SignalHeads[Weight*** (lbs)],MATCH(G30,SignalHeads[Code],0))),IF(H30="",0,INDEX(SignalHeads[Weight*** (lbs)],MATCH(H30,SignalHeads[Code],0))),IF(I30="",0,INDEX(SignalHeads[Weight*** (lbs)],MATCH(I30,SignalHeads[Code],0)))) -> 0 | L30: =IF(A30<=$I$8,INDEX(DesignConstants[Value],MATCH("Span Wire Weight (plf)",DesignConstants[Design Constant],0)),0) -> 1.155 | M30: 0 | N30: 5.1975 | S30: =SUM(IF(B30="",0,INDEX(SignalHeads[Height ** (feet)],MATCH(B30,SignalHeads[Code],0))),IF(D30="",0,INDEX(SignalHeads[Height ** (feet)],MATCH(D30,SignalHeads[Code],0))),IF(E30="",0,INDEX(SignalHeads[Height ** (feet)],MATCH(E30,SignalHeads[Code],0))),IF(F30="",0,INDEX(SignalHeads[Height ** (feet)],MATCH(F30,SignalHeads[Code],0))),IF(G30="",0,INDEX(SignalHeads[Height ** (feet)],MATCH(G30,SignalHeads[Code],0))),IF(H30="",0,INDEX(SignalHeads[Height ** (feet)],MATCH(H30,SignalHeads[Code],0))),IF(I30="",0,INDEX(SignalHeads[Height ** (feet)],MATCH(I30,SignalHeads[Code],0)))) -> 0 | T30: =IF(S30=0,"",ROUNDDOWN(12*(((Q30-S30)-MIN($Q$26:$Q$425-$S$26:$S$425)-(MAX($S$26:$S$425*(($Q$26:$Q$425-$S$26:$S$425)=MIN($Q$26:$Q$425-$S$26:$S$425)))-S30))+(MIN($Q$26:$Q$425-$S$26:$S$425)-$I$10)),0)/12) ->  | W30: 17
A31: 6 | J31: =SUM(IF(B31="",0,INDEX(SignalHeads[Perp. Wind Area (sft)],MATCH(B31,SignalHeads[Code],0))),IF(D31="",0,INDEX(SignalHeads[Perp. Wind Area (sft)],MATCH(D31,SignalHeads[Code],0))),IF(E31="",0,INDEX(SignalHeads[Perp. Wind Area (sft)],MATCH(E31,SignalHeads[Code],0))),IF(F31="",0,INDEX(SignalHeads[Perp. Wind Area (sft)],MATCH(F31,SignalHeads[Code],0))),IF(G31="",0,INDEX(SignalHeads[Perp. Wind Area (sft)],MATCH(G31,SignalHeads[Code],0))),IF(H31="",0,INDEX(SignalHeads[Perp. Wind Area (sft)],MATCH(H31,SignalHeads[Code],0))),IF(I31="",0,INDEX(SignalHeads[Perp. Wind Area (sft)],MATCH(I31,SignalHeads[Code],0)))) -> 0 | K31: =SUM(IF(B31="",0,INDEX(SignalHeads[Weight*** (lbs)],MATCH(B31,SignalHeads[Code],0))),IF(D31="",0,INDEX(SignalHeads[Weight*** (lbs)],MATCH(D31,SignalHeads[Code],0))),IF(E31="",0,INDEX(SignalHeads[Weight*** (lbs)],MATCH(E31,SignalHeads[Code],0))),IF(F31="",0,INDEX(SignalHeads[Weight*** (lbs)],MATCH(F31,SignalHeads[Code],0))),IF(G31="",0,INDEX(SignalHeads[Weight*** (lbs)],MATCH(G31,SignalHeads[Code],0))),IF(H31="",0,INDEX(SignalHeads[Weight*** (lbs)],MATCH(H31,SignalHeads[Code],0))),IF(I31="",0,INDEX(SignalHeads[Weight*** (lbs)],MATCH(I31,SignalHeads[Code],0)))) -> 0 | L31: =IF(A31<=$I$8,INDEX(DesignConstants[Value],MATCH("Span Wire Weight (plf)",DesignConstants[Design Constant],0)),0) -> 1.155 | M31: 0 | N31: 6.3525 | S31: =SUM(IF(B31="",0,INDEX(SignalHeads[Height ** (feet)],MATCH(B31,SignalHeads[Code],0))),IF(D31="",0,INDEX(SignalHeads[Height ** (feet)],MATCH(D31,SignalHeads[Code],0))),IF(E31="",0,INDEX(SignalHeads[Height ** (feet)],MATCH(E31,SignalHeads[Code],0))),IF(F31="",0,INDEX(SignalHeads[Height ** (feet)],MATCH(F31,SignalHeads[Code],0))),IF(G31="",0,INDEX(SignalHeads[Height ** (feet)],MATCH(G31,SignalHeads[Code],0))),IF(H31="",0,INDEX(SignalHeads[Height ** (feet)],MATCH(H31,SignalHeads[Code],0))),IF(I31="",0,INDEX(SignalHeads[Height ** (feet)],MATCH(I31,SignalHeads[Code],0)))) -> 0 | T31: =IF(S31=0,"",ROUNDDOWN(12*(((Q31-S31)-MIN($Q$26:$Q$425-$S$26:$S$425)-(MAX($S$26:$S$425*(($Q$26:$Q$425-$S$26:$S$425)=MIN($Q$26:$Q$425-$S$26:$S$425)))-S31))+(MIN($Q$26:$Q$425-$S$26:$S$425)-$I$10)),0)/12) ->  | V31: =IF(A31<=$I$8,Q31-S31-IF(ISNUMBER(T31),T31,0),"") ->  | W31: 17
A32: 7 | J32: =SUM(IF(B32="",0,INDEX(SignalHeads[Perp. Wind Area (sft)],MATCH(B32,SignalHeads[Code],0))),IF(D32="",0,INDEX(SignalHeads[Perp. Wind Area (sft)],MATCH(D32,SignalHeads[Code],0))),IF(E32="",0,INDEX(SignalHeads[Perp. Wind Area (sft)],MATCH(E32,SignalHeads[Code],0))),IF(F32="",0,INDEX(SignalHeads[Perp. Wind Area (sft)],MATCH(F32,SignalHeads[Code],0))),IF(G32="",0,INDEX(SignalHeads[Perp. Wind Area (sft)],MATCH(G32,SignalHeads[Code],0))),IF(H32="",0,INDEX(SignalHeads[Perp. Wind Area (sft)],MATCH(H32,SignalHeads[Code],0))),IF(I32="",0,INDEX(SignalHeads[Perp. Wind Area (sft)],MATCH(I32,SignalHeads[Code],0)))) -> 0 | K32: =SUM(IF(B32="",0,INDEX(SignalHeads[Weight*** (lbs)],MATCH(B32,SignalHeads[Code],0))),IF(D32="",0,INDEX(SignalHeads[Weight*** (lbs)],MATCH(D32,SignalHeads[Code],0))),IF(E32="",0,INDEX(SignalHeads[Weight*** (lbs)],MATCH(E32,SignalHeads[Code],0))),IF(F32="",0,INDEX(SignalHeads[Weight*** (lbs)],MATCH(F32,SignalHeads[Code],0))),IF(G32="",0,INDEX(SignalHeads[Weight*** (lbs)],MATCH(G32,SignalHeads[Code],0))),IF(H32="",0,INDEX(SignalHeads[Weight*** (lbs)],MATCH(H32,SignalHeads[Code],0))),IF(I32="",0,INDEX(SignalHeads[Weight*** (lbs)],MATCH(I32,SignalHeads[Code],0)))) -> 0 | L32: =IF(A32<=$I$8,INDEX(DesignConstants[Value],MATCH("Span Wire Weight (plf)",DesignConstants[Design Constant],0)),0) -> 1.155 | M32: 0 | N32: 7.5075 | S32: =SUM(IF(B32="",0,INDEX(SignalHeads[Height ** (feet)],MATCH(B32,SignalHeads[Code],0))),IF(D32="",0,INDEX(SignalHeads[Height ** (feet)],MATCH(D32,SignalHeads[Code],0))),IF(E32="",0,INDEX(SignalHeads[Height ** (feet)],MATCH(E32,SignalHeads[Code],0))),IF(F32="",0,INDEX(SignalHeads[Height ** (feet)],MATCH(F32,SignalHeads[Code],0))),IF(G32="",0,INDEX(SignalHeads[Height ** (feet)],MATCH(G32,SignalHeads[Code],0))),IF(H32="",0,INDEX(SignalHeads[Height ** (feet)],MATCH(H32,SignalHeads[Code],0))),IF(I32="",0,INDEX(SignalHeads[Height ** (feet)],MATCH(I32,SignalHeads[Code],0)))) -> 0 | T32: =IF(S32=0,"",ROUNDDOWN(12*(((Q32-S32)-MIN($Q$26:$Q$425-$S$26:$S$425)-(MAX($S$26:$S$425*(($Q$26:$Q$425-$S$26:$S$425)=MIN($Q$26:$Q$425-$S$26:$S$425)))-S32))+(MIN($Q$26:$Q$425-$S$26:$S$425)-$I$10)),0)/12) ->  | W32: 17
A33: 8 | J33: =SUM(IF(B33="",0,INDEX(SignalHeads[Perp. Wind Area (sft)],MATCH(B33,SignalHeads[Code],0))),IF(D33="",0,INDEX(SignalHeads[Perp. Wind Area (sft)],MATCH(D33,SignalHeads[Code],0))),IF(E33="",0,INDEX(SignalHeads[Perp. Wind Area (sft)],MATCH(E33,SignalHeads[Code],0))),IF(F33="",0,INDEX(SignalHeads[Perp. Wind Area (sft)],MATCH(F33,SignalHeads[Code],0))),IF(G33="",0,INDEX(SignalHeads[Perp. Wind Area (sft)],MATCH(G33,SignalHeads[Code],0))),IF(H33="",0,INDEX(SignalHeads[Perp. Wind Area (sft)],MATCH(H33,SignalHeads[Code],0))),IF(I33="",0,INDEX(SignalHeads[Perp. Wind Area (sft)],MATCH(I33,SignalHeads[Code],0)))) -> 0 | K33: =SUM(IF(B33="",0,INDEX(SignalHeads[Weight*** (lbs)],MATCH(B33,SignalHeads[Code],0))),IF(D33="",0,INDEX(SignalHeads[Weight*** (lbs)],MATCH(D33,SignalHeads[Code],0))),IF(E33="",0,INDEX(SignalHeads[Weight*** (lbs)],MATCH(E33,SignalHeads[Code],0))),IF(F33="",0,INDEX(SignalHeads[Weight*** (lbs)],MATCH(F33,SignalHeads[Code],0))),IF(G33="",0,INDEX(SignalHeads[Weight*** (lbs)],MATCH(G33,SignalHeads[Code],0))),IF(H33="",0,INDEX(SignalHeads[Weight*** (lbs)],MATCH(H33,SignalHeads[Code],0))),IF(I33="",0,INDEX(SignalHeads[Weight*** (lbs)],MATCH(I33,SignalHeads[Code],0)))) -> 0 | L33: =IF(A33<=$I$8,INDEX(DesignConstants[Value],MATCH("Span Wire Weight (plf)",DesignConstants[Design Constant],0)),0) -> 1.155 | M33: 0 | N33: 8.6625 | S33: =SUM(IF(B33="",0,INDEX(SignalHeads[Height ** (feet)],MATCH(B33,SignalHeads[Code],0))),IF(D33="",0,INDEX(SignalHeads[Height ** (feet)],MATCH(D33,SignalHeads[Code],0))),IF(E33="",0,INDEX(SignalHeads[Height ** (feet)],MATCH(E33,SignalHeads[Code],0))),IF(F33="",0,INDEX(SignalHeads[Height ** (feet)],MATCH(F33,SignalHeads[Code],0))),IF(G33="",0,INDEX(SignalHeads[Height ** (feet)],MATCH(G33,SignalHeads[Code],0))),IF(H33="",0,INDEX(SignalHeads[Height ** (feet)],MATCH(H33,SignalHeads[Code],0))),IF(I33="",0,INDEX(SignalHeads[Height ** (feet)],MATCH(I33,SignalHeads[Code],0)))) -> 0 | T33: =IF(S33=0,"",ROUNDDOWN(12*(((Q33-S33)-MIN($Q$26:$Q$425-$S$26:$S$425)-(MAX($S$26:$S$425*(($Q$26:$Q$425-$S$26:$S$425)=MIN($Q$26:$Q$425-$S$26:$S$425)))-S33))+(MIN($Q$26:$Q$425-$S$26:$S$425)-$I$10)),0)/12) ->  | W33: 17
A34: 9 | J34: =SUM(IF(B34="",0,INDEX(SignalHeads[Perp. Wind Area (sft)],MATCH(B34,SignalHeads[Code],0))),IF(D34="",0,INDEX(SignalHeads[Perp. Wind Area (sft)],MATCH(D34,SignalHeads[Code],0))),IF(E34="",0,INDEX(SignalHeads[Perp. Wind Area (sft)],MATCH(E34,SignalHeads[Code],0))),IF(F34="",0,INDEX(SignalHeads[Perp. Wind Area (sft)],MATCH(F34,SignalHeads[Code],0))),IF(G34="",0,INDEX(SignalHeads[Perp. Wind Area (sft)],MATCH(G34,SignalHeads[Code],0))),IF(H34="",0,INDEX(SignalHeads[Perp. Wind Area (sft)],MATCH(H34,SignalHeads[Code],0))),IF(I34="",0,INDEX(SignalHeads[Perp. Wind Area (sft)],MATCH(I34,SignalHeads[Code],0)))) -> 0 | K34: =SUM(IF(B34="",0,INDEX(SignalHeads[Weight*** (lbs)],MATCH(B34,SignalHeads[Code],0))),IF(D34="",0,INDEX(SignalHeads[Weight*** (lbs)],MATCH(D34,SignalHeads[Code],0))),IF(E34="",0,INDEX(SignalHeads[Weight*** (lbs)],MATCH(E34,SignalHeads[Code],0))),IF(F34="",0,INDEX(SignalHeads[Weight*** (lbs)],MATCH(F34,SignalHeads[Code],0))),IF(G34="",0,INDEX(SignalHeads[Weight*** (lbs)],MATCH(G34,SignalHeads[Code],0))),IF(H34="",0,INDEX(SignalHeads[Weight*** (lbs)],MATCH(H34,SignalHeads[Code],0))),IF(I34="",0,INDEX(SignalHeads[Weight*** (lbs)],MATCH(I34,SignalHeads[Code],0)))) -> 0 | L34: =IF(A34<=$I$8,INDEX(DesignConstants[Value],MATCH("Span Wire Weight (plf)",DesignConstants[Design Constant],0)),0) -> 1.155 | M34: 0 | N34: 9.8175 | S34: =SUM(IF(B34="",0,INDEX(SignalHeads[Height ** (feet)],MATCH(B34,SignalHeads[Code],0))),IF(D34="",0,INDEX(SignalHeads[Height ** (feet)],MATCH(D34,SignalHeads[Code],0))),IF(E34="",0,INDEX(SignalHeads[Height ** (feet)],MATCH(E34,SignalHeads[Code],0))),IF(F34="",0,INDEX(SignalHeads[Height ** (feet)],MATCH(F34,SignalHeads[Code],0))),IF(G34="",0,INDEX(SignalHeads[Height ** (feet)],MATCH(G34,SignalHeads[Code],0))),IF(H34="",0,INDEX(SignalHeads[Height ** (feet)],MATCH(H34,SignalHeads[Code],0))),IF(I34="",0,INDEX(SignalHeads[Height ** (feet)],MATCH(I34,SignalHeads[Code],0)))) -> 0 | T34: =IF(S34=0,"",ROUNDDOWN(12*(((Q34-S34)-MIN($Q$26:$Q$425-$S$26:$S$425)-(MAX($S$26:$S$425*(($Q$26:$Q$425-$S$26:$S$425)=MIN($Q$26:$Q$425-$S$26:$S$425)))-S34))+(MIN($Q$26:$Q$425-$S$26:$S$425)-$I$10)),0)/12) ->  | W34: 17
A35: 10 | J35: =SUM(IF(B35="",0,INDEX(SignalHeads[Perp. Wind Area (sft)],MATCH(B35,SignalHeads[Code],0))),IF(D35="",0,INDEX(SignalHeads[Perp. Wind Area (sft)],MATCH(D35,SignalHeads[Code],0))),IF(E35="",0,INDEX(SignalHeads[Perp. Wind Area (sft)],MATCH(E35,SignalHeads[Code],0))),IF(F35="",0,INDEX(SignalHeads[Perp. Wind Area (sft)],MATCH(F35,SignalHeads[Code],0))),IF(G35="",0,INDEX(SignalHeads[Perp. Wind Area (sft)],MATCH(G35,SignalHeads[Code],0))),IF(H35="",0,INDEX(SignalHeads[Perp. Wind Area (sft)],MATCH(H35,SignalHeads[Code],0))),IF(I35="",0,INDEX(SignalHeads[Perp. Wind Area (sft)],MATCH(I35,SignalHeads[Code],0)))) -> 0 | K35: =SUM(IF(B35="",0,INDEX(SignalHeads[Weight*** (lbs)],MATCH(B35,SignalHeads[Code],0))),IF(D35="",0,INDEX(SignalHeads[Weight*** (lbs)],MATCH(D35,SignalHeads[Code],0))),IF(E35="",0,INDEX(SignalHeads[Weight*** (lbs)],MATCH(E35,SignalHeads[Code],0))),IF(F35="",0,INDEX(SignalHeads[Weight*** (lbs)],MATCH(F35,SignalHeads[Code],0))),IF(G35="",0,INDEX(SignalHeads[Weight*** (lbs)],MATCH(G35,SignalHeads[Code],0))),IF(H35="",0,INDEX(SignalHeads[Weight*** (lbs)],MATCH(H35,SignalHeads[Code],0))),IF(I35="",0,INDEX(SignalHeads[Weight*** (lbs)],MATCH(I35,SignalHeads[Code],0)))) -> 0 | L35: =IF(A35<=$I$8,INDEX(DesignConstants[Value],MATCH("Span Wire Weight (plf)",DesignConstants[Design Constant],0)),0) -> 1.155 | M35: 0 | N35: 10.9725 | S35: =SUM(IF(B35="",0,INDEX(SignalHeads[Height ** (feet)],MATCH(B35,SignalHeads[Code],0))),IF(D35="",0,INDEX(SignalHeads[Height ** (feet)],MATCH(D35,SignalHeads[Code],0))),IF(E35="",0,INDEX(SignalHeads[Height ** (feet)],MATCH(E35,SignalHeads[Code],0))),IF(F35="",0,INDEX(SignalHeads[Height ** (feet)],MATCH(F35,SignalHeads[Code],0))),IF(G35="",0,INDEX(SignalHeads[Height ** (feet)],MATCH(G35,SignalHeads[Code],0))),IF(H35="",0,INDEX(SignalHeads[Height ** (feet)],MATCH(H35,SignalHeads[Code],0))),IF(I35="",0,INDEX(SignalHeads[Height ** (feet)],MATCH(I35,SignalHeads[Code],0)))) -> 0 | T35: =IF(S35=0,"",ROUNDDOWN(12*(((Q35-S35)-MIN($Q$26:$Q$425-$S$26:$S$425)-(MAX($S$26:$S$425*(($Q$26:$Q$425-$S$26:$S$425)=MIN($Q$26:$Q$425-$S$26:$S$425)))-S35))+(MIN($Q$26:$Q$425-$S$26:$S$425)-$I$10)),0)/12) ->  | W35: 17
A36: 11 | J36: =SUM(IF(B36="",0,INDEX(SignalHeads[Perp. Wind Area (sft)],MATCH(B36,SignalHeads[Code],0))),IF(D36="",0,INDEX(SignalHeads[Perp. Wind Area (sft)],MATCH(D36,SignalHeads[Code],0))),IF(E36="",0,INDEX(SignalHeads[Perp. Wind Area (sft)],MATCH(E36,SignalHeads[Code],0))),IF(F36="",0,INDEX(SignalHeads[Perp. Wind Area (sft)],MATCH(F36,SignalHeads[Code],0))),IF(G36="",0,INDEX(SignalHeads[Perp. Wind Area (sft)],MATCH(G36,SignalHeads[Code],0))),IF(H36="",0,INDEX(SignalHeads[Perp. Wind Area (sft)],MATCH(H36,SignalHeads[Code],0))),IF(I36="",0,INDEX(SignalHeads[Perp. Wind Area (sft)],MATCH(I36,SignalHeads[Code],0)))) -> 0 | K36: =SUM(IF(B36="",0,INDEX(SignalHeads[Weight*** (lbs)],MATCH(B36,SignalHeads[Code],0))),IF(D36="",0,INDEX(SignalHeads[Weight*** (lbs)],MATCH(D36,SignalHeads[Code],0))),IF(E36="",0,INDEX(SignalHeads[Weight*** (lbs)],MATCH(E36,SignalHeads[Code],0))),IF(F36="",0,INDEX(SignalHeads[Weight*** (lbs)],MATCH(F36,SignalHeads[Code],0))),IF(G36="",0,INDEX(SignalHeads[Weight*** (lbs)],MATCH(G36,SignalHeads[Code],0))),IF(H36="",0,INDEX(SignalHeads[Weight*** (lbs)],MATCH(H36,SignalHeads[Code],0))),IF(I36="",0,INDEX(SignalHeads[Weight*** (lbs)],MATCH(I36,SignalHeads[Code],0)))) -> 0 | L36: =IF(A36<=$I$8,INDEX(DesignConstants[Value],MATCH("Span Wire Weight (plf)",DesignConstants[Design Constant],0)),0) -> 1.155 | M36: 0 | N36: 12.1275 | S36: =SUM(IF(B36="",0,INDEX(SignalHeads[Height ** (feet)],MATCH(B36,SignalHeads[Code],0))),IF(D36="",0,INDEX(SignalHeads[Height ** (feet)],MATCH(D36,SignalHeads[Code],0))),IF(E36="",0,INDEX(SignalHeads[Height ** (feet)],MATCH(E36,SignalHeads[Code],0))),IF(F36="",0,INDEX(SignalHeads[Height ** (feet)],MATCH(F36,SignalHeads[Code],0))),IF(G36="",0,INDEX(SignalHeads[Height ** (feet)],MATCH(G36,SignalHeads[Code],0))),IF(H36="",0,INDEX(SignalHeads[Height ** (feet)],MATCH(H36,SignalHeads[Code],0))),IF(I36="",0,INDEX(SignalHeads[Height ** (feet)],MATCH(I36,SignalHeads[Code],0)))) -> 0 | T36: =IF(S36=0,"",ROUNDDOWN(12*(((Q36-S36)-MIN($Q$26:$Q$425-$S$26:$S$425)-(MAX($S$26:$S$425*(($Q$26:$Q$425-$S$26:$S$425)=MIN($Q$26:$Q$425-$S$26:$S$425)))-S36))+(MIN($Q$26:$Q$425-$S$26:$S$425)-$I$10)),0)/12) ->  | W36: 17
A37: 12 | J37: =SUM(IF(B37="",0,INDEX(SignalHeads[Perp. Wind Area (sft)],MATCH(B37,SignalHeads[Code],0))),IF(D37="",0,INDEX(SignalHeads[Perp. Wind Area (sft)],MATCH(D37,SignalHeads[Code],0))),IF(E37="",0,INDEX(SignalHeads[Perp. Wind Area (sft)],MATCH(E37,SignalHeads[Code],0))),IF(F37="",0,INDEX(SignalHeads[Perp. Wind Area (sft)],MATCH(F37,SignalHeads[Code],0))),IF(G37="",0,INDEX(SignalHeads[Perp. Wind Area (sft)],MATCH(G37,SignalHeads[Code],0))),IF(H37="",0,INDEX(SignalHeads[Perp. Wind Area (sft)],MATCH(H37,SignalHeads[Code],0))),IF(I37="",0,INDEX(SignalHeads[Perp. Wind Area (sft)],MATCH(I37,SignalHeads[Code],0)))) -> 0 | K37: =SUM(IF(B37="",0,INDEX(SignalHeads[Weight*** (lbs)],MATCH(B37,SignalHeads[Code],0))),IF(D37="",0,INDEX(SignalHeads[Weight*** (lbs)],MATCH(D37,SignalHeads[Code],0))),IF(E37="",0,INDEX(SignalHeads[Weight*** (lbs)],MATCH(E37,SignalHeads[Code],0))),IF(F37="",0,INDEX(SignalHeads[Weight*** (lbs)],MATCH(F37,SignalHeads[Code],0))),IF(G37="",0,INDEX(SignalHeads[Weight*** (lbs)],MATCH(G37,SignalHeads[Code],0))),IF(H37="",0,INDEX(SignalHeads[Weight*** (lbs)],MATCH(H37,SignalHeads[Code],0))),IF(I37="",0,INDEX(SignalHeads[Weight*** (lbs)],MATCH(I37,SignalHeads[Code],0)))) -> 0 | L37: =IF(A37<=$I$8,INDEX(DesignConstants[Value],MATCH("Span Wire Weight (plf)",DesignConstants[Design Constant],0)),0) -> 1.155 | M37: 0 | N37: 13.2825 | S37: =SUM(IF(B37="",0,INDEX(SignalHeads[Height ** (feet)],MATCH(B37,SignalHeads[Code],0))),IF(D37="",0,INDEX(SignalHeads[Height ** (feet)],MATCH(D37,SignalHeads[Code],0))),IF(E37="",0,INDEX(SignalHeads[Height ** (feet)],MATCH(E37,SignalHeads[Code],0))),IF(F37="",0,INDEX(SignalHeads[Height ** (feet)],MATCH(F37,SignalHeads[Code],0))),IF(G37="",0,INDEX(SignalHeads[Height ** (feet)],MATCH(G37,SignalHeads[Code],0))),IF(H37="",0,INDEX(SignalHeads[Height ** (feet)],MATCH(H37,SignalHeads[Code],0))),IF(I37="",0,INDEX(SignalHeads[Height ** (feet)],MATCH(I37,SignalHeads[Code],0)))) -> 0 | T37: =IF(S37=0,"",ROUNDDOWN(12*(((Q37-S37)-MIN($Q$26:$Q$425-$S$26:$S$425)-(MAX($S$26:$S$425*(($Q$26:$Q$425-$S$26:$S$425)=MIN($Q$26:$Q$425-$S$26:$S$425)))-S37))+(MIN($Q$26:$Q$425-$S$26:$S$425)-$I$10)),0)/12) ->  | W37: 17
A38: 13 | J38: =SUM(IF(B38="",0,INDEX(SignalHeads[Perp. Wind Area (sft)],MATCH(B38,SignalHeads[Code],0))),IF(D38="",0,INDEX(SignalHeads[Perp. Wind Area (sft)],MATCH(D38,SignalHeads[Code],0))),IF(E38="",0,INDEX(SignalHeads[Perp. Wind Area (sft)],MATCH(E38,SignalHeads[Code],0))),IF(F38="",0,INDEX(SignalHeads[Perp. Wind Area (sft)],MATCH(F38,SignalHeads[Code],0))),IF(G38="",0,INDEX(SignalHeads[Perp. Wind Area (sft)],MATCH(G38,SignalHeads[Code],0))),IF(H38="",0,INDEX(SignalHeads[Perp. Wind Area (sft)],MATCH(H38,SignalHeads[Code],0))),IF(I38="",0,INDEX(SignalHeads[Perp. Wind Area (sft)],MATCH(I38,SignalHeads[Code],0)))) -> 0 | K38: =SUM(IF(B38="",0,INDEX(SignalHeads[Weight*** (lbs)],MATCH(B38,SignalHeads[Code],0))),IF(D38="",0,INDEX(SignalHeads[Weight*** (lbs)],MATCH(D38,SignalHeads[Code],0))),IF(E38="",0,INDEX(SignalHeads[Weight*** (lbs)],MATCH(E38,SignalHeads[Code],0))),IF(F38="",0,INDEX(SignalHeads[Weight*** (lbs)],MATCH(F38,SignalHeads[Code],0))),IF(G38="",0,INDEX(SignalHeads[Weight*** (lbs)],MATCH(G38,SignalHeads[Code],0))),IF(H38="",0,INDEX(SignalHeads[Weight*** (lbs)],MATCH(H38,SignalHeads[Code],0))),IF(I38="",0,INDEX(SignalHeads[Weight*** (lbs)],MATCH(I38,SignalHeads[Code],0)))) -> 0 | L38: =IF(A38<=$I$8,INDEX(DesignConstants[Value],MATCH("Span Wire Weight (plf)",DesignConstants[Design Constant],0)),0) -> 1.155 | M38: 0 | N38: 14.4375 | S38: =SUM(IF(B38="",0,INDEX(SignalHeads[Height ** (feet)],MATCH(B38,SignalHeads[Code],0))),IF(D38="",0,INDEX(SignalHeads[Height ** (feet)],MATCH(D38,SignalHeads[Code],0))),IF(E38="",0,INDEX(SignalHeads[Height ** (feet)],MATCH(E38,SignalHeads[Code],0))),IF(F38="",0,INDEX(SignalHeads[Height ** (feet)],MATCH(F38,SignalHeads[Code],0))),IF(G38="",0,INDEX(SignalHeads[Height ** (feet)],MATCH(G38,SignalHeads[Code],0))),IF(H38="",0,INDEX(SignalHeads[Height ** (feet)],MATCH(H38,SignalHeads[Code],0))),IF(I38="",0,INDEX(SignalHeads[Height ** (feet)],MATCH(I38,SignalHeads[Code],0)))) -> 0 | T38: =IF(S38=0,"",ROUNDDOWN(12*(((Q38-S38)-MIN($Q$26:$Q$425-$S$26:$S$425)-(MAX($S$26:$S$425*(($Q$26:$Q$425-$S$26:$S$425)=MIN($Q$26:$Q$425-$S$26:$S$425)))-S38))+(MIN($Q$26:$Q$425-$S$26:$S$425)-$I$10)),0)/12) ->  | W38: 17
A39: 14 | J39: =SUM(IF(B39="",0,INDEX(SignalHeads[Perp. Wind Area (sft)],MATCH(B39,SignalHeads[Code],0))),IF(D39="",0,INDEX(SignalHeads[Perp. Wind Area (sft)],MATCH(D39,SignalHeads[Code],0))),IF(E39="",0,INDEX(SignalHeads[Perp. Wind Area (sft)],MATCH(E39,SignalHeads[Code],0))),IF(F39="",0,INDEX(SignalHeads[Perp. Wind Area (sft)],MATCH(F39,SignalHeads[Code],0))),IF(G39="",0,INDEX(SignalHeads[Perp. Wind Area (sft)],MATCH(G39,SignalHeads[Code],0))),IF(H39="",0,INDEX(SignalHeads[Perp. Wind Area (sft)],MATCH(H39,SignalHeads[Code],0))),IF(I39="",0,INDEX(SignalHeads[Perp. Wind Area (sft)],MATCH(I39,SignalHeads[Code],0)))) -> 0 | K39: =SUM(IF(B39="",0,INDEX(SignalHeads[Weight*** (lbs)],MATCH(B39,SignalHeads[Code],0))),IF(D39="",0,INDEX(SignalHeads[Weight*** (lbs)],MATCH(D39,SignalHeads[Code],0))),IF(E39="",0,INDEX(SignalHeads[Weight*** (lbs)],MATCH(E39,SignalHeads[Code],0))),IF(F39="",0,INDEX(SignalHeads[Weight*** (lbs)],MATCH(F39,SignalHeads[Code],0))),IF(G39="",0,INDEX(SignalHeads[Weight*** (lbs)],MATCH(G39,SignalHeads[Code],0))),IF(H39="",0,INDEX(SignalHeads[Weight*** (lbs)],MATCH(H39,SignalHeads[Code],0))),IF(I39="",0,INDEX(SignalHeads[Weight*** (lbs)],MATCH(I39,SignalHeads[Code],0)))) -> 0 | L39: =IF(A39<=$I$8,INDEX(DesignConstants[Value],MATCH("Span Wire Weight (plf)",DesignConstants[Design Constant],0)),0) -> 1.155 | M39: 0 | N39: 15.5925 | S39: =SUM(IF(B39="",0,INDEX(SignalHeads[Height ** (feet)],MATCH(B39,SignalHeads[Code],0))),IF(D39="",0,INDEX(SignalHeads[Height ** (feet)],MATCH(D39,SignalHeads[Code],0))),IF(E39="",0,INDEX(SignalHeads[Height ** (feet)],MATCH(E39,SignalHeads[Code],0))),IF(F39="",0,INDEX(SignalHeads[Height ** (feet)],MATCH(F39,SignalHeads[Code],0))),IF(G39="",0,INDEX(SignalHeads[Height ** (feet)],MATCH(G39,SignalHeads[Code],0))),IF(H39="",0,INDEX(SignalHeads[Height ** (feet)],MATCH(H39,SignalHeads[Code],0))),IF(I39="",0,INDEX(SignalHeads[Height ** (feet)],MATCH(I39,SignalHeads[Code],0)))) -> 0 | T39: =IF(S39=0,"",ROUNDDOWN(12*(((Q39-S39)-MIN($Q$26:$Q$425-$S$26:$S$425)-(MAX($S$26:$S$425*(($Q$26:$Q$425-$S$26:$S$425)=MIN($Q$26:$Q$425-$S$26:$S$425)))-S39))+(MIN($Q$26:$Q$425-$S$26:$S$425)-$I$10)),0)/12) ->  | W39: 17
A40: 15 | J40: =SUM(IF(B40="",0,INDEX(SignalHeads[Perp. Wind Area (sft)],MATCH(B40,SignalHeads[Code],0))),IF(D40="",0,INDEX(SignalHeads[Perp. Wind Area (sft)],MATCH(D40,SignalHeads[Code],0))),IF(E40="",0,INDEX(SignalHeads[Perp. Wind Area (sft)],MATCH(E40,SignalHeads[Code],0))),IF(F40="",0,INDEX(SignalHeads[Perp. Wind Area (sft)],MATCH(F40,SignalHeads[Code],0))),IF(G40="",0,INDEX(SignalHeads[Perp. Wind Area (sft)],MATCH(G40,SignalHeads[Code],0))),IF(H40="",0,INDEX(SignalHeads[Perp. Wind Area (sft)],MATCH(H40,SignalHeads[Code],0))),IF(I40="",0,INDEX(SignalHeads[Perp. Wind Area (sft)],MATCH(I40,SignalHeads[Code],0)))) -> 0 | K40: =SUM(IF(B40="",0,INDEX(SignalHeads[Weight*** (lbs)],MATCH(B40,SignalHeads[Code],0))),IF(D40="",0,INDEX(SignalHeads[Weight*** (lbs)],MATCH(D40,SignalHeads[Code],0))),IF(E40="",0,INDEX(SignalHeads[Weight*** (lbs)],MATCH(E40,SignalHeads[Code],0))),IF(F40="",0,INDEX(SignalHeads[Weight*** (lbs)],MATCH(F40,SignalHeads[Code],0))),IF(G40="",0,INDEX(SignalHeads[Weight*** (lbs)],MATCH(G40,SignalHeads[Code],0))),IF(H40="",0,INDEX(SignalHeads[Weight*** (lbs)],MATCH(H40,SignalHeads[Code],0))),IF(I40="",0,INDEX(SignalHeads[Weight*** (lbs)],MATCH(I40,SignalHeads[Code],0)))) -> 0 | L40: =IF(A40<=$I$8,INDEX(DesignConstants[Value],MATCH("Span Wire Weight (plf)",DesignConstants[Design Constant],0)),0) -> 1.155 | M40: 0 | N40: 16.7475 | S40: =SUM(IF(B40="",0,INDEX(SignalHeads[Height ** (feet)],MATCH(B40,SignalHeads[Code],0))),IF(D40="",0,INDEX(SignalHeads[Height ** (feet)],MATCH(D40,SignalHeads[Code],0))),IF(E40="",0,INDEX(SignalHeads[Height ** (feet)],MATCH(E40,SignalHeads[Code],0))),IF(F40="",0,INDEX(SignalHeads[Height ** (feet)],MATCH(F40,SignalHeads[Code],0))),IF(G40="",0,INDEX(SignalHeads[Height ** (feet)],MATCH(G40,SignalHeads[Code],0))),IF(H40="",0,INDEX(SignalHeads[Height ** (feet)],MATCH(H40,SignalHeads[Code],0))),IF(I40="",0,INDEX(SignalHeads[Height ** (feet)],MATCH(I40,SignalHeads[Code],0)))) -> 0 | T40: =IF(S40=0,"",ROUNDDOWN(12*(((Q40-S40)-MIN($Q$26:$Q$425-$S$26:$S$425)-(MAX($S$26:$S$425*(($Q$26:$Q$425-$S$26:$S$425)=MIN($Q$26:$Q$425-$S$26:$S$425)))-S40))+(MIN($Q$26:$Q$425-$S$26:$S$425)-$I$10)),0)/12) ->  | W40: 17
A41: 16 | J41: =SUM(IF(B41="",0,INDEX(SignalHeads[Perp. Wind Area (sft)],MATCH(B41,SignalHeads[Code],0))),IF(D41="",0,INDEX(SignalHeads[Perp. Wind Area (sft)],MATCH(D41,SignalHeads[Code],0))),IF(E41="",0,INDEX(SignalHeads[Perp. Wind Area (sft)],MATCH(E41,SignalHeads[Code],0))),IF(F41="",0,INDEX(SignalHeads[Perp. Wind Area (sft)],MATCH(F41,SignalHeads[Code],0))),IF(G41="",0,INDEX(SignalHeads[Perp. Wind Area (sft)],MATCH(G41,SignalHeads[Code],0))),IF(H41="",0,INDEX(SignalHeads[Perp. Wind Area (sft)],MATCH(H41,SignalHeads[Code],0))),IF(I41="",0,INDEX(SignalHeads[Perp. Wind Area (sft)],MATCH(I41,SignalHeads[Code],0)))) -> 0 | K41: =SUM(IF(B41="",0,INDEX(SignalHeads[Weight*** (lbs)],MATCH(B41,SignalHeads[Code],0))),IF(D41="",0,INDEX(SignalHeads[Weight*** (lbs)],MATCH(D41,SignalHeads[Code],0))),IF(E41="",0,INDEX(SignalHeads[Weight*** (lbs)],MATCH(E41,SignalHeads[Code],0))),IF(F41="",0,INDEX(SignalHeads[Weight*** (lbs)],MATCH(F41,SignalHeads[Code],0))),IF(G41="",0,INDEX(SignalHeads[Weight*** (lbs)],MATCH(G41,SignalHeads[Code],0))),IF(H41="",0,INDEX(SignalHeads[Weight*** (lbs)],MATCH(H41,SignalHeads[Code],0))),IF(I41="",0,INDEX(SignalHeads[Weight*** (lbs)],MATCH(I41,SignalHeads[Code],0)))) -> 0 | L41: =IF(A41<=$I$8,INDEX(DesignConstants[Value],MATCH("Span Wire Weight (plf)",DesignConstants[Design Constant],0)),0) -> 1.155 | M41: 0 | N41: 17.9025 | S41: =SUM(IF(B41="",0,INDEX(SignalHeads[Height ** (feet)],MATCH(B41,SignalHeads[Code],0))),IF(D41="",0,INDEX(SignalHeads[Height ** (feet)],MATCH(D41,SignalHeads[Code],0))),IF(E41="",0,INDEX(SignalHeads[Height ** (feet)],MATCH(E41,SignalHeads[Code],0))),IF(F41="",0,INDEX(SignalHeads[Height ** (feet)],MATCH(F41,SignalHeads[Code],0))),IF(G41="",0,INDEX(SignalHeads[Height ** (feet)],MATCH(G41,SignalHeads[Code],0))),IF(H41="",0,INDEX(SignalHeads[Height ** (feet)],MATCH(H41,SignalHeads[Code],0))),IF(I41="",0,INDEX(SignalHeads[Height ** (feet)],MATCH(I41,SignalHeads[Code],0)))) -> 0 | T41: =IF(S41=0,"",ROUNDDOWN(12*(((Q41-S41)-MIN($Q$26:$Q$425-$S$26:$S$425)-(MAX($S$26:$S$425*(($Q$26:$Q$425-$S$26:$S$425)=MIN($Q$26:$Q$425-$S$26:$S$425)))-S41))+(MIN($Q$26:$Q$425-$S$26:$S$425)-$I$10)),0)/12) ->  | W41: 17
A42: 17 | J42: =SUM(IF(B42="",0,INDEX(SignalHeads[Perp. Wind Area (sft)],MATCH(B42,SignalHeads[Code],0))),IF(D42="",0,INDEX(SignalHeads[Perp. Wind Area (sft)],MATCH(D42,SignalHeads[Code],0))),IF(E42="",0,INDEX(SignalHeads[Perp. Wind Area (sft)],MATCH(E42,SignalHeads[Code],0))),IF(F42="",0,INDEX(SignalHeads[Perp. Wind Area (sft)],MATCH(F42,SignalHeads[Code],0))),IF(G42="",0,INDEX(SignalHeads[Perp. Wind Area (sft)],MATCH(G42,SignalHeads[Code],0))),IF(H42="",0,INDEX(SignalHeads[Perp. Wind Area (sft)],MATCH(H42,SignalHeads[Code],0))),IF(I42="",0,INDEX(SignalHeads[Perp. Wind Area (sft)],MATCH(I42,SignalHeads[Code],0)))) -> 0 | K42: =SUM(IF(B42="",0,INDEX(SignalHeads[Weight*** (lbs)],MATCH(B42,SignalHeads[Code],0))),IF(D42="",0,INDEX(SignalHeads[Weight*** (lbs)],MATCH(D42,SignalHeads[Code],0))),IF(E42="",0,INDEX(SignalHeads[Weight*** (lbs)],MATCH(E42,SignalHeads[Code],0))),IF(F42="",0,INDEX(SignalHeads[Weight*** (lbs)],MATCH(F42,SignalHeads[Code],0))),IF(G42="",0,INDEX(SignalHeads[Weight*** (lbs)],MATCH(G42,SignalHeads[Code],0))),IF(H42="",0,INDEX(SignalHeads[Weight*** (lbs)],MATCH(H42,SignalHeads[Code],0))),IF(I42="",0,INDEX(SignalHeads[Weight*** (lbs)],MATCH(I42,SignalHeads[Code],0)))) -> 0 | L42: =IF(A42<=$I$8,INDEX(DesignConstants[Value],MATCH("Span Wire Weight (plf)",DesignConstants[Design Constant],0)),0) -> 1.155 | M42: 0 | N42: 19.0575 | S42: =SUM(IF(B42="",0,INDEX(SignalHeads[Height ** (feet)],MATCH(B42,SignalHeads[Code],0))),IF(D42="",0,INDEX(SignalHeads[Height ** (feet)],MATCH(D42,SignalHeads[Code],0))),IF(E42="",0,INDEX(SignalHeads[Height ** (feet)],MATCH(E42,SignalHeads[Code],0))),IF(F42="",0,INDEX(SignalHeads[Height ** (feet)],MATCH(F42,SignalHeads[Code],0))),IF(G42="",0,INDEX(SignalHeads[Height ** (feet)],MATCH(G42,SignalHeads[Code],0))),IF(H42="",0,INDEX(SignalHeads[Height ** (feet)],MATCH(H42,SignalHeads[Code],0))),IF(I42="",0,INDEX(SignalHeads[Height ** (feet)],MATCH(I42,SignalHeads[Code],0)))) -> 0 | T42: =IF(S42=0,"",ROUNDDOWN(12*(((Q42-S42)-MIN($Q$26:$Q$425-$S$26:$S$425)-(MAX($S$26:$S$425*(($Q$26:$Q$425-$S$26:$S$425)=MIN($Q$26:$Q$425-$S$26:$S$425)))-S42))+(MIN($Q$26:$Q$425-$S$26:$S$425)-$I$10)),0)/12) ->  | W42: 17
A43: 18 | J43: =SUM(IF(B43="",0,INDEX(SignalHeads[Perp. Wind Area (sft)],MATCH(B43,SignalHeads[Code],0))),IF(D43="",0,INDEX(SignalHeads[Perp. Wind Area (sft)],MATCH(D43,SignalHeads[Code],0))),IF(E43="",0,INDEX(SignalHeads[Perp. Wind Area (sft)],MATCH(E43,SignalHeads[Code],0))),IF(F43="",0,INDEX(SignalHeads[Perp. Wind Area (sft)],MATCH(F43,SignalHeads[Code],0))),IF(G43="",0,INDEX(SignalHeads[Perp. Wind Area (sft)],MATCH(G43,SignalHeads[Code],0))),IF(H43="",0,INDEX(SignalHeads[Perp. Wind Area (sft)],MATCH(H43,SignalHeads[Code],0))),IF(I43="",0,INDEX(SignalHeads[Perp. Wind Area (sft)],MATCH(I43,SignalHeads[Code],0)))) -> 0 | K43: =SUM(IF(B43="",0,INDEX(SignalHeads[Weight*** (lbs)],MATCH(B43,SignalHeads[Code],0))),IF(D43="",0,INDEX(SignalHeads[Weight*** (lbs)],MATCH(D43,SignalHeads[Code],0))),IF(E43="",0,INDEX(SignalHeads[Weight*** (lbs)],MATCH(E43,SignalHeads[Code],0))),IF(F43="",0,INDEX(SignalHeads[Weight*** (lbs)],MATCH(F43,SignalHeads[Code],0))),IF(G43="",0,INDEX(SignalHeads[Weight*** (lbs)],MATCH(G43,SignalHeads[Code],0))),IF(H43="",0,INDEX(SignalHeads[Weight*** (lbs)],MATCH(H43,SignalHeads[Code],0))),IF(I43="",0,INDEX(SignalHeads[Weight*** (lbs)],MATCH(I43,SignalHeads[Code],0)))) -> 0 | L43: =IF(A43<=$I$8,INDEX(DesignConstants[Value],MATCH("Span Wire Weight (plf)",DesignConstants[Design Constant],0)),0) -> 1.155 | M43: 0 | N43: 20.2125 | S43: =SUM(IF(B43="",0,INDEX(SignalHeads[Height ** (feet)],MATCH(B43,SignalHeads[Code],0))),IF(D43="",0,INDEX(SignalHeads[Height ** (feet)],MATCH(D43,SignalHeads[Code],0))),IF(E43="",0,INDEX(SignalHeads[Height ** (feet)],MATCH(E43,SignalHeads[Code],0))),IF(F43="",0,INDEX(SignalHeads[Height ** (feet)],MATCH(F43,SignalHeads[Code],0))),IF(G43="",0,INDEX(SignalHeads[Height ** (feet)],MATCH(G43,SignalHeads[Code],0))),IF(H43="",0,INDEX(SignalHeads[Height ** (feet)],MATCH(H43,SignalHeads[Code],0))),IF(I43="",0,INDEX(SignalHeads[Height ** (feet)],MATCH(I43,SignalHeads[Code],0)))) -> 0 | T43: =IF(S43=0,"",ROUNDDOWN(12*(((Q43-S43)-MIN($Q$26:$Q$425-$S$26:$S$425)-(MAX($S$26:$S$425*(($Q$26:$Q$425-$S$26:$S$425)=MIN($Q$26:$Q$425-$S$26:$S$425)))-S43))+(MIN($Q$26:$Q$425-$S$26:$S$425)-$I$10)),0)/12) ->  | W43: 17
A44: 19 | J44: =SUM(IF(B44="",0,INDEX(SignalHeads[Perp. Wind Area (sft)],MATCH(B44,SignalHeads[Code],0))),IF(D44="",0,INDEX(SignalHeads[Perp. Wind Area (sft)],MATCH(D44,SignalHeads[Code],0))),IF(E44="",0,INDEX(SignalHeads[Perp. Wind Area (sft)],MATCH(E44,SignalHeads[Code],0))),IF(F44="",0,INDEX(SignalHeads[Perp. Wind Area (sft)],MATCH(F44,SignalHeads[Code],0))),IF(G44="",0,INDEX(SignalHeads[Perp. Wind Area (sft)],MATCH(G44,SignalHeads[Code],0))),IF(H44="",0,INDEX(SignalHeads[Perp. Wind Area (sft)],MATCH(H44,SignalHeads[Code],0))),IF(I44="",0,INDEX(SignalHeads[Perp. Wind Area (sft)],MATCH(I44,SignalHeads[Code],0)))) -> 0 | K44: =SUM(IF(B44="",0,INDEX(SignalHeads[Weight*** (lbs)],MATCH(B44,SignalHeads[Code],0))),IF(D44="",0,INDEX(SignalHeads[Weight*** (lbs)],MATCH(D44,SignalHeads[Code],0))),IF(E44="",0,INDEX(SignalHeads[Weight*** (lbs)],MATCH(E44,SignalHeads[Code],0))),IF(F44="",0,INDEX(SignalHeads[Weight*** (lbs)],MATCH(F44,SignalHeads[Code],0))),IF(G44="",0,INDEX(SignalHeads[Weight*** (lbs)],MATCH(G44,SignalHeads[Code],0))),IF(H44="",0,INDEX(SignalHeads[Weight*** (lbs)],MATCH(H44,SignalHeads[Code],0))),IF(I44="",0,INDEX(SignalHeads[Weight*** (lbs)],MATCH(I44,SignalHeads[Code],0)))) -> 0 | L44: =IF(A44<=$I$8,INDEX(DesignConstants[Value],MATCH("Span Wire Weight (plf)",DesignConstants[Design Constant],0)),0) -> 1.155 | M44: 0 | N44: 21.3675 | S44: =SUM(IF(B44="",0,INDEX(SignalHeads[Height ** (feet)],MATCH(B44,SignalHeads[Code],0))),IF(D44="",0,INDEX(SignalHeads[Height ** (feet)],MATCH(D44,SignalHeads[Code],0))),IF(E44="",0,INDEX(SignalHeads[Height ** (feet)],MATCH(E44,SignalHeads[Code],0))),IF(F44="",0,INDEX(SignalHeads[Height ** (feet)],MATCH(F44,SignalHeads[Code],0))),IF(G44="",0,INDEX(SignalHeads[Height ** (feet)],MATCH(G44,SignalHeads[Code],0))),IF(H44="",0,INDEX(SignalHeads[Height ** (feet)],MATCH(H44,SignalHeads[Code],0))),IF(I44="",0,INDEX(SignalHeads[Height ** (feet)],MATCH(I44,SignalHeads[Code],0)))) -> 0 | T44: =IF(S44=0,"",ROUNDDOWN(12*(((Q44-S44)-MIN($Q$26:$Q$425-$S$26:$S$425)-(MAX($S$26:$S$425*(($Q$26:$Q$425-$S$26:$S$425)=MIN($Q$26:$Q$425-$S$26:$S$425)))-S44))+(MIN($Q$26:$Q$425-$S$26:$S$425)-$I$10)),0)/12) ->  | W44: 17
A45: 20 | J45: =SUM(IF(B45="",0,INDEX(SignalHeads[Perp. Wind Area (sft)],MATCH(B45,SignalHeads[Code],0))),IF(D45="",0,INDEX(SignalHeads[Perp. Wind Area (sft)],MATCH(D45,SignalHeads[Code],0))),IF(E45="",0,INDEX(SignalHeads[Perp. Wind Area (sft)],MATCH(E45,SignalHeads[Code],0))),IF(F45="",0,INDEX(SignalHeads[Perp. Wind Area (sft)],MATCH(F45,SignalHeads[Code],0))),IF(G45="",0,INDEX(SignalHeads[Perp. Wind Area (sft)],MATCH(G45,SignalHeads[Code],0))),IF(H45="",0,INDEX(SignalHeads[Perp. Wind Area (sft)],MATCH(H45,SignalHeads[Code],0))),IF(I45="",0,INDEX(SignalHeads[Perp. Wind Area (sft)],MATCH(I45,SignalHeads[Code],0)))) -> 0 | K45: =SUM(IF(B45="",0,INDEX(SignalHeads[Weight*** (lbs)],MATCH(B45,SignalHeads[Code],0))),IF(D45="",0,INDEX(SignalHeads[Weight*** (lbs)],MATCH(D45,SignalHeads[Code],0))),IF(E45="",0,INDEX(SignalHeads[Weight*** (lbs)],MATCH(E45,SignalHeads[Code],0))),IF(F45="",0,INDEX(SignalHeads[Weight*** (lbs)],MATCH(F45,SignalHeads[Code],0))),IF(G45="",0,INDEX(SignalHeads[Weight*** (lbs)],MATCH(G45,SignalHeads[Code],0))),IF(H45="",0,INDEX(SignalHeads[Weight*** (lbs)],MATCH(H45,SignalHeads[Code],0))),IF(I45="",0,INDEX(SignalHeads[Weight*** (lbs)],MATCH(I45,SignalHeads[Code],0)))) -> 0 | L45: =IF(A45<=$I$8,INDEX(DesignConstants[Value],MATCH("Span Wire Weight (plf)",DesignConstants[Design Constant],0)),0) -> 1.155 | M45: 0 | N45: 22.5225 | S45: =SUM(IF(B45="",0,INDEX(SignalHeads[Height ** (feet)],MATCH(B45,SignalHeads[Code],0))),IF(D45="",0,INDEX(SignalHeads[Height ** (feet)],MATCH(D45,SignalHeads[Code],0))),IF(E45="",0,INDEX(SignalHeads[Height ** (feet)],MATCH(E45,SignalHeads[Code],0))),IF(F45="",0,INDEX(SignalHeads[Height ** (feet)],MATCH(F45,SignalHeads[Code],0))),IF(G45="",0,INDEX(SignalHeads[Height ** (feet)],MATCH(G45,SignalHeads[Code],0))),IF(H45="",0,INDEX(SignalHeads[Height ** (feet)],MATCH(H45,SignalHeads[Code],0))),IF(I45="",0,INDEX(SignalHeads[Height ** (feet)],MATCH(I45,SignalHeads[Code],0)))) -> 0 | T45: =IF(S45=0,"",ROUNDDOWN(12*(((Q45-S45)-MIN($Q$26:$Q$425-$S$26:$S$425)-(MAX($S$26:$S$425*(($Q$26:$Q$425-$S$26:$S$425)=MIN($Q$26:$Q$425-$S$26:$S$425)))-S45))+(MIN($Q$26:$Q$425-$S$26:$S$425)-$I$10)),0)/12) ->  | W45: 17
A46: 21 | J46: =SUM(IF(B46="",0,INDEX(SignalHeads[Perp. Wind Area (sft)],MATCH(B46,SignalHeads[Code],0))),IF(D46="",0,INDEX(SignalHeads[Perp. Wind Area (sft)],MATCH(D46,SignalHeads[Code],0))),IF(E46="",0,INDEX(SignalHeads[Perp. Wind Area (sft)],MATCH(E46,SignalHeads[Code],0))),IF(F46="",0,INDEX(SignalHeads[Perp. Wind Area (sft)],MATCH(F46,SignalHeads[Code],0))),IF(G46="",0,INDEX(SignalHeads[Perp. Wind Area (sft)],MATCH(G46,SignalHeads[Code],0))),IF(H46="",0,INDEX(SignalHeads[Perp. Wind Area (sft)],MATCH(H46,SignalHeads[Code],0))),IF(I46="",0,INDEX(SignalHeads[Perp. Wind Area (sft)],MATCH(I46,SignalHeads[Code],0)))) -> 0 | K46: =SUM(IF(B46="",0,INDEX(SignalHeads[Weight*** (lbs)],MATCH(B46,SignalHeads[Code],0))),IF(D46="",0,INDEX(SignalHeads[Weight*** (lbs)],MATCH(D46,SignalHeads[Code],0))),IF(E46="",0,INDEX(SignalHeads[Weight*** (lbs)],MATCH(E46,SignalHeads[Code],0))),IF(F46="",0,INDEX(SignalHeads[Weight*** (lbs)],MATCH(F46,SignalHeads[Code],0))),IF(G46="",0,INDEX(SignalHeads[Weight*** (lbs)],MATCH(G46,SignalHeads[Code],0))),IF(H46="",0,INDEX(SignalHeads[Weight*** (lbs)],MATCH(H46,SignalHeads[Code],0))),IF(I46="",0,INDEX(SignalHeads[Weight*** (lbs)],MATCH(I46,SignalHeads[Code],0)))) -> 0 | L46: =IF(A46<=$I$8,INDEX(DesignConstants[Value],MATCH("Span Wire Weight (plf)",DesignConstants[Design Constant],0)),0) -> 1.155 | M46: 0 | N46: 23.6775 | S46: =SUM(IF(B46="",0,INDEX(SignalHeads[Height ** (feet)],MATCH(B46,SignalHeads[Code],0))),IF(D46="",0,INDEX(SignalHeads[Height ** (feet)],MATCH(D46,SignalHeads[Code],0))),IF(E46="",0,INDEX(SignalHeads[Height ** (feet)],MATCH(E46,SignalHeads[Code],0))),IF(F46="",0,INDEX(SignalHeads[Height ** (feet)],MATCH(F46,SignalHeads[Code],0))),IF(G46="",0,INDEX(SignalHeads[Height ** (feet)],MATCH(G46,SignalHeads[Code],0))),IF(H46="",0,INDEX(SignalHeads[Height ** (feet)],MATCH(H46,SignalHeads[Code],0))),IF(I46="",0,INDEX(SignalHeads[Height ** (feet)],MATCH(I46,SignalHeads[Code],0)))) -> 0 | T46: =IF(S46=0,"",ROUNDDOWN(12*(((Q46-S46)-MIN($Q$26:$Q$425-$S$26:$S$425)-(MAX($S$26:$S$425*(($Q$26:$Q$425-$S$26:$S$425)=MIN($Q$26:$Q$425-$S$26:$S$425)))-S46))+(MIN($Q$26:$Q$425-$S$26:$S$425)-$I$10)),0)/12) ->  | W46: 17
A47: 22 | J47: =SUM(IF(B47="",0,INDEX(SignalHeads[Perp. Wind Area (sft)],MATCH(B47,SignalHeads[Code],0))),IF(D47="",0,INDEX(SignalHeads[Perp. Wind Area (sft)],MATCH(D47,SignalHeads[Code],0))),IF(E47="",0,INDEX(SignalHeads[Perp. Wind Area (sft)],MATCH(E47,SignalHeads[Code],0))),IF(F47="",0,INDEX(SignalHeads[Perp. Wind Area (sft)],MATCH(F47,SignalHeads[Code],0))),IF(G47="",0,INDEX(SignalHeads[Perp. Wind Area (sft)],MATCH(G47,SignalHeads[Code],0))),IF(H47="",0,INDEX(SignalHeads[Perp. Wind Area (sft)],MATCH(H47,SignalHeads[Code],0))),IF(I47="",0,INDEX(SignalHeads[Perp. Wind Area (sft)],MATCH(I47,SignalHeads[Code],0)))) -> 0 | K47: =SUM(IF(B47="",0,INDEX(SignalHeads[Weight*** (lbs)],MATCH(B47,SignalHeads[Code],0))),IF(D47="",0,INDEX(SignalHeads[Weight*** (lbs)],MATCH(D47,SignalHeads[Code],0))),IF(E47="",0,INDEX(SignalHeads[Weight*** (lbs)],MATCH(E47,SignalHeads[Code],0))),IF(F47="",0,INDEX(SignalHeads[Weight*** (lbs)],MATCH(F47,SignalHeads[Code],0))),IF(G47="",0,INDEX(SignalHeads[Weight*** (lbs)],MATCH(G47,SignalHeads[Code],0))),IF(H47="",0,INDEX(SignalHeads[Weight*** (lbs)],MATCH(H47,SignalHeads[Code],0))),IF(I47="",0,INDEX(SignalHeads[Weight*** (lbs)],MATCH(I47,SignalHeads[Code],0)))) -> 0 | L47: =IF(A47<=$I$8,INDEX(DesignConstants[Value],MATCH("Span Wire Weight (plf)",DesignConstants[Design Constant],0)),0) -> 1.155 | M47: 0 | N47: 24.8325 | S47: =SUM(IF(B47="",0,INDEX(SignalHeads[Height ** (feet)],MATCH(B47,SignalHeads[Code],0))),IF(D47="",0,INDEX(SignalHeads[Height ** (feet)],MATCH(D47,SignalHeads[Code],0))),IF(E47="",0,INDEX(SignalHeads[Height ** (feet)],MATCH(E47,SignalHeads[Code],0))),IF(F47="",0,INDEX(SignalHeads[Height ** (feet)],MATCH(F47,SignalHeads[Code],0))),IF(G47="",0,INDEX(SignalHeads[Height ** (feet)],MATCH(G47,SignalHeads[Code],0))),IF(H47="",0,INDEX(SignalHeads[Height ** (feet)],MATCH(H47,SignalHeads[Code],0))),IF(I47="",0,INDEX(SignalHeads[Height ** (feet)],MATCH(I47,SignalHeads[Code],0)))) -> 0 | T47: =IF(S47=0,"",ROUNDDOWN(12*(((Q47-S47)-MIN($Q$26:$Q$425-$S$26:$S$425)-(MAX($S$26:$S$425*(($Q$26:$Q$425-$S$26:$S$425)=MIN($Q$26:$Q$425-$S$26:$S$425)))-S47))+(MIN($Q$26:$Q$425-$S$26:$S$425)-$I$10)),0)/12) ->  | W47: 17
A48: 23 | J48: =SUM(IF(B48="",0,INDEX(SignalHeads[Perp. Wind Area (sft)],MATCH(B48,SignalHeads[Code],0))),IF(D48="",0,INDEX(SignalHeads[Perp. Wind Area (sft)],MATCH(D48,SignalHeads[Code],0))),IF(E48="",0,INDEX(SignalHeads[Perp. Wind Area (sft)],MATCH(E48,SignalHeads[Code],0))),IF(F48="",0,INDEX(SignalHeads[Perp. Wind Area (sft)],MATCH(F48,SignalHeads[Code],0))),IF(G48="",0,INDEX(SignalHeads[Perp. Wind Area (sft)],MATCH(G48,SignalHeads[Code],0))),IF(H48="",0,INDEX(SignalHeads[Perp. Wind Area (sft)],MATCH(H48,SignalHeads[Code],0))),IF(I48="",0,INDEX(SignalHeads[Perp. Wind Area (sft)],MATCH(I48,SignalHeads[Code],0)))) -> 0 | K48: =SUM(IF(B48="",0,INDEX(SignalHeads[Weight*** (lbs)],MATCH(B48,SignalHeads[Code],0))),IF(D48="",0,INDEX(SignalHeads[Weight*** (lbs)],MATCH(D48,SignalHeads[Code],0))),IF(E48="",0,INDEX(SignalHeads[Weight*** (lbs)],MATCH(E48,SignalHeads[Code],0))),IF(F48="",0,INDEX(SignalHeads[Weight*** (lbs)],MATCH(F48,SignalHeads[Code],0))),IF(G48="",0,INDEX(SignalHeads[Weight*** (lbs)],MATCH(G48,SignalHeads[Code],0))),IF(H48="",0,INDEX(SignalHeads[Weight*** (lbs)],MATCH(H48,SignalHeads[Code],0))),IF(I48="",0,INDEX(SignalHeads[Weight*** (lbs)],MATCH(I48,SignalHeads[Code],0)))) -> 0 | L48: =IF(A48<=$I$8,INDEX(DesignConstants[Value],MATCH("Span Wire Weight (plf)",DesignConstants[Design Constant],0)),0) -> 1.155 | M48: 0 | N48: 25.9875 | S48: =SUM(IF(B48="",0,INDEX(SignalHeads[Height ** (feet)],MATCH(B48,SignalHeads[Code],0))),IF(D48="",0,INDEX(SignalHeads[Height ** (feet)],MATCH(D48,SignalHeads[Code],0))),IF(E48="",0,INDEX(SignalHeads[Height ** (feet)],MATCH(E48,SignalHeads[Code],0))),IF(F48="",0,INDEX(SignalHeads[Height ** (feet)],MATCH(F48,SignalHeads[Code],0))),IF(G48="",0,INDEX(SignalHeads[Height ** (feet)],MATCH(G48,SignalHeads[Code],0))),IF(H48="",0,INDEX(SignalHeads[Height ** (feet)],MATCH(H48,SignalHeads[Code],0))),IF(I48="",0,INDEX(SignalHeads[Height ** (feet)],MATCH(I48,SignalHeads[Code],0)))) -> 0 | T48: =IF(S48=0,"",ROUNDDOWN(12*(((Q48-S48)-MIN($Q$26:$Q$425-$S$26:$S$425)-(MAX($S$26:$S$425*(($Q$26:$Q$425-$S$26:$S$425)=MIN($Q$26:$Q$425-$S$26:$S$425)))-S48))+(MIN($Q$26:$Q$425-$S$26:$S$425)-$I$10)),0)/12) ->  | W48: 17
A49: 24 | J49: =SUM(IF(B49="",0,INDEX(SignalHeads[Perp. Wind Area (sft)],MATCH(B49,SignalHeads[Code],0))),IF(D49="",0,INDEX(SignalHeads[Perp. Wind Area (sft)],MATCH(D49,SignalHeads[Code],0))),IF(E49="",0,INDEX(SignalHeads[Perp. Wind Area (sft)],MATCH(E49,SignalHeads[Code],0))),IF(F49="",0,INDEX(SignalHeads[Perp. Wind Area (sft)],MATCH(F49,SignalHeads[Code],0))),IF(G49="",0,INDEX(SignalHeads[Perp. Wind Area (sft)],MATCH(G49,SignalHeads[Code],0))),IF(H49="",0,INDEX(SignalHeads[Perp. Wind Area (sft)],MATCH(H49,SignalHeads[Code],0))),IF(I49="",0,INDEX(SignalHeads[Perp. Wind Area (sft)],MATCH(I49,SignalHeads[Code],0)))) -> 0 | K49: =SUM(IF(B49="",0,INDEX(SignalHeads[Weight*** (lbs)],MATCH(B49,SignalHeads[Code],0))),IF(D49="",0,INDEX(SignalHeads[Weight*** (lbs)],MATCH(D49,SignalHeads[Code],0))),IF(E49="",0,INDEX(SignalHeads[Weight*** (lbs)],MATCH(E49,SignalHeads[Code],0))),IF(F49="",0,INDEX(SignalHeads[Weight*** (lbs)],MATCH(F49,SignalHeads[Code],0))),IF(G49="",0,INDEX(SignalHeads[Weight*** (lbs)],MATCH(G49,SignalHeads[Code],0))),IF(H49="",0,INDEX(SignalHeads[Weight*** (lbs)],MATCH(H49,SignalHeads[Code],0))),IF(I49="",0,INDEX(SignalHeads[Weight*** (lbs)],MATCH(I49,SignalHeads[Code],0)))) -> 0 | L49: =IF(A49<=$I$8,INDEX(DesignConstants[Value],MATCH("Span Wire Weight (plf)",DesignConstants[Design Constant],0)),0) -> 1.155 | M49: 0 | N49: 27.1425 | S49: =SUM(IF(B49="",0,INDEX(SignalHeads[Height ** (feet)],MATCH(B49,SignalHeads[Code],0))),IF(D49="",0,INDEX(SignalHeads[Height ** (feet)],MATCH(D49,SignalHeads[Code],0))),IF(E49="",0,INDEX(SignalHeads[Height ** (feet)],MATCH(E49,SignalHeads[Code],0))),IF(F49="",0,INDEX(SignalHeads[Height ** (feet)],MATCH(F49,SignalHeads[Code],0))),IF(G49="",0,INDEX(SignalHeads[Height ** (feet)],MATCH(G49,SignalHeads[Code],0))),IF(H49="",0,INDEX(SignalHeads[Height ** (feet)],MATCH(H49,SignalHeads[Code],0))),IF(I49="",0,INDEX(SignalHeads[Height ** (feet)],MATCH(I49,SignalHeads[Code],0)))) -> 0 | T49: =IF(S49=0,"",ROUNDDOWN(12*(((Q49-S49)-MIN($Q$26:$Q$425-$S$26:$S$425)-(MAX($S$26:$S$425*(($Q$26:$Q$425-$S$26:$S$425)=MIN($Q$26:$Q$425-$S$26:$S$425)))-S49))+(MIN($Q$26:$Q$425-$S$26:$S$425)-$I$10)),0)/12) ->  | W49: 17
A50: 25 | J50: =SUM(IF(B50="",0,INDEX(SignalHeads[Perp. Wind Area (sft)],MATCH(B50,SignalHeads[Code],0))),IF(D50="",0,INDEX(SignalHeads[Perp. Wind Area (sft)],MATCH(D50,SignalHeads[Code],0))),IF(E50="",0,INDEX(SignalHeads[Perp. Wind Area (sft)],MATCH(E50,SignalHeads[Code],0))),IF(F50="",0,INDEX(SignalHeads[Perp. Wind Area (sft)],MATCH(F50,SignalHeads[Code],0))),IF(G50="",0,INDEX(SignalHeads[Perp. Wind Area (sft)],MATCH(G50,SignalHeads[Code],0))),IF(H50="",0,INDEX(SignalHeads[Perp. Wind Area (sft)],MATCH(H50,SignalHeads[Code],0))),IF(I50="",0,INDEX(SignalHeads[Perp. Wind Area (sft)],MATCH(I50,SignalHeads[Code],0)))) -> 0 | K50: =SUM(IF(B50="",0,INDEX(SignalHeads[Weight*** (lbs)],MATCH(B50,SignalHeads[Code],0))),IF(D50="",0,INDEX(SignalHeads[Weight*** (lbs)],MATCH(D50,SignalHeads[Code],0))),IF(E50="",0,INDEX(SignalHeads[Weight*** (lbs)],MATCH(E50,SignalHeads[Code],0))),IF(F50="",0,INDEX(SignalHeads[Weight*** (lbs)],MATCH(F50,SignalHeads[Code],0))),IF(G50="",0,INDEX(SignalHeads[Weight*** (lbs)],MATCH(G50,SignalHeads[Code],0))),IF(H50="",0,INDEX(SignalHeads[Weight*** (lbs)],MATCH(H50,SignalHeads[Code],0))),IF(I50="",0,INDEX(SignalHeads[Weight*** (lbs)],MATCH(I50,SignalHeads[Code],0)))) -> 0 | L50: =IF(A50<=$I$8,INDEX(DesignConstants[Value],MATCH("Span Wire Weight (plf)",DesignConstants[Design Constant],0)),0) -> 1.155 | M50: 0 | N50: 28.2975 | S50: =SUM(IF(B50="",0,INDEX(SignalHeads[Height ** (feet)],MATCH(B50,SignalHeads[Code],0))),IF(D50="",0,INDEX(SignalHeads[Height ** (feet)],MATCH(D50,SignalHeads[Code],0))),IF(E50="",0,INDEX(SignalHeads[Height ** (feet)],MATCH(E50,SignalHeads[Code],0))),IF(F50="",0,INDEX(SignalHeads[Height ** (feet)],MATCH(F50,SignalHeads[Code],0))),IF(G50="",0,INDEX(SignalHeads[Height ** (feet)],MATCH(G50,SignalHeads[Code],0))),IF(H50="",0,INDEX(SignalHeads[Height ** (feet)],MATCH(H50,SignalHeads[Code],0))),IF(I50="",0,INDEX(SignalHeads[Height ** (feet)],MATCH(I50,SignalHeads[Code],0)))) -> 0 | T50: =IF(S50=0,"",ROUNDDOWN(12*(((Q50-S50)-MIN($Q$26:$Q$425-$S$26:$S$425)-(MAX($S$26:$S$425*(($Q$26:$Q$425-$S$26:$S$425)=MIN($Q$26:$Q$425-$S$26:$S$425)))-S50))+(MIN($Q$26:$Q$425-$S$26:$S$425)-$I$10)),0)/12) ->  | W50: 17
A51: 26 | J51: =SUM(IF(B51="",0,INDEX(SignalHeads[Perp. Wind Area (sft)],MATCH(B51,SignalHeads[Code],0))),IF(D51="",0,INDEX(SignalHeads[Perp. Wind Area (sft)],MATCH(D51,SignalHeads[Code],0))),IF(E51="",0,INDEX(SignalHeads[Perp. Wind Area (sft)],MATCH(E51,SignalHeads[Code],0))),IF(F51="",0,INDEX(SignalHeads[Perp. Wind Area (sft)],MATCH(F51,SignalHeads[Code],0))),IF(G51="",0,INDEX(SignalHeads[Perp. Wind Area (sft)],MATCH(G51,SignalHeads[Code],0))),IF(H51="",0,INDEX(SignalHeads[Perp. Wind Area (sft)],MATCH(H51,SignalHeads[Code],0))),IF(I51="",0,INDEX(SignalHeads[Perp. Wind Area (sft)],MATCH(I51,SignalHeads[Code],0)))) -> 0 | K51: =SUM(IF(B51="",0,INDEX(SignalHeads[Weight*** (lbs)],MATCH(B51,SignalHeads[Code],0))),IF(D51="",0,INDEX(SignalHeads[Weight*** (lbs)],MATCH(D51,SignalHeads[Code],0))),IF(E51="",0,INDEX(SignalHeads[Weight*** (lbs)],MATCH(E51,SignalHeads[Code],0))),IF(F51="",0,INDEX(SignalHeads[Weight*** (lbs)],MATCH(F51,SignalHeads[Code],0))),IF(G51="",0,INDEX(SignalHeads[Weight*** (lbs)],MATCH(G51,SignalHeads[Code],0))),IF(H51="",0,INDEX(SignalHeads[Weight*** (lbs)],MATCH(H51,SignalHeads[Code],0))),IF(I51="",0,INDEX(SignalHeads[Weight*** (lbs)],MATCH(I51,SignalHeads[Code],0)))) -> 0 | L51: =IF(A51<=$I$8,INDEX(DesignConstants[Value],MATCH("Span Wire Weight (plf)",DesignConstants[Design Constant],0)),0) -> 1.155 | M51: 0 | N51: 29.4525 | S51: =SUM(IF(B51="",0,INDEX(SignalHeads[Height ** (feet)],MATCH(B51,SignalHeads[Code],0))),IF(D51="",0,INDEX(SignalHeads[Height ** (feet)],MATCH(D51,SignalHeads[Code],0))),IF(E51="",0,INDEX(SignalHeads[Height ** (feet)],MATCH(E51,SignalHeads[Code],0))),IF(F51="",0,INDEX(SignalHeads[Height ** (feet)],MATCH(F51,SignalHeads[Code],0))),IF(G51="",0,INDEX(SignalHeads[Height ** (feet)],MATCH(G51,SignalHeads[Code],0))),IF(H51="",0,INDEX(SignalHeads[Height ** (feet)],MATCH(H51,SignalHeads[Code],0))),IF(I51="",0,INDEX(SignalHeads[Height ** (feet)],MATCH(I51,SignalHeads[Code],0)))) -> 0 | T51: =IF(S51=0,"",ROUNDDOWN(12*(((Q51-S51)-MIN($Q$26:$Q$425-$S$26:$S$425)-(MAX($S$26:$S$425*(($Q$26:$Q$425-$S$26:$S$425)=MIN($Q$26:$Q$425-$S$26:$S$425)))-S51))+(MIN($Q$26:$Q$425-$S$26:$S$425)-$I$10)),0)/12) ->  | W51: 17
A52: 27 | J52: =SUM(IF(B52="",0,INDEX(SignalHeads[Perp. Wind Area (sft)],MATCH(B52,SignalHeads[Code],0))),IF(D52="",0,INDEX(SignalHeads[Perp. Wind Area (sft)],MATCH(D52,SignalHeads[Code],0))),IF(E52="",0,INDEX(SignalHeads[Perp. Wind Area (sft)],MATCH(E52,SignalHeads[Code],0))),IF(F52="",0,INDEX(SignalHeads[Perp. Wind Area (sft)],MATCH(F52,SignalHeads[Code],0))),IF(G52="",0,INDEX(SignalHeads[Perp. Wind Area (sft)],MATCH(G52,SignalHeads[Code],0))),IF(H52="",0,INDEX(SignalHeads[Perp. Wind Area (sft)],MATCH(H52,SignalHeads[Code],0))),IF(I52="",0,INDEX(SignalHeads[Perp. Wind Area (sft)],MATCH(I52,SignalHeads[Code],0)))) -> 0 | K52: =SUM(IF(B52="",0,INDEX(SignalHeads[Weight*** (lbs)],MATCH(B52,SignalHeads[Code],0))),IF(D52="",0,INDEX(SignalHeads[Weight*** (lbs)],MATCH(D52,SignalHeads[Code],0))),IF(E52="",0,INDEX(SignalHeads[Weight*** (lbs)],MATCH(E52,SignalHeads[Code],0))),IF(F52="",0,INDEX(SignalHeads[Weight*** (lbs)],MATCH(F52,SignalHeads[Code],0))),IF(G52="",0,INDEX(SignalHeads[Weight*** (lbs)],MATCH(G52,SignalHeads[Code],0))),IF(H52="",0,INDEX(SignalHeads[Weight*** (lbs)],MATCH(H52,SignalHeads[Code],0))),IF(I52="",0,INDEX(SignalHeads[Weight*** (lbs)],MATCH(I52,SignalHeads[Code],0)))) -> 0 | L52: =IF(A52<=$I$8,INDEX(DesignConstants[Value],MATCH("Span Wire Weight (plf)",DesignConstants[Design Constant],0)),0) -> 1.155 | M52: 0 | N52: 30.6075 | S52: =SUM(IF(B52="",0,INDEX(SignalHeads[Height ** (feet)],MATCH(B52,SignalHeads[Code],0))),IF(D52="",0,INDEX(SignalHeads[Height ** (feet)],MATCH(D52,SignalHeads[Code],0))),IF(E52="",0,INDEX(SignalHeads[Height ** (feet)],MATCH(E52,SignalHeads[Code],0))),IF(F52="",0,INDEX(SignalHeads[Height ** (feet)],MATCH(F52,SignalHeads[Code],0))),IF(G52="",0,INDEX(SignalHeads[Height ** (feet)],MATCH(G52,SignalHeads[Code],0))),IF(H52="",0,INDEX(SignalHeads[Height ** (feet)],MATCH(H52,SignalHeads[Code],0))),IF(I52="",0,INDEX(SignalHeads[Height ** (feet)],MATCH(I52,SignalHeads[Code],0)))) -> 0 | T52: =IF(S52=0,"",ROUNDDOWN(12*(((Q52-S52)-MIN($Q$26:$Q$425-$S$26:$S$425)-(MAX($S$26:$S$425*(($Q$26:$Q$425-$S$26:$S$425)=MIN($Q$26:$Q$425-$S$26:$S$425)))-S52))+(MIN($Q$26:$Q$425-$S$26:$S$425)-$I$10)),0)/12) ->  | W52: 17
A53: 28 | J53: =SUM(IF(B53="",0,INDEX(SignalHeads[Perp. Wind Area (sft)],MATCH(B53,SignalHeads[Code],0))),IF(D53="",0,INDEX(SignalHeads[Perp. Wind Area (sft)],MATCH(D53,SignalHeads[Code],0))),IF(E53="",0,INDEX(SignalHeads[Perp. Wind Area (sft)],MATCH(E53,SignalHeads[Code],0))),IF(F53="",0,INDEX(SignalHeads[Perp. Wind Area (sft)],MATCH(F53,SignalHeads[Code],0))),IF(G53="",0,INDEX(SignalHeads[Perp. Wind Area (sft)],MATCH(G53,SignalHeads[Code],0))),IF(H53="",0,INDEX(SignalHeads[Perp. Wind Area (sft)],MATCH(H53,SignalHeads[Code],0))),IF(I53="",0,INDEX(SignalHeads[Perp. Wind Area (sft)],MATCH(I53,SignalHeads[Code],0)))) -> 0 | K53: =SUM(IF(B53="",0,INDEX(SignalHeads[Weight*** (lbs)],MATCH(B53,SignalHeads[Code],0))),IF(D53="",0,INDEX(SignalHeads[Weight*** (lbs)],MATCH(D53,SignalHeads[Code],0))),IF(E53="",0,INDEX(SignalHeads[Weight*** (lbs)],MATCH(E53,SignalHeads[Code],0))),IF(F53="",0,INDEX(SignalHeads[Weight*** (lbs)],MATCH(F53,SignalHeads[Code],0))),IF(G53="",0,INDEX(SignalHeads[Weight*** (lbs)],MATCH(G53,SignalHeads[Code],0))),IF(H53="",0,INDEX(SignalHeads[Weight*** (lbs)],MATCH(H53,SignalHeads[Code],0))),IF(I53="",0,INDEX(SignalHeads[Weight*** (lbs)],MATCH(I53,SignalHeads[Code],0)))) -> 0 | L53: =IF(A53<=$I$8,INDEX(DesignConstants[Value],MATCH("Span Wire Weight (plf)",DesignConstants[Design Constant],0)),0) -> 1.155 | M53: 0 | N53: 31.7625 | S53: =SUM(IF(B53="",0,INDEX(SignalHeads[Height ** (feet)],MATCH(B53,SignalHeads[Code],0))),IF(D53="",0,INDEX(SignalHeads[Height ** (feet)],MATCH(D53,SignalHeads[Code],0))),IF(E53="",0,INDEX(SignalHeads[Height ** (feet)],MATCH(E53,SignalHeads[Code],0))),IF(F53="",0,INDEX(SignalHeads[Height ** (feet)],MATCH(F53,SignalHeads[Code],0))),IF(G53="",0,INDEX(SignalHeads[Height ** (feet)],MATCH(G53,SignalHeads[Code],0))),IF(H53="",0,INDEX(SignalHeads[Height ** (feet)],MATCH(H53,SignalHeads[Code],0))),IF(I53="",0,INDEX(SignalHeads[Height ** (feet)],MATCH(I53,SignalHeads[Code],0)))) -> 0 | T53: =IF(S53=0,"",ROUNDDOWN(12*(((Q53-S53)-MIN($Q$26:$Q$425-$S$26:$S$425)-(MAX($S$26:$S$425*(($Q$26:$Q$425-$S$26:$S$425)=MIN($Q$26:$Q$425-$S$26:$S$425)))-S53))+(MIN($Q$26:$Q$425-$S$26:$S$425)-$I$10)),0)/12) ->  | W53: 17
A54: 29 | J54: =SUM(IF(B54="",0,INDEX(SignalHeads[Perp. Wind Area (sft)],MATCH(B54,SignalHeads[Code],0))),IF(D54="",0,INDEX(SignalHeads[Perp. Wind Area (sft)],MATCH(D54,SignalHeads[Code],0))),IF(E54="",0,INDEX(SignalHeads[Perp. Wind Area (sft)],MATCH(E54,SignalHeads[Code],0))),IF(F54="",0,INDEX(SignalHeads[Perp. Wind Area (sft)],MATCH(F54,SignalHeads[Code],0))),IF(G54="",0,INDEX(SignalHeads[Perp. Wind Area (sft)],MATCH(G54,SignalHeads[Code],0))),IF(H54="",0,INDEX(SignalHeads[Perp. Wind Area (sft)],MATCH(H54,SignalHeads[Code],0))),IF(I54="",0,INDEX(SignalHeads[Perp. Wind Area (sft)],MATCH(I54,SignalHeads[Code],0)))) -> 0 | K54: =SUM(IF(B54="",0,INDEX(SignalHeads[Weight*** (lbs)],MATCH(B54,SignalHeads[Code],0))),IF(D54="",0,INDEX(SignalHeads[Weight*** (lbs)],MATCH(D54,SignalHeads[Code],0))),IF(E54="",0,INDEX(SignalHeads[Weight*** (lbs)],MATCH(E54,SignalHeads[Code],0))),IF(F54="",0,INDEX(SignalHeads[Weight*** (lbs)],MATCH(F54,SignalHeads[Code],0))),IF(G54="",0,INDEX(SignalHeads[Weight*** (lbs)],MATCH(G54,SignalHeads[Code],0))),IF(H54="",0,INDEX(SignalHeads[Weight*** (lbs)],MATCH(H54,SignalHeads[Code],0))),IF(I54="",0,INDEX(SignalHeads[Weight*** (lbs)],MATCH(I54,SignalHeads[Code],0)))) -> 0 | L54: =IF(A54<=$I$8,INDEX(DesignConstants[Value],MATCH("Span Wire Weight (plf)",DesignConstants[Design Constant],0)),0) -> 1.155 | M54: 0 | N54: 32.9175 | S54: =SUM(IF(B54="",0,INDEX(SignalHeads[Height ** (feet)],MATCH(B54,SignalHeads[Code],0))),IF(D54="",0,INDEX(SignalHeads[Height ** (feet)],MATCH(D54,SignalHeads[Code],0))),IF(E54="",0,INDEX(SignalHeads[Height ** (feet)],MATCH(E54,SignalHeads[Code],0))),IF(F54="",0,INDEX(SignalHeads[Height ** (feet)],MATCH(F54,SignalHeads[Code],0))),IF(G54="",0,INDEX(SignalHeads[Height ** (feet)],MATCH(G54,SignalHeads[Code],0))),IF(H54="",0,INDEX(SignalHeads[Height ** (feet)],MATCH(H54,SignalHeads[Code],0))),IF(I54="",0,INDEX(SignalHeads[Height ** (feet)],MATCH(I54,SignalHeads[Code],0)))) -> 0 | T54: =IF(S54=0,"",ROUNDDOWN(12*(((Q54-S54)-MIN($Q$26:$Q$425-$S$26:$S$425)-(MAX($S$26:$S$425*(($Q$26:$Q$425-$S$26:$S$425)=MIN($Q$26:$Q$425-$S$26:$S$425)))-S54))+(MIN($Q$26:$Q$425-$S$26:$S$425)-$I$10)),0)/12) ->  | W54: 17
A55: 30 | J55: =SUM(IF(B55="",0,INDEX(SignalHeads[Perp. Wind Area (sft)],MATCH(B55,SignalHeads[Code],0))),IF(D55="",0,INDEX(SignalHeads[Perp. Wind Area (sft)],MATCH(D55,SignalHeads[Code],0))),IF(E55="",0,INDEX(SignalHeads[Perp. Wind Area (sft)],MATCH(E55,SignalHeads[Code],0))),IF(F55="",0,INDEX(SignalHeads[Perp. Wind Area (sft)],MATCH(F55,SignalHeads[Code],0))),IF(G55="",0,INDEX(SignalHeads[Perp. Wind Area (sft)],MATCH(G55,SignalHeads[Code],0))),IF(H55="",0,INDEX(SignalHeads[Perp. Wind Area (sft)],MATCH(H55,SignalHeads[Code],0))),IF(I55="",0,INDEX(SignalHeads[Perp. Wind Area (sft)],MATCH(I55,SignalHeads[Code],0)))) -> 0 | K55: =SUM(IF(B55="",0,INDEX(SignalHeads[Weight*** (lbs)],MATCH(B55,SignalHeads[Code],0))),IF(D55="",0,INDEX(SignalHeads[Weight*** (lbs)],MATCH(D55,SignalHeads[Code],0))),IF(E55="",0,INDEX(SignalHeads[Weight*** (lbs)],MATCH(E55,SignalHeads[Code],0))),IF(F55="",0,INDEX(SignalHeads[Weight*** (lbs)],MATCH(F55,SignalHeads[Code],0))),IF(G55="",0,INDEX(SignalHeads[Weight*** (lbs)],MATCH(G55,SignalHeads[Code],0))),IF(H55="",0,INDEX(SignalHeads[Weight*** (lbs)],MATCH(H55,SignalHeads[Code],0))),IF(I55="",0,INDEX(SignalHeads[Weight*** (lbs)],MATCH(I55,SignalHeads[Code],0)))) -> 0 | L55: =IF(A55<=$I$8,INDEX(DesignConstants[Value],MATCH("Span Wire Weight (plf)",DesignConstants[Design Constant],0)),0) -> 1.155 | M55: 0 | N55: 34.0725 | S55: =SUM(IF(B55="",0,INDEX(SignalHeads[Height ** (feet)],MATCH(B55,SignalHeads[Code],0))),IF(D55="",0,INDEX(SignalHeads[Height ** (feet)],MATCH(D55,SignalHeads[Code],0))),IF(E55="",0,INDEX(SignalHeads[Height ** (feet)],MATCH(E55,SignalHeads[Code],0))),IF(F55="",0,INDEX(SignalHeads[Height ** (feet)],MATCH(F55,SignalHeads[Code],0))),IF(G55="",0,INDEX(SignalHeads[Height ** (feet)],MATCH(G55,SignalHeads[Code],0))),IF(H55="",0,INDEX(SignalHeads[Height ** (feet)],MATCH(H55,SignalHeads[Code],0))),IF(I55="",0,INDEX(SignalHeads[Height ** (feet)],MATCH(I55,SignalHeads[Code],0)))) -> 0 | T55: =IF(S55=0,"",ROUNDDOWN(12*(((Q55-S55)-MIN($Q$26:$Q$425-$S$26:$S$425)-(MAX($S$26:$S$425*(($Q$26:$Q$425-$S$26:$S$425)=MIN($Q$26:$Q$425-$S$26:$S$425)))-S55))+(MIN($Q$26:$Q$425-$S$26:$S$425)-$I$10)),0)/12) ->  | W55: 17
A56: 31 | J56: =SUM(IF(B56="",0,INDEX(SignalHeads[Perp. Wind Area (sft)],MATCH(B56,SignalHeads[Code],0))),IF(D56="",0,INDEX(SignalHeads[Perp. Wind Area (sft)],MATCH(D56,SignalHeads[Code],0))),IF(E56="",0,INDEX(SignalHeads[Perp. Wind Area (sft)],MATCH(E56,SignalHeads[Code],0))),IF(F56="",0,INDEX(SignalHeads[Perp. Wind Area (sft)],MATCH(F56,SignalHeads[Code],0))),IF(G56="",0,INDEX(SignalHeads[Perp. Wind Area (sft)],MATCH(G56,SignalHeads[Code],0))),IF(H56="",0,INDEX(SignalHeads[Perp. Wind Area (sft)],MATCH(H56,SignalHeads[Code],0))),IF(I56="",0,INDEX(SignalHeads[Perp. Wind Area (sft)],MATCH(I56,SignalHeads[Code],0)))) -> 0 | K56: =SUM(IF(B56="",0,INDEX(SignalHeads[Weight*** (lbs)],MATCH(B56,SignalHeads[Code],0))),IF(D56="",0,INDEX(SignalHeads[Weight*** (lbs)],MATCH(D56,SignalHeads[Code],0))),IF(E56="",0,INDEX(SignalHeads[Weight*** (lbs)],MATCH(E56,SignalHeads[Code],0))),IF(F56="",0,INDEX(SignalHeads[Weight*** (lbs)],MATCH(F56,SignalHeads[Code],0))),IF(G56="",0,INDEX(SignalHeads[Weight*** (lbs)],MATCH(G56,SignalHeads[Code],0))),IF(H56="",0,INDEX(SignalHeads[Weight*** (lbs)],MATCH(H56,SignalHeads[Code],0))),IF(I56="",0,INDEX(SignalHeads[Weight*** (lbs)],MATCH(I56,SignalHeads[Code],0)))) -> 0 | L56: =IF(A56<=$I$8,INDEX(DesignConstants[Value],MATCH("Span Wire Weight (plf)",DesignConstants[Design Constant],0)),0) -> 1.155 | M56: 0 | N56: 35.2275 | S56: =SUM(IF(B56="",0,INDEX(SignalHeads[Height ** (feet)],MATCH(B56,SignalHeads[Code],0))),IF(D56="",0,INDEX(SignalHeads[Height ** (feet)],MATCH(D56,SignalHeads[Code],0))),IF(E56="",0,INDEX(SignalHeads[Height ** (feet)],MATCH(E56,SignalHeads[Code],0))),IF(F56="",0,INDEX(SignalHeads[Height ** (feet)],MATCH(F56,SignalHeads[Code],0))),IF(G56="",0,INDEX(SignalHeads[Height ** (feet)],MATCH(G56,SignalHeads[Code],0))),IF(H56="",0,INDEX(SignalHeads[Height ** (feet)],MATCH(H56,SignalHeads[Code],0))),IF(I56="",0,INDEX(SignalHeads[Height ** (feet)],MATCH(I56,SignalHeads[Code],0)))) -> 0 | T56: =IF(S56=0,"",ROUNDDOWN(12*(((Q56-S56)-MIN($Q$26:$Q$425-$S$26:$S$425)-(MAX($S$26:$S$425*(($Q$26:$Q$425-$S$26:$S$425)=MIN($Q$26:$Q$425-$S$26:$S$425)))-S56))+(MIN($Q$26:$Q$425-$S$26:$S$425)-$I$10)),0)/12) ->  | W56: 17
A57: 32 | J57: =SUM(IF(B57="",0,INDEX(SignalHeads[Perp. Wind Area (sft)],MATCH(B57,SignalHeads[Code],0))),IF(D57="",0,INDEX(SignalHeads[Perp. Wind Area (sft)],MATCH(D57,SignalHeads[Code],0))),IF(E57="",0,INDEX(SignalHeads[Perp. Wind Area (sft)],MATCH(E57,SignalHeads[Code],0))),IF(F57="",0,INDEX(SignalHeads[Perp. Wind Area (sft)],MATCH(F57,SignalHeads[Code],0))),IF(G57="",0,INDEX(SignalHeads[Perp. Wind Area (sft)],MATCH(G57,SignalHeads[Code],0))),IF(H57="",0,INDEX(SignalHeads[Perp. Wind Area (sft)],MATCH(H57,SignalHeads[Code],0))),IF(I57="",0,INDEX(SignalHeads[Perp. Wind Area (sft)],MATCH(I57,SignalHeads[Code],0)))) -> 0 | K57: =SUM(IF(B57="",0,INDEX(SignalHeads[Weight*** (lbs)],MATCH(B57,SignalHeads[Code],0))),IF(D57="",0,INDEX(SignalHeads[Weight*** (lbs)],MATCH(D57,SignalHeads[Code],0))),IF(E57="",0,INDEX(SignalHeads[Weight*** (lbs)],MATCH(E57,SignalHeads[Code],0))),IF(F57="",0,INDEX(SignalHeads[Weight*** (lbs)],MATCH(F57,SignalHeads[Code],0))),IF(G57="",0,INDEX(SignalHeads[Weight*** (lbs)],MATCH(G57,SignalHeads[Code],0))),IF(H57="",0,INDEX(SignalHeads[Weight*** (lbs)],MATCH(H57,SignalHeads[Code],0))),IF(I57="",0,INDEX(SignalHeads[Weight*** (lbs)],MATCH(I57,SignalHeads[Code],0)))) -> 0 | L57: =IF(A57<=$I$8,INDEX(DesignConstants[Value],MATCH("Span Wire Weight (plf)",DesignConstants[Design Constant],0)),0) -> 1.155 | M57: 0 | N57: 36.3825 | S57: =SUM(IF(B57="",0,INDEX(SignalHeads[Height ** (feet)],MATCH(B57,SignalHeads[Code],0))),IF(D57="",0,INDEX(SignalHeads[Height ** (feet)],MATCH(D57,SignalHeads[Code],0))),IF(E57="",0,INDEX(SignalHeads[Height ** (feet)],MATCH(E57,SignalHeads[Code],0))),IF(F57="",0,INDEX(SignalHeads[Height ** (feet)],MATCH(F57,SignalHeads[Code],0))),IF(G57="",0,INDEX(SignalHeads[Height ** (feet)],MATCH(G57,SignalHeads[Code],0))),IF(H57="",0,INDEX(SignalHeads[Height ** (feet)],MATCH(H57,SignalHeads[Code],0))),IF(I57="",0,INDEX(SignalHeads[Height ** (feet)],MATCH(I57,SignalHeads[Code],0)))) -> 0 | T57: =IF(S57=0,"",ROUNDDOWN(12*(((Q57-S57)-MIN($Q$26:$Q$425-$S$26:$S$425)-(MAX($S$26:$S$425*(($Q$26:$Q$425-$S$26:$S$425)=MIN($Q$26:$Q$425-$S$26:$S$425)))-S57))+(MIN($Q$26:$Q$425-$S$26:$S$425)-$I$10)),0)/12) ->  | W57: 17
A58: 33 | J58: =SUM(IF(B58="",0,INDEX(SignalHeads[Perp. Wind Area (sft)],MATCH(B58,SignalHeads[Code],0))),IF(D58="",0,INDEX(SignalHeads[Perp. Wind Area (sft)],MATCH(D58,SignalHeads[Code],0))),IF(E58="",0,INDEX(SignalHeads[Perp. Wind Area (sft)],MATCH(E58,SignalHeads[Code],0))),IF(F58="",0,INDEX(SignalHeads[Perp. Wind Area (sft)],MATCH(F58,SignalHeads[Code],0))),IF(G58="",0,INDEX(SignalHeads[Perp. Wind Area (sft)],MATCH(G58,SignalHeads[Code],0))),IF(H58="",0,INDEX(SignalHeads[Perp. Wind Area (sft)],MATCH(H58,SignalHeads[Code],0))),IF(I58="",0,INDEX(SignalHeads[Perp. Wind Area (sft)],MATCH(I58,SignalHeads[Code],0)))) -> 0 | K58: =SUM(IF(B58="",0,INDEX(SignalHeads[Weight*** (lbs)],MATCH(B58,SignalHeads[Code],0))),IF(D58="",0,INDEX(SignalHeads[Weight*** (lbs)],MATCH(D58,SignalHeads[Code],0))),IF(E58="",0,INDEX(SignalHeads[Weight*** (lbs)],MATCH(E58,SignalHeads[Code],0))),IF(F58="",0,INDEX(SignalHeads[Weight*** (lbs)],MATCH(F58,SignalHeads[Code],0))),IF(G58="",0,INDEX(SignalHeads[Weight*** (lbs)],MATCH(G58,SignalHeads[Code],0))),IF(H58="",0,INDEX(SignalHeads[Weight*** (lbs)],MATCH(H58,SignalHeads[Code],0))),IF(I58="",0,INDEX(SignalHeads[Weight*** (lbs)],MATCH(I58,SignalHeads[Code],0)))) -> 0 | L58: =IF(A58<=$I$8,INDEX(DesignConstants[Value],MATCH("Span Wire Weight (plf)",DesignConstants[Design Constant],0)),0) -> 1.155 | M58: 0 | N58: 37.5375 | S58: =SUM(IF(B58="",0,INDEX(SignalHeads[Height ** (feet)],MATCH(B58,SignalHeads[Code],0))),IF(D58="",0,INDEX(SignalHeads[Height ** (feet)],MATCH(D58,SignalHeads[Code],0))),IF(E58="",0,INDEX(SignalHeads[Height ** (feet)],MATCH(E58,SignalHeads[Code],0))),IF(F58="",0,INDEX(SignalHeads[Height ** (feet)],MATCH(F58,SignalHeads[Code],0))),IF(G58="",0,INDEX(SignalHeads[Height ** (feet)],MATCH(G58,SignalHeads[Code],0))),IF(H58="",0,INDEX(SignalHeads[Height ** (feet)],MATCH(H58,SignalHeads[Code],0))),IF(I58="",0,INDEX(SignalHeads[Height ** (feet)],MATCH(I58,SignalHeads[Code],0)))) -> 0 | T58: =IF(S58=0,"",ROUNDDOWN(12*(((Q58-S58)-MIN($Q$26:$Q$425-$S$26:$S$425)-(MAX($S$26:$S$425*(($Q$26:$Q$425-$S$26:$S$425)=MIN($Q$26:$Q$425-$S$26:$S$425)))-S58))+(MIN($Q$26:$Q$425-$S$26:$S$425)-$I$10)),0)/12) ->  | W58: 17
A59: 34 | J59: =SUM(IF(B59="",0,INDEX(SignalHeads[Perp. Wind Area (sft)],MATCH(B59,SignalHeads[Code],0))),IF(D59="",0,INDEX(SignalHeads[Perp. Wind Area (sft)],MATCH(D59,SignalHeads[Code],0))),IF(E59="",0,INDEX(SignalHeads[Perp. Wind Area (sft)],MATCH(E59,SignalHeads[Code],0))),IF(F59="",0,INDEX(SignalHeads[Perp. Wind Area (sft)],MATCH(F59,SignalHeads[Code],0))),IF(G59="",0,INDEX(SignalHeads[Perp. Wind Area (sft)],MATCH(G59,SignalHeads[Code],0))),IF(H59="",0,INDEX(SignalHeads[Perp. Wind Area (sft)],MATCH(H59,SignalHeads[Code],0))),IF(I59="",0,INDEX(SignalHeads[Perp. Wind Area (sft)],MATCH(I59,SignalHeads[Code],0)))) -> 0 | K59: =SUM(IF(B59="",0,INDEX(SignalHeads[Weight*** (lbs)],MATCH(B59,SignalHeads[Code],0))),IF(D59="",0,INDEX(SignalHeads[Weight*** (lbs)],MATCH(D59,SignalHeads[Code],0))),IF(E59="",0,INDEX(SignalHeads[Weight*** (lbs)],MATCH(E59,SignalHeads[Code],0))),IF(F59="",0,INDEX(SignalHeads[Weight*** (lbs)],MATCH(F59,SignalHeads[Code],0))),IF(G59="",0,INDEX(SignalHeads[Weight*** (lbs)],MATCH(G59,SignalHeads[Code],0))),IF(H59="",0,INDEX(SignalHeads[Weight*** (lbs)],MATCH(H59,SignalHeads[Code],0))),IF(I59="",0,INDEX(SignalHeads[Weight*** (lbs)],MATCH(I59,SignalHeads[Code],0)))) -> 0 | L59: =IF(A59<=$I$8,INDEX(DesignConstants[Value],MATCH("Span Wire Weight (plf)",DesignConstants[Design Constant],0)),0) -> 1.155 | M59: 0 | N59: 38.6925 | S59: =SUM(IF(B59="",0,INDEX(SignalHeads[Height ** (feet)],MATCH(B59,SignalHeads[Code],0))),IF(D59="",0,INDEX(SignalHeads[Height ** (feet)],MATCH(D59,SignalHeads[Code],0))),IF(E59="",0,INDEX(SignalHeads[Height ** (feet)],MATCH(E59,SignalHeads[Code],0))),IF(F59="",0,INDEX(SignalHeads[Height ** (feet)],MATCH(F59,SignalHeads[Code],0))),IF(G59="",0,INDEX(SignalHeads[Height ** (feet)],MATCH(G59,SignalHeads[Code],0))),IF(H59="",0,INDEX(SignalHeads[Height ** (feet)],MATCH(H59,SignalHeads[Code],0))),IF(I59="",0,INDEX(SignalHeads[Height ** (feet)],MATCH(I59,SignalHeads[Code],0)))) -> 0 | T59: =IF(S59=0,"",ROUNDDOWN(12*(((Q59-S59)-MIN($Q$26:$Q$425-$S$26:$S$425)-(MAX($S$26:$S$425*(($Q$26:$Q$425-$S$26:$S$425)=MIN($Q$26:$Q$425-$S$26:$S$425)))-S59))+(MIN($Q$26:$Q$425-$S$26:$S$425)-$I$10)),0)/12) ->  | W59: 17
A60: 35 | J60: =SUM(IF(B60="",0,INDEX(SignalHeads[Perp. Wind Area (sft)],MATCH(B60,SignalHeads[Code],0))),IF(D60="",0,INDEX(SignalHeads[Perp. Wind Area (sft)],MATCH(D60,SignalHeads[Code],0))),IF(E60="",0,INDEX(SignalHeads[Perp. Wind Area (sft)],MATCH(E60,SignalHeads[Code],0))),IF(F60="",0,INDEX(SignalHeads[Perp. Wind Area (sft)],MATCH(F60,SignalHeads[Code],0))),IF(G60="",0,INDEX(SignalHeads[Perp. Wind Area (sft)],MATCH(G60,SignalHeads[Code],0))),IF(H60="",0,INDEX(SignalHeads[Perp. Wind Area (sft)],MATCH(H60,SignalHeads[Code],0))),IF(I60="",0,INDEX(SignalHeads[Perp. Wind Area (sft)],MATCH(I60,SignalHeads[Code],0)))) -> 0 | K60: =SUM(IF(B60="",0,INDEX(SignalHeads[Weight*** (lbs)],MATCH(B60,SignalHeads[Code],0))),IF(D60="",0,INDEX(SignalHeads[Weight*** (lbs)],MATCH(D60,SignalHeads[Code],0))),IF(E60="",0,INDEX(SignalHeads[Weight*** (lbs)],MATCH(E60,SignalHeads[Code],0))),IF(F60="",0,INDEX(SignalHeads[Weight*** (lbs)],MATCH(F60,SignalHeads[Code],0))),IF(G60="",0,INDEX(SignalHeads[Weight*** (lbs)],MATCH(G60,SignalHeads[Code],0))),IF(H60="",0,INDEX(SignalHeads[Weight*** (lbs)],MATCH(H60,SignalHeads[Code],0))),IF(I60="",0,INDEX(SignalHeads[Weight*** (lbs)],MATCH(I60,SignalHeads[Code],0)))) -> 0 | L60: =IF(A60<=$I$8,INDEX(DesignConstants[Value],MATCH("Span Wire Weight (plf)",DesignConstants[Design Constant],0)),0) -> 1.155 | M60: 0 | N60: 39.8475 | S60: =SUM(IF(B60="",0,INDEX(SignalHeads[Height ** (feet)],MATCH(B60,SignalHeads[Code],0))),IF(D60="",0,INDEX(SignalHeads[Height ** (feet)],MATCH(D60,SignalHeads[Code],0))),IF(E60="",0,INDEX(SignalHeads[Height ** (feet)],MATCH(E60,SignalHeads[Code],0))),IF(F60="",0,INDEX(SignalHeads[Height ** (feet)],MATCH(F60,SignalHeads[Code],0))),IF(G60="",0,INDEX(SignalHeads[Height ** (feet)],MATCH(G60,SignalHeads[Code],0))),IF(H60="",0,INDEX(SignalHeads[Height ** (feet)],MATCH(H60,SignalHeads[Code],0))),IF(I60="",0,INDEX(SignalHeads[Height ** (feet)],MATCH(I60,SignalHeads[Code],0)))) -> 0 | T60: =IF(S60=0,"",ROUNDDOWN(12*(((Q60-S60)-MIN($Q$26:$Q$425-$S$26:$S$425)-(MAX($S$26:$S$425*(($Q$26:$Q$425-$S$26:$S$425)=MIN($Q$26:$Q$425-$S$26:$S$425)))-S60))+(MIN($Q$26:$Q$425-$S$26:$S$425)-$I$10)),0)/12) ->  | W60: 17
A61: 36 | J61: =SUM(IF(B61="",0,INDEX(SignalHeads[Perp. Wind Area (sft)],MATCH(B61,SignalHeads[Code],0))),IF(D61="",0,INDEX(SignalHeads[Perp. Wind Area (sft)],MATCH(D61,SignalHeads[Code],0))),IF(E61="",0,INDEX(SignalHeads[Perp. Wind Area (sft)],MATCH(E61,SignalHeads[Code],0))),IF(F61="",0,INDEX(SignalHeads[Perp. Wind Area (sft)],MATCH(F61,SignalHeads[Code],0))),IF(G61="",0,INDEX(SignalHeads[Perp. Wind Area (sft)],MATCH(G61,SignalHeads[Code],0))),IF(H61="",0,INDEX(SignalHeads[Perp. Wind Area (sft)],MATCH(H61,SignalHeads[Code],0))),IF(I61="",0,INDEX(SignalHeads[Perp. Wind Area (sft)],MATCH(I61,SignalHeads[Code],0)))) -> 0 | K61: =SUM(IF(B61="",0,INDEX(SignalHeads[Weight*** (lbs)],MATCH(B61,SignalHeads[Code],0))),IF(D61="",0,INDEX(SignalHeads[Weight*** (lbs)],MATCH(D61,SignalHeads[Code],0))),IF(E61="",0,INDEX(SignalHeads[Weight*** (lbs)],MATCH(E61,SignalHeads[Code],0))),IF(F61="",0,INDEX(SignalHeads[Weight*** (lbs)],MATCH(F61,SignalHeads[Code],0))),IF(G61="",0,INDEX(SignalHeads[Weight*** (lbs)],MATCH(G61,SignalHeads[Code],0))),IF(H61="",0,INDEX(SignalHeads[Weight*** (lbs)],MATCH(H61,SignalHeads[Code],0))),IF(I61="",0,INDEX(SignalHeads[Weight*** (lbs)],MATCH(I61,SignalHeads[Code],0)))) -> 0 | L61: =IF(A61<=$I$8,INDEX(DesignConstants[Value],MATCH("Span Wire Weight (plf)",DesignConstants[Design Constant],0)),0) -> 1.155 | M61: 0 | N61: 41.0025 | S61: =SUM(IF(B61="",0,INDEX(SignalHeads[Height ** (feet)],MATCH(B61,SignalHeads[Code],0))),IF(D61="",0,INDEX(SignalHeads[Height ** (feet)],MATCH(D61,SignalHeads[Code],0))),IF(E61="",0,INDEX(SignalHeads[Height ** (feet)],MATCH(E61,SignalHeads[Code],0))),IF(F61="",0,INDEX(SignalHeads[Height ** (feet)],MATCH(F61,SignalHeads[Code],0))),IF(G61="",0,INDEX(SignalHeads[Height ** (feet)],MATCH(G61,SignalHeads[Code],0))),IF(H61="",0,INDEX(SignalHeads[Height ** (feet)],MATCH(H61,SignalHeads[Code],0))),IF(I61="",0,INDEX(SignalHeads[Height ** (feet)],MATCH(I61,SignalHeads[Code],0)))) -> 0 | T61: =IF(S61=0,"",ROUNDDOWN(12*(((Q61-S61)-MIN($Q$26:$Q$425-$S$26:$S$425)-(MAX($S$26:$S$425*(($Q$26:$Q$425-$S$26:$S$425)=MIN($Q$26:$Q$425-$S$26:$S$425)))-S61))+(MIN($Q$26:$Q$425-$S$26:$S$425)-$I$10)),0)/12) ->  | W61: 17
A62: 37 | J62: =SUM(IF(B62="",0,INDEX(SignalHeads[Perp. Wind Area (sft)],MATCH(B62,SignalHeads[Code],0))),IF(D62="",0,INDEX(SignalHeads[Perp. Wind Area (sft)],MATCH(D62,SignalHeads[Code],0))),IF(E62="",0,INDEX(SignalHeads[Perp. Wind Area (sft)],MATCH(E62,SignalHeads[Code],0))),IF(F62="",0,INDEX(SignalHeads[Perp. Wind Area (sft)],MATCH(F62,SignalHeads[Code],0))),IF(G62="",0,INDEX(SignalHeads[Perp. Wind Area (sft)],MATCH(G62,SignalHeads[Code],0))),IF(H62="",0,INDEX(SignalHeads[Perp. Wind Area (sft)],MATCH(H62,SignalHeads[Code],0))),IF(I62="",0,INDEX(SignalHeads[Perp. Wind Area (sft)],MATCH(I62,SignalHeads[Code],0)))) -> 0 | K62: =SUM(IF(B62="",0,INDEX(SignalHeads[Weight*** (lbs)],MATCH(B62,SignalHeads[Code],0))),IF(D62="",0,INDEX(SignalHeads[Weight*** (lbs)],MATCH(D62,SignalHeads[Code],0))),IF(E62="",0,INDEX(SignalHeads[Weight*** (lbs)],MATCH(E62,SignalHeads[Code],0))),IF(F62="",0,INDEX(SignalHeads[Weight*** (lbs)],MATCH(F62,SignalHeads[Code],0))),IF(G62="",0,INDEX(SignalHeads[Weight*** (lbs)],MATCH(G62,SignalHeads[Code],0))),IF(H62="",0,INDEX(SignalHeads[Weight*** (lbs)],MATCH(H62,SignalHeads[Code],0))),IF(I62="",0,INDEX(SignalHeads[Weight*** (lbs)],MATCH(I62,SignalHeads[Code],0)))) -> 0 | L62: =IF(A62<=$I$8,INDEX(DesignConstants[Value],MATCH("Span Wire Weight (plf)",DesignConstants[Design Constant],0)),0) -> 1.155 | M62: 0 | N62: 42.1575 | S62: =SUM(IF(B62="",0,INDEX(SignalHeads[Height ** (feet)],MATCH(B62,SignalHeads[Code],0))),IF(D62="",0,INDEX(SignalHeads[Height ** (feet)],MATCH(D62,SignalHeads[Code],0))),IF(E62="",0,INDEX(SignalHeads[Height ** (feet)],MATCH(E62,SignalHeads[Code],0))),IF(F62="",0,INDEX(SignalHeads[Height ** (feet)],MATCH(F62,SignalHeads[Code],0))),IF(G62="",0,INDEX(SignalHeads[Height ** (feet)],MATCH(G62,SignalHeads[Code],0))),IF(H62="",0,INDEX(SignalHeads[Height ** (feet)],MATCH(H62,SignalHeads[Code],0))),IF(I62="",0,INDEX(SignalHeads[Height ** (feet)],MATCH(I62,SignalHeads[Code],0)))) -> 0 | T62: =IF(S62=0,"",ROUNDDOWN(12*(((Q62-S62)-MIN($Q$26:$Q$425-$S$26:$S$425)-(MAX($S$26:$S$425*(($Q$26:$Q$425-$S$26:$S$425)=MIN($Q$26:$Q$425-$S$26:$S$425)))-S62))+(MIN($Q$26:$Q$425-$S$26:$S$425)-$I$10)),0)/12) ->  | W62: 17
A63: 38 | J63: =SUM(IF(B63="",0,INDEX(SignalHeads[Perp. Wind Area (sft)],MATCH(B63,SignalHeads[Code],0))),IF(D63="",0,INDEX(SignalHeads[Perp. Wind Area (sft)],MATCH(D63,SignalHeads[Code],0))),IF(E63="",0,INDEX(SignalHeads[Perp. Wind Area (sft)],MATCH(E63,SignalHeads[Code],0))),IF(F63="",0,INDEX(SignalHeads[Perp. Wind Area (sft)],MATCH(F63,SignalHeads[Code],0))),IF(G63="",0,INDEX(SignalHeads[Perp. Wind Area (sft)],MATCH(G63,SignalHeads[Code],0))),IF(H63="",0,INDEX(SignalHeads[Perp. Wind Area (sft)],MATCH(H63,SignalHeads[Code],0))),IF(I63="",0,INDEX(SignalHeads[Perp. Wind Area (sft)],MATCH(I63,SignalHeads[Code],0)))) -> 0 | K63: =SUM(IF(B63="",0,INDEX(SignalHeads[Weight*** (lbs)],MATCH(B63,SignalHeads[Code],0))),IF(D63="",0,INDEX(SignalHeads[Weight*** (lbs)],MATCH(D63,SignalHeads[Code],0))),IF(E63="",0,INDEX(SignalHeads[Weight*** (lbs)],MATCH(E63,SignalHeads[Code],0))),IF(F63="",0,INDEX(SignalHeads[Weight*** (lbs)],MATCH(F63,SignalHeads[Code],0))),IF(G63="",0,INDEX(SignalHeads[Weight*** (lbs)],MATCH(G63,SignalHeads[Code],0))),IF(H63="",0,INDEX(SignalHeads[Weight*** (lbs)],MATCH(H63,SignalHeads[Code],0))),IF(I63="",0,INDEX(SignalHeads[Weight*** (lbs)],MATCH(I63,SignalHeads[Code],0)))) -> 0 | L63: =IF(A63<=$I$8,INDEX(DesignConstants[Value],MATCH("Span Wire Weight (plf)",DesignConstants[Design Constant],0)),0) -> 1.155 | M63: 0 | N63: 43.3125 | S63: =SUM(IF(B63="",0,INDEX(SignalHeads[Height ** (feet)],MATCH(B63,SignalHeads[Code],0))),IF(D63="",0,INDEX(SignalHeads[Height ** (feet)],MATCH(D63,SignalHeads[Code],0))),IF(E63="",0,INDEX(SignalHeads[Height ** (feet)],MATCH(E63,SignalHeads[Code],0))),IF(F63="",0,INDEX(SignalHeads[Height ** (feet)],MATCH(F63,SignalHeads[Code],0))),IF(G63="",0,INDEX(SignalHeads[Height ** (feet)],MATCH(G63,SignalHeads[Code],0))),IF(H63="",0,INDEX(SignalHeads[Height ** (feet)],MATCH(H63,SignalHeads[Code],0))),IF(I63="",0,INDEX(SignalHeads[Height ** (feet)],MATCH(I63,SignalHeads[Code],0)))) -> 0 | T63: =IF(S63=0,"",ROUNDDOWN(12*(((Q63-S63)-MIN($Q$26:$Q$425-$S$26:$S$425)-(MAX($S$26:$S$425*(($Q$26:$Q$425-$S$26:$S$425)=MIN($Q$26:$Q$425-$S$26:$S$425)))-S63))+(MIN($Q$26:$Q$425-$S$26:$S$425)-$I$10)),0)/12) ->  | W63: 17
A64: 39 | J64: =SUM(IF(B64="",0,INDEX(SignalHeads[Perp. Wind Area (sft)],MATCH(B64,SignalHeads[Code],0))),IF(D64="",0,INDEX(SignalHeads[Perp. Wind Area (sft)],MATCH(D64,SignalHeads[Code],0))),IF(E64="",0,INDEX(SignalHeads[Perp. Wind Area (sft)],MATCH(E64,SignalHeads[Code],0))),IF(F64="",0,INDEX(SignalHeads[Perp. Wind Area (sft)],MATCH(F64,SignalHeads[Code],0))),IF(G64="",0,INDEX(SignalHeads[Perp. Wind Area (sft)],MATCH(G64,SignalHeads[Code],0))),IF(H64="",0,INDEX(SignalHeads[Perp. Wind Area (sft)],MATCH(H64,SignalHeads[Code],0))),IF(I64="",0,INDEX(SignalHeads[Perp. Wind Area (sft)],MATCH(I64,SignalHeads[Code],0)))) -> 0 | K64: =SUM(IF(B64="",0,INDEX(SignalHeads[Weight*** (lbs)],MATCH(B64,SignalHeads[Code],0))),IF(D64="",0,INDEX(SignalHeads[Weight*** (lbs)],MATCH(D64,SignalHeads[Code],0))),IF(E64="",0,INDEX(SignalHeads[Weight*** (lbs)],MATCH(E64,SignalHeads[Code],0))),IF(F64="",0,INDEX(SignalHeads[Weight*** (lbs)],MATCH(F64,SignalHeads[Code],0))),IF(G64="",0,INDEX(SignalHeads[Weight*** (lbs)],MATCH(G64,SignalHeads[Code],0))),IF(H64="",0,INDEX(SignalHeads[Weight*** (lbs)],MATCH(H64,SignalHeads[Code],0))),IF(I64="",0,INDEX(SignalHeads[Weight*** (lbs)],MATCH(I64,SignalHeads[Code],0)))) -> 0 | L64: =IF(A64<=$I$8,INDEX(DesignConstants[Value],MATCH("Span Wire Weight (plf)",DesignConstants[Design Constant],0)),0) -> 1.155 | M64: 0 | N64: 44.4675 | S64: =SUM(IF(B64="",0,INDEX(SignalHeads[Height ** (feet)],MATCH(B64,SignalHeads[Code],0))),IF(D64="",0,INDEX(SignalHeads[Height ** (feet)],MATCH(D64,SignalHeads[Code],0))),IF(E64="",0,INDEX(SignalHeads[Height ** (feet)],MATCH(E64,SignalHeads[Code],0))),IF(F64="",0,INDEX(SignalHeads[Height ** (feet)],MATCH(F64,SignalHeads[Code],0))),IF(G64="",0,INDEX(SignalHeads[Height ** (feet)],MATCH(G64,SignalHeads[Code],0))),IF(H64="",0,INDEX(SignalHeads[Height ** (feet)],MATCH(H64,SignalHeads[Code],0))),IF(I64="",0,INDEX(SignalHeads[Height ** (feet)],MATCH(I64,SignalHeads[Code],0)))) -> 0 | T64: =IF(S64=0,"",ROUNDDOWN(12*(((Q64-S64)-MIN($Q$26:$Q$425-$S$26:$S$425)-(MAX($S$26:$S$425*(($Q$26:$Q$425-$S$26:$S$425)=MIN($Q$26:$Q$425-$S$26:$S$425)))-S64))+(MIN($Q$26:$Q$425-$S$26:$S$425)-$I$10)),0)/12) ->  | W64: 17
A65: 40 | J65: =SUM(IF(B65="",0,INDEX(SignalHeads[Perp. Wind Area (sft)],MATCH(B65,SignalHeads[Code],0))),IF(D65="",0,INDEX(SignalHeads[Perp. Wind Area (sft)],MATCH(D65,SignalHeads[Code],0))),IF(E65="",0,INDEX(SignalHeads[Perp. Wind Area (sft)],MATCH(E65,SignalHeads[Code],0))),IF(F65="",0,INDEX(SignalHeads[Perp. Wind Area (sft)],MATCH(F65,SignalHeads[Code],0))),IF(G65="",0,INDEX(SignalHeads[Perp. Wind Area (sft)],MATCH(G65,SignalHeads[Code],0))),IF(H65="",0,INDEX(SignalHeads[Perp. Wind Area (sft)],MATCH(H65,SignalHeads[Code],0))),IF(I65="",0,INDEX(SignalHeads[Perp. Wind Area (sft)],MATCH(I65,SignalHeads[Code],0)))) -> 0 | K65: =SUM(IF(B65="",0,INDEX(SignalHeads[Weight*** (lbs)],MATCH(B65,SignalHeads[Code],0))),IF(D65="",0,INDEX(SignalHeads[Weight*** (lbs)],MATCH(D65,SignalHeads[Code],0))),IF(E65="",0,INDEX(SignalHeads[Weight*** (lbs)],MATCH(E65,SignalHeads[Code],0))),IF(F65="",0,INDEX(SignalHeads[Weight*** (lbs)],MATCH(F65,SignalHeads[Code],0))),IF(G65="",0,INDEX(SignalHeads[Weight*** (lbs)],MATCH(G65,SignalHeads[Code],0))),IF(H65="",0,INDEX(SignalHeads[Weight*** (lbs)],MATCH(H65,SignalHeads[Code],0))),IF(I65="",0,INDEX(SignalHeads[Weight*** (lbs)],MATCH(I65,SignalHeads[Code],0)))) -> 0 | L65: =IF(A65<=$I$8,INDEX(DesignConstants[Value],MATCH("Span Wire Weight (plf)",DesignConstants[Design Constant],0)),0) -> 1.155 | M65: 0 | N65: 45.6225 | S65: =SUM(IF(B65="",0,INDEX(SignalHeads[Height ** (feet)],MATCH(B65,SignalHeads[Code],0))),IF(D65="",0,INDEX(SignalHeads[Height ** (feet)],MATCH(D65,SignalHeads[Code],0))),IF(E65="",0,INDEX(SignalHeads[Height ** (feet)],MATCH(E65,SignalHeads[Code],0))),IF(F65="",0,INDEX(SignalHeads[Height ** (feet)],MATCH(F65,SignalHeads[Code],0))),IF(G65="",0,INDEX(SignalHeads[Height ** (feet)],MATCH(G65,SignalHeads[Code],0))),IF(H65="",0,INDEX(SignalHeads[Height ** (feet)],MATCH(H65,SignalHeads[Code],0))),IF(I65="",0,INDEX(SignalHeads[Height ** (feet)],MATCH(I65,SignalHeads[Code],0)))) -> 0 | T65: =IF(S65=0,"",ROUNDDOWN(12*(((Q65-S65)-MIN($Q$26:$Q$425-$S$26:$S$425)-(MAX($S$26:$S$425*(($Q$26:$Q$425-$S$26:$S$425)=MIN($Q$26:$Q$425-$S$26:$S$425)))-S65))+(MIN($Q$26:$Q$425-$S$26:$S$425)-$I$10)),0)/12) ->  | W65: 17
A66: 41 | J66: =SUM(IF(B66="",0,INDEX(SignalHeads[Perp. Wind Area (sft)],MATCH(B66,SignalHeads[Code],0))),IF(D66="",0,INDEX(SignalHeads[Perp. Wind Area (sft)],MATCH(D66,SignalHeads[Code],0))),IF(E66="",0,INDEX(SignalHeads[Perp. Wind Area (sft)],MATCH(E66,SignalHeads[Code],0))),IF(F66="",0,INDEX(SignalHeads[Perp. Wind Area (sft)],MATCH(F66,SignalHeads[Code],0))),IF(G66="",0,INDEX(SignalHeads[Perp. Wind Area (sft)],MATCH(G66,SignalHeads[Code],0))),IF(H66="",0,INDEX(SignalHeads[Perp. Wind Area (sft)],MATCH(H66,SignalHeads[Code],0))),IF(I66="",0,INDEX(SignalHeads[Perp. Wind Area (sft)],MATCH(I66,SignalHeads[Code],0)))) -> 0 | K66: =SUM(IF(B66="",0,INDEX(SignalHeads[Weight*** (lbs)],MATCH(B66,SignalHeads[Code],0))),IF(D66="",0,INDEX(SignalHeads[Weight*** (lbs)],MATCH(D66,SignalHeads[Code],0))),IF(E66="",0,INDEX(SignalHeads[Weight*** (lbs)],MATCH(E66,SignalHeads[Code],0))),IF(F66="",0,INDEX(SignalHeads[Weight*** (lbs)],MATCH(F66,SignalHeads[Code],0))),IF(G66="",0,INDEX(SignalHeads[Weight*** (lbs)],MATCH(G66,SignalHeads[Code],0))),IF(H66="",0,INDEX(SignalHeads[Weight*** (lbs)],MATCH(H66,SignalHeads[Code],0))),IF(I66="",0,INDEX(SignalHeads[Weight*** (lbs)],MATCH(I66,SignalHeads[Code],0)))) -> 0 | L66: =IF(A66<=$I$8,INDEX(DesignConstants[Value],MATCH("Span Wire Weight (plf)",DesignConstants[Design Constant],0)),0) -> 1.155 | M66: 0 | N66: 46.7775 | S66: =SUM(IF(B66="",0,INDEX(SignalHeads[Height ** (feet)],MATCH(B66,SignalHeads[Code],0))),IF(D66="",0,INDEX(SignalHeads[Height ** (feet)],MATCH(D66,SignalHeads[Code],0))),IF(E66="",0,INDEX(SignalHeads[Height ** (feet)],MATCH(E66,SignalHeads[Code],0))),IF(F66="",0,INDEX(SignalHeads[Height ** (feet)],MATCH(F66,SignalHeads[Code],0))),IF(G66="",0,INDEX(SignalHeads[Height ** (feet)],MATCH(G66,SignalHeads[Code],0))),IF(H66="",0,INDEX(SignalHeads[Height ** (feet)],MATCH(H66,SignalHeads[Code],0))),IF(I66="",0,INDEX(SignalHeads[Height ** (feet)],MATCH(I66,SignalHeads[Code],0)))) -> 0 | T66: =IF(S66=0,"",ROUNDDOWN(12*(((Q66-S66)-MIN($Q$26:$Q$425-$S$26:$S$425)-(MAX($S$26:$S$425*(($Q$26:$Q$425-$S$26:$S$425)=MIN($Q$26:$Q$425-$S$26:$S$425)))-S66))+(MIN($Q$26:$Q$425-$S$26:$S$425)-$I$10)),0)/12) ->  | W66: 17
A67: 42 | J67: =SUM(IF(B67="",0,INDEX(SignalHeads[Perp. Wind Area (sft)],MATCH(B67,SignalHeads[Code],0))),IF(D67="",0,INDEX(SignalHeads[Perp. Wind Area (sft)],MATCH(D67,SignalHeads[Code],0))),IF(E67="",0,INDEX(SignalHeads[Perp. Wind Area (sft)],MATCH(E67,SignalHeads[Code],0))),IF(F67="",0,INDEX(SignalHeads[Perp. Wind Area (sft)],MATCH(F67,SignalHeads[Code],0))),IF(G67="",0,INDEX(SignalHeads[Perp. Wind Area (sft)],MATCH(G67,SignalHeads[Code],0))),IF(H67="",0,INDEX(SignalHeads[Perp. Wind Area (sft)],MATCH(H67,SignalHeads[Code],0))),IF(I67="",0,INDEX(SignalHeads[Perp. Wind Area (sft)],MATCH(I67,SignalHeads[Code],0)))) -> 0 | K67: =SUM(IF(B67="",0,INDEX(SignalHeads[Weight*** (lbs)],MATCH(B67,SignalHeads[Code],0))),IF(D67="",0,INDEX(SignalHeads[Weight*** (lbs)],MATCH(D67,SignalHeads[Code],0))),IF(E67="",0,INDEX(SignalHeads[Weight*** (lbs)],MATCH(E67,SignalHeads[Code],0))),IF(F67="",0,INDEX(SignalHeads[Weight*** (lbs)],MATCH(F67,SignalHeads[Code],0))),IF(G67="",0,INDEX(SignalHeads[Weight*** (lbs)],MATCH(G67,SignalHeads[Code],0))),IF(H67="",0,INDEX(SignalHeads[Weight*** (lbs)],MATCH(H67,SignalHeads[Code],0))),IF(I67="",0,INDEX(SignalHeads[Weight*** (lbs)],MATCH(I67,SignalHeads[Code],0)))) -> 0 | L67: =IF(A67<=$I$8,INDEX(DesignConstants[Value],MATCH("Span Wire Weight (plf)",DesignConstants[Design Constant],0)),0) -> 1.155 | M67: 0 | N67: 47.9325 | S67: =SUM(IF(B67="",0,INDEX(SignalHeads[Height ** (feet)],MATCH(B67,SignalHeads[Code],0))),IF(D67="",0,INDEX(SignalHeads[Height ** (feet)],MATCH(D67,SignalHeads[Code],0))),IF(E67="",0,INDEX(SignalHeads[Height ** (feet)],MATCH(E67,SignalHeads[Code],0))),IF(F67="",0,INDEX(SignalHeads[Height ** (feet)],MATCH(F67,SignalHeads[Code],0))),IF(G67="",0,INDEX(SignalHeads[Height ** (feet)],MATCH(G67,SignalHeads[Code],0))),IF(H67="",0,INDEX(SignalHeads[Height ** (feet)],MATCH(H67,SignalHeads[Code],0))),IF(I67="",0,INDEX(SignalHeads[Height ** (feet)],MATCH(I67,SignalHeads[Code],0)))) -> 0 | T67: =IF(S67=0,"",ROUNDDOWN(12*(((Q67-S67)-MIN($Q$26:$Q$425-$S$26:$S$425)-(MAX($S$26:$S$425*(($Q$26:$Q$425-$S$26:$S$425)=MIN($Q$26:$Q$425-$S$26:$S$425)))-S67))+(MIN($Q$26:$Q$425-$S$26:$S$425)-$I$10)),0)/12) ->  | W67: 17
A68: 43 | J68: =SUM(IF(B68="",0,INDEX(SignalHeads[Perp. Wind Area (sft)],MATCH(B68,SignalHeads[Code],0))),IF(D68="",0,INDEX(SignalHeads[Perp. Wind Area (sft)],MATCH(D68,SignalHeads[Code],0))),IF(E68="",0,INDEX(SignalHeads[Perp. Wind Area (sft)],MATCH(E68,SignalHeads[Code],0))),IF(F68="",0,INDEX(SignalHeads[Perp. Wind Area (sft)],MATCH(F68,SignalHeads[Code],0))),IF(G68="",0,INDEX(SignalHeads[Perp. Wind Area (sft)],MATCH(G68,SignalHeads[Code],0))),IF(H68="",0,INDEX(SignalHeads[Perp. Wind Area (sft)],MATCH(H68,SignalHeads[Code],0))),IF(I68="",0,INDEX(SignalHeads[Perp. Wind Area (sft)],MATCH(I68,SignalHeads[Code],0)))) -> 0 | K68: =SUM(IF(B68="",0,INDEX(SignalHeads[Weight*** (lbs)],MATCH(B68,SignalHeads[Code],0))),IF(D68="",0,INDEX(SignalHeads[Weight*** (lbs)],MATCH(D68,SignalHeads[Code],0))),IF(E68="",0,INDEX(SignalHeads[Weight*** (lbs)],MATCH(E68,SignalHeads[Code],0))),IF(F68="",0,INDEX(SignalHeads[Weight*** (lbs)],MATCH(F68,SignalHeads[Code],0))),IF(G68="",0,INDEX(SignalHeads[Weight*** (lbs)],MATCH(G68,SignalHeads[Code],0))),IF(H68="",0,INDEX(SignalHeads[Weight*** (lbs)],MATCH(H68,SignalHeads[Code],0))),IF(I68="",0,INDEX(SignalHeads[Weight*** (lbs)],MATCH(I68,SignalHeads[Code],0)))) -> 0 | L68: =IF(A68<=$I$8,INDEX(DesignConstants[Value],MATCH("Span Wire Weight (plf)",DesignConstants[Design Constant],0)),0) -> 1.155 | M68: 0 | N68: 49.0875 | S68: =SUM(IF(B68="",0,INDEX(SignalHeads[Height ** (feet)],MATCH(B68,SignalHeads[Code],0))),IF(D68="",0,INDEX(SignalHeads[Height ** (feet)],MATCH(D68,SignalHeads[Code],0))),IF(E68="",0,INDEX(SignalHeads[Height ** (feet)],MATCH(E68,SignalHeads[Code],0))),IF(F68="",0,INDEX(SignalHeads[Height ** (feet)],MATCH(F68,SignalHeads[Code],0))),IF(G68="",0,INDEX(SignalHeads[Height ** (feet)],MATCH(G68,SignalHeads[Code],0))),IF(H68="",0,INDEX(SignalHeads[Height ** (feet)],MATCH(H68,SignalHeads[Code],0))),IF(I68="",0,INDEX(SignalHeads[Height ** (feet)],MATCH(I68,SignalHeads[Code],0)))) -> 0 | T68: =IF(S68=0,"",ROUNDDOWN(12*(((Q68-S68)-MIN($Q$26:$Q$425-$S$26:$S$425)-(MAX($S$26:$S$425*(($Q$26:$Q$425-$S$26:$S$425)=MIN($Q$26:$Q$425-$S$26:$S$425)))-S68))+(MIN($Q$26:$Q$425-$S$26:$S$425)-$I$10)),0)/12) ->  | W68: 17
A69: 44 | J69: =SUM(IF(B69="",0,INDEX(SignalHeads[Perp. Wind Area (sft)],MATCH(B69,SignalHeads[Code],0))),IF(D69="",0,INDEX(SignalHeads[Perp. Wind Area (sft)],MATCH(D69,SignalHeads[Code],0))),IF(E69="",0,INDEX(SignalHeads[Perp. Wind Area (sft)],MATCH(E69,SignalHeads[Code],0))),IF(F69="",0,INDEX(SignalHeads[Perp. Wind Area (sft)],MATCH(F69,SignalHeads[Code],0))),IF(G69="",0,INDEX(SignalHeads[Perp. Wind Area (sft)],MATCH(G69,SignalHeads[Code],0))),IF(H69="",0,INDEX(SignalHeads[Perp. Wind Area (sft)],MATCH(H69,SignalHeads[Code],0))),IF(I69="",0,INDEX(SignalHeads[Perp. Wind Area (sft)],MATCH(I69,SignalHeads[Code],0)))) -> 0 | K69: =SUM(IF(B69="",0,INDEX(SignalHeads[Weight*** (lbs)],MATCH(B69,SignalHeads[Code],0))),IF(D69="",0,INDEX(SignalHeads[Weight*** (lbs)],MATCH(D69,SignalHeads[Code],0))),IF(E69="",0,INDEX(SignalHeads[Weight*** (lbs)],MATCH(E69,SignalHeads[Code],0))),IF(F69="",0,INDEX(SignalHeads[Weight*** (lbs)],MATCH(F69,SignalHeads[Code],0))),IF(G69="",0,INDEX(SignalHeads[Weight*** (lbs)],MATCH(G69,SignalHeads[Code],0))),IF(H69="",0,INDEX(SignalHeads[Weight*** (lbs)],MATCH(H69,SignalHeads[Code],0))),IF(I69="",0,INDEX(SignalHeads[Weight*** (lbs)],MATCH(I69,SignalHeads[Code],0)))) -> 0 | L69: =IF(A69<=$I$8,INDEX(DesignConstants[Value],MATCH("Span Wire Weight (plf)",DesignConstants[Design Constant],0)),0) -> 1.155 | M69: 0 | N69: 50.2425 | S69: =SUM(IF(B69="",0,INDEX(SignalHeads[Height ** (feet)],MATCH(B69,SignalHeads[Code],0))),IF(D69="",0,INDEX(SignalHeads[Height ** (feet)],MATCH(D69,SignalHeads[Code],0))),IF(E69="",0,INDEX(SignalHeads[Height ** (feet)],MATCH(E69,SignalHeads[Code],0))),IF(F69="",0,INDEX(SignalHeads[Height ** (feet)],MATCH(F69,SignalHeads[Code],0))),IF(G69="",0,INDEX(SignalHeads[Height ** (feet)],MATCH(G69,SignalHeads[Code],0))),IF(H69="",0,INDEX(SignalHeads[Height ** (feet)],MATCH(H69,SignalHeads[Code],0))),IF(I69="",0,INDEX(SignalHeads[Height ** (feet)],MATCH(I69,SignalHeads[Code],0)))) -> 0 | T69: =IF(S69=0,"",ROUNDDOWN(12*(((Q69-S69)-MIN($Q$26:$Q$425-$S$26:$S$425)-(MAX($S$26:$S$425*(($Q$26:$Q$425-$S$26:$S$425)=MIN($Q$26:$Q$425-$S$26:$S$425)))-S69))+(MIN($Q$26:$Q$425-$S$26:$S$425)-$I$10)),0)/12) ->  | W69: 17
A70: 45 | J70: =SUM(IF(B70="",0,INDEX(SignalHeads[Perp. Wind Area (sft)],MATCH(B70,SignalHeads[Code],0))),IF(D70="",0,INDEX(SignalHeads[Perp. Wind Area (sft)],MATCH(D70,SignalHeads[Code],0))),IF(E70="",0,INDEX(SignalHeads[Perp. Wind Area (sft)],MATCH(E70,SignalHeads[Code],0))),IF(F70="",0,INDEX(SignalHeads[Perp. Wind Area (sft)],MATCH(F70,SignalHeads[Code],0))),IF(G70="",0,INDEX(SignalHeads[Perp. Wind Area (sft)],MATCH(G70,SignalHeads[Code],0))),IF(H70="",0,INDEX(SignalHeads[Perp. Wind Area (sft)],MATCH(H70,SignalHeads[Code],0))),IF(I70="",0,INDEX(SignalHeads[Perp. Wind Area (sft)],MATCH(I70,SignalHeads[Code],0)))) -> 0 | K70: =SUM(IF(B70="",0,INDEX(SignalHeads[Weight*** (lbs)],MATCH(B70,SignalHeads[Code],0))),IF(D70="",0,INDEX(SignalHeads[Weight*** (lbs)],MATCH(D70,SignalHeads[Code],0))),IF(E70="",0,INDEX(SignalHeads[Weight*** (lbs)],MATCH(E70,SignalHeads[Code],0))),IF(F70="",0,INDEX(SignalHeads[Weight*** (lbs)],MATCH(F70,SignalHeads[Code],0))),IF(G70="",0,INDEX(SignalHeads[Weight*** (lbs)],MATCH(G70,SignalHeads[Code],0))),IF(H70="",0,INDEX(SignalHeads[Weight*** (lbs)],MATCH(H70,SignalHeads[Code],0))),IF(I70="",0,INDEX(SignalHeads[Weight*** (lbs)],MATCH(I70,SignalHeads[Code],0)))) -> 0 | L70: =IF(A70<=$I$8,INDEX(DesignConstants[Value],MATCH("Span Wire Weight (plf)",DesignConstants[Design Constant],0)),0) -> 1.155 | M70: 0 | N70: 51.3975 | S70: =SUM(IF(B70="",0,INDEX(SignalHeads[Height ** (feet)],MATCH(B70,SignalHeads[Code],0))),IF(D70="",0,INDEX(SignalHeads[Height ** (feet)],MATCH(D70,SignalHeads[Code],0))),IF(E70="",0,INDEX(SignalHeads[Height ** (feet)],MATCH(E70,SignalHeads[Code],0))),IF(F70="",0,INDEX(SignalHeads[Height ** (feet)],MATCH(F70,SignalHeads[Code],0))),IF(G70="",0,INDEX(SignalHeads[Height ** (feet)],MATCH(G70,SignalHeads[Code],0))),IF(H70="",0,INDEX(SignalHeads[Height ** (feet)],MATCH(H70,SignalHeads[Code],0))),IF(I70="",0,INDEX(SignalHeads[Height ** (feet)],MATCH(I70,SignalHeads[Code],0)))) -> 0 | T70: =IF(S70=0,"",ROUNDDOWN(12*(((Q70-S70)-MIN($Q$26:$Q$425-$S$26:$S$425)-(MAX($S$26:$S$425*(($Q$26:$Q$425-$S$26:$S$425)=MIN($Q$26:$Q$425-$S$26:$S$425)))-S70))+(MIN($Q$26:$Q$425-$S$26:$S$425)-$I$10)),0)/12) ->  | W70: 17
A71: 46 | J71: =SUM(IF(B71="",0,INDEX(SignalHeads[Perp. Wind Area (sft)],MATCH(B71,SignalHeads[Code],0))),IF(D71="",0,INDEX(SignalHeads[Perp. Wind Area (sft)],MATCH(D71,SignalHeads[Code],0))),IF(E71="",0,INDEX(SignalHeads[Perp. Wind Area (sft)],MATCH(E71,SignalHeads[Code],0))),IF(F71="",0,INDEX(SignalHeads[Perp. Wind Area (sft)],MATCH(F71,SignalHeads[Code],0))),IF(G71="",0,INDEX(SignalHeads[Perp. Wind Area (sft)],MATCH(G71,SignalHeads[Code],0))),IF(H71="",0,INDEX(SignalHeads[Perp. Wind Area (sft)],MATCH(H71,SignalHeads[Code],0))),IF(I71="",0,INDEX(SignalHeads[Perp. Wind Area (sft)],MATCH(I71,SignalHeads[Code],0)))) -> 0 | K71: =SUM(IF(B71="",0,INDEX(SignalHeads[Weight*** (lbs)],MATCH(B71,SignalHeads[Code],0))),IF(D71="",0,INDEX(SignalHeads[Weight*** (lbs)],MATCH(D71,SignalHeads[Code],0))),IF(E71="",0,INDEX(SignalHeads[Weight*** (lbs)],MATCH(E71,SignalHeads[Code],0))),IF(F71="",0,INDEX(SignalHeads[Weight*** (lbs)],MATCH(F71,SignalHeads[Code],0))),IF(G71="",0,INDEX(SignalHeads[Weight*** (lbs)],MATCH(G71,SignalHeads[Code],0))),IF(H71="",0,INDEX(SignalHeads[Weight*** (lbs)],MATCH(H71,SignalHeads[Code],0))),IF(I71="",0,INDEX(SignalHeads[Weight*** (lbs)],MATCH(I71,SignalHeads[Code],0)))) -> 0 | L71: =IF(A71<=$I$8,INDEX(DesignConstants[Value],MATCH("Span Wire Weight (plf)",DesignConstants[Design Constant],0)),0) -> 1.155 | M71: 0 | N71: 52.5525 | S71: =SUM(IF(B71="",0,INDEX(SignalHeads[Height ** (feet)],MATCH(B71,SignalHeads[Code],0))),IF(D71="",0,INDEX(SignalHeads[Height ** (feet)],MATCH(D71,SignalHeads[Code],0))),IF(E71="",0,INDEX(SignalHeads[Height ** (feet)],MATCH(E71,SignalHeads[Code],0))),IF(F71="",0,INDEX(SignalHeads[Height ** (feet)],MATCH(F71,SignalHeads[Code],0))),IF(G71="",0,INDEX(SignalHeads[Height ** (feet)],MATCH(G71,SignalHeads[Code],0))),IF(H71="",0,INDEX(SignalHeads[Height ** (feet)],MATCH(H71,SignalHeads[Code],0))),IF(I71="",0,INDEX(SignalHeads[Height ** (feet)],MATCH(I71,SignalHeads[Code],0)))) -> 0 | T71: =IF(S71=0,"",ROUNDDOWN(12*(((Q71-S71)-MIN($Q$26:$Q$425-$S$26:$S$425)-(MAX($S$26:$S$425*(($Q$26:$Q$425-$S$26:$S$425)=MIN($Q$26:$Q$425-$S$26:$S$425)))-S71))+(MIN($Q$26:$Q$425-$S$26:$S$425)-$I$10)),0)/12) ->  | W71: 17
A72: 47 | J72: =SUM(IF(B72="",0,INDEX(SignalHeads[Perp. Wind Area (sft)],MATCH(B72,SignalHeads[Code],0))),IF(D72="",0,INDEX(SignalHeads[Perp. Wind Area (sft)],MATCH(D72,SignalHeads[Code],0))),IF(E72="",0,INDEX(SignalHeads[Perp. Wind Area (sft)],MATCH(E72,SignalHeads[Code],0))),IF(F72="",0,INDEX(SignalHeads[Perp. Wind Area (sft)],MATCH(F72,SignalHeads[Code],0))),IF(G72="",0,INDEX(SignalHeads[Perp. Wind Area (sft)],MATCH(G72,SignalHeads[Code],0))),IF(H72="",0,INDEX(SignalHeads[Perp. Wind Area (sft)],MATCH(H72,SignalHeads[Code],0))),IF(I72="",0,INDEX(SignalHeads[Perp. Wind Area (sft)],MATCH(I72,SignalHeads[Code],0)))) -> 0 | K72: =SUM(IF(B72="",0,INDEX(SignalHeads[Weight*** (lbs)],MATCH(B72,SignalHeads[Code],0))),IF(D72="",0,INDEX(SignalHeads[Weight*** (lbs)],MATCH(D72,SignalHeads[Code],0))),IF(E72="",0,INDEX(SignalHeads[Weight*** (lbs)],MATCH(E72,SignalHeads[Code],0))),IF(F72="",0,INDEX(SignalHeads[Weight*** (lbs)],MATCH(F72,SignalHeads[Code],0))),IF(G72="",0,INDEX(SignalHeads[Weight*** (lbs)],MATCH(G72,SignalHeads[Code],0))),IF(H72="",0,INDEX(SignalHeads[Weight*** (lbs)],MATCH(H72,SignalHeads[Code],0))),IF(I72="",0,INDEX(SignalHeads[Weight*** (lbs)],MATCH(I72,SignalHeads[Code],0)))) -> 0 | L72: =IF(A72<=$I$8,INDEX(DesignConstants[Value],MATCH("Span Wire Weight (plf)",DesignConstants[Design Constant],0)),0) -> 1.155 | M72: 0 | N72: 53.7075 | S72: =SUM(IF(B72="",0,INDEX(SignalHeads[Height ** (feet)],MATCH(B72,SignalHeads[Code],0))),IF(D72="",0,INDEX(SignalHeads[Height ** (feet)],MATCH(D72,SignalHeads[Code],0))),IF(E72="",0,INDEX(SignalHeads[Height ** (feet)],MATCH(E72,SignalHeads[Code],0))),IF(F72="",0,INDEX(SignalHeads[Height ** (feet)],MATCH(F72,SignalHeads[Code],0))),IF(G72="",0,INDEX(SignalHeads[Height ** (feet)],MATCH(G72,SignalHeads[Code],0))),IF(H72="",0,INDEX(SignalHeads[Height ** (feet)],MATCH(H72,SignalHeads[Code],0))),IF(I72="",0,INDEX(SignalHeads[Height ** (feet)],MATCH(I72,SignalHeads[Code],0)))) -> 0 | T72: =IF(S72=0,"",ROUNDDOWN(12*(((Q72-S72)-MIN($Q$26:$Q$425-$S$26:$S$425)-(MAX($S$26:$S$425*(($Q$26:$Q$425-$S$26:$S$425)=MIN($Q$26:$Q$425-$S$26:$S$425)))-S72))+(MIN($Q$26:$Q$425-$S$26:$S$425)-$I$10)),0)/12) ->  | W72: 17
A73: 48 | J73: =SUM(IF(B73="",0,INDEX(SignalHeads[Perp. Wind Area (sft)],MATCH(B73,SignalHeads[Code],0))),IF(D73="",0,INDEX(SignalHeads[Perp. Wind Area (sft)],MATCH(D73,SignalHeads[Code],0))),IF(E73="",0,INDEX(SignalHeads[Perp. Wind Area (sft)],MATCH(E73,SignalHeads[Code],0))),IF(F73="",0,INDEX(SignalHeads[Perp. Wind Area (sft)],MATCH(F73,SignalHeads[Code],0))),IF(G73="",0,INDEX(SignalHeads[Perp. Wind Area (sft)],MATCH(G73,SignalHeads[Code],0))),IF(H73="",0,INDEX(SignalHeads[Perp. Wind Area (sft)],MATCH(H73,SignalHeads[Code],0))),IF(I73="",0,INDEX(SignalHeads[Perp. Wind Area (sft)],MATCH(I73,SignalHeads[Code],0)))) -> 0 | K73: =SUM(IF(B73="",0,INDEX(SignalHeads[Weight*** (lbs)],MATCH(B73,SignalHeads[Code],0))),IF(D73="",0,INDEX(SignalHeads[Weight*** (lbs)],MATCH(D73,SignalHeads[Code],0))),IF(E73="",0,INDEX(SignalHeads[Weight*** (lbs)],MATCH(E73,SignalHeads[Code],0))),IF(F73="",0,INDEX(SignalHeads[Weight*** (lbs)],MATCH(F73,SignalHeads[Code],0))),IF(G73="",0,INDEX(SignalHeads[Weight*** (lbs)],MATCH(G73,SignalHeads[Code],0))),IF(H73="",0,INDEX(SignalHeads[Weight*** (lbs)],MATCH(H73,SignalHeads[Code],0))),IF(I73="",0,INDEX(SignalHeads[Weight*** (lbs)],MATCH(I73,SignalHeads[Code],0)))) -> 0 | L73: =IF(A73<=$I$8,INDEX(DesignConstants[Value],MATCH("Span Wire Weight (plf)",DesignConstants[Design Constant],0)),0) -> 1.155 | M73: 0 | N73: 54.8625 | S73: =SUM(IF(B73="",0,INDEX(SignalHeads[Height ** (feet)],MATCH(B73,SignalHeads[Code],0))),IF(D73="",0,INDEX(SignalHeads[Height ** (feet)],MATCH(D73,SignalHeads[Code],0))),IF(E73="",0,INDEX(SignalHeads[Height ** (feet)],MATCH(E73,SignalHeads[Code],0))),IF(F73="",0,INDEX(SignalHeads[Height ** (feet)],MATCH(F73,SignalHeads[Code],0))),IF(G73="",0,INDEX(SignalHeads[Height ** (feet)],MATCH(G73,SignalHeads[Code],0))),IF(H73="",0,INDEX(SignalHeads[Height ** (feet)],MATCH(H73,SignalHeads[Code],0))),IF(I73="",0,INDEX(SignalHeads[Height ** (feet)],MATCH(I73,SignalHeads[Code],0)))) -> 0 | T73: =IF(S73=0,"",ROUNDDOWN(12*(((Q73-S73)-MIN($Q$26:$Q$425-$S$26:$S$425)-(MAX($S$26:$S$425*(($Q$26:$Q$425-$S$26:$S$425)=MIN($Q$26:$Q$425-$S$26:$S$425)))-S73))+(MIN($Q$26:$Q$425-$S$26:$S$425)-$I$10)),0)/12) ->  | W73: 17
A74: 49 | J74: =SUM(IF(B74="",0,INDEX(SignalHeads[Perp. Wind Area (sft)],MATCH(B74,SignalHeads[Code],0))),IF(D74="",0,INDEX(SignalHeads[Perp. Wind Area (sft)],MATCH(D74,SignalHeads[Code],0))),IF(E74="",0,INDEX(SignalHeads[Perp. Wind Area (sft)],MATCH(E74,SignalHeads[Code],0))),IF(F74="",0,INDEX(SignalHeads[Perp. Wind Area (sft)],MATCH(F74,SignalHeads[Code],0))),IF(G74="",0,INDEX(SignalHeads[Perp. Wind Area (sft)],MATCH(G74,SignalHeads[Code],0))),IF(H74="",0,INDEX(SignalHeads[Perp. Wind Area (sft)],MATCH(H74,SignalHeads[Code],0))),IF(I74="",0,INDEX(SignalHeads[Perp. Wind Area (sft)],MATCH(I74,SignalHeads[Code],0)))) -> 0 | K74: =SUM(IF(B74="",0,INDEX(SignalHeads[Weight*** (lbs)],MATCH(B74,SignalHeads[Code],0))),IF(D74="",0,INDEX(SignalHeads[Weight*** (lbs)],MATCH(D74,SignalHeads[Code],0))),IF(E74="",0,INDEX(SignalHeads[Weight*** (lbs)],MATCH(E74,SignalHeads[Code],0))),IF(F74="",0,INDEX(SignalHeads[Weight*** (lbs)],MATCH(F74,SignalHeads[Code],0))),IF(G74="",0,INDEX(SignalHeads[Weight*** (lbs)],MATCH(G74,SignalHeads[Code],0))),IF(H74="",0,INDEX(SignalHeads[Weight*** (lbs)],MATCH(H74,SignalHeads[Code],0))),IF(I74="",0,INDEX(SignalHeads[Weight*** (lbs)],MATCH(I74,SignalHeads[Code],0)))) -> 0 | L74: =IF(A74<=$I$8,INDEX(DesignConstants[Value],MATCH("Span Wire Weight (plf)",DesignConstants[Design Constant],0)),0) -> 1.155 | M74: 0 | N74: 56.0175 | S74: =SUM(IF(B74="",0,INDEX(SignalHeads[Height ** (feet)],MATCH(B74,SignalHeads[Code],0))),IF(D74="",0,INDEX(SignalHeads[Height ** (feet)],MATCH(D74,SignalHeads[Code],0))),IF(E74="",0,INDEX(SignalHeads[Height ** (feet)],MATCH(E74,SignalHeads[Code],0))),IF(F74="",0,INDEX(SignalHeads[Height ** (feet)],MATCH(F74,SignalHeads[Code],0))),IF(G74="",0,INDEX(SignalHeads[Height ** (feet)],MATCH(G74,SignalHeads[Code],0))),IF(H74="",0,INDEX(SignalHeads[Height ** (feet)],MATCH(H74,SignalHeads[Code],0))),IF(I74="",0,INDEX(SignalHeads[Height ** (feet)],MATCH(I74,SignalHeads[Code],0)))) -> 0 | T74: =IF(S74=0,"",ROUNDDOWN(12*(((Q74-S74)-MIN($Q$26:$Q$425-$S$26:$S$425)-(MAX($S$26:$S$425*(($Q$26:$Q$425-$S$26:$S$425)=MIN($Q$26:$Q$425-$S$26:$S$425)))-S74))+(MIN($Q$26:$Q$425-$S$26:$S$425)-$I$10)),0)/12) ->  | W74: 17
A75: 50 | J75: =SUM(IF(B75="",0,INDEX(SignalHeads[Perp. Wind Area (sft)],MATCH(B75,SignalHeads[Code],0))),IF(D75="",0,INDEX(SignalHeads[Perp. Wind Area (sft)],MATCH(D75,SignalHeads[Code],0))),IF(E75="",0,INDEX(SignalHeads[Perp. Wind Area (sft)],MATCH(E75,SignalHeads[Code],0))),IF(F75="",0,INDEX(SignalHeads[Perp. Wind Area (sft)],MATCH(F75,SignalHeads[Code],0))),IF(G75="",0,INDEX(SignalHeads[Perp. Wind Area (sft)],MATCH(G75,SignalHeads[Code],0))),IF(H75="",0,INDEX(SignalHeads[Perp. Wind Area (sft)],MATCH(H75,SignalHeads[Code],0))),IF(I75="",0,INDEX(SignalHeads[Perp. Wind Area (sft)],MATCH(I75,SignalHeads[Code],0)))) -> 0 | K75: =SUM(IF(B75="",0,INDEX(SignalHeads[Weight*** (lbs)],MATCH(B75,SignalHeads[Code],0))),IF(D75="",0,INDEX(SignalHeads[Weight*** (lbs)],MATCH(D75,SignalHeads[Code],0))),IF(E75="",0,INDEX(SignalHeads[Weight*** (lbs)],MATCH(E75,SignalHeads[Code],0))),IF(F75="",0,INDEX(SignalHeads[Weight*** (lbs)],MATCH(F75,SignalHeads[Code],0))),IF(G75="",0,INDEX(SignalHeads[Weight*** (lbs)],MATCH(G75,SignalHeads[Code],0))),IF(H75="",0,INDEX(SignalHeads[Weight*** (lbs)],MATCH(H75,SignalHeads[Code],0))),IF(I75="",0,INDEX(SignalHeads[Weight*** (lbs)],MATCH(I75,SignalHeads[Code],0)))) -> 0 | L75: =IF(A75<=$I$8,INDEX(DesignConstants[Value],MATCH("Span Wire Weight (plf)",DesignConstants[Design Constant],0)),0) -> 1.155 | M75: 0 | N75: 57.1725 | S75: =SUM(IF(B75="",0,INDEX(SignalHeads[Height ** (feet)],MATCH(B75,SignalHeads[Code],0))),IF(D75="",0,INDEX(SignalHeads[Height ** (feet)],MATCH(D75,SignalHeads[Code],0))),IF(E75="",0,INDEX(SignalHeads[Height ** (feet)],MATCH(E75,SignalHeads[Code],0))),IF(F75="",0,INDEX(SignalHeads[Height ** (feet)],MATCH(F75,SignalHeads[Code],0))),IF(G75="",0,INDEX(SignalHeads[Height ** (feet)],MATCH(G75,SignalHeads[Code],0))),IF(H75="",0,INDEX(SignalHeads[Height ** (feet)],MATCH(H75,SignalHeads[Code],0))),IF(I75="",0,INDEX(SignalHeads[Height ** (feet)],MATCH(I75,SignalHeads[Code],0)))) -> 0 | T75: =IF(S75=0,"",ROUNDDOWN(12*(((Q75-S75)-MIN($Q$26:$Q$425-$S$26:$S$425)-(MAX($S$26:$S$425*(($Q$26:$Q$425-$S$26:$S$425)=MIN($Q$26:$Q$425-$S$26:$S$425)))-S75))+(MIN($Q$26:$Q$425-$S$26:$S$425)-$I$10)),0)/12) ->  | W75: 17
A76: 51 | J76: =SUM(IF(B76="",0,INDEX(SignalHeads[Perp. Wind Area (sft)],MATCH(B76,SignalHeads[Code],0))),IF(D76="",0,INDEX(SignalHeads[Perp. Wind Area (sft)],MATCH(D76,SignalHeads[Code],0))),IF(E76="",0,INDEX(SignalHeads[Perp. Wind Area (sft)],MATCH(E76,SignalHeads[Code],0))),IF(F76="",0,INDEX(SignalHeads[Perp. Wind Area (sft)],MATCH(F76,SignalHeads[Code],0))),IF(G76="",0,INDEX(SignalHeads[Perp. Wind Area (sft)],MATCH(G76,SignalHeads[Code],0))),IF(H76="",0,INDEX(SignalHeads[Perp. Wind Area (sft)],MATCH(H76,SignalHeads[Code],0))),IF(I76="",0,INDEX(SignalHeads[Perp. Wind Area (sft)],MATCH(I76,SignalHeads[Code],0)))) -> 0 | K76: =SUM(IF(B76="",0,INDEX(SignalHeads[Weight*** (lbs)],MATCH(B76,SignalHeads[Code],0))),IF(D76="",0,INDEX(SignalHeads[Weight*** (lbs)],MATCH(D76,SignalHeads[Code],0))),IF(E76="",0,INDEX(SignalHeads[Weight*** (lbs)],MATCH(E76,SignalHeads[Code],0))),IF(F76="",0,INDEX(SignalHeads[Weight*** (lbs)],MATCH(F76,SignalHeads[Code],0))),IF(G76="",0,INDEX(SignalHeads[Weight*** (lbs)],MATCH(G76,SignalHeads[Code],0))),IF(H76="",0,INDEX(SignalHeads[Weight*** (lbs)],MATCH(H76,SignalHeads[Code],0))),IF(I76="",0,INDEX(SignalHeads[Weight*** (lbs)],MATCH(I76,SignalHeads[Code],0)))) -> 0 | L76: =IF(A76<=$I$8,INDEX(DesignConstants[Value],MATCH("Span Wire Weight (plf)",DesignConstants[Design Constant],0)),0) -> 1.155 | M76: 0 | N76: 58.3275 | S76: =SUM(IF(B76="",0,INDEX(SignalHeads[Height ** (feet)],MATCH(B76,SignalHeads[Code],0))),IF(D76="",0,INDEX(SignalHeads[Height ** (feet)],MATCH(D76,SignalHeads[Code],0))),IF(E76="",0,INDEX(SignalHeads[Height ** (feet)],MATCH(E76,SignalHeads[Code],0))),IF(F76="",0,INDEX(SignalHeads[Height ** (feet)],MATCH(F76,SignalHeads[Code],0))),IF(G76="",0,INDEX(SignalHeads[Height ** (feet)],MATCH(G76,SignalHeads[Code],0))),IF(H76="",0,INDEX(SignalHeads[Height ** (feet)],MATCH(H76,SignalHeads[Code],0))),IF(I76="",0,INDEX(SignalHeads[Height ** (feet)],MATCH(I76,SignalHeads[Code],0)))) -> 0 | T76: =IF(S76=0,"",ROUNDDOWN(12*(((Q76-S76)-MIN($Q$26:$Q$425-$S$26:$S$425)-(MAX($S$26:$S$425*(($Q$26:$Q$425-$S$26:$S$425)=MIN($Q$26:$Q$425-$S$26:$S$425)))-S76))+(MIN($Q$26:$Q$425-$S$26:$S$425)-$I$10)),0)/12) ->  | W76: 17
A77: 52 | J77: =SUM(IF(B77="",0,INDEX(SignalHeads[Perp. Wind Area (sft)],MATCH(B77,SignalHeads[Code],0))),IF(D77="",0,INDEX(SignalHeads[Perp. Wind Area (sft)],MATCH(D77,SignalHeads[Code],0))),IF(E77="",0,INDEX(SignalHeads[Perp. Wind Area (sft)],MATCH(E77,SignalHeads[Code],0))),IF(F77="",0,INDEX(SignalHeads[Perp. Wind Area (sft)],MATCH(F77,SignalHeads[Code],0))),IF(G77="",0,INDEX(SignalHeads[Perp. Wind Area (sft)],MATCH(G77,SignalHeads[Code],0))),IF(H77="",0,INDEX(SignalHeads[Perp. Wind Area (sft)],MATCH(H77,SignalHeads[Code],0))),IF(I77="",0,INDEX(SignalHeads[Perp. Wind Area (sft)],MATCH(I77,SignalHeads[Code],0)))) -> 0 | K77: =SUM(IF(B77="",0,INDEX(SignalHeads[Weight*** (lbs)],MATCH(B77,SignalHeads[Code],0))),IF(D77="",0,INDEX(SignalHeads[Weight*** (lbs)],MATCH(D77,SignalHeads[Code],0))),IF(E77="",0,INDEX(SignalHeads[Weight*** (lbs)],MATCH(E77,SignalHeads[Code],0))),IF(F77="",0,INDEX(SignalHeads[Weight*** (lbs)],MATCH(F77,SignalHeads[Code],0))),IF(G77="",0,INDEX(SignalHeads[Weight*** (lbs)],MATCH(G77,SignalHeads[Code],0))),IF(H77="",0,INDEX(SignalHeads[Weight*** (lbs)],MATCH(H77,SignalHeads[Code],0))),IF(I77="",0,INDEX(SignalHeads[Weight*** (lbs)],MATCH(I77,SignalHeads[Code],0)))) -> 0 | L77: =IF(A77<=$I$8,INDEX(DesignConstants[Value],MATCH("Span Wire Weight (plf)",DesignConstants[Design Constant],0)),0) -> 1.155 | M77: 0 | N77: 59.4825 | S77: =SUM(IF(B77="",0,INDEX(SignalHeads[Height ** (feet)],MATCH(B77,SignalHeads[Code],0))),IF(D77="",0,INDEX(SignalHeads[Height ** (feet)],MATCH(D77,SignalHeads[Code],0))),IF(E77="",0,INDEX(SignalHeads[Height ** (feet)],MATCH(E77,SignalHeads[Code],0))),IF(F77="",0,INDEX(SignalHeads[Height ** (feet)],MATCH(F77,SignalHeads[Code],0))),IF(G77="",0,INDEX(SignalHeads[Height ** (feet)],MATCH(G77,SignalHeads[Code],0))),IF(H77="",0,INDEX(SignalHeads[Height ** (feet)],MATCH(H77,SignalHeads[Code],0))),IF(I77="",0,INDEX(SignalHeads[Height ** (feet)],MATCH(I77,SignalHeads[Code],0)))) -> 0 | T77: =IF(S77=0,"",ROUNDDOWN(12*(((Q77-S77)-MIN($Q$26:$Q$425-$S$26:$S$425)-(MAX($S$26:$S$425*(($Q$26:$Q$425-$S$26:$S$425)=MIN($Q$26:$Q$425-$S$26:$S$425)))-S77))+(MIN($Q$26:$Q$425-$S$26:$S$425)-$I$10)),0)/12) ->  | W77: 17
A78: 53 | J78: =SUM(IF(B78="",0,INDEX(SignalHeads[Perp. Wind Area (sft)],MATCH(B78,SignalHeads[Code],0))),IF(D78="",0,INDEX(SignalHeads[Perp. Wind Area (sft)],MATCH(D78,SignalHeads[Code],0))),IF(E78="",0,INDEX(SignalHeads[Perp. Wind Area (sft)],MATCH(E78,SignalHeads[Code],0))),IF(F78="",0,INDEX(SignalHeads[Perp. Wind Area (sft)],MATCH(F78,SignalHeads[Code],0))),IF(G78="",0,INDEX(SignalHeads[Perp. Wind Area (sft)],MATCH(G78,SignalHeads[Code],0))),IF(H78="",0,INDEX(SignalHeads[Perp. Wind Area (sft)],MATCH(H78,SignalHeads[Code],0))),IF(I78="",0,INDEX(SignalHeads[Perp. Wind Area (sft)],MATCH(I78,SignalHeads[Code],0)))) -> 0 | K78: =SUM(IF(B78="",0,INDEX(SignalHeads[Weight*** (lbs)],MATCH(B78,SignalHeads[Code],0))),IF(D78="",0,INDEX(SignalHeads[Weight*** (lbs)],MATCH(D78,SignalHeads[Code],0))),IF(E78="",0,INDEX(SignalHeads[Weight*** (lbs)],MATCH(E78,SignalHeads[Code],0))),IF(F78="",0,INDEX(SignalHeads[Weight*** (lbs)],MATCH(F78,SignalHeads[Code],0))),IF(G78="",0,INDEX(SignalHeads[Weight*** (lbs)],MATCH(G78,SignalHeads[Code],0))),IF(H78="",0,INDEX(SignalHeads[Weight*** (lbs)],MATCH(H78,SignalHeads[Code],0))),IF(I78="",0,INDEX(SignalHeads[Weight*** (lbs)],MATCH(I78,SignalHeads[Code],0)))) -> 0 | L78: =IF(A78<=$I$8,INDEX(DesignConstants[Value],MATCH("Span Wire Weight (plf)",DesignConstants[Design Constant],0)),0) -> 1.155 | M78: 0 | N78: 60.6375 | S78: =SUM(IF(B78="",0,INDEX(SignalHeads[Height ** (feet)],MATCH(B78,SignalHeads[Code],0))),IF(D78="",0,INDEX(SignalHeads[Height ** (feet)],MATCH(D78,SignalHeads[Code],0))),IF(E78="",0,INDEX(SignalHeads[Height ** (feet)],MATCH(E78,SignalHeads[Code],0))),IF(F78="",0,INDEX(SignalHeads[Height ** (feet)],MATCH(F78,SignalHeads[Code],0))),IF(G78="",0,INDEX(SignalHeads[Height ** (feet)],MATCH(G78,SignalHeads[Code],0))),IF(H78="",0,INDEX(SignalHeads[Height ** (feet)],MATCH(H78,SignalHeads[Code],0))),IF(I78="",0,INDEX(SignalHeads[Height ** (feet)],MATCH(I78,SignalHeads[Code],0)))) -> 0 | T78: =IF(S78=0,"",ROUNDDOWN(12*(((Q78-S78)-MIN($Q$26:$Q$425-$S$26:$S$425)-(MAX($S$26:$S$425*(($Q$26:$Q$425-$S$26:$S$425)=MIN($Q$26:$Q$425-$S$26:$S$425)))-S78))+(MIN($Q$26:$Q$425-$S$26:$S$425)-$I$10)),0)/12) ->  | W78: 17
A79: 54 | J79: =SUM(IF(B79="",0,INDEX(SignalHeads[Perp. Wind Area (sft)],MATCH(B79,SignalHeads[Code],0))),IF(D79="",0,INDEX(SignalHeads[Perp. Wind Area (sft)],MATCH(D79,SignalHeads[Code],0))),IF(E79="",0,INDEX(SignalHeads[Perp. Wind Area (sft)],MATCH(E79,SignalHeads[Code],0))),IF(F79="",0,INDEX(SignalHeads[Perp. Wind Area (sft)],MATCH(F79,SignalHeads[Code],0))),IF(G79="",0,INDEX(SignalHeads[Perp. Wind Area (sft)],MATCH(G79,SignalHeads[Code],0))),IF(H79="",0,INDEX(SignalHeads[Perp. Wind Area (sft)],MATCH(H79,SignalHeads[Code],0))),IF(I79="",0,INDEX(SignalHeads[Perp. Wind Area (sft)],MATCH(I79,SignalHeads[Code],0)))) -> 0 | K79: =SUM(IF(B79="",0,INDEX(SignalHeads[Weight*** (lbs)],MATCH(B79,SignalHeads[Code],0))),IF(D79="",0,INDEX(SignalHeads[Weight*** (lbs)],MATCH(D79,SignalHeads[Code],0))),IF(E79="",0,INDEX(SignalHeads[Weight*** (lbs)],MATCH(E79,SignalHeads[Code],0))),IF(F79="",0,INDEX(SignalHeads[Weight*** (lbs)],MATCH(F79,SignalHeads[Code],0))),IF(G79="",0,INDEX(SignalHeads[Weight*** (lbs)],MATCH(G79,SignalHeads[Code],0))),IF(H79="",0,INDEX(SignalHeads[Weight*** (lbs)],MATCH(H79,SignalHeads[Code],0))),IF(I79="",0,INDEX(SignalHeads[Weight*** (lbs)],MATCH(I79,SignalHeads[Code],0)))) -> 0 | L79: =IF(A79<=$I$8,INDEX(DesignConstants[Value],MATCH("Span Wire Weight (plf)",DesignConstants[Design Constant],0)),0) -> 1.155 | M79: 0 | N79: 61.7925 | S79: =SUM(IF(B79="",0,INDEX(SignalHeads[Height ** (feet)],MATCH(B79,SignalHeads[Code],0))),IF(D79="",0,INDEX(SignalHeads[Height ** (feet)],MATCH(D79,SignalHeads[Code],0))),IF(E79="",0,INDEX(SignalHeads[Height ** (feet)],MATCH(E79,SignalHeads[Code],0))),IF(F79="",0,INDEX(SignalHeads[Height ** (feet)],MATCH(F79,SignalHeads[Code],0))),IF(G79="",0,INDEX(SignalHeads[Height ** (feet)],MATCH(G79,SignalHeads[Code],0))),IF(H79="",0,INDEX(SignalHeads[Height ** (feet)],MATCH(H79,SignalHeads[Code],0))),IF(I79="",0,INDEX(SignalHeads[Height ** (feet)],MATCH(I79,SignalHeads[Code],0)))) -> 0 | T79: =IF(S79=0,"",ROUNDDOWN(12*(((Q79-S79)-MIN($Q$26:$Q$425-$S$26:$S$425)-(MAX($S$26:$S$425*(($Q$26:$Q$425-$S$26:$S$425)=MIN($Q$26:$Q$425-$S$26:$S$425)))-S79))+(MIN($Q$26:$Q$425-$S$26:$S$425)-$I$10)),0)/12) ->  | W79: 17
A80: 55 | J80: =SUM(IF(B80="",0,INDEX(SignalHeads[Perp. Wind Area (sft)],MATCH(B80,SignalHeads[Code],0))),IF(D80="",0,INDEX(SignalHeads[Perp. Wind Area (sft)],MATCH(D80,SignalHeads[Code],0))),IF(E80="",0,INDEX(SignalHeads[Perp. Wind Area (sft)],MATCH(E80,SignalHeads[Code],0))),IF(F80="",0,INDEX(SignalHeads[Perp. Wind Area (sft)],MATCH(F80,SignalHeads[Code],0))),IF(G80="",0,INDEX(SignalHeads[Perp. Wind Area (sft)],MATCH(G80,SignalHeads[Code],0))),IF(H80="",0,INDEX(SignalHeads[Perp. Wind Area (sft)],MATCH(H80,SignalHeads[Code],0))),IF(I80="",0,INDEX(SignalHeads[Perp. Wind Area (sft)],MATCH(I80,SignalHeads[Code],0)))) -> 0 | K80: =SUM(IF(B80="",0,INDEX(SignalHeads[Weight*** (lbs)],MATCH(B80,SignalHeads[Code],0))),IF(D80="",0,INDEX(SignalHeads[Weight*** (lbs)],MATCH(D80,SignalHeads[Code],0))),IF(E80="",0,INDEX(SignalHeads[Weight*** (lbs)],MATCH(E80,SignalHeads[Code],0))),IF(F80="",0,INDEX(SignalHeads[Weight*** (lbs)],MATCH(F80,SignalHeads[Code],0))),IF(G80="",0,INDEX(SignalHeads[Weight*** (lbs)],MATCH(G80,SignalHeads[Code],0))),IF(H80="",0,INDEX(SignalHeads[Weight*** (lbs)],MATCH(H80,SignalHeads[Code],0))),IF(I80="",0,INDEX(SignalHeads[Weight*** (lbs)],MATCH(I80,SignalHeads[Code],0)))) -> 0 | L80: =IF(A80<=$I$8,INDEX(DesignConstants[Value],MATCH("Span Wire Weight (plf)",DesignConstants[Design Constant],0)),0) -> 1.155 | M80: 0 | N80: 62.9475 | S80: =SUM(IF(B80="",0,INDEX(SignalHeads[Height ** (feet)],MATCH(B80,SignalHeads[Code],0))),IF(D80="",0,INDEX(SignalHeads[Height ** (feet)],MATCH(D80,SignalHeads[Code],0))),IF(E80="",0,INDEX(SignalHeads[Height ** (feet)],MATCH(E80,SignalHeads[Code],0))),IF(F80="",0,INDEX(SignalHeads[Height ** (feet)],MATCH(F80,SignalHeads[Code],0))),IF(G80="",0,INDEX(SignalHeads[Height ** (feet)],MATCH(G80,SignalHeads[Code],0))),IF(H80="",0,INDEX(SignalHeads[Height ** (feet)],MATCH(H80,SignalHeads[Code],0))),IF(I80="",0,INDEX(SignalHeads[Height ** (feet)],MATCH(I80,SignalHeads[Code],0)))) -> 0 | T80: =IF(S80=0,"",ROUNDDOWN(12*(((Q80-S80)-MIN($Q$26:$Q$425-$S$26:$S$425)-(MAX($S$26:$S$425*(($Q$26:$Q$425-$S$26:$S$425)=MIN($Q$26:$Q$425-$S$26:$S$425)))-S80))+(MIN($Q$26:$Q$425-$S$26:$S$425)-$I$10)),0)/12) ->  | W80: 17
A81: 56 | J81: =SUM(IF(B81="",0,INDEX(SignalHeads[Perp. Wind Area (sft)],MATCH(B81,SignalHeads[Code],0))),IF(D81="",0,INDEX(SignalHeads[Perp. Wind Area (sft)],MATCH(D81,SignalHeads[Code],0))),IF(E81="",0,INDEX(SignalHeads[Perp. Wind Area (sft)],MATCH(E81,SignalHeads[Code],0))),IF(F81="",0,INDEX(SignalHeads[Perp. Wind Area (sft)],MATCH(F81,SignalHeads[Code],0))),IF(G81="",0,INDEX(SignalHeads[Perp. Wind Area (sft)],MATCH(G81,SignalHeads[Code],0))),IF(H81="",0,INDEX(SignalHeads[Perp. Wind Area (sft)],MATCH(H81,SignalHeads[Code],0))),IF(I81="",0,INDEX(SignalHeads[Perp. Wind Area (sft)],MATCH(I81,SignalHeads[Code],0)))) -> 0 | K81: =SUM(IF(B81="",0,INDEX(SignalHeads[Weight*** (lbs)],MATCH(B81,SignalHeads[Code],0))),IF(D81="",0,INDEX(SignalHeads[Weight*** (lbs)],MATCH(D81,SignalHeads[Code],0))),IF(E81="",0,INDEX(SignalHeads[Weight*** (lbs)],MATCH(E81,SignalHeads[Code],0))),IF(F81="",0,INDEX(SignalHeads[Weight*** (lbs)],MATCH(F81,SignalHeads[Code],0))),IF(G81="",0,INDEX(SignalHeads[Weight*** (lbs)],MATCH(G81,SignalHeads[Code],0))),IF(H81="",0,INDEX(SignalHeads[Weight*** (lbs)],MATCH(H81,SignalHeads[Code],0))),IF(I81="",0,INDEX(SignalHeads[Weight*** (lbs)],MATCH(I81,SignalHeads[Code],0)))) -> 0 | L81: =IF(A81<=$I$8,INDEX(DesignConstants[Value],MATCH("Span Wire Weight (plf)",DesignConstants[Design Constant],0)),0) -> 1.155 | M81: 0 | N81: 64.1025 | S81: =SUM(IF(B81="",0,INDEX(SignalHeads[Height ** (feet)],MATCH(B81,SignalHeads[Code],0))),IF(D81="",0,INDEX(SignalHeads[Height ** (feet)],MATCH(D81,SignalHeads[Code],0))),IF(E81="",0,INDEX(SignalHeads[Height ** (feet)],MATCH(E81,SignalHeads[Code],0))),IF(F81="",0,INDEX(SignalHeads[Height ** (feet)],MATCH(F81,SignalHeads[Code],0))),IF(G81="",0,INDEX(SignalHeads[Height ** (feet)],MATCH(G81,SignalHeads[Code],0))),IF(H81="",0,INDEX(SignalHeads[Height ** (feet)],MATCH(H81,SignalHeads[Code],0))),IF(I81="",0,INDEX(SignalHeads[Height ** (feet)],MATCH(I81,SignalHeads[Code],0)))) -> 0 | T81: =IF(S81=0,"",ROUNDDOWN(12*(((Q81-S81)-MIN($Q$26:$Q$425-$S$26:$S$425)-(MAX($S$26:$S$425*(($Q$26:$Q$425-$S$26:$S$425)=MIN($Q$26:$Q$425-$S$26:$S$425)))-S81))+(MIN($Q$26:$Q$425-$S$26:$S$425)-$I$10)),0)/12) ->  | W81: 17
A82: 57 | J82: =SUM(IF(B82="",0,INDEX(SignalHeads[Perp. Wind Area (sft)],MATCH(B82,SignalHeads[Code],0))),IF(D82="",0,INDEX(SignalHeads[Perp. Wind Area (sft)],MATCH(D82,SignalHeads[Code],0))),IF(E82="",0,INDEX(SignalHeads[Perp. Wind Area (sft)],MATCH(E82,SignalHeads[Code],0))),IF(F82="",0,INDEX(SignalHeads[Perp. Wind Area (sft)],MATCH(F82,SignalHeads[Code],0))),IF(G82="",0,INDEX(SignalHeads[Perp. Wind Area (sft)],MATCH(G82,SignalHeads[Code],0))),IF(H82="",0,INDEX(SignalHeads[Perp. Wind Area (sft)],MATCH(H82,SignalHeads[Code],0))),IF(I82="",0,INDEX(SignalHeads[Perp. Wind Area (sft)],MATCH(I82,SignalHeads[Code],0)))) -> 0 | K82: =SUM(IF(B82="",0,INDEX(SignalHeads[Weight*** (lbs)],MATCH(B82,SignalHeads[Code],0))),IF(D82="",0,INDEX(SignalHeads[Weight*** (lbs)],MATCH(D82,SignalHeads[Code],0))),IF(E82="",0,INDEX(SignalHeads[Weight*** (lbs)],MATCH(E82,SignalHeads[Code],0))),IF(F82="",0,INDEX(SignalHeads[Weight*** (lbs)],MATCH(F82,SignalHeads[Code],0))),IF(G82="",0,INDEX(SignalHeads[Weight*** (lbs)],MATCH(G82,SignalHeads[Code],0))),IF(H82="",0,INDEX(SignalHeads[Weight*** (lbs)],MATCH(H82,SignalHeads[Code],0))),IF(I82="",0,INDEX(SignalHeads[Weight*** (lbs)],MATCH(I82,SignalHeads[Code],0)))) -> 0 | L82: =IF(A82<=$I$8,INDEX(DesignConstants[Value],MATCH("Span Wire Weight (plf)",DesignConstants[Design Constant],0)),0) -> 1.155 | M82: 0 | N82: 65.2575 | S82: =SUM(IF(B82="",0,INDEX(SignalHeads[Height ** (feet)],MATCH(B82,SignalHeads[Code],0))),IF(D82="",0,INDEX(SignalHeads[Height ** (feet)],MATCH(D82,SignalHeads[Code],0))),IF(E82="",0,INDEX(SignalHeads[Height ** (feet)],MATCH(E82,SignalHeads[Code],0))),IF(F82="",0,INDEX(SignalHeads[Height ** (feet)],MATCH(F82,SignalHeads[Code],0))),IF(G82="",0,INDEX(SignalHeads[Height ** (feet)],MATCH(G82,SignalHeads[Code],0))),IF(H82="",0,INDEX(SignalHeads[Height ** (feet)],MATCH(H82,SignalHeads[Code],0))),IF(I82="",0,INDEX(SignalHeads[Height ** (feet)],MATCH(I82,SignalHeads[Code],0)))) -> 0 | T82: =IF(S82=0,"",ROUNDDOWN(12*(((Q82-S82)-MIN($Q$26:$Q$425-$S$26:$S$425)-(MAX($S$26:$S$425*(($Q$26:$Q$425-$S$26:$S$425)=MIN($Q$26:$Q$425-$S$26:$S$425)))-S82))+(MIN($Q$26:$Q$425-$S$26:$S$425)-$I$10)),0)/12) ->  | W82: 17
A83: 58 | J83: =SUM(IF(B83="",0,INDEX(SignalHeads[Perp. Wind Area (sft)],MATCH(B83,SignalHeads[Code],0))),IF(D83="",0,INDEX(SignalHeads[Perp. Wind Area (sft)],MATCH(D83,SignalHeads[Code],0))),IF(E83="",0,INDEX(SignalHeads[Perp. Wind Area (sft)],MATCH(E83,SignalHeads[Code],0))),IF(F83="",0,INDEX(SignalHeads[Perp. Wind Area (sft)],MATCH(F83,SignalHeads[Code],0))),IF(G83="",0,INDEX(SignalHeads[Perp. Wind Area (sft)],MATCH(G83,SignalHeads[Code],0))),IF(H83="",0,INDEX(SignalHeads[Perp. Wind Area (sft)],MATCH(H83,SignalHeads[Code],0))),IF(I83="",0,INDEX(SignalHeads[Perp. Wind Area (sft)],MATCH(I83,SignalHeads[Code],0)))) -> 0 | K83: =SUM(IF(B83="",0,INDEX(SignalHeads[Weight*** (lbs)],MATCH(B83,SignalHeads[Code],0))),IF(D83="",0,INDEX(SignalHeads[Weight*** (lbs)],MATCH(D83,SignalHeads[Code],0))),IF(E83="",0,INDEX(SignalHeads[Weight*** (lbs)],MATCH(E83,SignalHeads[Code],0))),IF(F83="",0,INDEX(SignalHeads[Weight*** (lbs)],MATCH(F83,SignalHeads[Code],0))),IF(G83="",0,INDEX(SignalHeads[Weight*** (lbs)],MATCH(G83,SignalHeads[Code],0))),IF(H83="",0,INDEX(SignalHeads[Weight*** (lbs)],MATCH(H83,SignalHeads[Code],0))),IF(I83="",0,INDEX(SignalHeads[Weight*** (lbs)],MATCH(I83,SignalHeads[Code],0)))) -> 0 | L83: =IF(A83<=$I$8,INDEX(DesignConstants[Value],MATCH("Span Wire Weight (plf)",DesignConstants[Design Constant],0)),0) -> 1.155 | M83: 0 | N83: 66.4125 | S83: =SUM(IF(B83="",0,INDEX(SignalHeads[Height ** (feet)],MATCH(B83,SignalHeads[Code],0))),IF(D83="",0,INDEX(SignalHeads[Height ** (feet)],MATCH(D83,SignalHeads[Code],0))),IF(E83="",0,INDEX(SignalHeads[Height ** (feet)],MATCH(E83,SignalHeads[Code],0))),IF(F83="",0,INDEX(SignalHeads[Height ** (feet)],MATCH(F83,SignalHeads[Code],0))),IF(G83="",0,INDEX(SignalHeads[Height ** (feet)],MATCH(G83,SignalHeads[Code],0))),IF(H83="",0,INDEX(SignalHeads[Height ** (feet)],MATCH(H83,SignalHeads[Code],0))),IF(I83="",0,INDEX(SignalHeads[Height ** (feet)],MATCH(I83,SignalHeads[Code],0)))) -> 0 | T83: =IF(S83=0,"",ROUNDDOWN(12*(((Q83-S83)-MIN($Q$26:$Q$425-$S$26:$S$425)-(MAX($S$26:$S$425*(($Q$26:$Q$425-$S$26:$S$425)=MIN($Q$26:$Q$425-$S$26:$S$425)))-S83))+(MIN($Q$26:$Q$425-$S$26:$S$425)-$I$10)),0)/12) ->  | W83: 17
A84: 59 | J84: =SUM(IF(B84="",0,INDEX(SignalHeads[Perp. Wind Area (sft)],MATCH(B84,SignalHeads[Code],0))),IF(D84="",0,INDEX(SignalHeads[Perp. Wind Area (sft)],MATCH(D84,SignalHeads[Code],0))),IF(E84="",0,INDEX(SignalHeads[Perp. Wind Area (sft)],MATCH(E84,SignalHeads[Code],0))),IF(F84="",0,INDEX(SignalHeads[Perp. Wind Area (sft)],MATCH(F84,SignalHeads[Code],0))),IF(G84="",0,INDEX(SignalHeads[Perp. Wind Area (sft)],MATCH(G84,SignalHeads[Code],0))),IF(H84="",0,INDEX(SignalHeads[Perp. Wind Area (sft)],MATCH(H84,SignalHeads[Code],0))),IF(I84="",0,INDEX(SignalHeads[Perp. Wind Area (sft)],MATCH(I84,SignalHeads[Code],0)))) -> 0 | K84: =SUM(IF(B84="",0,INDEX(SignalHeads[Weight*** (lbs)],MATCH(B84,SignalHeads[Code],0))),IF(D84="",0,INDEX(SignalHeads[Weight*** (lbs)],MATCH(D84,SignalHeads[Code],0))),IF(E84="",0,INDEX(SignalHeads[Weight*** (lbs)],MATCH(E84,SignalHeads[Code],0))),IF(F84="",0,INDEX(SignalHeads[Weight*** (lbs)],MATCH(F84,SignalHeads[Code],0))),IF(G84="",0,INDEX(SignalHeads[Weight*** (lbs)],MATCH(G84,SignalHeads[Code],0))),IF(H84="",0,INDEX(SignalHeads[Weight*** (lbs)],MATCH(H84,SignalHeads[Code],0))),IF(I84="",0,INDEX(SignalHeads[Weight*** (lbs)],MATCH(I84,SignalHeads[Code],0)))) -> 0 | L84: =IF(A84<=$I$8,INDEX(DesignConstants[Value],MATCH("Span Wire Weight (plf)",DesignConstants[Design Constant],0)),0) -> 1.155 | M84: 0 | N84: 67.5675 | S84: =SUM(IF(B84="",0,INDEX(SignalHeads[Height ** (feet)],MATCH(B84,SignalHeads[Code],0))),IF(D84="",0,INDEX(SignalHeads[Height ** (feet)],MATCH(D84,SignalHeads[Code],0))),IF(E84="",0,INDEX(SignalHeads[Height ** (feet)],MATCH(E84,SignalHeads[Code],0))),IF(F84="",0,INDEX(SignalHeads[Height ** (feet)],MATCH(F84,SignalHeads[Code],0))),IF(G84="",0,INDEX(SignalHeads[Height ** (feet)],MATCH(G84,SignalHeads[Code],0))),IF(H84="",0,INDEX(SignalHeads[Height ** (feet)],MATCH(H84,SignalHeads[Code],0))),IF(I84="",0,INDEX(SignalHeads[Height ** (feet)],MATCH(I84,SignalHeads[Code],0)))) -> 0 | T84: =IF(S84=0,"",ROUNDDOWN(12*(((Q84-S84)-MIN($Q$26:$Q$425-$S$26:$S$425)-(MAX($S$26:$S$425*(($Q$26:$Q$425-$S$26:$S$425)=MIN($Q$26:$Q$425-$S$26:$S$425)))-S84))+(MIN($Q$26:$Q$425-$S$26:$S$425)-$I$10)),0)/12) ->  | W84: 17
A85: 60 | J85: =SUM(IF(B85="",0,INDEX(SignalHeads[Perp. Wind Area (sft)],MATCH(B85,SignalHeads[Code],0))),IF(D85="",0,INDEX(SignalHeads[Perp. Wind Area (sft)],MATCH(D85,SignalHeads[Code],0))),IF(E85="",0,INDEX(SignalHeads[Perp. Wind Area (sft)],MATCH(E85,SignalHeads[Code],0))),IF(F85="",0,INDEX(SignalHeads[Perp. Wind Area (sft)],MATCH(F85,SignalHeads[Code],0))),IF(G85="",0,INDEX(SignalHeads[Perp. Wind Area (sft)],MATCH(G85,SignalHeads[Code],0))),IF(H85="",0,INDEX(SignalHeads[Perp. Wind Area (sft)],MATCH(H85,SignalHeads[Code],0))),IF(I85="",0,INDEX(SignalHeads[Perp. Wind Area (sft)],MATCH(I85,SignalHeads[Code],0)))) -> 0 | K85: =SUM(IF(B85="",0,INDEX(SignalHeads[Weight*** (lbs)],MATCH(B85,SignalHeads[Code],0))),IF(D85="",0,INDEX(SignalHeads[Weight*** (lbs)],MATCH(D85,SignalHeads[Code],0))),IF(E85="",0,INDEX(SignalHeads[Weight*** (lbs)],MATCH(E85,SignalHeads[Code],0))),IF(F85="",0,INDEX(SignalHeads[Weight*** (lbs)],MATCH(F85,SignalHeads[Code],0))),IF(G85="",0,INDEX(SignalHeads[Weight*** (lbs)],MATCH(G85,SignalHeads[Code],0))),IF(H85="",0,INDEX(SignalHeads[Weight*** (lbs)],MATCH(H85,SignalHeads[Code],0))),IF(I85="",0,INDEX(SignalHeads[Weight*** (lbs)],MATCH(I85,SignalHeads[Code],0)))) -> 0 | L85: =IF(A85<=$I$8,INDEX(DesignConstants[Value],MATCH("Span Wire Weight (plf)",DesignConstants[Design Constant],0)),0) -> 1.155 | M85: 0 | N85: 68.7225 | S85: =SUM(IF(B85="",0,INDEX(SignalHeads[Height ** (feet)],MATCH(B85,SignalHeads[Code],0))),IF(D85="",0,INDEX(SignalHeads[Height ** (feet)],MATCH(D85,SignalHeads[Code],0))),IF(E85="",0,INDEX(SignalHeads[Height ** (feet)],MATCH(E85,SignalHeads[Code],0))),IF(F85="",0,INDEX(SignalHeads[Height ** (feet)],MATCH(F85,SignalHeads[Code],0))),IF(G85="",0,INDEX(SignalHeads[Height ** (feet)],MATCH(G85,SignalHeads[Code],0))),IF(H85="",0,INDEX(SignalHeads[Height ** (feet)],MATCH(H85,SignalHeads[Code],0))),IF(I85="",0,INDEX(SignalHeads[Height ** (feet)],MATCH(I85,SignalHeads[Code],0)))) -> 0 | T85: =IF(S85=0,"",ROUNDDOWN(12*(((Q85-S85)-MIN($Q$26:$Q$425-$S$26:$S$425)-(MAX($S$26:$S$425*(($Q$26:$Q$425-$S$26:$S$425)=MIN($Q$26:$Q$425-$S$26:$S$425)))-S85))+(MIN($Q$26:$Q$425-$S$26:$S$425)-$I$10)),0)/12) ->  | W85: 17
A86: 61 | J86: =SUM(IF(B86="",0,INDEX(SignalHeads[Perp. Wind Area (sft)],MATCH(B86,SignalHeads[Code],0))),IF(D86="",0,INDEX(SignalHeads[Perp. Wind Area (sft)],MATCH(D86,SignalHeads[Code],0))),IF(E86="",0,INDEX(SignalHeads[Perp. Wind Area (sft)],MATCH(E86,SignalHeads[Code],0))),IF(F86="",0,INDEX(SignalHeads[Perp. Wind Area (sft)],MATCH(F86,SignalHeads[Code],0))),IF(G86="",0,INDEX(SignalHeads[Perp. Wind Area (sft)],MATCH(G86,SignalHeads[Code],0))),IF(H86="",0,INDEX(SignalHeads[Perp. Wind Area (sft)],MATCH(H86,SignalHeads[Code],0))),IF(I86="",0,INDEX(SignalHeads[Perp. Wind Area (sft)],MATCH(I86,SignalHeads[Code],0)))) -> 0 | K86: =SUM(IF(B86="",0,INDEX(SignalHeads[Weight*** (lbs)],MATCH(B86,SignalHeads[Code],0))),IF(D86="",0,INDEX(SignalHeads[Weight*** (lbs)],MATCH(D86,SignalHeads[Code],0))),IF(E86="",0,INDEX(SignalHeads[Weight*** (lbs)],MATCH(E86,SignalHeads[Code],0))),IF(F86="",0,INDEX(SignalHeads[Weight*** (lbs)],MATCH(F86,SignalHeads[Code],0))),IF(G86="",0,INDEX(SignalHeads[Weight*** (lbs)],MATCH(G86,SignalHeads[Code],0))),IF(H86="",0,INDEX(SignalHeads[Weight*** (lbs)],MATCH(H86,SignalHeads[Code],0))),IF(I86="",0,INDEX(SignalHeads[Weight*** (lbs)],MATCH(I86,SignalHeads[Code],0)))) -> 0 | L86: =IF(A86<=$I$8,INDEX(DesignConstants[Value],MATCH("Span Wire Weight (plf)",DesignConstants[Design Constant],0)),0) -> 1.155 | M86: 0 | N86: 69.8775 | S86: =SUM(IF(B86="",0,INDEX(SignalHeads[Height ** (feet)],MATCH(B86,SignalHeads[Code],0))),IF(D86="",0,INDEX(SignalHeads[Height ** (feet)],MATCH(D86,SignalHeads[Code],0))),IF(E86="",0,INDEX(SignalHeads[Height ** (feet)],MATCH(E86,SignalHeads[Code],0))),IF(F86="",0,INDEX(SignalHeads[Height ** (feet)],MATCH(F86,SignalHeads[Code],0))),IF(G86="",0,INDEX(SignalHeads[Height ** (feet)],MATCH(G86,SignalHeads[Code],0))),IF(H86="",0,INDEX(SignalHeads[Height ** (feet)],MATCH(H86,SignalHeads[Code],0))),IF(I86="",0,INDEX(SignalHeads[Height ** (feet)],MATCH(I86,SignalHeads[Code],0)))) -> 0 | T86: =IF(S86=0,"",ROUNDDOWN(12*(((Q86-S86)-MIN($Q$26:$Q$425-$S$26:$S$425)-(MAX($S$26:$S$425*(($Q$26:$Q$425-$S$26:$S$425)=MIN($Q$26:$Q$425-$S$26:$S$425)))-S86))+(MIN($Q$26:$Q$425-$S$26:$S$425)-$I$10)),0)/12) ->  | W86: 17
A87: 62 | J87: =SUM(IF(B87="",0,INDEX(SignalHeads[Perp. Wind Area (sft)],MATCH(B87,SignalHeads[Code],0))),IF(D87="",0,INDEX(SignalHeads[Perp. Wind Area (sft)],MATCH(D87,SignalHeads[Code],0))),IF(E87="",0,INDEX(SignalHeads[Perp. Wind Area (sft)],MATCH(E87,SignalHeads[Code],0))),IF(F87="",0,INDEX(SignalHeads[Perp. Wind Area (sft)],MATCH(F87,SignalHeads[Code],0))),IF(G87="",0,INDEX(SignalHeads[Perp. Wind Area (sft)],MATCH(G87,SignalHeads[Code],0))),IF(H87="",0,INDEX(SignalHeads[Perp. Wind Area (sft)],MATCH(H87,SignalHeads[Code],0))),IF(I87="",0,INDEX(SignalHeads[Perp. Wind Area (sft)],MATCH(I87,SignalHeads[Code],0)))) -> 0 | K87: =SUM(IF(B87="",0,INDEX(SignalHeads[Weight*** (lbs)],MATCH(B87,SignalHeads[Code],0))),IF(D87="",0,INDEX(SignalHeads[Weight*** (lbs)],MATCH(D87,SignalHeads[Code],0))),IF(E87="",0,INDEX(SignalHeads[Weight*** (lbs)],MATCH(E87,SignalHeads[Code],0))),IF(F87="",0,INDEX(SignalHeads[Weight*** (lbs)],MATCH(F87,SignalHeads[Code],0))),IF(G87="",0,INDEX(SignalHeads[Weight*** (lbs)],MATCH(G87,SignalHeads[Code],0))),IF(H87="",0,INDEX(SignalHeads[Weight*** (lbs)],MATCH(H87,SignalHeads[Code],0))),IF(I87="",0,INDEX(SignalHeads[Weight*** (lbs)],MATCH(I87,SignalHeads[Code],0)))) -> 0 | L87: =IF(A87<=$I$8,INDEX(DesignConstants[Value],MATCH("Span Wire Weight (plf)",DesignConstants[Design Constant],0)),0) -> 1.155 | M87: 0 | N87: 71.0325 | S87: =SUM(IF(B87="",0,INDEX(SignalHeads[Height ** (feet)],MATCH(B87,SignalHeads[Code],0))),IF(D87="",0,INDEX(SignalHeads[Height ** (feet)],MATCH(D87,SignalHeads[Code],0))),IF(E87="",0,INDEX(SignalHeads[Height ** (feet)],MATCH(E87,SignalHeads[Code],0))),IF(F87="",0,INDEX(SignalHeads[Height ** (feet)],MATCH(F87,SignalHeads[Code],0))),IF(G87="",0,INDEX(SignalHeads[Height ** (feet)],MATCH(G87,SignalHeads[Code],0))),IF(H87="",0,INDEX(SignalHeads[Height ** (feet)],MATCH(H87,SignalHeads[Code],0))),IF(I87="",0,INDEX(SignalHeads[Height ** (feet)],MATCH(I87,SignalHeads[Code],0)))) -> 0 | T87: =IF(S87=0,"",ROUNDDOWN(12*(((Q87-S87)-MIN($Q$26:$Q$425-$S$26:$S$425)-(MAX($S$26:$S$425*(($Q$26:$Q$425-$S$26:$S$425)=MIN($Q$26:$Q$425-$S$26:$S$425)))-S87))+(MIN($Q$26:$Q$425-$S$26:$S$425)-$I$10)),0)/12) ->  | W87: 17
A88: 63 | J88: =SUM(IF(B88="",0,INDEX(SignalHeads[Perp. Wind Area (sft)],MATCH(B88,SignalHeads[Code],0))),IF(D88="",0,INDEX(SignalHeads[Perp. Wind Area (sft)],MATCH(D88,SignalHeads[Code],0))),IF(E88="",0,INDEX(SignalHeads[Perp. Wind Area (sft)],MATCH(E88,SignalHeads[Code],0))),IF(F88="",0,INDEX(SignalHeads[Perp. Wind Area (sft)],MATCH(F88,SignalHeads[Code],0))),IF(G88="",0,INDEX(SignalHeads[Perp. Wind Area (sft)],MATCH(G88,SignalHeads[Code],0))),IF(H88="",0,INDEX(SignalHeads[Perp. Wind Area (sft)],MATCH(H88,SignalHeads[Code],0))),IF(I88="",0,INDEX(SignalHeads[Perp. Wind Area (sft)],MATCH(I88,SignalHeads[Code],0)))) -> 0 | K88: =SUM(IF(B88="",0,INDEX(SignalHeads[Weight*** (lbs)],MATCH(B88,SignalHeads[Code],0))),IF(D88="",0,INDEX(SignalHeads[Weight*** (lbs)],MATCH(D88,SignalHeads[Code],0))),IF(E88="",0,INDEX(SignalHeads[Weight*** (lbs)],MATCH(E88,SignalHeads[Code],0))),IF(F88="",0,INDEX(SignalHeads[Weight*** (lbs)],MATCH(F88,SignalHeads[Code],0))),IF(G88="",0,INDEX(SignalHeads[Weight*** (lbs)],MATCH(G88,SignalHeads[Code],0))),IF(H88="",0,INDEX(SignalHeads[Weight*** (lbs)],MATCH(H88,SignalHeads[Code],0))),IF(I88="",0,INDEX(SignalHeads[Weight*** (lbs)],MATCH(I88,SignalHeads[Code],0)))) -> 0 | L88: =IF(A88<=$I$8,INDEX(DesignConstants[Value],MATCH("Span Wire Weight (plf)",DesignConstants[Design Constant],0)),0) -> 1.155 | M88: 0 | N88: 72.1875 | S88: =SUM(IF(B88="",0,INDEX(SignalHeads[Height ** (feet)],MATCH(B88,SignalHeads[Code],0))),IF(D88="",0,INDEX(SignalHeads[Height ** (feet)],MATCH(D88,SignalHeads[Code],0))),IF(E88="",0,INDEX(SignalHeads[Height ** (feet)],MATCH(E88,SignalHeads[Code],0))),IF(F88="",0,INDEX(SignalHeads[Height ** (feet)],MATCH(F88,SignalHeads[Code],0))),IF(G88="",0,INDEX(SignalHeads[Height ** (feet)],MATCH(G88,SignalHeads[Code],0))),IF(H88="",0,INDEX(SignalHeads[Height ** (feet)],MATCH(H88,SignalHeads[Code],0))),IF(I88="",0,INDEX(SignalHeads[Height ** (feet)],MATCH(I88,SignalHeads[Code],0)))) -> 0 | T88: =IF(S88=0,"",ROUNDDOWN(12*(((Q88-S88)-MIN($Q$26:$Q$425-$S$26:$S$425)-(MAX($S$26:$S$425*(($Q$26:$Q$425-$S$26:$S$425)=MIN($Q$26:$Q$425-$S$26:$S$425)))-S88))+(MIN($Q$26:$Q$425-$S$26:$S$425)-$I$10)),0)/12) ->  | W88: 17
A89: 64 | J89: =SUM(IF(B89="",0,INDEX(SignalHeads[Perp. Wind Area (sft)],MATCH(B89,SignalHeads[Code],0))),IF(D89="",0,INDEX(SignalHeads[Perp. Wind Area (sft)],MATCH(D89,SignalHeads[Code],0))),IF(E89="",0,INDEX(SignalHeads[Perp. Wind Area (sft)],MATCH(E89,SignalHeads[Code],0))),IF(F89="",0,INDEX(SignalHeads[Perp. Wind Area (sft)],MATCH(F89,SignalHeads[Code],0))),IF(G89="",0,INDEX(SignalHeads[Perp. Wind Area (sft)],MATCH(G89,SignalHeads[Code],0))),IF(H89="",0,INDEX(SignalHeads[Perp. Wind Area (sft)],MATCH(H89,SignalHeads[Code],0))),IF(I89="",0,INDEX(SignalHeads[Perp. Wind Area (sft)],MATCH(I89,SignalHeads[Code],0)))) -> 0 | K89: =SUM(IF(B89="",0,INDEX(SignalHeads[Weight*** (lbs)],MATCH(B89,SignalHeads[Code],0))),IF(D89="",0,INDEX(SignalHeads[Weight*** (lbs)],MATCH(D89,SignalHeads[Code],0))),IF(E89="",0,INDEX(SignalHeads[Weight*** (lbs)],MATCH(E89,SignalHeads[Code],0))),IF(F89="",0,INDEX(SignalHeads[Weight*** (lbs)],MATCH(F89,SignalHeads[Code],0))),IF(G89="",0,INDEX(SignalHeads[Weight*** (lbs)],MATCH(G89,SignalHeads[Code],0))),IF(H89="",0,INDEX(SignalHeads[Weight*** (lbs)],MATCH(H89,SignalHeads[Code],0))),IF(I89="",0,INDEX(SignalHeads[Weight*** (lbs)],MATCH(I89,SignalHeads[Code],0)))) -> 0 | L89: =IF(A89<=$I$8,INDEX(DesignConstants[Value],MATCH("Span Wire Weight (plf)",DesignConstants[Design Constant],0)),0) -> 1.155 | M89: 0 | N89: 73.3425 | S89: =SUM(IF(B89="",0,INDEX(SignalHeads[Height ** (feet)],MATCH(B89,SignalHeads[Code],0))),IF(D89="",0,INDEX(SignalHeads[Height ** (feet)],MATCH(D89,SignalHeads[Code],0))),IF(E89="",0,INDEX(SignalHeads[Height ** (feet)],MATCH(E89,SignalHeads[Code],0))),IF(F89="",0,INDEX(SignalHeads[Height ** (feet)],MATCH(F89,SignalHeads[Code],0))),IF(G89="",0,INDEX(SignalHeads[Height ** (feet)],MATCH(G89,SignalHeads[Code],0))),IF(H89="",0,INDEX(SignalHeads[Height ** (feet)],MATCH(H89,SignalHeads[Code],0))),IF(I89="",0,INDEX(SignalHeads[Height ** (feet)],MATCH(I89,SignalHeads[Code],0)))) -> 0 | T89: =IF(S89=0,"",ROUNDDOWN(12*(((Q89-S89)-MIN($Q$26:$Q$425-$S$26:$S$425)-(MAX($S$26:$S$425*(($Q$26:$Q$425-$S$26:$S$425)=MIN($Q$26:$Q$425-$S$26:$S$425)))-S89))+(MIN($Q$26:$Q$425-$S$26:$S$425)-$I$10)),0)/12) ->  | W89: 17
A90: 65 | J90: =SUM(IF(B90="",0,INDEX(SignalHeads[Perp. Wind Area (sft)],MATCH(B90,SignalHeads[Code],0))),IF(D90="",0,INDEX(SignalHeads[Perp. Wind Area (sft)],MATCH(D90,SignalHeads[Code],0))),IF(E90="",0,INDEX(SignalHeads[Perp. Wind Area (sft)],MATCH(E90,SignalHeads[Code],0))),IF(F90="",0,INDEX(SignalHeads[Perp. Wind Area (sft)],MATCH(F90,SignalHeads[Code],0))),IF(G90="",0,INDEX(SignalHeads[Perp. Wind Area (sft)],MATCH(G90,SignalHeads[Code],0))),IF(H90="",0,INDEX(SignalHeads[Perp. Wind Area (sft)],MATCH(H90,SignalHeads[Code],0))),IF(I90="",0,INDEX(SignalHeads[Perp. Wind Area (sft)],MATCH(I90,SignalHeads[Code],0)))) -> 0 | K90: =SUM(IF(B90="",0,INDEX(SignalHeads[Weight*** (lbs)],MATCH(B90,SignalHeads[Code],0))),IF(D90="",0,INDEX(SignalHeads[Weight*** (lbs)],MATCH(D90,SignalHeads[Code],0))),IF(E90="",0,INDEX(SignalHeads[Weight*** (lbs)],MATCH(E90,SignalHeads[Code],0))),IF(F90="",0,INDEX(SignalHeads[Weight*** (lbs)],MATCH(F90,SignalHeads[Code],0))),IF(G90="",0,INDEX(SignalHeads[Weight*** (lbs)],MATCH(G90,SignalHeads[Code],0))),IF(H90="",0,INDEX(SignalHeads[Weight*** (lbs)],MATCH(H90,SignalHeads[Code],0))),IF(I90="",0,INDEX(SignalHeads[Weight*** (lbs)],MATCH(I90,SignalHeads[Code],0)))) -> 0 | L90: =IF(A90<=$I$8,INDEX(DesignConstants[Value],MATCH("Span Wire Weight (plf)",DesignConstants[Design Constant],0)),0) -> 1.155 | M90: =IF(K90="",0,K90*A90) -> 0 | N90: =L90*(A90-0.5) -> 74.4975 | P90: =(0.5*L90+O90+K90)/$I$4 ->  | R90: =IF(A90>$I$8,0,(IFERROR(INDEX($S$13:$S$14,MATCH(MAX($S$11:$S$12),$S$11:$S$12,FALSE)),$S$8)-(IFERROR(INDEX($N$13:$N$14,MATCH(MAX($N$11:$N$12),$N$11:$N$12,FALSE)),$N$8)))/$I$18*A90+IFERROR(INDEX($N$13:$N$14,MATCH(MAX($N$11:$N$12),$N$11:$N$12,FALSE)),$N$8)) ->  | S90: =SUM(IF(B90="",0,INDEX(SignalHeads[Height ** (feet)],MATCH(B90,SignalHeads[Code],0))),IF(D90="",0,INDEX(SignalHeads[Height ** (feet)],MATCH(D90,SignalHeads[Code],0))),IF(E90="",0,INDEX(SignalHeads[Height ** (feet)],MATCH(E90,SignalHeads[Code],0))),IF(F90="",0,INDEX(SignalHeads[Height ** (feet)],MATCH(F90,SignalHeads[Code],0))),IF(G90="",0,INDEX(SignalHeads[Height ** (feet)],MATCH(G90,SignalHeads[Code],0))),IF(H90="",0,INDEX(SignalHeads[Height ** (feet)],MATCH(H90,SignalHeads[Code],0))),IF(I90="",0,INDEX(SignalHeads[Height ** (feet)],MATCH(I90,SignalHeads[Code],0)))) -> 0 | T90: =IF(S90=0,"",ROUNDDOWN(12*(((Q90-S90)-MIN($Q$26:$Q$425-$S$26:$S$425)-(MAX($S$26:$S$425*(($Q$26:$Q$425-$S$26:$S$425)=MIN($Q$26:$Q$425-$S$26:$S$425)))-S90))+(MIN($Q$26:$Q$425-$S$26:$S$425)-$I$10)),0)/12) ->  | W90: =$I$10 -> 17
A91: 66 | J91: =SUM(IF(B91="",0,INDEX(SignalHeads[Perp. Wind Area (sft)],MATCH(B91,SignalHeads[Code],0))),IF(D91="",0,INDEX(SignalHeads[Perp. Wind Area (sft)],MATCH(D91,SignalHeads[Code],0))),IF(E91="",0,INDEX(SignalHeads[Perp. Wind Area (sft)],MATCH(E91,SignalHeads[Code],0))),IF(F91="",0,INDEX(SignalHeads[Perp. Wind Area (sft)],MATCH(F91,SignalHeads[Code],0))),IF(G91="",0,INDEX(SignalHeads[Perp. Wind Area (sft)],MATCH(G91,SignalHeads[Code],0))),IF(H91="",0,INDEX(SignalHeads[Perp. Wind Area (sft)],MATCH(H91,SignalHeads[Code],0))),IF(I91="",0,INDEX(SignalHeads[Perp. Wind Area (sft)],MATCH(I91,SignalHeads[Code],0)))) -> 0 | K91: =SUM(IF(B91="",0,INDEX(SignalHeads[Weight*** (lbs)],MATCH(B91,SignalHeads[Code],0))),IF(D91="",0,INDEX(SignalHeads[Weight*** (lbs)],MATCH(D91,SignalHeads[Code],0))),IF(E91="",0,INDEX(SignalHeads[Weight*** (lbs)],MATCH(E91,SignalHeads[Code],0))),IF(F91="",0,INDEX(SignalHeads[Weight*** (lbs)],MATCH(F91,SignalHeads[Code],0))),IF(G91="",0,INDEX(SignalHeads[Weight*** (lbs)],MATCH(G91,SignalHeads[Code],0))),IF(H91="",0,INDEX(SignalHeads[Weight*** (lbs)],MATCH(H91,SignalHeads[Code],0))),IF(I91="",0,INDEX(SignalHeads[Weight*** (lbs)],MATCH(I91,SignalHeads[Code],0)))) -> 0 | L91: =IF(A91<=$I$8,INDEX(DesignConstants[Value],MATCH("Span Wire Weight (plf)",DesignConstants[Design Constant],0)),0) -> 1.155 | M91: 0 | N91: 75.6525 | O91: =O90-K91-L91 ->  | Q91: =Q90-P91 ->  | S91: =SUM(IF(B91="",0,INDEX(SignalHeads[Height ** (feet)],MATCH(B91,SignalHeads[Code],0))),IF(D91="",0,INDEX(SignalHeads[Height ** (feet)],MATCH(D91,SignalHeads[Code],0))),IF(E91="",0,INDEX(SignalHeads[Height ** (feet)],MATCH(E91,SignalHeads[Code],0))),IF(F91="",0,INDEX(SignalHeads[Height ** (feet)],MATCH(F91,SignalHeads[Code],0))),IF(G91="",0,INDEX(SignalHeads[Height ** (feet)],MATCH(G91,SignalHeads[Code],0))),IF(H91="",0,INDEX(SignalHeads[Height ** (feet)],MATCH(H91,SignalHeads[Code],0))),IF(I91="",0,INDEX(SignalHeads[Height ** (feet)],MATCH(I91,SignalHeads[Code],0)))) -> 0 | T91: =IF(S91=0,"",ROUNDDOWN(12*(((Q91-S91)-MIN($Q$26:$Q$425-$S$26:$S$425)-(MAX($S$26:$S$425*(($Q$26:$Q$425-$S$26:$S$425)=MIN($Q$26:$Q$425-$S$26:$S$425)))-S91))+(MIN($Q$26:$Q$425-$S$26:$S$425)-$I$10)),0)/12) ->  | U91: =IF(T91="","",INT(T91)&"'-"&ROUND((T91-INT(T91))*12,0)&"""") ->  | V91: =IF(A91<=$I$8,Q91-S91-IF(ISNUMBER(T91),T91,0),"") ->  | W91: 17
A92: 67 | J92: =SUM(IF(B92="",0,INDEX(SignalHeads[Perp. Wind Area (sft)],MATCH(B92,SignalHeads[Code],0))),IF(D92="",0,INDEX(SignalHeads[Perp. Wind Area (sft)],MATCH(D92,SignalHeads[Code],0))),IF(E92="",0,INDEX(SignalHeads[Perp. Wind Area (sft)],MATCH(E92,SignalHeads[Code],0))),IF(F92="",0,INDEX(SignalHeads[Perp. Wind Area (sft)],MATCH(F92,SignalHeads[Code],0))),IF(G92="",0,INDEX(SignalHeads[Perp. Wind Area (sft)],MATCH(G92,SignalHeads[Code],0))),IF(H92="",0,INDEX(SignalHeads[Perp. Wind Area (sft)],MATCH(H92,SignalHeads[Code],0))),IF(I92="",0,INDEX(SignalHeads[Perp. Wind Area (sft)],MATCH(I92,SignalHeads[Code],0)))) -> 0 | K92: =SUM(IF(B92="",0,INDEX(SignalHeads[Weight*** (lbs)],MATCH(B92,SignalHeads[Code],0))),IF(D92="",0,INDEX(SignalHeads[Weight*** (lbs)],MATCH(D92,SignalHeads[Code],0))),IF(E92="",0,INDEX(SignalHeads[Weight*** (lbs)],MATCH(E92,SignalHeads[Code],0))),IF(F92="",0,INDEX(SignalHeads[Weight*** (lbs)],MATCH(F92,SignalHeads[Code],0))),IF(G92="",0,INDEX(SignalHeads[Weight*** (lbs)],MATCH(G92,SignalHeads[Code],0))),IF(H92="",0,INDEX(SignalHeads[Weight*** (lbs)],MATCH(H92,SignalHeads[Code],0))),IF(I92="",0,INDEX(SignalHeads[Weight*** (lbs)],MATCH(I92,SignalHeads[Code],0)))) -> 0 | L92: =IF(A92<=$I$8,INDEX(DesignConstants[Value],MATCH("Span Wire Weight (plf)",DesignConstants[Design Constant],0)),0) -> 1.155 | M92: 0 | N92: 76.8075 | S92: =SUM(IF(B92="",0,INDEX(SignalHeads[Height ** (feet)],MATCH(B92,SignalHeads[Code],0))),IF(D92="",0,INDEX(SignalHeads[Height ** (feet)],MATCH(D92,SignalHeads[Code],0))),IF(E92="",0,INDEX(SignalHeads[Height ** (feet)],MATCH(E92,SignalHeads[Code],0))),IF(F92="",0,INDEX(SignalHeads[Height ** (feet)],MATCH(F92,SignalHeads[Code],0))),IF(G92="",0,INDEX(SignalHeads[Height ** (feet)],MATCH(G92,SignalHeads[Code],0))),IF(H92="",0,INDEX(SignalHeads[Height ** (feet)],MATCH(H92,SignalHeads[Code],0))),IF(I92="",0,INDEX(SignalHeads[Height ** (feet)],MATCH(I92,SignalHeads[Code],0)))) -> 0 | T92: =IF(S92=0,"",ROUNDDOWN(12*(((Q92-S92)-MIN($Q$26:$Q$425-$S$26:$S$425)-(MAX($S$26:$S$425*(($Q$26:$Q$425-$S$26:$S$425)=MIN($Q$26:$Q$425-$S$26:$S$425)))-S92))+(MIN($Q$26:$Q$425-$S$26:$S$425)-$I$10)),0)/12) ->  | W92: 17
A93: 68 | J93: =SUM(IF(B93="",0,INDEX(SignalHeads[Perp. Wind Area (sft)],MATCH(B93,SignalHeads[Code],0))),IF(D93="",0,INDEX(SignalHeads[Perp. Wind Area (sft)],MATCH(D93,SignalHeads[Code],0))),IF(E93="",0,INDEX(SignalHeads[Perp. Wind Area (sft)],MATCH(E93,SignalHeads[Code],0))),IF(F93="",0,INDEX(SignalHeads[Perp. Wind Area (sft)],MATCH(F93,SignalHeads[Code],0))),IF(G93="",0,INDEX(SignalHeads[Perp. Wind Area (sft)],MATCH(G93,SignalHeads[Code],0))),IF(H93="",0,INDEX(SignalHeads[Perp. Wind Area (sft)],MATCH(H93,SignalHeads[Code],0))),IF(I93="",0,INDEX(SignalHeads[Perp. Wind Area (sft)],MATCH(I93,SignalHeads[Code],0)))) -> 0 | K93: =SUM(IF(B93="",0,INDEX(SignalHeads[Weight*** (lbs)],MATCH(B93,SignalHeads[Code],0))),IF(D93="",0,INDEX(SignalHeads[Weight*** (lbs)],MATCH(D93,SignalHeads[Code],0))),IF(E93="",0,INDEX(SignalHeads[Weight*** (lbs)],MATCH(E93,SignalHeads[Code],0))),IF(F93="",0,INDEX(SignalHeads[Weight*** (lbs)],MATCH(F93,SignalHeads[Code],0))),IF(G93="",0,INDEX(SignalHeads[Weight*** (lbs)],MATCH(G93,SignalHeads[Code],0))),IF(H93="",0,INDEX(SignalHeads[Weight*** (lbs)],MATCH(H93,SignalHeads[Code],0))),IF(I93="",0,INDEX(SignalHeads[Weight*** (lbs)],MATCH(I93,SignalHeads[Code],0)))) -> 0 | L93: =IF(A93<=$I$8,INDEX(DesignConstants[Value],MATCH("Span Wire Weight (plf)",DesignConstants[Design Constant],0)),0) -> 1.155 | M93: 0 | N93: 77.9625 | S93: =SUM(IF(B93="",0,INDEX(SignalHeads[Height ** (feet)],MATCH(B93,SignalHeads[Code],0))),IF(D93="",0,INDEX(SignalHeads[Height ** (feet)],MATCH(D93,SignalHeads[Code],0))),IF(E93="",0,INDEX(SignalHeads[Height ** (feet)],MATCH(E93,SignalHeads[Code],0))),IF(F93="",0,INDEX(SignalHeads[Height ** (feet)],MATCH(F93,SignalHeads[Code],0))),IF(G93="",0,INDEX(SignalHeads[Height ** (feet)],MATCH(G93,SignalHeads[Code],0))),IF(H93="",0,INDEX(SignalHeads[Height ** (feet)],MATCH(H93,SignalHeads[Code],0))),IF(I93="",0,INDEX(SignalHeads[Height ** (feet)],MATCH(I93,SignalHeads[Code],0)))) -> 0 | T93: =IF(S93=0,"",ROUNDDOWN(12*(((Q93-S93)-MIN($Q$26:$Q$425-$S$26:$S$425)-(MAX($S$26:$S$425*(($Q$26:$Q$425-$S$26:$S$425)=MIN($Q$26:$Q$425-$S$26:$S$425)))-S93))+(MIN($Q$26:$Q$425-$S$26:$S$425)-$I$10)),0)/12) ->  | W93: 17
A94: 69 | J94: =SUM(IF(B94="",0,INDEX(SignalHeads[Perp. Wind Area (sft)],MATCH(B94,SignalHeads[Code],0))),IF(D94="",0,INDEX(SignalHeads[Perp. Wind Area (sft)],MATCH(D94,SignalHeads[Code],0))),IF(E94="",0,INDEX(SignalHeads[Perp. Wind Area (sft)],MATCH(E94,SignalHeads[Code],0))),IF(F94="",0,INDEX(SignalHeads[Perp. Wind Area (sft)],MATCH(F94,SignalHeads[Code],0))),IF(G94="",0,INDEX(SignalHeads[Perp. Wind Area (sft)],MATCH(G94,SignalHeads[Code],0))),IF(H94="",0,INDEX(SignalHeads[Perp. Wind Area (sft)],MATCH(H94,SignalHeads[Code],0))),IF(I94="",0,INDEX(SignalHeads[Perp. Wind Area (sft)],MATCH(I94,SignalHeads[Code],0)))) -> 0 | K94: =SUM(IF(B94="",0,INDEX(SignalHeads[Weight*** (lbs)],MATCH(B94,SignalHeads[Code],0))),IF(D94="",0,INDEX(SignalHeads[Weight*** (lbs)],MATCH(D94,SignalHeads[Code],0))),IF(E94="",0,INDEX(SignalHeads[Weight*** (lbs)],MATCH(E94,SignalHeads[Code],0))),IF(F94="",0,INDEX(SignalHeads[Weight*** (lbs)],MATCH(F94,SignalHeads[Code],0))),IF(G94="",0,INDEX(SignalHeads[Weight*** (lbs)],MATCH(G94,SignalHeads[Code],0))),IF(H94="",0,INDEX(SignalHeads[Weight*** (lbs)],MATCH(H94,SignalHeads[Code],0))),IF(I94="",0,INDEX(SignalHeads[Weight*** (lbs)],MATCH(I94,SignalHeads[Code],0)))) -> 0 | L94: =IF(A94<=$I$8,INDEX(DesignConstants[Value],MATCH("Span Wire Weight (plf)",DesignConstants[Design Constant],0)),0) -> 1.155 | M94: 0 | N94: 79.1175 | S94: =SUM(IF(B94="",0,INDEX(SignalHeads[Height ** (feet)],MATCH(B94,SignalHeads[Code],0))),IF(D94="",0,INDEX(SignalHeads[Height ** (feet)],MATCH(D94,SignalHeads[Code],0))),IF(E94="",0,INDEX(SignalHeads[Height ** (feet)],MATCH(E94,SignalHeads[Code],0))),IF(F94="",0,INDEX(SignalHeads[Height ** (feet)],MATCH(F94,SignalHeads[Code],0))),IF(G94="",0,INDEX(SignalHeads[Height ** (feet)],MATCH(G94,SignalHeads[Code],0))),IF(H94="",0,INDEX(SignalHeads[Height ** (feet)],MATCH(H94,SignalHeads[Code],0))),IF(I94="",0,INDEX(SignalHeads[Height ** (feet)],MATCH(I94,SignalHeads[Code],0)))) -> 0 | T94: =IF(S94=0,"",ROUNDDOWN(12*(((Q94-S94)-MIN($Q$26:$Q$425-$S$26:$S$425)-(MAX($S$26:$S$425*(($Q$26:$Q$425-$S$26:$S$425)=MIN($Q$26:$Q$425-$S$26:$S$425)))-S94))+(MIN($Q$26:$Q$425-$S$26:$S$425)-$I$10)),0)/12) ->  | W94: 17
A95: 70 | J95: =SUM(IF(B95="",0,INDEX(SignalHeads[Perp. Wind Area (sft)],MATCH(B95,SignalHeads[Code],0))),IF(D95="",0,INDEX(SignalHeads[Perp. Wind Area (sft)],MATCH(D95,SignalHeads[Code],0))),IF(E95="",0,INDEX(SignalHeads[Perp. Wind Area (sft)],MATCH(E95,SignalHeads[Code],0))),IF(F95="",0,INDEX(SignalHeads[Perp. Wind Area (sft)],MATCH(F95,SignalHeads[Code],0))),IF(G95="",0,INDEX(SignalHeads[Perp. Wind Area (sft)],MATCH(G95,SignalHeads[Code],0))),IF(H95="",0,INDEX(SignalHeads[Perp. Wind Area (sft)],MATCH(H95,SignalHeads[Code],0))),IF(I95="",0,INDEX(SignalHeads[Perp. Wind Area (sft)],MATCH(I95,SignalHeads[Code],0)))) -> 0 | K95: =SUM(IF(B95="",0,INDEX(SignalHeads[Weight*** (lbs)],MATCH(B95,SignalHeads[Code],0))),IF(D95="",0,INDEX(SignalHeads[Weight*** (lbs)],MATCH(D95,SignalHeads[Code],0))),IF(E95="",0,INDEX(SignalHeads[Weight*** (lbs)],MATCH(E95,SignalHeads[Code],0))),IF(F95="",0,INDEX(SignalHeads[Weight*** (lbs)],MATCH(F95,SignalHeads[Code],0))),IF(G95="",0,INDEX(SignalHeads[Weight*** (lbs)],MATCH(G95,SignalHeads[Code],0))),IF(H95="",0,INDEX(SignalHeads[Weight*** (lbs)],MATCH(H95,SignalHeads[Code],0))),IF(I95="",0,INDEX(SignalHeads[Weight*** (lbs)],MATCH(I95,SignalHeads[Code],0)))) -> 0 | L95: =IF(A95<=$I$8,INDEX(DesignConstants[Value],MATCH("Span Wire Weight (plf)",DesignConstants[Design Constant],0)),0) -> 1.155 | M95: 0 | N95: 80.2725 | S95: =SUM(IF(B95="",0,INDEX(SignalHeads[Height ** (feet)],MATCH(B95,SignalHeads[Code],0))),IF(D95="",0,INDEX(SignalHeads[Height ** (feet)],MATCH(D95,SignalHeads[Code],0))),IF(E95="",0,INDEX(SignalHeads[Height ** (feet)],MATCH(E95,SignalHeads[Code],0))),IF(F95="",0,INDEX(SignalHeads[Height ** (feet)],MATCH(F95,SignalHeads[Code],0))),IF(G95="",0,INDEX(SignalHeads[Height ** (feet)],MATCH(G95,SignalHeads[Code],0))),IF(H95="",0,INDEX(SignalHeads[Height ** (feet)],MATCH(H95,SignalHeads[Code],0))),IF(I95="",0,INDEX(SignalHeads[Height ** (feet)],MATCH(I95,SignalHeads[Code],0)))) -> 0 | T95: =IF(S95=0,"",ROUNDDOWN(12*(((Q95-S95)-MIN($Q$26:$Q$425-$S$26:$S$425)-(MAX($S$26:$S$425*(($Q$26:$Q$425-$S$26:$S$425)=MIN($Q$26:$Q$425-$S$26:$S$425)))-S95))+(MIN($Q$26:$Q$425-$S$26:$S$425)-$I$10)),0)/12) ->  | W95: 17
A96: 71 | J96: =SUM(IF(B96="",0,INDEX(SignalHeads[Perp. Wind Area (sft)],MATCH(B96,SignalHeads[Code],0))),IF(D96="",0,INDEX(SignalHeads[Perp. Wind Area (sft)],MATCH(D96,SignalHeads[Code],0))),IF(E96="",0,INDEX(SignalHeads[Perp. Wind Area (sft)],MATCH(E96,SignalHeads[Code],0))),IF(F96="",0,INDEX(SignalHeads[Perp. Wind Area (sft)],MATCH(F96,SignalHeads[Code],0))),IF(G96="",0,INDEX(SignalHeads[Perp. Wind Area (sft)],MATCH(G96,SignalHeads[Code],0))),IF(H96="",0,INDEX(SignalHeads[Perp. Wind Area (sft)],MATCH(H96,SignalHeads[Code],0))),IF(I96="",0,INDEX(SignalHeads[Perp. Wind Area (sft)],MATCH(I96,SignalHeads[Code],0)))) -> 0 | K96: =SUM(IF(B96="",0,INDEX(SignalHeads[Weight*** (lbs)],MATCH(B96,SignalHeads[Code],0))),IF(D96="",0,INDEX(SignalHeads[Weight*** (lbs)],MATCH(D96,SignalHeads[Code],0))),IF(E96="",0,INDEX(SignalHeads[Weight*** (lbs)],MATCH(E96,SignalHeads[Code],0))),IF(F96="",0,INDEX(SignalHeads[Weight*** (lbs)],MATCH(F96,SignalHeads[Code],0))),IF(G96="",0,INDEX(SignalHeads[Weight*** (lbs)],MATCH(G96,SignalHeads[Code],0))),IF(H96="",0,INDEX(SignalHeads[Weight*** (lbs)],MATCH(H96,SignalHeads[Code],0))),IF(I96="",0,INDEX(SignalHeads[Weight*** (lbs)],MATCH(I96,SignalHeads[Code],0)))) -> 0 | L96: =IF(A96<=$I$8,INDEX(DesignConstants[Value],MATCH("Span Wire Weight (plf)",DesignConstants[Design Constant],0)),0) -> 1.155 | M96: 0 | N96: 81.4275 | S96: =SUM(IF(B96="",0,INDEX(SignalHeads[Height ** (feet)],MATCH(B96,SignalHeads[Code],0))),IF(D96="",0,INDEX(SignalHeads[Height ** (feet)],MATCH(D96,SignalHeads[Code],0))),IF(E96="",0,INDEX(SignalHeads[Height ** (feet)],MATCH(E96,SignalHeads[Code],0))),IF(F96="",0,INDEX(SignalHeads[Height ** (feet)],MATCH(F96,SignalHeads[Code],0))),IF(G96="",0,INDEX(SignalHeads[Height ** (feet)],MATCH(G96,SignalHeads[Code],0))),IF(H96="",0,INDEX(SignalHeads[Height ** (feet)],MATCH(H96,SignalHeads[Code],0))),IF(I96="",0,INDEX(SignalHeads[Height ** (feet)],MATCH(I96,SignalHeads[Code],0)))) -> 0 | T96: =IF(S96=0,"",ROUNDDOWN(12*(((Q96-S96)-MIN($Q$26:$Q$425-$S$26:$S$425)-(MAX($S$26:$S$425*(($Q$26:$Q$425-$S$26:$S$425)=MIN($Q$26:$Q$425-$S$26:$S$425)))-S96))+(MIN($Q$26:$Q$425-$S$26:$S$425)-$I$10)),0)/12) ->  | W96: 17
A97: 72 | J97: =SUM(IF(B97="",0,INDEX(SignalHeads[Perp. Wind Area (sft)],MATCH(B97,SignalHeads[Code],0))),IF(D97="",0,INDEX(SignalHeads[Perp. Wind Area (sft)],MATCH(D97,SignalHeads[Code],0))),IF(E97="",0,INDEX(SignalHeads[Perp. Wind Area (sft)],MATCH(E97,SignalHeads[Code],0))),IF(F97="",0,INDEX(SignalHeads[Perp. Wind Area (sft)],MATCH(F97,SignalHeads[Code],0))),IF(G97="",0,INDEX(SignalHeads[Perp. Wind Area (sft)],MATCH(G97,SignalHeads[Code],0))),IF(H97="",0,INDEX(SignalHeads[Perp. Wind Area (sft)],MATCH(H97,SignalHeads[Code],0))),IF(I97="",0,INDEX(SignalHeads[Perp. Wind Area (sft)],MATCH(I97,SignalHeads[Code],0)))) -> 0 | K97: =SUM(IF(B97="",0,INDEX(SignalHeads[Weight*** (lbs)],MATCH(B97,SignalHeads[Code],0))),IF(D97="",0,INDEX(SignalHeads[Weight*** (lbs)],MATCH(D97,SignalHeads[Code],0))),IF(E97="",0,INDEX(SignalHeads[Weight*** (lbs)],MATCH(E97,SignalHeads[Code],0))),IF(F97="",0,INDEX(SignalHeads[Weight*** (lbs)],MATCH(F97,SignalHeads[Code],0))),IF(G97="",0,INDEX(SignalHeads[Weight*** (lbs)],MATCH(G97,SignalHeads[Code],0))),IF(H97="",0,INDEX(SignalHeads[Weight*** (lbs)],MATCH(H97,SignalHeads[Code],0))),IF(I97="",0,INDEX(SignalHeads[Weight*** (lbs)],MATCH(I97,SignalHeads[Code],0)))) -> 0 | L97: =IF(A97<=$I$8,INDEX(DesignConstants[Value],MATCH("Span Wire Weight (plf)",DesignConstants[Design Constant],0)),0) -> 1.155 | M97: 0 | N97: 82.5825 | S97: =SUM(IF(B97="",0,INDEX(SignalHeads[Height ** (feet)],MATCH(B97,SignalHeads[Code],0))),IF(D97="",0,INDEX(SignalHeads[Height ** (feet)],MATCH(D97,SignalHeads[Code],0))),IF(E97="",0,INDEX(SignalHeads[Height ** (feet)],MATCH(E97,SignalHeads[Code],0))),IF(F97="",0,INDEX(SignalHeads[Height ** (feet)],MATCH(F97,SignalHeads[Code],0))),IF(G97="",0,INDEX(SignalHeads[Height ** (feet)],MATCH(G97,SignalHeads[Code],0))),IF(H97="",0,INDEX(SignalHeads[Height ** (feet)],MATCH(H97,SignalHeads[Code],0))),IF(I97="",0,INDEX(SignalHeads[Height ** (feet)],MATCH(I97,SignalHeads[Code],0)))) -> 0 | T97: =IF(S97=0,"",ROUNDDOWN(12*(((Q97-S97)-MIN($Q$26:$Q$425-$S$26:$S$425)-(MAX($S$26:$S$425*(($Q$26:$Q$425-$S$26:$S$425)=MIN($Q$26:$Q$425-$S$26:$S$425)))-S97))+(MIN($Q$26:$Q$425-$S$26:$S$425)-$I$10)),0)/12) ->  | W97: 17
A98: 73 | J98: =SUM(IF(B98="",0,INDEX(SignalHeads[Perp. Wind Area (sft)],MATCH(B98,SignalHeads[Code],0))),IF(D98="",0,INDEX(SignalHeads[Perp. Wind Area (sft)],MATCH(D98,SignalHeads[Code],0))),IF(E98="",0,INDEX(SignalHeads[Perp. Wind Area (sft)],MATCH(E98,SignalHeads[Code],0))),IF(F98="",0,INDEX(SignalHeads[Perp. Wind Area (sft)],MATCH(F98,SignalHeads[Code],0))),IF(G98="",0,INDEX(SignalHeads[Perp. Wind Area (sft)],MATCH(G98,SignalHeads[Code],0))),IF(H98="",0,INDEX(SignalHeads[Perp. Wind Area (sft)],MATCH(H98,SignalHeads[Code],0))),IF(I98="",0,INDEX(SignalHeads[Perp. Wind Area (sft)],MATCH(I98,SignalHeads[Code],0)))) -> 0 | K98: =SUM(IF(B98="",0,INDEX(SignalHeads[Weight*** (lbs)],MATCH(B98,SignalHeads[Code],0))),IF(D98="",0,INDEX(SignalHeads[Weight*** (lbs)],MATCH(D98,SignalHeads[Code],0))),IF(E98="",0,INDEX(SignalHeads[Weight*** (lbs)],MATCH(E98,SignalHeads[Code],0))),IF(F98="",0,INDEX(SignalHeads[Weight*** (lbs)],MATCH(F98,SignalHeads[Code],0))),IF(G98="",0,INDEX(SignalHeads[Weight*** (lbs)],MATCH(G98,SignalHeads[Code],0))),IF(H98="",0,INDEX(SignalHeads[Weight*** (lbs)],MATCH(H98,SignalHeads[Code],0))),IF(I98="",0,INDEX(SignalHeads[Weight*** (lbs)],MATCH(I98,SignalHeads[Code],0)))) -> 0 | L98: =IF(A98<=$I$8,INDEX(DesignConstants[Value],MATCH("Span Wire Weight (plf)",DesignConstants[Design Constant],0)),0) -> 1.155 | M98: 0 | N98: 83.7375 | S98: =SUM(IF(B98="",0,INDEX(SignalHeads[Height ** (feet)],MATCH(B98,SignalHeads[Code],0))),IF(D98="",0,INDEX(SignalHeads[Height ** (feet)],MATCH(D98,SignalHeads[Code],0))),IF(E98="",0,INDEX(SignalHeads[Height ** (feet)],MATCH(E98,SignalHeads[Code],0))),IF(F98="",0,INDEX(SignalHeads[Height ** (feet)],MATCH(F98,SignalHeads[Code],0))),IF(G98="",0,INDEX(SignalHeads[Height ** (feet)],MATCH(G98,SignalHeads[Code],0))),IF(H98="",0,INDEX(SignalHeads[Height ** (feet)],MATCH(H98,SignalHeads[Code],0))),IF(I98="",0,INDEX(SignalHeads[Height ** (feet)],MATCH(I98,SignalHeads[Code],0)))) -> 0 | T98: =IF(S98=0,"",ROUNDDOWN(12*(((Q98-S98)-MIN($Q$26:$Q$425-$S$26:$S$425)-(MAX($S$26:$S$425*(($Q$26:$Q$425-$S$26:$S$425)=MIN($Q$26:$Q$425-$S$26:$S$425)))-S98))+(MIN($Q$26:$Q$425-$S$26:$S$425)-$I$10)),0)/12) ->  | W98: 17
A99: 74 | J99: =SUM(IF(B99="",0,INDEX(SignalHeads[Perp. Wind Area (sft)],MATCH(B99,SignalHeads[Code],0))),IF(D99="",0,INDEX(SignalHeads[Perp. Wind Area (sft)],MATCH(D99,SignalHeads[Code],0))),IF(E99="",0,INDEX(SignalHeads[Perp. Wind Area (sft)],MATCH(E99,SignalHeads[Code],0))),IF(F99="",0,INDEX(SignalHeads[Perp. Wind Area (sft)],MATCH(F99,SignalHeads[Code],0))),IF(G99="",0,INDEX(SignalHeads[Perp. Wind Area (sft)],MATCH(G99,SignalHeads[Code],0))),IF(H99="",0,INDEX(SignalHeads[Perp. Wind Area (sft)],MATCH(H99,SignalHeads[Code],0))),IF(I99="",0,INDEX(SignalHeads[Perp. Wind Area (sft)],MATCH(I99,SignalHeads[Code],0)))) -> 0 | K99: =SUM(IF(B99="",0,INDEX(SignalHeads[Weight*** (lbs)],MATCH(B99,SignalHeads[Code],0))),IF(D99="",0,INDEX(SignalHeads[Weight*** (lbs)],MATCH(D99,SignalHeads[Code],0))),IF(E99="",0,INDEX(SignalHeads[Weight*** (lbs)],MATCH(E99,SignalHeads[Code],0))),IF(F99="",0,INDEX(SignalHeads[Weight*** (lbs)],MATCH(F99,SignalHeads[Code],0))),IF(G99="",0,INDEX(SignalHeads[Weight*** (lbs)],MATCH(G99,SignalHeads[Code],0))),IF(H99="",0,INDEX(SignalHeads[Weight*** (lbs)],MATCH(H99,SignalHeads[Code],0))),IF(I99="",0,INDEX(SignalHeads[Weight*** (lbs)],MATCH(I99,SignalHeads[Code],0)))) -> 0 | L99: =IF(A99<=$I$8,INDEX(DesignConstants[Value],MATCH("Span Wire Weight (plf)",DesignConstants[Design Constant],0)),0) -> 1.155 | M99: 0 | N99: 84.8925 | S99: =SUM(IF(B99="",0,INDEX(SignalHeads[Height ** (feet)],MATCH(B99,SignalHeads[Code],0))),IF(D99="",0,INDEX(SignalHeads[Height ** (feet)],MATCH(D99,SignalHeads[Code],0))),IF(E99="",0,INDEX(SignalHeads[Height ** (feet)],MATCH(E99,SignalHeads[Code],0))),IF(F99="",0,INDEX(SignalHeads[Height ** (feet)],MATCH(F99,SignalHeads[Code],0))),IF(G99="",0,INDEX(SignalHeads[Height ** (feet)],MATCH(G99,SignalHeads[Code],0))),IF(H99="",0,INDEX(SignalHeads[Height ** (feet)],MATCH(H99,SignalHeads[Code],0))),IF(I99="",0,INDEX(SignalHeads[Height ** (feet)],MATCH(I99,SignalHeads[Code],0)))) -> 0 | T99: =IF(S99=0,"",ROUNDDOWN(12*(((Q99-S99)-MIN($Q$26:$Q$425-$S$26:$S$425)-(MAX($S$26:$S$425*(($Q$26:$Q$425-$S$26:$S$425)=MIN($Q$26:$Q$425-$S$26:$S$425)))-S99))+(MIN($Q$26:$Q$425-$S$26:$S$425)-$I$10)),0)/12) ->  | W99: 17
A100: 75 | J100: =SUM(IF(B100="",0,INDEX(SignalHeads[Perp. Wind Area (sft)],MATCH(B100,SignalHeads[Code],0))),IF(D100="",0,INDEX(SignalHeads[Perp. Wind Area (sft)],MATCH(D100,SignalHeads[Code],0))),IF(E100="",0,INDEX(SignalHeads[Perp. Wind Area (sft)],MATCH(E100,SignalHeads[Code],0))),IF(F100="",0,INDEX(SignalHeads[Perp. Wind Area (sft)],MATCH(F100,SignalHeads[Code],0))),IF(G100="",0,INDEX(SignalHeads[Perp. Wind Area (sft)],MATCH(G100,SignalHeads[Code],0))),IF(H100="",0,INDEX(SignalHeads[Perp. Wind Area (sft)],MATCH(H100,SignalHeads[Code],0))),IF(I100="",0,INDEX(SignalHeads[Perp. Wind Area (sft)],MATCH(I100,SignalHeads[Code],0)))) -> 0 | K100: =SUM(IF(B100="",0,INDEX(SignalHeads[Weight*** (lbs)],MATCH(B100,SignalHeads[Code],0))),IF(D100="",0,INDEX(SignalHeads[Weight*** (lbs)],MATCH(D100,SignalHeads[Code],0))),IF(E100="",0,INDEX(SignalHeads[Weight*** (lbs)],MATCH(E100,SignalHeads[Code],0))),IF(F100="",0,INDEX(SignalHeads[Weight*** (lbs)],MATCH(F100,SignalHeads[Code],0))),IF(G100="",0,INDEX(SignalHeads[Weight*** (lbs)],MATCH(G100,SignalHeads[Code],0))),IF(H100="",0,INDEX(SignalHeads[Weight*** (lbs)],MATCH(H100,SignalHeads[Code],0))),IF(I100="",0,INDEX(SignalHeads[Weight*** (lbs)],MATCH(I100,SignalHeads[Code],0)))) -> 0 | L100: =IF(A100<=$I$8,INDEX(DesignConstants[Value],MATCH("Span Wire Weight (plf)",DesignConstants[Design Constant],0)),0) -> 1.155 | M100: 0 | N100: 86.0475 | S100: =SUM(IF(B100="",0,INDEX(SignalHeads[Height ** (feet)],MATCH(B100,SignalHeads[Code],0))),IF(D100="",0,INDEX(SignalHeads[Height ** (feet)],MATCH(D100,SignalHeads[Code],0))),IF(E100="",0,INDEX(SignalHeads[Height ** (feet)],MATCH(E100,SignalHeads[Code],0))),IF(F100="",0,INDEX(SignalHeads[Height ** (feet)],MATCH(F100,SignalHeads[Code],0))),IF(G100="",0,INDEX(SignalHeads[Height ** (feet)],MATCH(G100,SignalHeads[Code],0))),IF(H100="",0,INDEX(SignalHeads[Height ** (feet)],MATCH(H100,SignalHeads[Code],0))),IF(I100="",0,INDEX(SignalHeads[Height ** (feet)],MATCH(I100,SignalHeads[Code],0)))) -> 0 | T100: =IF(S100=0,"",ROUNDDOWN(12*(((Q100-S100)-MIN($Q$26:$Q$425-$S$26:$S$425)-(MAX($S$26:$S$425*(($Q$26:$Q$425-$S$26:$S$425)=MIN($Q$26:$Q$425-$S$26:$S$425)))-S100))+(MIN($Q$26:$Q$425-$S$26:$S$425)-$I$10)),0)/12) ->  | W100: 17
A101: 76 | J101: =SUM(IF(B101="",0,INDEX(SignalHeads[Perp. Wind Area (sft)],MATCH(B101,SignalHeads[Code],0))),IF(D101="",0,INDEX(SignalHeads[Perp. Wind Area (sft)],MATCH(D101,SignalHeads[Code],0))),IF(E101="",0,INDEX(SignalHeads[Perp. Wind Area (sft)],MATCH(E101,SignalHeads[Code],0))),IF(F101="",0,INDEX(SignalHeads[Perp. Wind Area (sft)],MATCH(F101,SignalHeads[Code],0))),IF(G101="",0,INDEX(SignalHeads[Perp. Wind Area (sft)],MATCH(G101,SignalHeads[Code],0))),IF(H101="",0,INDEX(SignalHeads[Perp. Wind Area (sft)],MATCH(H101,SignalHeads[Code],0))),IF(I101="",0,INDEX(SignalHeads[Perp. Wind Area (sft)],MATCH(I101,SignalHeads[Code],0)))) -> 0 | K101: =SUM(IF(B101="",0,INDEX(SignalHeads[Weight*** (lbs)],MATCH(B101,SignalHeads[Code],0))),IF(D101="",0,INDEX(SignalHeads[Weight*** (lbs)],MATCH(D101,SignalHeads[Code],0))),IF(E101="",0,INDEX(SignalHeads[Weight*** (lbs)],MATCH(E101,SignalHeads[Code],0))),IF(F101="",0,INDEX(SignalHeads[Weight*** (lbs)],MATCH(F101,SignalHeads[Code],0))),IF(G101="",0,INDEX(SignalHeads[Weight*** (lbs)],MATCH(G101,SignalHeads[Code],0))),IF(H101="",0,INDEX(SignalHeads[Weight*** (lbs)],MATCH(H101,SignalHeads[Code],0))),IF(I101="",0,INDEX(SignalHeads[Weight*** (lbs)],MATCH(I101,SignalHeads[Code],0)))) -> 0 | L101: =IF(A101<=$I$8,INDEX(DesignConstants[Value],MATCH("Span Wire Weight (plf)",DesignConstants[Design Constant],0)),0) -> 1.155 | M101: 0 | N101: 87.2025 | S101: =SUM(IF(B101="",0,INDEX(SignalHeads[Height ** (feet)],MATCH(B101,SignalHeads[Code],0))),IF(D101="",0,INDEX(SignalHeads[Height ** (feet)],MATCH(D101,SignalHeads[Code],0))),IF(E101="",0,INDEX(SignalHeads[Height ** (feet)],MATCH(E101,SignalHeads[Code],0))),IF(F101="",0,INDEX(SignalHeads[Height ** (feet)],MATCH(F101,SignalHeads[Code],0))),IF(G101="",0,INDEX(SignalHeads[Height ** (feet)],MATCH(G101,SignalHeads[Code],0))),IF(H101="",0,INDEX(SignalHeads[Height ** (feet)],MATCH(H101,SignalHeads[Code],0))),IF(I101="",0,INDEX(SignalHeads[Height ** (feet)],MATCH(I101,SignalHeads[Code],0)))) -> 0 | T101: =IF(S101=0,"",ROUNDDOWN(12*(((Q101-S101)-MIN($Q$26:$Q$425-$S$26:$S$425)-(MAX($S$26:$S$425*(($Q$26:$Q$425-$S$26:$S$425)=MIN($Q$26:$Q$425-$S$26:$S$425)))-S101))+(MIN($Q$26:$Q$425-$S$26:$S$425)-$I$10)),0)/12) ->  | W101: 17
